Workbook

Sheet Wstęp
B15: Właściciel licencji i autor nie biorą odpowiedzialności za decyzje podjęte przez użytkownika pod wpływem informacji uzyskanych w oparciu o program, jak również za prawidłowość działania programu oraz przydatność uzyskanych przy jego użyciu informacji. Wszelkie zapytania dotyczące funkcjonowania programu należy kierować wyłącznie do Stowarzyszenia Na Rzecz Systemów Ociepleń – SSO.
B19: Program został opracowany w postaci zespołu arkuszy kalkulacyjnych Microsoft® Excel®, umożliwiających określenie: - oddziaływania ssania wiatru na ściany budynku, - nośności układu łączników mechanicznych i nośności systemu ETICS, - przemieszczenia w miejscu występowania łącznika, - wymaganej, minimalnej liczby łączników, przypadających na 1 m² powierzchni.
B25: Wyznaczanie oddziaływania wiatru możliwe jest w dwóch wariantach: - podstawowym, stosowanym gdy nie uwzględnia się wpływu położenia budynku względem stron świata na obciążenie wiatrem i ze wszystkich stron budynku przyjmuje się taką samą kategorię terenu, - rozszerzonym, stosowanym gdy uwzględnia się wpływ położenia budynku względem stron świata na obciążenie wiatrem lub przyjmuje się różne kategorie terenu w zależności od kierunku. Wariant ten umożliwia także uwzględnienie wpływu sąsiedniej zabudowy na obciążenie wiatrem. Oba warianty kalkulatora odnoszą się zasadniczo do budynków o rzucie prostokątnym, nie mających części o różnej wysokości (nie dotyczy to połaci dachowych). Jednak stosując metodę wyodrębniania brył, istnieje możliwość prowadzenia obliczeń budynków o złożonych kształtach.
B33: W programie zostały ponadto zawarte materiały informacyjne i pomocnicze z zakresu ustalania oddziaływania wiatru, umożliwiające prawidłowe zinterpretowanie wprowadzanych danych obliczeniowych i otrzymanych wyników.
B36: Program nie zawiera kalkulatora służącego do wyznaczania wartości współczynnika rzeźby terenu (orografii). W tym względzie można posłużyć się na przykład arkuszami kalkulacyjnymi dołączonymi do książki: J.A. Żurański, M. Gaczek, Projektowanie według Eurokodów -- Oddziaływania klimatyczne na konstrukcje budowlane według Eurokodu 1 -- Komentarze z przykładami obliczeń; Instytut Techniki Budowlanej, Warszawa 2011.
B40: Arkusze kalkulacyjne zawarte w programie, tylko częściowo zostały zabezpieczone przed wprowadzaniem niewłaściwych danych, dlatego też wykonując obliczenia należy mieć pełną świadomość przyjmowanych wartości.
B43: Autor programu dołożył wszelkich starań i sprawdził prawidłowość działania programu w wielu sytuacjach obliczeniowych. Nie można jednak wykluczyć, że przy określonym zestawie wprowadzonych wartości, wystąpi w obliczeniach nie wykryty wcześniej błąd. Dotyczyć to może zwłaszcza graficznego przedstawienia wyników obliczania oddziaływania wiatru. Z tego względu, w odpowiednich arkuszach pozostawiono nie ukryte pośrednie etapy obliczeniowe. Zaleca się ich sprawdzanie, zgodnie z zawartymi tam uwagami.
B48: Autor programu nie ponosi jakiejkolwiek odpowiedzialności za ewentualne szkody wynikające z tytułu wykorzystania programu.
B51: Wykorzystanie programu w jakimkolwiek zakresie możliwe jest na zasadzie cytowania - podając autora, nazwę i wersję (datę) programu. Zamieszczenie programu w całości albo we fragmencie na stronie internetowej innej niż strona Licencjobiorcy jest zabronione. Wprowadzanie w programie jakichkolwiek zmian bez pisemnej zgody autora jest zabronione.

Sheet Instrukcja
B2: Instrukcja wykonywania obliczeń
B5: Obliczanie nośności łączników mechanicznych Rd,f, nośności systemu ETICS Rd,ETICS oraz nośności miarodajnej Rd
B7: Obliczenia wykonuje się w arkuszach kalkulacyjnych o nazwach: „Obliczenia nośności T”, „Obliczenia nośności W” albo „Obliczenia nośności H”. Należy wybrać odpowiedni arkusz kalkulacyjny w zależności od przyjętego układu łączników (mocowanie na „T”, „W” albo „H”). Komórki każdego arkusza wymagające wstawienia wartości albo sprawdzenia wartości przyjętej jako domyślna, wyróżniono kolorem szarym. W celu przeprowadzenia obliczeń nośności układu łączników mechanicznych na wyrywanie z podłoża (Rd,f), nośności systemu ociepleń ETICS na przeciąganie przez łączniki (Rd,ETICS) oraz nośności miarodajnej (Rd) do sprawdzenia warunku pierwszego stanu granicznego, należy: - przyjąć długość płyty z materiału termoizolacyjnego zastosowanego do wykonania ocieplenia, - przyjąć szerokość płyty z materiału termoizolacyjnego zastosowanego do wykonania ocieplenia, - w przypadku deklarowania własnego schematu rozmieszczenia łączników na płycie izolacyjnej, w zależności od przyjętego układu łączników przyjąć liczbę łączników umieszczonych w polu płyty, liczbę łączników umieszczonych przy obrzeżach płyty, liczbę łączników umieszczonych w spoinach, - na podstawie dokumentu ETA (Europejskiej Aprobaty Technicznej, a po jej wygaśnięciu – Europejskiej Oceny Technicznej) albo karty technicznej, przyjąć wartość charakterystyczną nośności łącznika na wyrywanie, NR,k, w zależności od producenta i typu łącznika oraz rodzaju podłoża, w którym będzie osadzony. Należy przyjmować łączniki wyszczególnione w dokumencie ETA, wydanym dla danego systemu ociepleń, - sprawdzić i ewentualnie skorygować aktualnie obowiązującą krajową wartość częściowego współczynnika bezpieczeństwa przy wyrywaniu łącznika z podłoża; wartość wynikająca z dokumentu EAD 330196-01-0604 to 2,0, - na podstawie dokumentu ETA, dokumentu DoP albo karty technicznej systemu ociepleń ETICS, przyjąć wartość charakterystyczną nośności systemu (siłę niszczącą, siłę maksymalną) z uwagi na przeciąganie przez łącznik umieszczony w polu płyty, Fk,a (Rpanel), w zależności od: producenta systemu, rodzaju materiału termoizolacyjnego, jego grubości i wytrzymałości TR na rozciąganie prostopadle do powierzchni (względnie naprężenia ściskającego CS przy 10 % odkształceniu), sposobu montażu łączników (powierzchniowego albo zagłębionego), średnicy i sztywności talerzyka łącznika (jeśli podano), - w przypadku położenia łączników przy obrzeżu płyty - krawędzi albo narożu (patrz rysunek w arkuszu Rozmieszczenie łaczników) - na podstawie dokumentu ETA, dokumentu DoP albo karty technicznej systemu ociepleń ETICS, przyjąć wartość charakterystyczną nośności systemu (siłę niszczącą, siłę maksymalną) z uwagi na przeciąganie przez łącznik umieszczony przy obrzeżu, Fk,ec, w zależności od: producenta systemu, rodzaju materiału termoizolacyjnego, jego grubości i wytrzymałości TR na rozciąganie prostopadle do powierzchni (względnie naprężenia ściskającego CS przy 10 % odkształceniu), sposobu montażu łączników (powierzchniowego albo zagłębionego), średnicy i sztywności talerzyka łącznika (jeśli podano); postępowaniem zachowawczym jest przyjęcie wartości jak dla łączników umieszczonych w spoinach, Fk,j (Rjoint), - na podstawie dokumentu ETA, dokumentu DoP albo karty technicznej systemu ociepleń ETICS, przyjąć wartość charakterystyczną nośności systemu (siłę niszczącą, siłę maksymalną) z uwagi na przeciąganie przez łącznik umieszczony w stykach płyt (spoinach), Fk,j (Rjoint), w zależności od: producenta systemu, rodzaju materiału termoizolacyjnego, jego grubości i wytrzymałości TR na rozciąganie prostopadle do powierzchni (względnie naprężenia ściskającego CS przy 10 % odkształceniu), sposobu montażu łączników (powierzchniowego albo zagłębionego), średnicy i sztywności talerzyka łącznika (jeśli podano), - w zależności od rodzaju materiału termoizolacyjnego, przyjąć wartość częściowego współczynnika bezpieczeństwa przy przeciąganiu łącznika przez płytę izolacyjną. W normie prEN 17237:2018 zamieszczono następujące zapisy dotyczące wartości tego współczynnika: • korek ekspandowany ICB - wartość deklarowana albo wartość domyślna bez sprawdzania, wynosząca 2,0, • pianka fenolowa PF - wartość deklarowana albo wartość domyślna bez sprawdzania, wynosząca 2,0, • polistyren ekspandowany EPS (styropian) - wartość deklarowana albo wartość domyślna bez sprawdzania, wynosząca 1,5, • polistyren ekstrudowany XPS - wartość deklarowana albo wartość domyślna bez sprawdzania, wynosząca 1,5, • szkło piankowe CG - wartość deklarowana albo wartość domyślna bez sprawdzania, wynosząca 1,5, • sztywna pianka poliuretanowa PU - wartość deklarowana albo wartość domyślna bez sprawdzania, wynosząca 1,5, • wełna mineralna MW - wartość deklarowana, • włókno drzewne WF - 1,85. Wyniki obliczeń pokazane są w komórkach arkusza wyróżnionych kolorem żółtym, znajdujących się odpowiednio poniżej każdego schematu mocowania łącznikami. Są to: - liczba łączników przypadających na 1 m² ocieplenia, n, - wartość obliczeniowa nośności zespołu łączników na wyrywanie z podłoża, Rd,f, - wartość obliczeniowa nośności systemu ETICS na przeciąganie, Rd,ETICS, - wartość obliczeniowa nośności miarodajnej do sprawdzenia pierwszego stanu granicznego, Rd.
B56: Obliczanie oddziaływania wiatru we,d, gdy we wszystkich kierunkach występują takie same warunki
B58: Obliczenia wykonuje się w arkuszu kalkulacyjnym o nazwie „Obliczenia wiatr I”. W arkuszu tym uzyskuje się wartości oddziaływania wiatru w poszczególnych polach ścian bez uwzględnienia usytuowania budynku względem stron świata i wpływu sąsiedniej zabudowy. Komórki arkusza wymagające wstawienia wartości, sprawdzenia wartości przyjętej albo dokonania wyboru z listy rozwijanej, wyróżniono kolorem szarym. W celu przeprowadzenia obliczeń oddziaływania (ssania) wiatru na ściany budynku (we,d), należy: - wybrać z listy rozwijanej strefę obciążenia wiatrem w Polsce, właściwą lokalizacji rozpatrywanego budynku. Możliwy jest wybór zasadniczej strefy (1, 2 albo 3), a także strefy pośredniej pomiędzy strefami 1 i 2, obejmującej pas o szerokości 10 km po obu stronach granicy stref (zgodnie z zapisem w Załączniku krajowym NA normy PN-EN 1991-1-4:2008), - przyjąć wysokość nad poziomem morza miejsca lokalizacji rozpatrywanego budynku. Wysokość tą można określić wykorzystując np. stronę internetową: http://www.wysokosc.mapa.info.pl/ - wybrać z listy rozwijanej kategorię terenu wokół miejsca lokalizacji rozpatrywanego budynku. W tym arkuszu kalkulacyjnym zakłada się, że we wszystkich kierunkach występuje teren takiej samej kategorii. Zgodnie z zapisem w Załączniku krajowym NA normy PN-EN 1991-1-4:2008, warunkiem zakwalifikowania terenu do określonej kategorii jest minimalna odległość od rozpatrywanej budowli do granicy terenu przyjętej kategorii, mierzona pod wiatr; powinna być ona nie mniejsza niż 30∙h, gdzie h jest wysokością budynku. Jeżeli budynek o wysokości h jest usytuowany bliżej niż 30∙h od początku terenu kategorii niższej niż ta, która go bezpośrednio otacza, to należy przyjmować, że jest zlokalizowany na terenie kategorii niższej. Jeżeli na rozpatrywanym obszarze wokół budynku istnieje wybór między dwiema lub więcej kategoriami terenu, to wówczas należy wybrać teren o najniższej kategorii, - przyjąć wysokość rozpatrywanego budynku, h, - przyjąć szerokość (jeden z wymiarów rzutu) rozpatrywanego budynki, b, - przyjąć głębokość (drugi z wymiarów rzutu) rozpatrywanego budynku, d, - przyjąć wg listy rozwijanej wysokość odniesienia, do obliczeń oddziaływania wiatru. Zgodnie z zapisem normowym zaleca się, aby za wysokość odniesienia przyjąć wysokość budynku. Jeśli jednak w indywidualnym projekcie budynku podano, że rozkład oddziaływania wiatru na ścianach bocznych i zawietrznej może być taki sam, jak na ścianie nawietrznej, istnieje możliwość przyjęcia innych wysokości odniesienia, zależnie od proporcji h/b. Dlatego też lista rozwijana zmienia się w zależności od wymiarów h i b. Z opcji "ze = ?, wpisz tu wartość" należy skorzystać w przypadku przyjęcia wysokości pośredniej między ze = b oraz ze = h-b, - przyjąć odpowiednią wartość współczynnika rzeźby terenu (orografii), co, w przypadku lokalizacji budynku na stoku albo w pobliżu wierzchołka stoku: klifu, skarpy, pojedynczego wzgórza albo pasma wzgórz. W celu obliczenia wartości współczynnika orografii, można posłużyć się na przykład arkuszami kalkulacyjnymi dołączonymi do książki: J.A. Żurański, M. Gaczek, Projektowanie według Eurokodów -- Oddziaływania klimatyczne na konstrukcje budowlane według Eurokodu 1 -- Komentarze z przykładami obliczeń; Instytut Techniki Budowlanej, Warszawa 2011. W pozostałych przypadkach, pozostawić wartość równą 1,0, - wybrać z listy rozwijanej, przyjmowaną do dalszych obliczeń wartość szczytowego ciśnienia prędkości wiatru. Możliwy jest wybór spośród trzech wartości, obliczonych wg: -- zasadniczej części normy PN-EN 1991-1-4:2008 (oznaczenie EN), -- Załącznika krajowego, przy wykorzystaniu współczynnika chropowatości terenu, z możliwością przyjęcia odpowiedniej wartości współczynnika orografii (oznaczenie NA, co ≥ 1), -- Załącznika krajowego, przy wykorzystaniu współczynnika ekspozycji, bez możliwości przyjęcia wartości współczynnika orografii większej od 1,0 (oznaczenie NA, co = 1), - sprawdzić i ewentualnie skorygować aktualnie obowiązującą wartość częściowego współczynnika bezpieczeństwa, podaną w PN-EN 1990, - w uzasadnionym przypadku, przyjąć wartość dodatkowego obciążenia prostopadłego do powierzchni. Wyniki obliczeń pośrednich, mogących mieć znaczenie przy rozpatrywaniu oddziaływania wiatru, pokazane są w komórkach arkusza wyróżnionych kolorem jasnozielonym. Wyniki obliczeń końcowych, pokazane są w komórkach arkusza wyróżnionych kolorem zielonym. Są to: - szerokości poszczególnych pól obciążenia ścian, przy oddziaływaniu wiatru z jednego kierunku, - wartości obliczeniowe podciśnienia (ssania) wiatru, w poszczególnych polach ścian, przy oddziaływaniu wiatru na ścianę o szerokości b, we,d, - szerokości poszczególnych pól obciążenia ścian, z uwzględnieniem czterech kierunków wiatru, - wartości obliczeniowe oddziaływania (ssania) wiatru w poszczególnych polach ścian, z uwzględnieniem czterech kierunków wiatru, we,d. Wyniki końcowe przedstawiono także graficznie w zakładce „Wyniki graficzne wiatr I”.
B111: Obliczanie oddziaływania wiatru we,d, gdy w poszczególnych kierunkach występują inne warunki
B113: Obliczenia wykonuje się w arkuszu kalkulacyjnym o nazwie „Obliczenia wiatr II”. W arkuszu tym można uzyskać wartości oddziaływania wiatru z uwzględnieniem usytuowania budynku względem stron świata, różnych kategorii terenu w poszczególnych kierunkach lub z uwzględnieniem wpływu sąsiedniej zabudowy. Komórki arkusza wymagające wstawienia wartości, sprawdzenia wartości przyjętej albo dokonania wyboru z listy rozwijanej, wyróżniono kolorem szarym. W celu przeprowadzenia obliczeń oddziaływania (ssania) wiatru na ściany budynku (we,d), należy: - wybrać z listy rozwijanej strefę obciążenia wiatrem w Polsce, właściwą lokalizacji rozpatrywanego budynku. Możliwy jest wybór zasadniczej strefy (1, 2 albo 3), a także strefy pośredniej pomiędzy strefami 1 i 2, obejmującej pas o szerokości 10 km po obu stronach granicy stref (zgodnie z zapisem w Załączniku krajowym NA normy PN-EN 1991-1-4:2008), - przyjąć wysokość nad poziomem morza miejsca lokalizacji rozpatrywanego budynku. Wysokość tą można określić wykorzystując np. stronę internetową: http://www.wysokosc.mapa.info.pl/ - przyjąć kąt odchylenia (zgodnie z ruchem wskazówek zegara) wybranej osi budynku od kierunku północnego. Kierunek ten równocześnie wyznaczy pierwszy rozpatrywany kierunek oddziaływania wiatru. Możliwe jest przyjęcie kąta od 0 do 360°, ale w praktyce, po osiągnięciu albo przekroczeniu kąta 90°, bliższa kierunkowi północnemu będzie druga oś budynku, - wybrać z listy rozwijanej kategorię terenu dla każdego z czterech zasadniczych kierunków wiatru, biorąc pod uwagę sektor kątowy o rozwartości 30°, obejmujący rozpatrywany kierunek. Zgodnie z zapisem w Załączniku krajowym NA normy PN-EN 1991-1-4:2008, warunkiem zakwalifikowania terenu do określonej kategorii jest minimalna odległość od rozpatrywanej budowli do granicy terenu przyjętej kategorii, mierzona pod wiatr; powinna być ona nie mniejsza niż 30∙h, gdzie h jest wysokością budynku. Jeżeli budynek o wysokości h jest usytuowany bliżej niż 30∙h od początku terenu kategorii niższej niż ta, która go bezpośrednio otacza, to należy przyjmować, że jest zlokalizowany na terenie kategorii niższej; odległości te należy wyznaczyć dla każdego z rozpatrywanych kierunków wiatru, - przyjąć wysokość rozpatrywanego budynku, h, - przyjąć szerokość (jeden z wymiarów rzutu) rozpatrywanego budynki, b, - przyjąć głębokość (drugi z wymiarów rzutu) rozpatrywanego budynku, d, - przyjąć wg listy rozwijanej wysokość odniesienia, do obliczeń oddziaływania wiatru. Zgodnie z zapisem normowym zaleca się, aby za wysokość odniesienia przyjąć wysokość budynku. Jeśli jednak w indywidualnym projekcie budynku podano, że rozkład oddziaływania wiatru na ścianach bocznych i zawietrznej może być taki sam, jak na ścianie nawietrznej, istnieje możliwość przyjęcia innych wysokości odniesienia, zależnie od proporcji h/b. Dlatego też lista rozwijana zmienia się w zależności od wymiarów h i b. Z opcji "ze = ?, wpisz tu wartość" należy skorzystać w przypadku przyjęcia wysokości pośredniej między ze = b oraz ze = h-b, - w przypadku przyjęcia terenu kategorii IV, rozważyć możliwość zmniejszenia wysokości odniesienia poprzez przyjęcie tzw. wysokości przemieszczenia, hdis. Wysokość tą można obliczyć w arkuszu „Wysokość przemieszczenia”, - w przypadku lokalizacji budynku na stoku albo w pobliżu wierzchołka stoku: klifu, skarpy, pojedynczego wzgórza albo pasma wzgórz, przyjąć w zależności od kierunku odpowiednią wartość współczynnika rzeźby terenu (orografii). W celu obliczenia wartości współczynnika orografii, można posłużyć się na przykład arkuszami kalkulacyjnymi dołączonymi do książki: J.A. Żurański, M. Gaczek, Projektowanie według Eurokodów -- Oddziaływania klimatyczne na konstrukcje budowlane według Eurokodu 1 -- Komentarze z przykładami obliczeń; Instytut Techniki Budowlanej, Warszawa 2011. W pozostałych przypadkach, pozostawić wartość równą 1,0, - wybrać z listy rozwijanej, przyjmowaną do dalszych obliczeń wartość szczytowego ciśnienia prędkości wiatru. Możliwy jest wybór spośród trzech wartości, obliczonych wg: -- zasadniczej części normy PN-EN 1991-1-4:2008 (oznaczenie EN), -- Załącznika krajowego, przy wykorzystaniu współczynnika chropowatości terenu, z możliwością przyjęcia odpowiedniej wartości współczynnika orografii (oznaczenie NA, co ≥ 1), -- Załącznika krajowego, przy wykorzystaniu współczynnika ekspozycji, bez możliwości przyjęcia wartości współczynnika orografii większej od 1,0 (oznaczenie NA, co = 1), - przyjąć wg listy rozwijanej wartości współczynnika ciśnienia zewnętrznego. Możliwy jest wybór spośród dwóch wartości domyślnych, a także przyjęcie innej wartości. Wartości domyślne to: -- wartości podstawowe, przyjmowane na podstawie normy PN-EN 1991-1-4:2008, -- wartości maksymalne przy zwężce, przyjmowane w nawiązaniu do Załącznika krajowego (NA) do normy BS EN 1991-1-4:2005+A1:2010. Wartości maksymalne przy zwężce można przyjąć, gdy odległość między rozpatrywanym budynkiem, a budynkiem sąsiednim, mierzona prostopadle do rozpatrywanego średniego kierunku wiatru jest > e/4 i < e, gdzie e to wymiar mniejszy z dwóch: e=b albo 2h. W przypadku budynków o różnej wartości e, należy rozpatrywać wartość mniejszą. Przyjęcie wartości maksymalnej przy zwężce uwzględniane jest na obu ścianach równoległych do rozpatrywanego średniego kierunku wiatru. Jeśli efekt zwężki dotyczy tylko jednej z tych ścian, obliczenia należy wykonać dwukrotnie i wybrać ścianę podlegającą większemu oddziaływaniu wiatru w wyniku zwężenia przepływu, - sprawdzić i ewentualnie skorygować aktualnie obowiązującą wartość częściowego współczynnika bezpieczeństwa, podaną w PN-EN 1990, - w uzasadnionym przypadku, przyjąć wartość dodatkowego obciążenia prostopadłego do powierzchni. Wyniki obliczeń pośrednich, mogących mieć znaczenie przy rozpatrywaniu oddziaływania wiatru, pokazane są w komórkach arkusza wyróżnionych kolorem jasnozielonym. Kolorem tym oznaczono także cztery przypadki oddziaływania wiatru. Wyniki obliczeń końcowych, pokazane są w komórkach arkusza wyróżnionych kolorem zielonym. Są to: - szerokości poszczególnych pól obciążenia ścian, przy oddziaływaniu wiatru z jednego kierunku, - wartości obliczeniowe podciśnienia (ssania) wiatru, w poszczególnych polach ścian, przy oddziaływaniu wiatru na ścianę o szerokości b, we,d, Wyniki końcowe, uwzględniające wszystkie cztery rozpatrywane kierunki wiatru, przedstawiono graficznie w zakładce „Wyniki graficzne wiatr II”.
B177: Określenie liczby łączników mechanicznych ze względu na nośność, przy oddziaływaniu wiatru I albo wiatru II
B179: Obliczenia wykonuje się w arkuszach kalkulacyjnych o nazwach: „Łączniki wiatr I” albo „Łączniki wiatr II”. Należy wybrać odpowiedni arkusz kalkulacyjny w zależności od przyjętego wcześniej wariantu oddziaływania wiatru („Obliczenia wiatr I” albo „Obliczenia wiatr II”). Komórki arkusza wymagające wstawienia wartości albo dokonania wyboru z listy rozwijanej, wyróżniono kolorem szarym. W celu przeprowadzenia obliczeń wymaganej liczby łączników ze względu na nośność, należy: - wybrać z listy rozwijanej rozpatrywany układ łączników (mocowanie na „T”, „W” albo „H”), - przyjąć minimalną liczbę łączników przypadających na 1 m² powierzchni systemu ETICS, - przyjąć dopuszczalne niedoszacowanie nośności (najczęściej do 3%) albo wpisać 0, jeśli nie dopuszcza się przekroczenia nośności. Wyniki obliczeń pokazane są w formie pseudograficznej dla poszczególnych pól ścian. Są to: - wymagana liczba łączników przypadających na 1 m² ocieplenia, n, - numer schematu mocowania łącznikami, określony w odpowiednim arkuszu: „Obliczenia nośności T”, „Obliczenia nośności W” albo „Obliczenia nośności H” (numery podane są w górnej części każdego z arkuszy). Jeśli z jakichś względów sugerowany schemat mocowania nie jest odpowiedni, można wybrać inny, spełniający warunek wymaganej liczby łączników. Jeżeli nie sprawdza się przemieszczenia w miejscu mocowania łącznika, obliczenia kończą się.
B199: Określenie przemieszczenia δN w miejscu występowania łącznika, przy działaniu wiatru I albo wiatru II
B201: Obliczenia wykonuje się w arkuszach kalkulacyjnych o nazwach: „Przemieszczenia wiatr I” albo „Przemieszczenia wiatr II”. Należy wybrać odpowiedni arkusz kalkulacyjny w zależności od przyjętego wcześniej wariantu oddziaływania wiatru („Obliczenia wiatr I” albo „Obliczenia wiatr II”). Komórki arkusza wymagające wstawienia wartości, wyróżniono kolorem szarym. W celu przeprowadzenia obliczeń wymaganej liczby łączników ze względu na przemieszczenie w miejscu występowania łącznika, należy: - na podstawie dokumentu ETA (Europejskiej Aprobaty Technicznej, a po jej wygaśnięciu – Europejskiej Oceny Technicznej) albo karty technicznej wybranego wcześniej łącznika, przyjąć wartość przemieszczenia δm, w zależności od rodzaju podłoża, w którym łączniki będą osadzone, - na podstawie dokumentu ETA (Europejskiej Aprobaty Technicznej, a po jej wygaśnięciu – Europejskiej Oceny Technicznej) albo karty technicznej wybranego wcześniej łącznika, przyjąć wartość siły wyrywajacej N, w zależności od rodzaju podłoża, w którym łączniki będą osadzone, - przyjąć wartość przemieszczenia granicznego δN (w miejscu występowania łącznika). Wartością sugerowaną, wynikajacą z zapisów normy ÖNORM B 6400‐2:2017‐09 jest ⅓ mm. Wyniki obliczeń pokazane są w formie pseudograficznej dla poszczególnych pól ścian. Są to: - przemieszczenie w miejscu występowania łącznika, obliczone przy założeniu równego rozdzielenia oddziaływania wiatru na łączniki, których liczbę określono ze względu na nośność, - minimalną wymaganą liczbę łączników przypadających na 1 m², z uwagi na nieprzekroczenie wartości przemieszczenia granicznego.
B221: Wymagana liczba łączników ze względu na nośność i przemieszczenie, przy oddziaływaniu wiatru I albo wiatru II
B223: Końcowe wyniki obliczeń pokazane są w arkuszach o nazwach: „Wyniki końcowe wiatr I” albo „Wyniki końcowe wiatr II”. Należy wybrać odpowiedni arkusz w zależności od przyjętego wcześniej wariantu oddziaływania wiatru („Obliczenia wiatr I” albo „Obliczenia wiatr II”). W górnej części arkuszy podane są przyjęte wcześniej warunki obliczeń: - rozpatrywany układ łączników (mocowanie na „T”, „W” albo „H”), - minimalna liczba łączników przypadających na 1 m² powierzchni systemu ETICS, - przemieszczenie graniczne w miejscu występowania łącznika. Wyniki obliczeń pokazane są w formie pseudograficznej dla poszczególnych pól ścian. Są to: - wymagana, ze wzgledu na nośność i przemieszczenie, liczba łączników przypadających na 1 m² ocieplenia, - numer schematu mocowania łącznikami, określony w odpowiednim arkuszu: „Obliczenia nośności T”, „Obliczenia nośności W” albo „Obliczenia nośności H” (numery podane są w górnej części każdego z arkuszy). Jeśli z jakichś względów sugerowany schemat mocowania nie jest odpowiedni, można wybrać inny, spełniający warunek wymaganej liczby łączników.

Sheet Obliczenia nośności T
B2: Obliczanie nośności łączników mechanicznych Rd,f, nośności systemu ETICS Rd,ETICS oraz nośności miarodajnej Rd
B5: Numer schematu mocowania łącznikami mechanicznymi | C5: → | D5: 1 | E5: 2 | F5: 3 | G5: 4 | H5: 5 | I5: 6 | J5: 7 | K5: 8 | L5: 9 | M5: 10 | N5: 11 | O5: 12 | P5: 13 | Q5: 14 | R5: 15 | S5: 16 | T5: 17
B6: Schemat mocowania łącznikami mechanicznymi | C6: → | E6: Na przemian schematy 1 i 3 | G6: Na przemian schematy 3 i 5 | I6: Na przemian schematy 5 i 7 | K6: Na przemian schematy 7 i 9 | N6: Na przemian schematy 9 i 13 | O6: Na przemian schematy 10 i 14 | R6: Na przemian schematy 14 i 16 | T6: Inny
B7: Wymiary płyt termoizolacyjnych
B8: - długość, m | C8: 1.00 | D8: =C8 -> 1.00 | E8: =C8 -> 1.00 | F8: =C8 -> 1.00 | G8: =C8 -> 1.00 | H8: =C8 -> 1.00 | I8: =C8 -> 1.00 | J8: =C8 -> 1.00 | K8: =C8 -> 1.00 | L8: =C8 -> 1.00 | M8: =C8 -> 1.00 | N8: =C8 -> 1.00 | O8: =C8 -> 1.00 | P8: =C8 -> 1.00 | Q8: =C8 -> 1.00 | R8: =C8 -> 1.00 | S8: =C8 -> 1.00 | T8: =C8 -> 1.00
B9: - szerokość, m | C9: 0.50 | D9: =C9 -> 0.50 | E9: =C9 -> 0.50 | F9: =C9 -> 0.50 | G9: =C9 -> 0.50 | H9: =C9 -> 0.50 | I9: =C9 -> 0.50 | J9: =C9 -> 0.50 | K9: =C9 -> 0.50 | L9: =C9 -> 0.50 | M9: =C9 -> 0.50 | N9: =C9 -> 0.50 | O9: =C9 -> 0.50 | P9: =C9 -> 0.50 | Q9: =C9 -> 0.50 | R9: =C9 -> 0.50 | S9: =C9 -> 0.50 | T9: =C9 -> 0.50
B10: Liczba łączników na jedną płytę, szt | C10: → | D10: =D11+D12 -> 2.00 | E10: =E11+E12 -> 2.50 | F10: 3.00 | G10: 3.50 | H10: 4.00 | I10: 4.50 | J10: 5.00 | K10: 5.50 | L10: 6.00 | M10: 6.00 | N10: 6.50 | O10: 6.50 | P10: 7.00 | Q10: 7.00 | R10: 7.50 | S10: 8.00 | T10: =T11+T12 -> 5.00
B11: Liczba łączników na jedną płytę umieszczonych w polu płyty, szt | C11: → | D11: 0.00 | E11: 0.50 | F11: 1.00 | G11: 1.50 | H11: 2.00 | I11: 2.50 | J11: 3.00 | K11: 3.50 | L11: 4.00 | M11: 3.00 | N11: 4.50 | O11: 3.50 | P11: 5.00 | Q11: 4.00 | R11: 4.50 | S11: 5.00 | T11: 2.00
B12: Liczba łączników na jedną płytę umieszczonych w spoinach, szt | C12: → | D12: 2.00 | E12: 2.00 | F12: 2.00 | G12: 2.00 | H12: 2.00 | I12: 2.00 | J12: 2.00 | K12: 2.00 | L12: 2.00 | M12: 3.00 | N12: 2.00 | O12: 3.00 | P12: 2.00 | Q12: 3.00 | R12: 3.00 | S12: 3.00 | T12: 3.00
B13: Liczba łączników na m², n, szt | C13: → | D13: =D10/(D8*D9) -> 4.00 | E13: 5.00 | F13: 6.00 | G13: 7.00 | H13: 8.00 | I13: 9.00 | J13: 10.00 | K13: 11.00 | L13: 12.00 | M13: 12.00 | N13: 13.00 | O13: 13.00 | P13: 14.00 | Q13: 14.00 | R13: 15.00 | S13: 16.00 | T13: 10.00
B14: Liczba łączników umieszczonych w polu płyt, na (npanel), szt/m² | C14: → | D14: =D11/(D8*D9) -> 0.00 | E14: 1.00 | F14: 2.00 | G14: 3.00 | H14: 4.00 | I14: 5.00 | J14: 6.00 | K14: 7.00 | L14: 8.00 | M14: 6.00 | N14: 9.00 | O14: 7.00 | P14: 10.00 | Q14: 8.00 | R14: 9.00 | S14: 10.00 | T14: 4.00
B15: Liczba łączników umieszczonych w spoinach, nj (njoint), szt/m² | C15: → | D15: =D12/(D8*D9) -> 4.00 | E15: 4.00 | F15: 4.00 | G15: 4.00 | H15: 4.00 | I15: 4.00 | J15: 4.00 | K15: 4.00 | L15: 4.00 | M15: 6.00 | N15: 4.00 | O15: 6.00 | P15: 4.00 | Q15: 6.00 | R15: 6.00 | S15: 6.00 | T15: 6.00
B17: Wyrywanie łączników z podłoża
B18: Nośność charakterystyczna pojedynczego łącznika na wyrywanie z podłoża NR,k, kN | C18: 1.20 | D18: =C18 -> 1.20 | E18: =C18 -> 1.20 | F18: =C18 -> 1.20 | G18: =C18 -> 1.20 | H18: =C18 -> 1.20 | I18: =C18 -> 1.20 | J18: =C18 -> 1.20 | K18: =C18 -> 1.20 | L18: =C18 -> 1.20 | M18: =C18 -> 1.20 | N18: =C18 -> 1.20 | O18: =C18 -> 1.20 | P18: =C18 -> 1.20 | Q18: =C18 -> 1.20 | R18: =C18 -> 1.20 | S18: =C18 -> 1.20 | T18: =C18 -> 1.20
B19: Częściowy współczynnik bezpieczeństwa, - | C19: 2.00 | D19: =C19 -> 2.00 | E19: =C19 -> 2.00 | F19: =C19 -> 2.00 | G19: =C19 -> 2.00 | H19: =C19 -> 2.00 | I19: =C19 -> 2.00 | J19: =C19 -> 2.00 | K19: =C19 -> 2.00 | L19: =C19 -> 2.00 | M19: =C19 -> 2.00 | N19: =C19 -> 2.00 | O19: =C19 -> 2.00 | P19: =C19 -> 2.00 | Q19: =C19 -> 2.00 | R19: =C19 -> 2.00 | S19: =C19 -> 2.00 | T19: =C19 -> 2.00
B20: Nośność obliczeniowa łączników na wyrywanie z podłoża Rd,f, kN/m² | C20: → | D20: =((D14+D15)*D18)/D19 -> 2.40 | E20: 3.00 | F20: 3.60 | G20: 4.20 | H20: 4.80 | I20: 5.40 | J20: 6.00 | K20: 6.60 | L20: 7.20 | M20: 7.20 | N20: 7.80 | O20: 7.80 | P20: 8.40 | Q20: 8.40 | R20: 9.00 | S20: 9.60 | T20: 6.00
B22: Przeciąganie płyt przez łączniki
B23: Nośność charakterystyczna (siła niszcząca) na przeciąganie przez łącznik umieszczony w polu płyty, Fk,a (Rpanel), kN | C23: 0.48 | D23: =C23 -> 0.48 | E23: =C23 -> 0.48 | F23: =C23 -> 0.48 | G23: =C23 -> 0.48 | H23: =C23 -> 0.48 | I23: =C23 -> 0.48 | J23: =C23 -> 0.48 | K23: =C23 -> 0.48 | L23: =C23 -> 0.48 | M23: =C23 -> 0.48 | N23: =C23 -> 0.48 | O23: =C23 -> 0.48 | P23: =C23 -> 0.48 | Q23: =C23 -> 0.48 | R23: =C23 -> 0.48 | S23: =C23 -> 0.48 | T23: =C23 -> 0.48
B24: Nośność charakterystyczna (siła niszcząca) na przeciąganie przez łącznik umieszczony w stykach płyt (spoinach), Fk,j (Rjoint), kN | C24: 0.39 | D24: =C24 -> 0.39 | E24: =C24 -> 0.39 | F24: =C24 -> 0.39 | G24: =C24 -> 0.39 | H24: =C24 -> 0.39 | I24: =C24 -> 0.39 | J24: =C24 -> 0.39 | K24: =C24 -> 0.39 | L24: =C24 -> 0.39 | M24: =C24 -> 0.39 | N24: =C24 -> 0.39 | O24: =C24 -> 0.39 | P24: =C24 -> 0.39 | Q24: =C24 -> 0.39 | R24: =C24 -> 0.39 | S24: =C24 -> 0.39 | T24: =C24 -> 0.39
B25: Częściowy współczynnik bezpieczeństwa, - | C25: 1.50 | D25: =C25 -> 1.50 | E25: =C25 -> 1.50 | F25: =C25 -> 1.50 | G25: =C25 -> 1.50 | H25: =C25 -> 1.50 | I25: =C25 -> 1.50 | J25: =C25 -> 1.50 | K25: =C25 -> 1.50 | L25: =C25 -> 1.50 | M25: =C25 -> 1.50 | N25: =C25 -> 1.50 | O25: =C25 -> 1.50 | P25: =C25 -> 1.50 | Q25: =C25 -> 1.50 | R25: =C25 -> 1.50 | S25: =C25 -> 1.50 | T25: =C25 -> 1.50
B26: Nośność obliczeniowa systemu ETICS na przeciąganie Rd,ETICS, kN/m² | C26: → | D26: =(D23*D14+D24*D15)/D25 -> 1.04 | E26: 1.36 | F26: 1.68 | G26: 2.00 | H26: 2.32 | I26: 2.64 | J26: 2.96 | K26: =(K23*K14)/K25 -> 2.24 | L26: =(L23*L14+L24*L15)/L25 -> 3.60 | M26: 3.48 | N26: 3.92 | O26: 3.80 | P26: 4.24 | Q26: 4.12 | R26: 4.44 | S26: 4.76 | T26: 2.84
B28: Łączne uwzględnienie wyrywania i przeciągania
B29: Nośność obliczeniowa miarodajna Rd, kN/m² | D29: =D14*MIN(D23/D25,D18/D19)+D15*MIN(D24/D25,D18/D19) -> 1.04 | E29: 1.36 | F29: 1.68 | G29: 2.00 | H29: 2.32 | I29: 2.64 | J29: 2.96 | K29: 3.28 | L29: 3.60 | M29: 3.48 | N29: 3.92 | O29: 3.80 | P29: 4.24 | Q29: 4.12 | R29: 4.44 | S29: 4.76 | T29: 2.84
B33: Należy spełnić warunki:
B34: Rd ≥ we,d
B36: δ ≥ δN
B38: oraz
B39: n ≥ nmin
C57: 0
C58: 0.5
C59: 1
C60: 1.5
C61: 2
C62: 2.5
C63: 3
C64: 3.5
C65: 4
C66: 4.5
C67: 5
C68: 5.5
C69: 6
C70: 6.5
C71: 7
C72: 7.5
C73: 8
C74: 8.5
C75: 9
C76: 9.5
C77: 10

Sheet Obliczenia nośności W
B2: Obliczanie nośności łączników mechanicznych Rd,f, nośności systemu ETICS Rd,ETICS oraz nośności miarodajnej Rd
B5: Numer schematu mocowania łącznikami mechanicznymi | C5: → | D5: 1 | E5: 2 | F5: 3 | G5: 4 | H5: 5 | I5: 6 | J5: 7 | K5: 8 | L5: 9 | M5: 10 | N5: 11 | O5: 12 | P5: 13 | Q5: 14
B6: Schemat mocowania łącznikami mechanicznymi | C6: → | E6: Na przemian schematy 1 i 3 | G6: Na przemian schematy 3 i 5 | I6: Na przemian schematy 5 i 7 | K6: Na przemian schematy 7 i 9 | M6: Na przemian schematy 9 i 11 | O6: Na przemian schematy 11 i 13 | Q6: Inny
B7: Wymiary płyt termoizolacyjnych
B8: - długość, m | C8: 1.00 | D8: =C8 -> 1.00 | E8: =C8 -> 1.00 | F8: =C8 -> 1.00 | G8: =C8 -> 1.00 | H8: =C8 -> 1.00 | I8: =C8 -> 1.00 | J8: =C8 -> 1.00 | K8: =C8 -> 1.00 | L8: =C8 -> 1.00 | M8: =C8 -> 1.00 | N8: =C8 -> 1.00 | O8: =C8 -> 1.00 | P8: =C8 -> 1.00 | Q8: =C8 -> 1.00
B9: - szerokość, m | C9: 0.60 | D9: =C9 -> 0.60 | E9: =C9 -> 0.60 | F9: =C9 -> 0.60 | G9: =C9 -> 0.60 | H9: =C9 -> 0.60 | I9: =C9 -> 0.60 | J9: =C9 -> 0.60 | K9: =C9 -> 0.60 | L9: =C9 -> 0.60 | M9: =C9 -> 0.60 | N9: =C9 -> 0.60 | O9: =C9 -> 0.60 | P9: =C9 -> 0.60 | Q9: =C9 -> 0.60
B10: Liczba łączników na jedną płytę, szt | C10: → | D10: =D11+D12 -> 2.00 | E10: =E11+E12 -> 2.50 | F10: 3.00 | G10: 3.50 | H10: 4.00 | I10: 4.50 | J10: 5.00 | K10: 5.50 | L10: 6.00 | M10: 6.50 | N10: 7.00 | O10: 7.50 | P10: 8.00 | Q10: =Q11+Q12 -> 2.00
B11: Liczba łączników na jedną płytę umieszczonych w polu płyty, szt | C11: → | D11: 0.00 | E11: 0.00 | F11: 0.00 | G11: 0.00 | H11: 0.00 | I11: 0.00 | J11: 0.00 | K11: 0.00 | L11: 0.00 | M11: 0.50 | N11: 1.00 | O11: 1.50 | P11: 2.00 | Q11: 2.00
B12: Liczba łączników na jedną płytę umieszczonych przy obrzeżach, szt | C12: → | D12: 2.00 | E12: 2.50 | F12: 3.00 | G12: 3.50 | H12: 4.00 | I12: 4.50 | J12: 5.00 | K12: 5.50 | L12: 6.00 | M12: 6.00 | N12: 6.00 | O12: 6.00 | P12: 6.00 | Q12: 0.00
B13: Liczba łączników na m², n, szt | C13: → | D13: =D10/(D8*D9) -> 3.33 | E13: 4.17 | F13: 5.00 | G13: 5.83 | H13: 6.67 | I13: 7.50 | J13: 8.33 | K13: 9.17 | L13: 10.00 | M13: 10.83 | N13: 11.67 | O13: 12.50 | P13: 13.33 | Q13: 3.33
B14: Liczba łączników umieszczonych w polu płyt, na, szt/m² | C14: → | D14: =D11/(D8*D9) -> 0.00 | E14: 0.00 | F14: 0.00 | G14: 0.00 | H14: 0.00 | I14: 0.00 | J14: 0.00 | K14: 0.00 | L14: 0.00 | M14: 0.83 | N14: 1.67 | O14: 2.50 | P14: 3.33 | Q14: 3.33
B15: Liczba łączników umieszczonych przy obreżach, nec, szt/m² | C15: → | D15: =D12/(D8*D9) -> 3.33 | E15: 4.17 | F15: 5.00 | G15: 5.83 | H15: 6.67 | I15: 7.50 | J15: 8.33 | K15: 9.17 | L15: 10.00 | M15: 10.00 | N15: 10.00 | O15: 10.00 | P15: 10.00 | Q15: 0.00
B17: Wyrywanie łączników z podłoża
B18: Nośność charakterystyczna pojedynczego łącznika na wyrywanie z podłoża NR,k, kN | C18: 1.20 | D18: =C18 -> 1.20 | E18: =C18 -> 1.20 | F18: =C18 -> 1.20 | G18: =C18 -> 1.20 | H18: =C18 -> 1.20 | I18: =C18 -> 1.20 | J18: =C18 -> 1.20 | K18: =C18 -> 1.20 | L18: =C18 -> 1.20 | M18: =C18 -> 1.20 | N18: =C18 -> 1.20 | O18: =C18 -> 1.20 | P18: =C18 -> 1.20 | Q18: =C18 -> 1.20
B19: Częściowy współczynnik bezpieczeństwa, - | C19: 2.00 | D19: =C19 -> 2.00 | E19: =C19 -> 2.00 | F19: =C19 -> 2.00 | G19: =C19 -> 2.00 | H19: =C19 -> 2.00 | I19: =C19 -> 2.00 | J19: =C19 -> 2.00 | K19: =C19 -> 2.00 | L19: =C19 -> 2.00 | M19: =C19 -> 2.00 | N19: =C19 -> 2.00 | O19: =C19 -> 2.00 | P19: =C19 -> 2.00 | Q19: =C19 -> 2.00
B20: Nośność obliczeniowa łączników na wyrywanie z podłoża Rd,f, kN/m² | C20: → | D20: =((D14+D15)*D18)/D19 -> 2.00 | E20: 2.50 | F20: 3.00 | G20: 3.50 | H20: 4.00 | I20: 4.50 | J20: 5.00 | K20: 5.50 | L20: 6.00 | M20: 6.50 | N20: 7.00 | O20: 7.50 | P20: 8.00 | Q20: 2.00
B22: Przeciąganie płyt przez łączniki
B23: Nośność charakterystyczna (siła niszcząca) na przeciąganie przez łącznik umieszczony w polu płyty, Fk,a (Rpanel), kN | C23: 0.41 | D23: =C23 -> 0.41 | E23: =C23 -> 0.41 | F23: =C23 -> 0.41 | G23: =C23 -> 0.41 | H23: =C23 -> 0.41 | I23: =C23 -> 0.41 | J23: =C23 -> 0.41 | K23: =C23 -> 0.41 | L23: =C23 -> 0.41 | M23: =C23 -> 0.41 | N23: =C23 -> 0.41 | O23: =C23 -> 0.41 | P23: =C23 -> 0.41 | Q23: =C23 -> 0.41
B24: Nośność charakterystyczna (siła niszcząca) na przeciąganie przez łącznik umieszczony przy obrzeżach, Fk,ec, albo w polu płyty, Fk,a, kN | C24: 0.37 | D24: =C24 -> 0.37 | E24: =C24 -> 0.37 | F24: =C24 -> 0.37 | G24: =C24 -> 0.37 | H24: =C24 -> 0.37 | I24: =C24 -> 0.37 | J24: =C24 -> 0.37 | K24: =C24 -> 0.37 | L24: =C24 -> 0.37 | M24: =C24 -> 0.37 | N24: =C24 -> 0.37 | O24: =C24 -> 0.37 | P24: =C24 -> 0.37 | Q24: =C24 -> 0.37
B25: Częściowy współczynnik bezpieczeństwa, - | C25: 2.00 | D25: =C25 -> 2.00 | E25: =C25 -> 2.00 | F25: =C25 -> 2.00 | G25: =C25 -> 2.00 | H25: =C25 -> 2.00 | I25: =C25 -> 2.00 | J25: =C25 -> 2.00 | K25: =C25 -> 2.00 | L25: =C25 -> 2.00 | M25: =C25 -> 2.00 | N25: =C25 -> 2.00 | O25: =C25 -> 2.00 | P25: =C25 -> 2.00 | Q25: =C25 -> 2.00
B26: Nośność obliczeniowa systemu ETICS na przeciąganie Rd,ETICS, kN/m² | C26: → | D26: =(D23*D14+D24*D15)/D25 -> 0.62 | E26: 0.77 | F26: 0.93 | G26: 1.08 | H26: 1.23 | I26: 1.39 | J26: 1.54 | K26: =(K23*K14)/K25 -> 0.00 | L26: =(L23*L14+L24*L15)/L25 -> 1.85 | M26: 2.02 | N26: 2.19 | O26: 2.36 | P26: 2.53 | Q26: 0.68
B28: Łączne uwzględnienie wyrywania i przeciągania
B29: Nośność obliczeniowa miarodajna Rd, kN/m² | D29: =D14*MIN(D23/D25,D18/D19)+D15*MIN(D24/D25,D18/D19) -> 0.62 | E29: 0.77 | F29: 0.93 | G29: 1.08 | H29: 1.23 | I29: 1.39 | J29: 1.54 | K29: 1.70 | L29: 1.85 | M29: 2.02 | N29: 2.19 | O29: 2.36 | P29: 2.53 | Q29: 0.68
B33: Należy spełnić warunki:
B34: Rd ≥ we,d
B36: δ ≥ δN
B38: oraz
B39: n ≥ nmin
C57: 0
C58: 0.5
C59: 1
C60: 1.5
C61: 2
C62: 2.5
C63: 3
C64: 3.5
C65: 4
C66: 4.5
C67: 5
C68: 5.5
C69: 6
C70: 6.5
C71: 7
C72: 7.5
C73: 8
C74: 8.5
C75: 9
C76: 9.5
C77: 10

Sheet Obliczenia nośności H
B2: Obliczanie nośności łączników mechanicznych Rd,f, nośności systemu ETICS Rd,ETICS oraz nośności miarodajnej Rd
B5: Numer schematu mocowania łącznikami mechanicznymi | C5: → | D5: 1 | E5: 2 | F5: 3 | G5: 4 | H5: 5 | I5: 6 | J5: 7 | K5: 8 | L5: 9 | M5: 10 | N5: 11 | O5: 12 | P5: 13 | Q5: 14 | R5: 15 | S5: 16 | T5: 17 | U5: 18 | V5: 19 | W5: 20
B6: Schemat mocowania łącznikami mechanicznymi | C6: → | W6: Inny
B7: Wymiary płyt termoizolacyjnych
B8: - długość, m | C8: 1.20 | D8: =C8 -> 1.20 | E8: =C8 -> 1.20 | F8: =C8 -> 1.20 | G8: =C8 -> 1.20 | H8: =C8 -> 1.20 | I8: =C8 -> 1.20 | J8: =C8 -> 1.20 | K8: =C8 -> 1.20 | L8: =C8 -> 1.20 | M8: =C8 -> 1.20 | N8: =C8 -> 1.20 | O8: =C8 -> 1.20 | P8: =C8 -> 1.20 | Q8: =C8 -> 1.20 | R8: =C8 -> 1.20 | S8: =C8 -> 1.20 | T8: =C8 -> 1.20 | U8: =C8 -> 1.20 | V8: =C8 -> 1.20 | W8: =C8 -> 1.20
B9: - szerokość, m | C9: 0.20 | D9: =C9 -> 0.20 | E9: =C9 -> 0.20 | F9: =C9 -> 0.20 | G9: =C9 -> 0.20 | H9: =C9 -> 0.20 | I9: =C9 -> 0.20 | J9: =C9 -> 0.20 | K9: =C9 -> 0.20 | L9: =C9 -> 0.20 | M9: =C9 -> 0.20 | N9: =C9 -> 0.20 | O9: =C9 -> 0.20 | P9: =C9 -> 0.20 | Q9: =C9 -> 0.20 | R9: =C9 -> 0.20 | S9: =C9 -> 0.20 | T9: =C9 -> 0.20 | U9: =C9 -> 0.20 | V9: =C9 -> 0.20 | W9: =C9 -> 0.20
B10: Rząd 1
B11: Liczba łączników na jedną płytę, szt | C11: → | D11: =D12+D13 -> 1.00 | E11: =E12+E13 -> 1.00 | F11: 2.00 | G11: 2.00 | H11: 2.00 | I11: 3.00 | J11: =J12+J13 -> 3.00 | K11: =K12+K13 -> 4.00 | L11: =L12+L13 -> 4.00 | M11: =M12+M13 -> 5.00 | N11: =N12+N13 -> 5.00 | O11: =O12+O13 -> 5.00 | P11: =P12+P13 -> 1.00 | Q11: =Q12+Q13 -> 2.00 | R11: =R12+R13 -> 2.00 | S11: =S12+S13 -> 2.00 | T11: 3.00 | U11: 3.00 | V11: 4.00 | W11: =W12+W13 -> 5.00
B12: Liczba łączników na jedną płytę umieszczonych w polu płyty, szt | C12: → | D12: 0.00 | E12: 0.00 | F12: 1.00 | G12: 1.00 | H12: 1.00 | I12: 2.00 | J12: 2.00 | K12: 3.00 | L12: 3.00 | M12: 4.00 | N12: 4.00 | O12: 4.00 | P12: 1.00 | Q12: 2.00 | R12: 2.00 | S12: 2.00 | T12: 3.00 | U12: 3.00 | V12: 4.00 | W12: 2.00
B13: Liczba łączników na jedną płytę umieszczonych w spoinach, szt | C13: → | D13: 1.00 | E13: 1.00 | F13: 1.00 | G13: 1.00 | H13: 1.00 | I13: 1.00 | J13: 1.00 | K13: 1.00 | L13: 1.00 | M13: 1.00 | N13: 1.00 | O13: 1.00 | P13: 0.00 | Q13: 0.00 | R13: 0.00 | S13: 0.00 | T13: 0.00 | U13: 0.00 | V13: 0.00 | W13: 3.00
B14: Rząd 2
B15: Liczba łączników na jedną płytę, szt | C15: → | D15: =D16+D17 -> 1.00 | E15: =E16+E17 -> 1.00 | F15: 1.00 | G15: 2.00 | H15: 2.00 | I15: 2.00 | J15: 2.00 | K15: 2.00 | L15: 2.00 | M15: 2.00 | N15: 2.00 | O15: 3.00 | P15: 1.00 | Q15: 1.00 | R15: 2.00 | S15: 3.00 | T15: 3.00 | U15: 4.00 | V15: 4.00 | W15: =W16+W17 -> 5.00
B16: Liczba łączników na jedną płytę umieszczonych w polu płyty, szt | C16: → | D16: 0.00 | E16: 0.00 | F16: 0.00 | G16: 1.00 | H16: 1.00 | I16: 1.00 | J16: 1.00 | K16: 1.00 | L16: 1.00 | M16: 1.00 | N16: 1.00 | O16: 2.00 | P16: 1.00 | Q16: 1.00 | R16: 2.00 | S16: 3.00 | T16: 3.00 | U16: 4.00 | V16: 4.00 | W16: 2.00
B17: Liczba łączników na jedną płytę umieszczonych w spoinach, szt | C17: → | D17: 1.00 | E17: 1.00 | F17: 1.00 | G17: 1.00 | H17: 1.00 | I17: 1.00 | J17: 1.00 | K17: 1.00 | L17: 1.00 | M17: 1.00 | N17: 1.00 | O17: 1.00 | P17: 0.00 | Q17: 0.00 | R17: 0.00 | S17: 0.00 | T17: 0.00 | U17: 0.00 | V17: 0.00 | W17: 3.00
B18: Rząd 3
B19: Liczba łączników na jedną płytę, szt | C19: → | D19: =D20+D21 -> 1.00 | E19: =E20+E21 -> 2.00 | F19: 2.00 | G19: 2.00 | H19: 2.00 | I19: 2.00 | J19: 3.00 | K19: 3.00 | L19: 4.00 | M19: 4.00 | N19: 5.00 | O19: 5.00 | P19: 1.00 | Q19: 2.00 | R19: 2.00 | S19: 2.00 | T19: 3.00 | U19: 3.00 | V19: 4.00 | W19: =W20+W21 -> 5.00
B20: Liczba łączników na jedną płytę umieszczonych w polu płyty, szt | C20: → | D20: 0.00 | E20: 1.00 | F20: 1.00 | G20: 1.00 | H20: 1.00 | I20: 1.00 | J20: 2.00 | K20: 2.00 | L20: 3.00 | M20: 3.00 | N20: 4.00 | O20: 4.00 | P20: 1.00 | Q20: 2.00 | R20: 2.00 | S20: 2.00 | T20: 3.00 | U20: 3.00 | V20: 4.00 | W20: 2.00
B21: Liczba łączników na jedną płytę umieszczonych w spoinach, szt | C21: → | D21: 1.00 | E21: 1.00 | F21: 1.00 | G21: 1.00 | H21: 1.00 | I21: 1.00 | J21: 1.00 | K21: 1.00 | L21: 1.00 | M21: 1.00 | N21: 1.00 | O21: 1.00 | P21: 0.00 | Q21: 0.00 | R21: 0.00 | S21: 0.00 | T21: 0.00 | U21: 0.00 | V21: 0.00 | W21: 3.00
B22: Rząd 4
B23: Liczba łączników na jedną płytę, szt | C23: → | D23: =D24+D25 -> 1.00 | E23: =E24+E25 -> 1.00 | F23: 1.00 | G23: 1.00 | H23: 2.00 | I23: 2.00 | J23: 2.00 | K23: 2.00 | L23: 2.00 | M23: 2.00 | N23: 2.00 | O23: 2.00 | P23: 1.00 | Q23: 1.00 | R23: 2.00 | S23: 3.00 | T23: 3.00 | U23: 4.00 | V23: 4.00 | W23: =W24+W25 -> 5.00
B24: Liczba łączników na jedną płytę umieszczonych w polu płyty, szt | C24: → | D24: 0.00 | E24: 0.00 | F24: 0.00 | G24: 0.00 | H24: 1.00 | I24: 1.00 | J24: 1.00 | K24: 1.00 | L24: 1.00 | M24: 1.00 | N24: 1.00 | O24: 1.00 | P24: 1.00 | Q24: 1.00 | R24: 2.00 | S24: 3.00 | T24: 3.00 | U24: 4.00 | V24: 4.00 | W24: 2.00
B25: Liczba łączników na jedną płytę umieszczonych w spoinach, szt | C25: → | D25: 1.00 | E25: 1.00 | F25: 1.00 | G25: 1.00 | H25: 1.00 | I25: 1.00 | J25: 1.00 | K25: 1.00 | L25: 1.00 | M25: 1.00 | N25: 1.00 | O25: 1.00 | P25: 0.00 | Q25: 0.00 | R25: 0.00 | S25: 0.00 | T25: 0.00 | U25: 0.00 | V25: 0.00 | W25: 3.00
B27: Liczba łączników na m², n, szt | C27: → | D27: =(D11+D15+D19+D23)/(4*D8*D9) -> 4.17 | E27: 5.21 | F27: 6.25 | G27: 7.29 | H27: 8.33 | I27: 9.38 | J27: 10.42 | K27: 11.46 | L27: 12.50 | M27: 13.54 | N27: 14.58 | O27: 15.63 | P27: 4.17 | Q27: 6.25 | R27: 8.33 | S27: 10.42 | T27: 12.50 | U27: 14.58 | V27: 16.67 | W27: 20.83
B28: Liczba łączników umieszczonych w polu płyt, na (npanel), szt/m² | C28: → | D28: =(D12+D16+D20+D24)/(4*D8*D9) -> 0.00 | E28: =(E12+E16+E20+E24)/(4*E8*E9) -> 1.04 | F28: =(F12+F16+F20+F24)/(4*F8*F9) -> 2.08 | G28: =(G12+G16+G20+G24)/(4*G8*G9) -> 3.13 | H28: =(H12+H16+H20+H24)/(4*H8*H9) -> 4.17 | I28: 5.21 | J28: 6.25 | K28: 7.29 | L28: 8.33 | M28: 9.38 | N28: 10.42 | O28: =(O12+O16+O20+O24)/(4*O8*O9) -> 11.46 | P28: =(P12+P16+P20+P24)/(4*P8*P9) -> 4.17 | Q28: =(Q12+Q16+Q20+Q24)/(4*Q8*Q9) -> 6.25 | R28: =(R12+R16+R20+R24)/(4*R8*R9) -> 8.33 | S28: =(S12+S16+S20+S24)/(4*S8*S9) -> 10.42 | T28: 12.50 | U28: 14.58 | V28: 16.67 | W28: 8.33
B29: Liczba łączników umieszczonych w spoinach, nj (njoint), szt/m² | C29: → | D29: =(D13+D17+D21+D25)/(4*D8*D9) -> 4.17 | E29: =(E13+E17+E21+E25)/(4*E8*E9) -> 4.17 | F29: 4.17 | G29: 4.17 | H29: 4.17 | I29: 4.17 | J29: 4.17 | K29: 4.17 | L29: 4.17 | M29: =(M13+M17+M21+M25)/(4*M8*M9) -> 4.17 | N29: 4.17 | O29: 4.17 | P29: 0.00 | Q29: 0.00 | R29: 0.00 | S29: 0.00 | T29: 0.00 | U29: 0.00 | V29: 0.00 | W29: 12.50
B31: Wyrywanie łączników z podłoża
B32: Nośność charakterystyczna pojedynczego łącznika na wyrywanie z podłoża NR,k, kN | C32: 1.20 | D32: =C32 -> 1.20 | E32: =C32 -> 1.20 | F32: =C32 -> 1.20 | G32: =C32 -> 1.20 | H32: =C32 -> 1.20 | I32: =C32 -> 1.20 | J32: =C32 -> 1.20 | K32: =C32 -> 1.20 | L32: =C32 -> 1.20 | M32: =C32 -> 1.20 | N32: =C32 -> 1.20 | O32: =C32 -> 1.20 | P32: =C32 -> 1.20 | Q32: =C32 -> 1.20 | R32: =C32 -> 1.20 | S32: =C32 -> 1.20 | T32: =C32 -> 1.20 | U32: =C32 -> 1.20 | V32: =C32 -> 1.20 | W32: =C32 -> 1.20
B33: Częściowy współczynnik bezpieczeństwa, - | C33: 2.00 | D33: =C33 -> 2.00 | E33: =C33 -> 2.00 | F33: =C33 -> 2.00 | G33: =C33 -> 2.00 | H33: =C33 -> 2.00 | I33: =C33 -> 2.00 | J33: =C33 -> 2.00 | K33: =C33 -> 2.00 | L33: =C33 -> 2.00 | M33: =C33 -> 2.00 | N33: =C33 -> 2.00 | O33: =C33 -> 2.00 | P33: =C33 -> 2.00 | Q33: =C33 -> 2.00 | R33: =C33 -> 2.00 | S33: =C33 -> 2.00 | T33: =C33 -> 2.00 | U33: =C33 -> 2.00 | V33: =C33 -> 2.00 | W33: =C33 -> 2.00
B34: Nośność obliczeniowa łączników na wyrywanie z podłoża Rd,f, kN/m² | C34: → | D34: =((D28+D29)*D32)/D33 -> 2.50 | E34: 3.13 | F34: 3.75 | G34: 4.38 | H34: 5.00 | I34: 5.63 | J34: 6.25 | K34: 6.88 | L34: 7.50 | M34: 8.13 | N34: 8.75 | O34: 9.38 | P34: 2.50 | Q34: 3.75 | R34: 5.00 | S34: 6.25 | T34: 7.50 | U34: 8.75 | V34: 10.00 | W34: 12.50
B36: Przeciąganie płyt przez łączniki
B37: Nośność charakterystyczna (siła niszcząca) na przeciąganie przez łącznik umieszczony w polu płyty, Fk,a (Rpanel) albo przy obrzeżach, Fk,ec, kN | C37: 0.57 | D37: =C37 -> 0.57 | E37: =C37 -> 0.57 | F37: =C37 -> 0.57 | G37: =C37 -> 0.57 | H37: =C37 -> 0.57 | I37: =C37 -> 0.57 | J37: =C37 -> 0.57 | K37: =C37 -> 0.57 | L37: =C37 -> 0.57 | M37: =C37 -> 0.57 | N37: =C37 -> 0.57 | O37: =C37 -> 0.57 | P37: =C37 -> 0.57 | Q37: =C37 -> 0.57 | R37: =C37 -> 0.57 | S37: =C37 -> 0.57 | T37: =C37 -> 0.57 | U37: =C37 -> 0.57 | V37: =C37 -> 0.57 | W37: =C37 -> 0.57
B38: Nośność charakterystyczna (siła niszcząca) na przeciąganie przez łącznik umieszczony w stykach płyt (spoinach), Fk,j (Rjoint), kN | C38: 0.57 | D38: =C38 -> 0.57 | E38: =C38 -> 0.57 | F38: =C38 -> 0.57 | G38: =C38 -> 0.57 | H38: =C38 -> 0.57 | I38: =C38 -> 0.57 | J38: =C38 -> 0.57 | K38: =C38 -> 0.57 | L38: =C38 -> 0.57 | M38: =C38 -> 0.57 | N38: =C38 -> 0.57 | O38: =C38 -> 0.57 | P38: =C38 -> 0.57 | Q38: =C38 -> 0.57 | R38: =C38 -> 0.57 | S38: =C38 -> 0.57 | T38: =C38 -> 0.57 | U38: =C38 -> 0.57 | V38: =C38 -> 0.57 | W38: =C38 -> 0.57
B39: Częściowy współczynnik bezpieczeństwa, - | C39: 2.00 | D39: =C39 -> 2.00 | E39: =C39 -> 2.00 | F39: =C39 -> 2.00 | G39: =C39 -> 2.00 | H39: =C39 -> 2.00 | I39: =C39 -> 2.00 | J39: =C39 -> 2.00 | K39: =C39 -> 2.00 | L39: =C39 -> 2.00 | M39: =C39 -> 2.00 | N39: =C39 -> 2.00 | O39: =C39 -> 2.00 | P39: =C39 -> 2.00 | Q39: =C39 -> 2.00 | R39: =C39 -> 2.00 | S39: =C39 -> 2.00 | T39: =C39 -> 2.00 | U39: =C39 -> 2.00 | V39: =C39 -> 2.00 | W39: =C39 -> 2.00
B40: Nośność obliczeniowa systemu ETICS na przeciąganie Rd,ETICS, kN/m² | C40: → | D40: =(D37*D28+D38*D29)/D39 -> 1.19 | E40: 1.48 | F40: 1.78 | G40: 2.08 | H40: 2.38 | I40: 2.67 | J40: 2.97 | K40: =(K37*K28)/K39 -> 2.08 | L40: =(L37*L28+L38*L29)/L39 -> 3.56 | M40: 3.86 | N40: 4.16 | O40: 4.45 | P40: 1.19 | Q40: 1.78 | R40: 2.38 | S40: 2.97 | T40: 3.56 | U40: 4.16 | V40: 4.75 | W40: 5.94
B42: Łączne uwzględnienie wyrywania i przeciągania
B43: Nośność obliczeniowa miarodajna Rd, kN/m² | D43: =D28*MIN(D37/D39,D32/D33)+D29*MIN(D38/D39,D32/D33) -> 1.19 | E43: 1.48 | F43: 1.78 | G43: 2.08 | H43: 2.38 | I43: 2.67 | J43: 2.97 | K43: 3.27 | L43: 3.56 | M43: 3.86 | N43: 4.16 | O43: 4.45 | P43: 1.19 | Q43: 1.78 | R43: 2.38 | S43: 2.97 | T43: 3.56 | U43: 4.16 | V43: 4.75 | W43: 5.94
B47: Należy spełnić warunki:
B48: Rd ≥ we,d
B50: δ ≥ δN
B52: oraz
B53: n ≥ nmin
C71: 0
C72: 0.5
C73: 1
C74: 1.5
C75: 2
C76: 2.5
C77: 3
C78: 3.5
C79: 4
C80: 4.5
C81: 5
C82: 5.5
C83: 6
C84: 6.5
C85: 7
C86: 7.5
C87: 8
C88: 8.5
C89: 9
C90: 9.5
C91: 10

Sheet Obliczenia wiatr I
B2: Obliczanie oddziaływania wiatru we,d według PN EN 1991-1-4:2008
B4: Wiatr I - takie same warunki ze wszystkich kierunków
B6: Wartości strefowe
B7: Strefa obciążenia wiatrem | C7: 2
B8: Wysokość nad poziomem morza, a [m] | C8: 120 | D8: http://www.wysokosc.mapa.info.pl/
B9: Wartość podstawowa bazowej prędkości wiatru, vb,o [m/s] | C9: =IF(AND(C7=1,C8<=300),22,IF(AND(C7=1,C8>300),22*(1+0.0006*(C8-300)),IF(C7=2,26,IF(AND(C7=3,C8<=300),22,IF(AND(C7=3,C8>300),22*(1+0.0006*(C8-300)),IF(AND(C7="Granica 1 i 2",C8<=300),24,IF(AND(C7="Granica 1 i 2",C8>300),(22*(1+0.0006*(C8-300))+26)/2,"-"))))))) -> 26.00
B10: Współczynnik sezonowy, cseason | C10: 1.0
B11: Współczynnik kierunkowy, cdir | C11: 1.0
B12: Bazowa prędkość wiatru, vb, [m/s] | C12: =C9*C11*C10 -> 26.00
B13: Wartość podstawowa ciśnienia prędkości wiatru, qb,o [kN/m²] | C13: =IF(AND(C7=1,C8<=300),0.3,IF(AND(C7=1,C8>300),0.3*(1+0.0006*(C8-300))^2,IF(C7=2,0.42,IF(AND(C7=3,C8<=300),0.3,IF(AND(C7=3,C8>300),0.3*((1+0.0006*(C8-300))^2)*((20000-C8)/(20000+C8)),IF(AND(C7="Granica 1 i 2",C8<=300),0.36,IF(AND(C7="Granica 1 i 2",C8>300),((0.3*(1+0.0006*(C8-300))^2)+0.42)/2,"-"))))))) -> 0.42
B15: Parametry terenu
B16: Kategoria terenu (0, I, II, III albo IV) | C16: III
B17: Charakterystyka terenu | C17: =IF(C16=0,"Morze, obszar brzegowy otwarty na morze",IF(C16="I","Jeziora albo obszary z pomijalną niewielką roślinnością i bez przeszkód",IF(C16="II","Obszary z niską roślinnością, taką jak trawa, oraz pojedynczymi przeszkodami (drzewa, budynki) oddalonymi od siebie na odległość nie mniejszą niż 20 ich wysokości",IF(C16="III","Obszary regularnie pokryte roślinnością albo budynkami lub z pojedynczymi przeszkodami oddalonymi od siebie na odległość nie większą niż 20 ich wysokości (jak wsie, tereny podmiejskie, stałe lasy)",IF(C16="IV","Obszary, na których przynajmniej 15% powierzchni pokrywają budynki o średniej wysokości przekraczającej 15 m","-"))))) -> Obszary regularnie pokryte roślinnością albo budynkami lub z pojedynczymi przeszkodami oddalonymi od siebie na odległość nie większą niż 20 ich wysokości (jak wsie, tereny podmiejskie, stałe lasy)
B18: Wysokość chropowatości, zo [m] | C18: =IF(C16=0,0.003,IF(C16="I",0.01,IF(C16="II",0.05,IF(C16="III",0.3,IF(C16="IV",1,"-"))))) -> 0.3
B19: Wysokość minimalna, zmin [m] | C19: =IF(C16=0,1,IF(C16="I",1,IF(C16="II",2,IF(C16="III",5,IF(C16="IV",10,"-"))))) -> 5
B20: Wysokość maksymalna (wg NA), zmax [m] | C20: =IF(C16=0,200,IF(C16="I",200,IF(C16="II",300,IF(C16="III",400,IF(C16="IV",500,"-"))))) -> 400
B21: Współczynnik terenu, kr | C21: =0.19*(C18/0.05)^0.07 -> 0.215
B23: Charakterystyka budynku
B24: Wysokość, h [m] | C24: 25 | D24: =C24 -> 25
B25: Szerokość, b [m] | C25: 10 | D25: =C26 -> 28
B26: Głębokość, d [m] | C26: 28 | D26: =C25 -> 10
B28: Określenie pól A - C na ścianach bocznych
B29: Określenie pól A - C przy oddziaływaniu wiatru z jednego kierunku
B30: Odległość od krawędzi, e [m] | C30: =MIN(C25,2*C24) -> 10.0 | D30: =MIN(D25,2*D24) -> 28.0
B31: Szerokość pola A na ścianie o długości d, m | C31: =IF(C30<C26,C30/5,IF(C30>=5*C26,C26,IF(C30>=C26,C30/5,0))) -> 2.0 | D31: =IF(D30<D26,D30/5,IF(D30>=5*D26,D26,IF(D30>=D26,D30/5,0))) -> 5.6
B32: Szerokość pola B na ścianie o długości d, m | C32: =IF(C30<C26,4*C30/5,IF(C30>=5*C26,0,IF(C30>=C26,C26-C30/5,0))) -> 8.0 | D32: =IF(D30<D26,4*D30/5,IF(D30>=5*D26,0,IF(D30>=D26,D26-D30/5,0))) -> 4.4
B33: Szerokość pola C na ścianie o długości d, m | C33: =IF(C30<C26,C26-C30,0) -> 18.0 | D33: =IF(D30<D26,D26-D30,0) -> 0.0
B35: Określenie pól A - C z uwzględnieniem przeciwnych kierunków wiatru
B36: Układ pól na ścianie o długości d | C36: =IF(C31>=C32+C33,"A",IF(C31+C32>=C33,"A-B-A","A-B-C-B-A")) -> A-B-C-B-A | D36: =IF(D31>=D32+D33,"A",IF(D31+D32>=D33,"A-B-A","A-B-C-B-A")) -> A
B37: Szerokość każdego pola A na ścianach o długości d, m | C37: =IF(C36="A-B-C-B-A",C31,IF(C36="A-B-A",C31,IF(C36="A",C26,0))) -> 2.0 | D37: =IF(D36="A-B-C-B-A",D31,IF(D36="A-B-A",D31,IF(D36="A",D26,0))) -> 10.0
B38: Szerokość każdego pola B naścianach o długości d, m | C38: =IF(C36="A-B-C-B-A",C32,IF(C36="A-B-A",C26-2*C31,IF(C36="A",0,0))) -> 8.0 | D38: =IF(D36="A-B-C-B-A",D32,IF(D36="A-B-A",D26-2*D31,IF(D36="A",0,0))) -> 0.0
B39: Szerokość pola C na ścianach o długości d, m | C39: =IF(C36="A-B-C-B-A",C26-2*C37-2*C38,0) -> 8.0 | D39: =IF(D36="A-B-C-B-A",D26-2*D37-2*D38,0) -> 0.0
B40: Szerokości pól na ścianie o długości d, m | C40: =IF(C36="A",C37,IF(C36="A-B-A",TEXT(C37,"####0,0##")&" - "&TEXT(C38,"####0,0##")&" - "&TEXT(C37,"####0,0##"),TEXT(C37,"####0,0##")&" - "&TEXT(C38,"####0,0##")&" - "&TEXT(C39,"####0,0##")&" - "&TEXT(C38,"####0,0##")&" - "&TEXT(C37,"####0,0##"))) -> 2,0 - 8,0 - 8,0 - 8,0 - 2,0 | D40: =IF(D36="A",D37,IF(D36="A-B-A",TEXT(D37,"####0,0##")&" - "&TEXT(D38,"####0,0##")&" - "&TEXT(D37,"####0,0##"),TEXT(D37,"####0,0##")&" - "&TEXT(D38,"####0,0##")&" - "&TEXT(D39,"####0,0##")&" - "&TEXT(D38,"####0,0##")&" - "&TEXT(D37,"####0,0##"))) -> 10.0
B42: Szczytowe ciśnienie prędkości wiatru wg zasadniczej części EN
B43: Proporcja h/b | C43: =IF(C24<=C25,"h ≤ b",IF(AND(C24>C25,C24<=2*C25),"b < h ≤ 2b",IF(C24>2*C25,"h > 2b",""))) -> h > 2b | D43: =IF(D24<=D25,"h ≤ b",IF(AND(D24>D25,D24<=2*D25),"b < h ≤ 2b",IF(D24>2*D25,"h > 2b",""))) -> h ≤ b
B44: Wysokość odniesienia, ze [m] | C44: ze = h, wysokość zalecana | D44: ze = h, wysokość zalecana
B45: Współczynnik wysokości, - | C45: 1.0 | D45: 1.0
B46: Przyjęta wysokość odniesienia, ze [m] | C46: =IF(C44="ze = h, wysokość zalecana",C24,IF(C44="ze = h - b",C24-C25,IF(C44="ze = b",C25,IF(C44="ze = ?, wpisz tu wysokość",0,C44)))) -> 25.00 | D46: =IF(D44="ze = h, wysokość zalecana",D24,IF(D44="ze = h - b",D24-D25,IF(D44="ze = b",D25,IF(D44="ze = ?, wpisz tu wysokość",0,D44)))) -> 25.00
B47: Efektywna wysokość odniesienia, z [m] | C47: =IF(C45*C46>=C19,C45*C46,C19) -> 25.00 | D47: =IF(D45*D46>=C19,D45*D46,C19) -> 25.00
B48: Współczynnik chropowatości na wysokości odniesienia, cr(z) | C48: =IF(C47<=200,C21*LN(C47/C18),C21*LN(200/C18)) -> 0.953 | D48: =IF(D47<=200,C21*LN(D47/C18),C21*LN(200/C18)) -> 0.953
B49: Współczynnik orografii na wysokości odniesienia, co (z) | C49: 1.00 | D49: =C49 -> 1.00
B50: Średnia prędkość wiatru na wysokości odniesienia, vm(z) [m/s] | C50: =C48*C49*C12 -> 24.77 | D50: =D48*D49*C12 -> 24.77
B51: Współczynnik turbulencji, kl | C51: 1.0 | D51: =C51 -> 1.0
B52: Intensywność turbulencji na wysokości odniesienia, Iv(z) | C52: =IF(C47<=200,C51/(C49*LN(C47/C18)),C51/(C49*LN(200/C18))) -> 0.226 | D52: =IF(D47<=200,D51/(D49*LN(D47/C18)),D51/(D49*LN(200/C18))) -> 0.226
B53: Szczytowe ciśnienie prędkości na wysokości odniesienia, qp(z) [kN/m²] | C53: =((1+7*C52)*0.5*1.25*C50^2)/1000 -> 0.9903 | D53: =((1+7*D52)*0.5*1.25*D50^2)/1000 -> 0.9903
B55: Szczytowe ciśnienie prędkości wiatru wg Załącznika krajowego NA, co ≥ 1
B56: Efektywna wysokość odniesienia, z [m] | C56: =IF(C47<C19,C19,IF(C47>C20,C20,C47)) -> 25.00 | D56: =IF(D47<C19,C19,IF(D47>C20,C20,D47)) -> 25.00
B57: Współczynnik chropowatości na wysokości odniesienia, cr(z) | C57: =IF(C16=0,1.3*(C56/10)^0.11,IF(C16="I",1.2*(C56/10)^0.13,IF(C16="II",1*(C56/10)^0.17,IF(C16="III",0.8*(C56/10)^0.19,IF(C16="IV",0.6*(C56/10)^0.24,"-"))))) -> 0.952 | D57: =IF(C16=0,1.3*(D56/10)^0.11,IF(C16="I",1.2*(D56/10)^0.13,IF(C16="II",1*(D56/10)^0.17,IF(C16="III",0.8*(D56/10)^0.19,IF(C16="IV",0.6*(D56/10)^0.24,"-"))))) -> 0.952
B58: Współczynnik orografii na wysokości odniesienia, co (z) | C58: =C49 -> 1.00 | D58: =C49 -> 1.00
B59: Średnia prędkość wiatru na wysokości odniesienia, vm(z) [m/s] | C59: =C57*C58*C12 -> 24.76 | D59: =D57*D58*C12 -> 24.76
B60: Współczynnik turbulencji, kl | C60: =C51 -> 1.0 | D60: =C51 -> 1.0
B61: Intensywność turbulencji na wysokości odniesienia, Iv(z) | C61: =C52 -> 0.226 | D61: =D52 -> 0.226
B62: Szczytowe ciśnienie prędkości na wysokości odniesienia, qp(z) [kN/m²] | C62: =((1+7*C61)*0.5*1.25*C59^2)/1000 -> 0.9892 | D62: =((1+7*D61)*0.5*1.25*D59^2)/1000 -> 0.9892
B64: Szczytowe ciśnienie prędkości wiatru wg Załącznika krajowego NA, co = 1
B65: Współczynnik ekspozycji, ce(z) | C65: =IF(C16=0,3*(C47/10)^0.17,IF(C16="I",2.8*(C47/10)^0.19,IF(C16="II",2.3*(C47/10)^0.24,IF(C16="III",1.9*(C47/10)^0.26,IF(C16="IV",1.5*(C47/10)^0.29,"-"))))) -> 2.4111 | D65: =IF(C16=0,3*(D47/10)^0.17,IF(C16="I",2.8*(D47/10)^0.19,IF(C16="II",2.3*(D47/10)^0.24,IF(C16="III",1.9*(D47/10)^0.26,IF(C16="IV",1.5*(D47/10)^0.29,"-"))))) -> 2.4111
B66: Wartość bazowa ciśnienia prędkości, qb [kN/m²] | C66: =(0.5*1.25*C12^2)/1000 -> 0.4225 | D66: =(0.5*1.25*C12^2)/1000 -> 0.4225
B67: Szczytowe ciśnienie prędkości na wysokości odniesienia, qp(z) [kN/m²] | C67: =C65*C66 -> 1.0187 | D67: =D65*D66 -> 1.0187
B69: Przyjmowane do obliczeń szczytowe ciśnienie prędkości wiatru
B70: Szczytowe ciśnienie prędkości wg EN albo NA ? | C70: NA, co = 1
B71: Szczytowe ciśnienie prędkości na wysokości odniesienia, qp(z) [kN/m²] | C71: =IF(C70="EN",C53,IF(C70="NA, co ≥ 1",C62,IF(C70="NA, co = 1",C67,"-"))) -> 1.0187 | D71: =IF(C70="EN",D53,IF(C70="NA, co ≥ 1",D62,IF(C70="NA, co = 1",D67,"-"))) -> 1.0187
B73: Współczynniki ciśnienia zewnętrznego
B74: Proporcja h/d | C74: =C24/C26 -> 0.89 | D74: =D24/D26 -> 2.50
B75: Współczynnik ciśnienia zewnętrznego, -
B76: pole A | C76: -1.4 | D76: -1.4
B77: pole B | C77: -1.1 | D77: -1.1
B78: pole C | C78: -0.5 | D78: -0.5
B79: pole E | C79: =IF(C74<=0.25,-0.3,IF(AND(C74>0.25,C74<1),-0.23333333333-0.26666666667*C74,IF(AND(C74>=1,C74<=5),-0.45-0.05*C74,-0.7))) -> -0.47 | D79: =IF(D74<=0.25,-0.3,IF(AND(D74>0.25,D74<1),-0.23333333333-0.26666666667*D74,IF(AND(D74>=1,D74<=5),-0.45-0.05*D74,-0.7))) -> -0.58
B81: Ciśnienie wiatru na powierzchnie
B82: Wartość charakterystyczna ciśnienia wiatru we [kN/m²]
B83: pole A | C83: =C71*C76 -> -1.4262 | D83: =D71*D76 -> -1.4262
B84: pole B | C84: =IF(C32=0,0,C71*C77) -> -1.1206 | D84: =IF(D32=0,0,D71*D77) -> -1.1206
B85: pole C | C85: =IF(C33=0,0,C71*C78) -> -0.5093 | D85: =IF(D33=0,0,D71*D78) -> 0.0000
B86: pole E | C86: =C71*C79 -> -0.4802 | D86: =D71*D79 -> -0.5858
B87: Częściowy współczynnik bezpieczeństwa, γQ, - | C87: 1.5 | D87: =C87 -> 1.5
B88: Dodatkowe obciążenie prostopadłe do powierzchni pd [kN/m²] | C88: 0 | D88: =C88 -> 0
B89: Wartość obliczeniowa ssania wiatru we,d [kN/m²]
B90: pole A | C90: =IF(C83=0,0,(-1*C83*C87)+C88) -> 2.14 | D90: =IF(D83=0,0,(-1*D83*D87)+D88) -> 2.14
B91: pole B | C91: =IF(C84=0,0,(-1*C84*C87)+C88) -> 1.68 | D91: =IF(D84=0,0,(-1*D84*D87)+D88) -> 1.68
B92: pole C | C92: =IF(C85=0,0,(-1*C85*C87)+C88) -> 0.76 | D92: =IF(D85=0,0,(-1*D85*D87)+D88) -> 0.00
B93: pole E | C93: =IF(C86=0,0,(-1*C86*C87)+C88) -> 0.72 | D93: =IF(D86=0,0,(-1*D86*D87)+D88) -> 0.88
C94: =IF(AND(D93>C92,C36="A-B-C-B-A"),"Uwaga! W polu C decyduje obciążenie z pola E"," ") -> Uwaga! W polu C decyduje obciążenie z pola E | D94: =IF(AND(C93>D92,D36="A-B-C-B-A"),"Uwaga! W polu C decyduje obciążenie z pola E"," ") -> 
B96: Układ ciśnienia z uwzględnieniem czterech kierunków wiatru | C96: Ściana II i ściana IV | D96: Ściana I i ściana III
B97: Szerokości pól na ścianie o długości d, m | C97: =C40 -> 2,0 - 8,0 - 8,0 - 8,0 - 2,0 | D97: =D40 -> 10.0
B98: Wartość obl. ssania wiatru w polach ściany o długości d, we,d [kN/m²] | C98: =IF(C36="A",C90,IF(C36="A-B-A",TEXT(C90,"####0,0#")&" - "&TEXT(C91,"####0,0#")&" - "&TEXT(C90,"####0,0#"),TEXT(C90,"####0,0#")&" - "&TEXT(C91,"####0,0#")&" - "&IF(C92>=D93,TEXT(C92,"####0,0#"),TEXT(D93,"####0,0#"))&" - "&TEXT(C91,"####0,0#")&" - "&TEXT(C90,"####0,0#"))) -> 2,14 - 1,68 - 0,88 - 1,68 - 2,14 | D98: =IF(D36="A",D90,IF(D36="A-B-A",TEXT(D90,"####0,0#")&" - "&TEXT(D91,"####0,0#")&" - "&TEXT(D90,"####0,0#"),TEXT(D90,"####0,0#")&" - "&TEXT(D91,"####0,0#")&" - "&IF(D92>=C93,TEXT(D92,"####0,0#"),TEXT(C93,"####0,0#"))&" - "&TEXT(D91,"####0,0#")&" - "&TEXT(D90,"####0,0#"))) -> 2.14
B116: 1 | D116: ze = h, wysokość zalecana
B117: 2
B118: 3 | D118: ze = h, wysokość zalecana
B119: Granica 1 i 2 | D119: ze = b
B120: 0
B121: I | D121: ze = h, wysokość zalecana
B122: II | D122: ze = h - b
B123: III | D123: ze = b
B124: IV | D124: ze = ?, wpisz tu wysokość
B125: EN | C125: równa wysokości budynku
B126: NA, co ≥ 1 | C126: inna - wpisz tu wartość
B127: NA, co = 1

Sheet Obliczenia wiatr II
B2: Obliczanie oddziaływania wiatru we,d według PN EN 1991-1-4:2008
B4: Wiatr II - różne warunki w zależności od kierunku
B6: Wartości strefowe
B7: Strefa obciążenia wiatrem (1, 2 albo 3) | C7: 2
B8: Wysokość nad poziomem morza, a [m] | C8: 120 | D8: http://www.wysokosc.mapa.info.pl/
B9: Wartość podstawowa bazowej prędkości wiatru, vb,o [m/s] | C9: =IF(AND(C7=1,C8<=300),22,IF(AND(C7=1,C8>300),22*(1+0.0006*(C8-300)),IF(C7=2,26,IF(AND(C7=3,C8<=300),22,IF(AND(C7=3,C8>300),22*(1+0.0006*(C8-300)),IF(AND(OR(C7="1 przy granicy z 2",C7="2 przy granicy z 1"),C8<=300),24,IF(AND(OR(C7="1 przy granicy z 2",C7="2 przy granicy z 1"),C8>300),(22*(1+0.0006*(C8-300))+26)/2,"-"))))))) -> 26
B10: Współczynnik sezonowy, cseason | C10: 1.0
B11: Kąt odchylenia osi budynku od kierunku północnego, α [°] | C11: 10
B12: Sytuacje obliczeniowe | C12: → | D12: Wiatr 1 | E12: Wiatr 2 | F12: Wiatr 3 | G12: Wiatr 4
B13: Kierunek wiatru | C13: → | D13: =C11 -> 10 | E13: =IF(D13+90>360,D13+90-360,D13+90) -> 100 | F13: =IF(E13+90>360,E13+90-360,E13+90) -> 190 | G13: =IF(F13+90>360,F13+90-360,F13+90) -> 280
B14: Współczynnik kierunkowy obliczony wg NA, cdir | C14: → | D14: =IF(AND(OR(C7=1,C7="1 przy granicy z 2"),D13>15,D13<195),0.7,IF(AND(OR(C7=1, C7="1 przy granicy z 2"),D13>=195,D13<225),0.8,IF(AND(OR(C7=1, C7="1 przy granicy z 2"),D13>=225,D13<255),0.9,IF(AND(OR(C7=1,C7="1 przy granicy z 2"),D13>=255,D13<=315),1,IF(AND(OR(C7=1,C7="1 przy granicy z 2"),D13>315,D13<=345),0.9,IF(OR(C7=1,C7="1 przy granicy z 2"),0.8,IF(AND(OR(C7=2,C7="2 przy granicy z 1"),D13>15,D13<=45),0.9,IF(AND(OR(C7=2,C7="2 przy granicy z 1"),D13>45,D13<=75),0.8,IF(AND(OR(C7=2,C7="2 przy granicy z 1"),D13>75,D13<195),0.7,IF(AND(OR(C7=2,C7="2 przy granicy z 1"),D13>=195,D13<225),0.8,IF(AND(OR(C7=2,C7="2 przy granicy z 1"),D13>=225,D13<255),0.9,IF(OR(C7=2,C7="2 przy granicy z 1"),1,IF(AND(C7=3,D13>15,D13<135),0.7,IF(AND(C7=3,D13>=135,D13<165),0.9,IF(AND(C7=3,D13>=165,D13<=345),1,IF(C7=3,0.8,0)))))))))))))))) -> 1.0 | E14: =IF(AND(OR(C7=1,C7="1 przy granicy z 2"),E13>15,E13<195),0.7,IF(AND(OR(C7=1, C7="1 przy granicy z 2"),E13>=195,E13<225),0.8,IF(AND(OR(C7=1, C7="1 przy granicy z 2"),E13>=225,E13<255),0.9,IF(AND(OR(C7=1,C7="1 przy granicy z 2"),E13>=255,E13<=315),1,IF(AND(OR(C7=1,C7="1 przy granicy z 2"),E13>315,E13<=345),0.9,IF(OR(C7=1,C7="1 przy granicy z 2"),0.8,IF(AND(OR(C7=2,C7="2 przy granicy z 1"),E13>15,E13<=45),0.9,IF(AND(OR(C7=2,C7="2 przy granicy z 1"),E13>45,E13<=75),0.8,IF(AND(OR(C7=2,C7="2 przy granicy z 1"),E13>75,E13<195),0.7,IF(AND(OR(C7=2,C7="2 przy granicy z 1"),E13>=195,E13<225),0.8,IF(AND(OR(C7=2,C7="2 przy granicy z 1"),E13>=225,E13<255),0.9,IF(OR(C7=2,C7="2 przy granicy z 1"),1,IF(AND(C7=3,E13>15,E13<135),0.7,IF(AND(C7=3,E13>=135,E13<165),0.9,IF(AND(C7=3,E13>=165,E13<=345),1,IF(C7=3,0.8,0)))))))))))))))) -> 0.7 | F14: =IF(AND(OR(C7=1,C7="1 przy granicy z 2"),F13>15,F13<195),0.7,IF(AND(OR(C7=1, C7="1 przy granicy z 2"),F13>=195,F13<225),0.8,IF(AND(OR(C7=1, C7="1 przy granicy z 2"),F13>=225,F13<255),0.9,IF(AND(OR(C7=1,C7="1 przy granicy z 2"),F13>=255,F13<=315),1,IF(AND(OR(C7=1,C7="1 przy granicy z 2"),F13>315,F13<=345),0.9,IF(OR(C7=1,C7="1 przy granicy z 2"),0.8,IF(AND(OR(C7=2,C7="2 przy granicy z 1"),F13>15,F13<=45),0.9,IF(AND(OR(C7=2,C7="2 przy granicy z 1"),F13>45,F13<=75),0.8,IF(AND(OR(C7=2,C7="2 przy granicy z 1"),F13>75,F13<195),0.7,IF(AND(OR(C7=2,C7="2 przy granicy z 1"),F13>=195,F13<225),0.8,IF(AND(OR(C7=2,C7="2 przy granicy z 1"),F13>=225,F13<255),0.9,IF(OR(C7=2,C7="2 przy granicy z 1"),1,IF(AND(C7=3,F13>15,F13<135),0.7,IF(AND(C7=3,F13>=135,F13<165),0.9,IF(AND(C7=3,F13>=165,F13<=345),1,IF(C7=3,0.8,0)))))))))))))))) -> 0.7 | G14: =IF(AND(OR(C7=1,C7="1 przy granicy z 2"),G13>15,G13<195),0.7,IF(AND(OR(C7=1, C7="1 przy granicy z 2"),G13>=195,G13<225),0.8,IF(AND(OR(C7=1, C7="1 przy granicy z 2"),G13>=225,G13<255),0.9,IF(AND(OR(C7=1,C7="1 przy granicy z 2"),G13>=255,G13<=315),1,IF(AND(OR(C7=1,C7="1 przy granicy z 2"),G13>315,G13<=345),0.9,IF(OR(C7=1,C7="1 przy granicy z 2"),0.8,IF(AND(OR(C7=2,C7="2 przy granicy z 1"),G13>15,G13<=45),0.9,IF(AND(OR(C7=2,C7="2 przy granicy z 1"),G13>45,G13<=75),0.8,IF(AND(OR(C7=2,C7="2 przy granicy z 1"),G13>75,G13<195),0.7,IF(AND(OR(C7=2,C7="2 przy granicy z 1"),G13>=195,G13<225),0.8,IF(AND(OR(C7=2,C7="2 przy granicy z 1"),G13>=225,G13<255),0.9,IF(OR(C7=2,C7="2 przy granicy z 1"),1,IF(AND(C7=3,G13>15,G13<135),0.7,IF(AND(C7=3,G13>=135,G13<165),0.9,IF(AND(C7=3,G13>=165,G13<=345),1,IF(C7=3,0.8,0)))))))))))))))) -> 1.0
B15: Współczynnik kierunkowy według NA albo EN? | C15: wartość zależna od kierunku | D15: =C15 -> wartość zależna od kierunku | E15: =C15 -> wartość zależna od kierunku | F15: =C15 -> wartość zależna od kierunku | G15: =C15 -> wartość zależna od kierunku
B16: Współczynnik kierunkowy przyjęty do obliczeń, cdir | C16: → | D16: =IF(D15="wartość zależna od kierunku",D14,IF(D15="wartość stała maksymalna",1,"?")) -> 1.0 | E16: =IF(E15="wartość zależna od kierunku",E14,IF(E15="wartość stała maksymalna",1,"?")) -> 0.7 | F16: 0.7 | G16: 1.0
B17: Bazowa prędkość wiatru, vb, [m/s] | C17: → | D17: =C9*D16*C10 -> 26 | E17: =C9*E16*C10 -> 18.2 | F17: =C9*F16*C10 -> 18.2 | G17: =C9*G16*C10 -> 26
B18: Wartość podstawowa ciśnienia prędkości wiatru, qb,o [kN/m²] | C18: =IF(AND(C7=1,C8<=300),0.3,IF(AND(C7=1,C8>300),0.3*(1+0.0006*(C8-300))^2,IF(C7=2,0.42,IF(AND(C7=3,C8<=300),0.3,IF(AND(C7=3,C8>300),0.3*((1+0.0006*(C8-300))^2)*((20000-C8)/(20000+C8)),IF(AND(OR(C7="1 przy granicy z 2",C7="2 przy granicy z 1"),C8<=300),0.36,IF(AND(OR(C7="1 przy granicy z 2",C7="2 przy granicy z 1"),C8>300),((0.3*(1+0.0006*(C8-300))^2)+0.42)/2,"-"))))))) -> 0.42
B20: Parametry terenu
B21: Kategoria terenu (0, I, II, III albo IV) dla poszczególnych kierunków | C21: → | D21: III | E21: III | F21: III | G21: III
B22: Wysokość chropowatości, zo [m] | C22: → | D22: =IF(D21=0,0.003,IF(D21="I",0.01,IF(D21="II",0.05,IF(D21="III",0.3,IF(D21="IV",1,"-"))))) -> 0.3 | E22: =IF(E21=0,0.003,IF(E21="I",0.01,IF(E21="II",0.05,IF(E21="III",0.3,IF(E21="IV",1,"-"))))) -> 0.3 | F22: =IF(F21=0,0.003,IF(F21="I",0.01,IF(F21="II",0.05,IF(F21="III",0.3,IF(F21="IV",1,"-"))))) -> 0.3 | G22: =IF(G21=0,0.003,IF(G21="I",0.01,IF(G21="II",0.05,IF(G21="III",0.3,IF(G21="IV",1,"-"))))) -> 0.3
B23: Wysokość minimalna, zmin [m] | C23: → | D23: =IF(D21=0,1,IF(D21="I",1,IF(D21="II",2,IF(D21="III",5,IF(D21="IV",10,"-"))))) -> 5 | E23: =IF(E21=0,1,IF(E21="I",1,IF(E21="II",2,IF(E21="III",5,IF(E21="IV",10,"-"))))) -> 5 | F23: =IF(F21=0,1,IF(F21="I",1,IF(F21="II",2,IF(F21="III",5,IF(F21="IV",10,"-"))))) -> 5 | G23: =IF(G21=0,1,IF(G21="I",1,IF(G21="II",2,IF(G21="III",5,IF(G21="IV",10,"-"))))) -> 5
B24: Wysokość maksymalna (wg NA), zmax [m] | C24: → | D24: =IF(D21=0,200,IF(D21="I",200,IF(D21="II",300,IF(D21="III",400,IF(D21="IV",500,"-"))))) -> 400 | E24: =IF(E21=0,200,IF(E21="I",200,IF(E21="II",300,IF(E21="III",400,IF(E21="IV",500,"-"))))) -> 400 | F24: =IF(F21=0,200,IF(F21="I",200,IF(F21="II",300,IF(F21="III",400,IF(F21="IV",500,"-"))))) -> 400 | G24: =IF(G21=0,200,IF(G21="I",200,IF(G21="II",300,IF(G21="III",400,IF(G21="IV",500,"-"))))) -> 400
B25: Współczynnik terenu, kr | C25: → | D25: =0.19*(D22/0.05)^0.07 -> 0.215 | E25: 0.215 | F25: 0.215 | G25: 0.215
B27: Charakterystyka budynku | D27: Wiatr 1 | E27: Wiatr 2 | F27: Wiatr 3 | G27: Wiatr 4
B28: Wysokość, h [m] | C28: 25 | D28: =C28 -> 25 | E28: =C28 -> 25 | F28: =C28 -> 25 | G28: =C28 -> 25
B29: Szerokość, b [m] | C29: 10 | D29: =C29 -> 10 | E29: =C30 -> 28 | F29: =C29 -> 10 | G29: =C30 -> 28
B30: Głębokość, d [m] | C30: 28 | D30: =C30 -> 28 | E30: =C29 -> 10 | F30: =C30 -> 28 | G30: =C29 -> 10
B32: Określenie pól A - C na ścianach bocznych
B33: Określenie pól A - C przy oddziaływaniu wiatru z jednego kierunku
B34: Odległość od krawędzi, e [m] | C34: → | D34: =MIN(D29,2*D28) -> 10.0 | E34: =MIN(E29,2*E28) -> 28.0 | F34: 10.0 | G34: 28.0
B35: Szerokość pola A na ścianie o długości d, m | C35: → | D35: =IF(D34<D30,D34/5,IF(D34>=5*D30,D30,IF(D34>=D30,D34/5,0))) -> 2.0 | E35: =IF(E34<E30,E34/5,IF(E34>=5*E30,E30,IF(E34>=E30,E34/5,0))) -> 5.6 | F35: =IF(F34<F30,F34/5,IF(F34>=5*F30,F30,IF(F34>=F30,F34/5,0))) -> 2.0 | G35: =IF(G34<G30,G34/5,IF(G34>=5*G30,G30,IF(G34>=G30,G34/5,0))) -> 5.6
B36: Szerokość pola B na ścianie o długości d, m | C36: → | D36: =IF(D34<D30,4*D34/5,IF(D34>=5*D30,0,IF(D34>=D30,D30-D34/5,0))) -> 8.0 | E36: =IF(E34<E30,4*E34/5,IF(E34>=5*E30,0,IF(E34>=E30,E30-E34/5,0))) -> 4.4 | F36: =IF(F34<F30,4*F34/5,IF(F34>=5*F30,0,IF(F34>=F30,F30-F34/5,0))) -> 8.0 | G36: =IF(G34<G30,4*G34/5,IF(G34>=5*G30,0,IF(G34>=G30,G30-G34/5,0))) -> 4.4
B37: Szerokość pola C na ścianie o długości d, m | C37: → | D37: =IF(D34<D30,D30-D34,0) -> 18.0 | E37: =IF(E34<E30,E30-E34,0) -> 0.0 | F37: =IF(F34<F30,F30-F34,0) -> 18.0 | G37: =IF(G34<G30,G30-G34,0) -> 0.0
B39: Szczytowe ciśnienie prędkości wiatru wg zasadniczej części EN
B40: Proporcja h/b | C40: → | D40: =IF(D28<=D29,"h ≤ b",IF(AND(D28>D29,D28<=2*D29),"b < h ≤ 2b",IF(D28>2*D29,"h > 2b",""))) -> h > 2b | E40: =IF(E28<=E29,"h ≤ b",IF(AND(E28>E29,E28<=2*E29),"b < h ≤ 2b",IF(E28>2*E29,"h > 2b",""))) -> h ≤ b | F40: =IF(F28<=F29,"h ≤ b",IF(AND(F28>F29,F28<=2*F29),"b < h ≤ 2b",IF(F28>2*F29,"h > 2b",""))) -> h > 2b | G40: =IF(G28<=G29,"h ≤ b",IF(AND(G28>G29,G28<=2*G29),"b < h ≤ 2b",IF(G28>2*G29,"h > 2b",""))) -> h ≤ b
B41: Wysokość odniesienia, ze [m] | C41: → | D41: ze = h, wysokość zalecana | E41: ze = h, wysokość zalecana | F41: =D41 -> ze = h, wysokość zalecana | G41: =E41 -> ze = h, wysokość zalecana
B42: Przyjęta wysokość odniesienia, ze [m] | C42: → | D42: =IF(D41="ze = h, wysokość zalecana",D28,IF(D41="ze = h - b",D28-D29,IF(D41="ze = b",D29,IF(D41="ze = ?, wpisz tu wysokość",0,D41)))) -> 25.00 | E42: =IF(E41="ze = h, wysokość zalecana",E28,IF(E41="ze = h - b",E28-E29,IF(E41="ze = b",E29,IF(E41="ze = ?, wpisz tu wysokość",0,E41)))) -> 25.00 | F42: =IF(F41="ze = h, wysokość zalecana",F28,IF(F41="ze = h - b",F28-F29,IF(F41="ze = b",F29,IF(F41="ze = ?, wpisz tu wysokość",0,F41)))) -> 25.00 | G42: =IF(G41="ze = h, wysokość zalecana",G28,IF(G41="ze = h - b",G28-G29,IF(G41="ze = b",G29,IF(G41="ze = ?, wpisz tu wysokość",0,G41)))) -> 25.00
B43: Współczynnik wysokości, - | C43: → | D43: 1.0 | E43: =D43 -> 1.0 | F43: =D43 -> 1.0 | G43: =D43 -> 1.0
B44: Wysokość przemieszczenia, hdis [m] | C44: → | D44: 0.0 | E44: 0.0 | F44: 0.0 | G44: 0.0
B45: Efektywna wysokość odniesienia, z [m] | C45: → | D45: =IF(D42*D43-D44>=D23,D42*D43-D44,D23) -> 25.00 | E45: =IF(E42*E43-E44>=E23,E42*E43-E44,E23) -> 25.00 | F45: =IF(F42*F43-F44>=F23,F42*F43-F44,F23) -> 25.00 | G45: =IF(G42*G43-G44>=G23,G42*G43-G44,G23) -> 25.00
B46: Współczynnik chropowatości na wysokości odniesienia, cr(z) | C46: → | D46: =IF(D45<=200,D25*LN(D45/D22),D25*LN(200/D22)) -> 0.953 | E46: =IF(E45<=200,E25*LN(E45/E22),E25*LN(200/E22)) -> 0.953 | F46: =IF(F45<=200,F25*LN(F45/F22),F25*LN(200/F22)) -> 0.953 | G46: =IF(G45<=200,G25*LN(G45/G22),G25*LN(200/G22)) -> 0.953
B47: Współczynnik orografii na wysokości odniesienia, co (z) | C47: → | D47: 1.0 | E47: 1.0 | F47: 1.0 | G47: 1.0
B48: Średnia prędkość wiatru na wysokości odniesienia, vm(z) [m/s] | C48: → | D48: =D46*D47*D17 -> 24.77 | E48: =E46*E47*E17 -> 17.34 | F48: =F46*F47*F17 -> 17.34 | G48: =G46*G47*G17 -> 24.77
B49: Współczynnik turbulencji, kl | C49: → | D49: 1.0 | E49: 1.0 | F49: 1.0 | G49: 1.0
B50: Intensywność turbulencji na wysokości odniesienia, Iv(z) | C50: → | D50: =IF(D45<=200,D49/(D47*LN(D45/D22)),D49/(D47*LN(200/D22))) -> 0.226 | E50: =IF(E45<=200,E49/(E47*LN(E45/E22)),E49/(E47*LN(200/E22))) -> 0.226 | F50: =IF(F45<=200,F49/(F47*LN(F45/F22)),F49/(F47*LN(200/F22))) -> 0.226 | G50: =IF(G45<=200,G49/(G47*LN(G45/G22)),G49/(G47*LN(200/G22))) -> 0.226
B51: Szczytowe ciśnienie prędkości na wysokości odniesienia, qp(z) [kN/m²] | C51: → | D51: =((1+7*D50)*0.5*1.25*D48^2)/1000 -> 0.9903 | E51: 0.4852 | F51: 0.4852 | G51: 0.9903
B53: Szczytowe ciśnienie prędkości wiatru wg Załącznika krajowego NA, co ≥ 1
B54: Efektywna wysokość odniesienia, z [m] | C54: → | D54: =IF(D42*D43-D44<D23,D23,IF(D42*D43-D44>D24,D24,D42*D43-D44)) -> 25.00 | E54: =IF(E42*E43-E44<E23,E23,IF(E42*E43-E44>E24,E24,E42*E43-E44)) -> 25.00 | F54: =IF(F42*F43-F44<F23,F23,IF(F42*F43-F44>F24,F24,F42*F43-F44)) -> 25.00 | G54: =IF(G42*G43-G44<G23,G23,IF(G42*G43-G44>G24,G24,G42*G43-G44)) -> 25.00
B55: Współczynnik chropowatości na wysokości odniesienia, cr(z) | C55: → | D55: =IF(D21=0,1.3*(D54/10)^0.11,IF(D21="I",1.2*(D54/10)^0.13,IF(D21="II",1*(D54/10)^0.17,IF(D21="III",0.8*(D54/10)^0.19,IF(D21="IV",0.6*(D54/10)^0.24,"-"))))) -> 0.952 | E55: =IF(E21=0,1.3*(E54/10)^0.11,IF(E21="I",1.2*(E54/10)^0.13,IF(E21="II",1*(E54/10)^0.17,IF(E21="III",0.8*(E54/10)^0.19,IF(E21="IV",0.6*(E54/10)^0.24,"-"))))) -> 0.952 | F55: =IF(F21=0,1.3*(F54/10)^0.11,IF(F21="I",1.2*(F54/10)^0.13,IF(F21="II",1*(F54/10)^0.17,IF(F21="III",0.8*(F54/10)^0.19,IF(F21="IV",0.6*(F54/10)^0.24,"-"))))) -> 0.952 | G55: =IF(G21=0,1.3*(G54/10)^0.11,IF(G21="I",1.2*(G54/10)^0.13,IF(G21="II",1*(G54/10)^0.17,IF(G21="III",0.8*(G54/10)^0.19,IF(G21="IV",0.6*(G54/10)^0.24,"-"))))) -> 0.952
B56: Współczynnik orografii na wysokości odniesienia, co (z) | C56: → | D56: =D47 -> 1.00 | E56: 1.00 | F56: 1.00 | G56: 1.00
B57: Średnia prędkość wiatru na wysokości odniesienia, vm(z) [m/s] | C57: → | D57: =D55*D56*D17 -> 24.76 | E57: =E55*E56*E17 -> 17.33 | F57: =F55*F56*F17 -> 17.33 | G57: =G55*G56*G17 -> 24.76
B58: Współczynnik turbulencji, kl | C58: → | D58: =D49 -> 1.00 | E58: 1.00 | F58: 1.00 | G58: 1.00
B59: Intensywność turbulencji na wysokości odniesienia, Iv(z) | C59: → | D59: =D50 -> 0.226 | E59: 0.226 | F59: 0.226 | G59: 0.226
B60: Szczytowe ciśnienie prędkości na wysokości odniesienia, qp(z) [kN/m²] | C60: → | D60: =((1+7*D59)*0.5*1.25*D57^2)/1000 -> 0.9892 | E60: 0.4847 | F60: 0.4847 | G60: 0.9892
B62: Szczytowe ciśnienie prędkości wiatru wg Załącznika krajowego NA, co = 1
B63: Współczynnik ekspozycji, ce(z) | C63: → | D63: =IF(D21=0,3*(D45/10)^0.17,IF(D21="I",2.8*(D45/10)^0.19,IF(D21="II",2.3*(D45/10)^0.24,IF(D21="III",1.9*(D45/10)^0.26,IF(D21="IV",1.5*(D45/10)^0.29,"-"))))) -> 2.4111 | E63: =IF(E21=0,3*(E45/10)^0.17,IF(E21="I",2.8*(E45/10)^0.19,IF(E21="II",2.3*(E45/10)^0.24,IF(E21="III",1.9*(E45/10)^0.26,IF(E21="IV",1.5*(E45/10)^0.29,"-"))))) -> 2.4111 | F63: =IF(F21=0,3*(F45/10)^0.17,IF(F21="I",2.8*(F45/10)^0.19,IF(F21="II",2.3*(F45/10)^0.24,IF(F21="III",1.9*(F45/10)^0.26,IF(F21="IV",1.5*(F45/10)^0.29,"-"))))) -> 2.4111 | G63: =IF(G21=0,3*(G45/10)^0.17,IF(G21="I",2.8*(G45/10)^0.19,IF(G21="II",2.3*(G45/10)^0.24,IF(G21="III",1.9*(G45/10)^0.26,IF(G21="IV",1.5*(G45/10)^0.29,"-"))))) -> 2.4111
B64: Wartość bazowa ciśnienia prędkości, qb [kN/m2] | C64: → | D64: =(0.5*1.25*D17^2)/1000 -> 0.4225 | E64: =(0.5*1.25*E17^2)/1000 -> 0.2070 | F64: =(0.5*1.25*F17^2)/1000 -> 0.2070 | G64: =(0.5*1.25*G17^2)/1000 -> 0.4225
B65: Szczytowe ciśnienie prędkości na wysokości odniesienia, qp(z) [kN/m²] | C65: → | D65: =D63*D64 -> 1.0187 | E65: 0.4992 | F65: 0.4992 | G65: 1.0187
B67: Przyjmowane do obliczeń szczytowe ciśnienie prędkości wiatru
B68: Szczytowe ciśnienie prędkości wg EN albo NA ? | C68: NA, co = 1
B69: Szczytowe ciśnienie prędkości na wysokości odniesienia, qp(z) [kN/m²] | C69: → | D69: =IF(C68="EN",D51,IF(C68="NA, co ≥ 1",D60,IF(C68="NA, co = 1",D65,"-"))) -> 1.0187 | E69: =IF(C68="EN",E51,IF(C68="NA, co ≥ 1",E60,IF(C68="NA, co = 1",E65,"-"))) -> 0.4992 | F69: =IF(C68="EN",F51,IF(C68="NA, co ≥ 1",F60,IF(C68="NA, co = 1",F65,"-"))) -> 0.4992 | G69: =IF(C68="EN",G51,IF(C68="NA, co ≥ 1",G60,IF(C68="NA, co = 1",G65,"-"))) -> 1.0187
B71: Współczynniki ciśnienia zewnętrznego
B72: Proporcja h/d | C72: → | D72: =D28/D30 -> 0.89 | E72: =E28/E30 -> 2.50 | F72: =F28/F30 -> 0.89 | G72: =G28/G30 -> 2.50
B73: Wartości współczynnika ciśnienia zewnętrznego, -
B74: pole A | C74: → | D74: wartość podstawowa | E74: wartość podstawowa | F74: wartość podstawowa | G74: wartość podstawowa
B75: pole B | C75: → | D75: wartość podstawowa | E75: wartość podstawowa | F75: wartość podstawowa | G75: wartość podstawowa
B76: pole C | C76: → | D76: wartość podstawowa | E76: wartość podstawowa | F76: wartość podstawowa | G76: wartość podstawowa
B77: pole E | C77: → | D77: wartość podstawowa | E77: wartość podstawowa | F77: wartość podstawowa | G77: wartość podstawowa
B78: Przyjęte wartości współczynnika ciśnienia zewnętrznego, -
B79: pole A | C79: → | D79: =IF(D74="wartość podstawowa",-1.4,IF(D74="wartość maks przy zwężce",-1.6,IF(D74="inna, wpisz tu wartość",0,D74))) -> -1.4 | E79: =IF(E74="wartość podstawowa",-1.4,IF(E74="wartość maks przy zwężce",-1.6,IF(E74="inna, wpisz tu wartość",0,E74))) -> -1.4 | F79: =IF(F74="wartość podstawowa",-1.4,IF(F74="wartość maks przy zwężce",-1.6,IF(F74="inna, wpisz tu wartość",0,F74))) -> -1.4 | G79: =IF(G74="wartość podstawowa",-1.4,IF(G74="wartość maks przy zwężce",-1.6,IF(G74="inna, wpisz tu wartość",0,G74))) -> -1.4
B80: pole B | C80: → | D80: =IF(D75="wartość podstawowa",-1.1,IF(D75="wartość maks przy zwężce",-1.1,IF(D75="inna, wpisz tu wartość",0,D75))) -> -1.1 | E80: =IF(E75="wartość podstawowa",-1.1,IF(E75="wartość maks przy zwężce",-1.1,IF(E75="inna, wpisz tu wartość",0,E75))) -> -1.1 | F80: =IF(F75="wartość podstawowa",-1.1,IF(F75="wartość maks przy zwężce",-1.1,IF(F75="inna, wpisz tu wartość",0,F75))) -> -1.1 | G80: =IF(G75="wartość podstawowa",-1.1,IF(G75="wartość maks przy zwężce",-1.1,IF(G75="inna, wpisz tu wartość",0,G75))) -> -1.1
B81: pole C | C81: → | D81: =IF(D76="wartość podstawowa",-0.5,IF(D76="wartość maks przy zwężce",-0.9,IF(D76="inna, wpisz tu wartość",0,D76))) -> -0.5 | E81: =IF(E76="wartość podstawowa",-0.5,IF(E76="wartość maks przy zwężce",-0.9,IF(E76="inna, wpisz tu wartość",0,E76))) -> -0.5 | F81: =IF(F76="wartość podstawowa",-0.5,IF(F76="wartość maks przy zwężce",-0.9,IF(F76="inna, wpisz tu wartość",0,F76))) -> -0.5 | G81: =IF(G76="wartość podstawowa",-0.5,IF(G76="wartość maks przy zwężce",-0.9,IF(G76="inna, wpisz tu wartość",0,G76))) -> -0.5
B82: pole E | C82: → | D82: =IF(D77="wartość podstawowa",IF(D72<=0.25,-0.3,IF(AND(D72>0.25,D72<1),-0.23333333333-0.26666666667*D72,IF(AND(D72>=1,D72<=5),-0.45-0.05*D72,-0.7))),IF(D77="inna, wpisz tu wartość",0,D77)) -> -0.47 | E82: =IF(E77="wartość podstawowa",IF(E72<=0.25,-0.3,IF(AND(E72>0.25,E72<1),-0.23333333333-0.26666666667*E72,IF(AND(E72>=1,E72<=5),-0.45-0.05*E72,-0.7))),IF(E77="inna, wpisz tu wartość",0,E77)) -> -0.58 | F82: =IF(F77="wartość podstawowa",IF(F72<=0.25,-0.3,IF(AND(F72>0.25,F72<1),-0.23333333333-0.26666666667*F72,IF(AND(F72>=1,F72<=5),-0.45-0.05*F72,-0.7))),IF(F77="inna, wpisz tu wartość",0,F77)) -> -0.47 | G82: =IF(G77="wartość podstawowa",IF(G72<=0.25,-0.3,IF(AND(G72>0.25,G72<1),-0.23333333333-0.26666666667*G72,IF(AND(G72>=1,G72<=5),-0.45-0.05*G72,-0.7))),IF(G77="inna, wpisz tu wartość",0,G77)) -> -0.58
B84: Ciśnienie wiatru na powierzchnie
B85: Wartość charakterystyczna ciśnienia wiatru we [kN/m²]
B86: pole A | C86: → | D86: =D69*D79 -> -1.4262 | E86: -0.6988 | F86: -0.6988 | G86: -1.4262
B87: pole B | C87: → | D87: =IF(D36=0,0,D69*D80) -> -1.1206 | E87: =IF(E36=0,0,E69*E80) -> -0.5491 | F87: =IF(F36=0,0,F69*F80) -> -0.5491 | G87: =IF(G36=0,0,G69*G80) -> -1.1206
B88: pole C | C88: → | D88: =IF(D37=0,0,D69*D81) -> -0.5093 | E88: =IF(E37=0,0,E69*E81) -> 0.0000 | F88: =IF(F37=0,0,F69*F81) -> -0.2496 | G88: =IF(G37=0,0,G69*G81) -> 0.0000
B89: pole E | C89: → | D89: =D69*D82 -> -0.4802 | E89: -0.2870 | F89: -0.2353 | G89: -0.5858
B90: Częściowy współczynnik bezpieczeństwa, γQ, - | C90: 1.5 | D90: =C90 -> 1.5 | E90: =C90 -> 1.5 | F90: =C90 -> 1.5 | G90: =C90 -> 1.5
B91: Dodatkowe obciążenie prostopadłe do powierzchni pd [kN/m²] | C91: 0 | D91: =C91 -> 0 | E91: =C91 -> 0 | F91: =C91 -> 0 | G91: =C91 -> 0
B92: Wartość obliczeniowa ssania wiatru we,d [kN/m²] | D92: Wiatr 1 | E92: Wiatr 2 | F92: Wiatr 3 | G92: Wiatr 4
B93: pole A | C93: → | D93: =IF(D86=0,0,(-1*D86*D90)+D91) -> 2.14 | E93: =IF(E86=0,0,(-1*E86*E90)+E91) -> 1.05 | F93: =IF(F86=0,0,(-1*F86*F90)+F91) -> 1.05 | G93: =IF(G86=0,0,(-1*G86*G90)+G91) -> 2.14
B94: pole B | C94: → | D94: =IF(D87=0,0,(-1*D87*D90)+D91) -> 1.68 | E94: =IF(E87=0,0,(-1*E87*E90)+E91) -> 0.82 | F94: =IF(F87=0,0,(-1*F87*F90)+F91) -> 0.82 | G94: =IF(G87=0,0,(-1*G87*G90)+G91) -> 1.68
B95: pole C | C95: → | D95: =IF(D88=0,0,(-1*D88*D90)+D91) -> 0.76 | E95: =IF(E88=0,0,(-1*E88*E90)+E91) -> 0.00 | F95: =IF(F88=0,0,(-1*F88*F90)+F91) -> 0.37 | G95: =IF(G88=0,0,(-1*G88*G90)+G91) -> 0.00
B96: pole E | C96: → | D96: =IF(D89=0,0,(-1*D89*D90)+D91) -> 0.72 | E96: =IF(E89=0,0,(-1*E89*E90)+E91) -> 0.43 | F96: =IF(F89=0,0,(-1*F89*F90)+F91) -> 0.35 | G96: =IF(G89=0,0,(-1*G89*G90)+G91) -> 0.88
B98: Układ ciśnienia z uwzględnieniem czterech kierunków wiatru | D98: Należy wybrać wartości maksymalne w poszczególnych polach każdej ściany, z uwzględnieniem kierunków wiatru:
D99: ściana I - wiatr 2, wiatr 3 i wiatr 4, ściana II - wiatr 1, wiatr 3 i wiatr 4,
D100: ściana III - wiatr 1, wiatr2 i wiatr 4, ściana IV - wiatr 1, wiatr 2 i wiatr 3
B131: 1
B132: 1 przy granicy z 2
B133: 2
B134: 2 przy granicy z 1 | D134: ze = h, wysokość zalecana
B135: 3
B136: 0 | D136: ze = h, wysokość zalecana | E136: wartość podstawowa
B137: I | D137: ze = b | E137: inna, wpisz tu wartość
B138: II | C138: wartość zależna od kierunku
B139: III | C139: wartość stała maksymalna | D139: ze = h, wysokość zalecana | E139: wartość podstawowa
B140: IV | D140: ze = h - b | E140: wartość maks przy zwężce
B141: EN | C141: równa wysokości budynku | D141: ze = b | E141: inna, wpisz tu wartość
B142: NA, co ≥ 1 | C142: inna - wpisz tu wartość | D142: ze = ?, wpisz tu wysokość
B143: NA, co = 1
D145: Uwaga! Na każdej ścianie, przy jednym kierunku wiatru mogą występować trzy pola (A, B, C), dwa pola (A, B) albo jedno pole (A). Określenie pól, zgodnie z normą PN EN 1991-1-4:2008, podano w zakładce "Pola ścian".

Sheet Wyniki graficzne wiatr I
B2: Graficzne przedstawienie wyników obliczeń oddziaływania wiatru
B4: Wiatr I - takie same warunki ze wszystkich kierunków
B6: UWAGA! Wymiary rzutu budynku i szerokości pól ściany nie są pokazywane w skali.
J8: ="Wysokość ze = "&TEXT('Obliczenia wiatr I'!D46,"####0,0##")&" m" -> Wysokość ze = 25,0 m
I11: m | J11: =IF(K102=1,"",IF(K102=2,L60,IF(K102=3,"",IF(AND(K102=4,L69=N69,L60>=L61),"",IF(AND(K102=4,L69<>N69,L60=L61),L61,IF(AND(K102=4,L60>L61,L69>N69),L61,IF(AND(K102=4,L60>L61,L69<N69),L60,IF(K102=5,"",IF(K102=6,"",IF(K102=7,L60,IF(K102=8,L60,IF(K102=9,"",IF(AND(K102=10,L62=0),L60,IF(AND(K102=10,L62>0,L62<L60,L70>=N69,L71<=N69),L62,IF(AND(K102=10,L62>0,L62<L60,L70<N69),L60,IF(AND(K102=10,L62>0,L62=L60),L60,IF(K102=11,L60,IF(K102=12,"",IF(K102=13,L60,IF(K102=14,L60,IF(K102=15,L60,IF(K102=16,L60,IF(K102=17,L60,IF(K102=18,L60,IF(K102=19,L60,IF(K102=20,L60,IF(K102=21,L60,IF(K102=22,L60,IF(K102=23,L60,""))))))))))))))))))))))))))))) ->  | K11: =IF(K102=1,"",IF(K102=2,"",IF(K102=3,"",IF(K102=4,"",IF(K102=5,"",IF(K102=6,"",IF(K102=7,"",IF(K102=8,"",IF(K102=9,"",IF(K102=10,"",IF(AND(K102=11,L62=0),L61-L60,IF(AND(K102=11,L62>0,L62<L60,N70>=L69,N71<=L69),L61,IF(AND(K102=11,L62>0,L62<L60,N70<L69),L61+L62-L60,IF(AND(K102=11,L62>0,L62=L60),L61,IF(K102=12,"",IF(K102=13,"",IF(K102=14,L61,IF(K102=15,L61,IF(K102=16,"",IF(AND(K102=17,L70>N70),L62-L60,IF(AND(K102=17,N70>L70),L61,IF(AND(K102=17,N70=L70),L61+L62-L60,IF(K102=18,L61,IF(K102=19,"",IF(K102=20,L61,IF(K102=21,L61,IF(K102=22,L61,IF(K102=23,L61,"")))))))))))))))))))))))))))) ->  | L11: =IF(K102=1,"",IF(K102=2,"",IF(K102=3,"",IF(K102=4,"",IF(K102=5,L61,IF(K102=6,L61+L62,IF(K102=7,L61,IF(K102=8,L61+L62,IF(K102=9,L62,IF(K102=10,"",IF(K102=11,"",IF(K102=12,L62,IF(K102=13,"",IF(K102=14,L62,IF(K102=15,L62,IF(K102=16,L62-L60,IF(K102=17,"",IF(K102=18,L62-L60,IF(K102=19,L62-L60,IF(K102=20,L62-L60,IF(K102=21,L62-(L60+L61),IF(K102=22,L62-(L60+L61),IF(K102=23,L62-(L60+L61),""))))))))))))))))))))))) ->  | M11: =IF(K102=1,"",IF(K102=2,"",IF(K102=3,"",IF(K102=4,"",IF(K102=5,"",IF(K102=6,"",IF(K102=7,"",IF(K102=8,"",IF(K102=9,L61,IF(AND(K102=10,L62=0),L61-L60,IF(AND(K102=10,L62>0,L62<L60,L70>=N69,L71<=N69),L61,IF(AND(K102=10,L62>0,L62<L60,L70<N69),L61+L62-L60,IF(AND(K102=10,L62>0,L62=L60),L61,IF(K102=11,"",IF(K102=12,L61,IF(K102=13,L61+L62-L60,IF(K102=14,"",IF(K102=15,"",IF(K102=16,L61,IF(AND(K102=17,L70>N70),L61,IF(AND(K102=17,N70>L70),L62-L60,IF(AND(K102=17,N70=L70),"",IF(K102=18,"",IF(K102=19,L61,IF(K102=20,"",IF(K102=21,L61,IF(K102=22,L61,IF(K102=23,L61,"")))))))))))))))))))))))))))) ->  | N11: =IF(K102=1,L60,IF(K102=2,"",IF(K102=3,L60+L61+L62,IF(AND(K102=4,L69=N69,L60>=L61),L60+L61,IF(AND(K102=4,L69<>N69,L60=L61),L60,IF(AND(K102=4,L60>L61,L69>N69),L60,IF(AND(K102=4,L60>L61,L69<N69),L61,IF(K102=5,L60,IF(K102=6,L60,IF(K102=7,"",IF(K102=8,"",IF(K102=9,L60,IF(K102=10,L60,IF(AND(K102=11,L62=0),L60,IF(AND(K102=11,L62>0,L62<L60,N70>=L69,N71<=L69),L62,IF(AND(K102=11,L62>0,L62<L60,N70<L69),L60,IF(AND(K102=11,L62>0,L62=L60),L60,IF(K102=12,L60,IF(K102=13,L60,IF(K102=14,"",IF(K102=15,"",IF(K102=16,L60,IF(K102=17,L60,IF(K102=18,L60,IF(K102=19,L60,IF(K102=20,L60,IF(K102=21,L60,IF(K102=22,L60,IF(K102=23,L60,""))))))))))))))))))))))))))))) -> 10.0
I15: kN/m2 | J15: =IF(OR(K102=2,K102=4,K102=7,K102=8,K102=10,K102=11,K102=13,K102=14,K102=15,K102=16,K102=17,K102=18,K102=19,K102=20,K102=21,K102=22,K102=23),N69,IF(K102=1,L69,IF(OR(K102=3,K102=6,K102=12),M72,IF(K102=5,L70,IF(K102=9,L71,""))))) -> 2.1393 | K15: =IF(OR(K102=11,K102=14,K102=15,K102=17,K102=18,K102=20,K102=21,K102=22,K102=23),N70,IF(K102=1,L69,IF(OR(K102=2,K102=4,K102=7,K102=8),N69,IF(OR(K102=3,K102=6,K102=12,K102=13,K102=19),M72,IF(OR(K102=5,K102=10),L70,IF(OR(K102=9,K102=16),L71,"")))))) -> 2.1393 | L15: =IF(K102=1,L69,IF(AND(K102=4,L69>=N69),L69,IF(K102=2,N69,IF(AND(K102=4,N69>L69),N69,IF(OR(K102=3,K102=6,K102=8,K102=12,K102=13,K102=15,K102=19,K102=20,K102=23),M72,IF(OR(K102=5,K102=10),L70,IF(AND(K102=17,L70>N70),L70,IF(AND(K102=17,N70>=L70),N70,IF(OR(K102=7,K102=11),N70,IF(OR(K102=9,K102=16,K102=21),L71,IF(OR(K102=14,K102=18,K102=22),N71,""))))))))))) -> 2.1393 | M15: =IF(OR(K102=9,K102=10,K102=12,K102=16,K102=17,K102=19,K102=21,K102=22,K102=23),L70,IF(K102=2,N69,IF(OR(K102=3,K102=8,K102=13,K102=15,K102=20),M72,IF(OR(K102=1,K102=4,K102=5,K102=6),L69,IF(OR(K102=7,K102=11),N70,IF(OR(K102=14,K102=18),N71,"")))))) -> 2.1393 | N15: =IF(OR(K102=1,K102=4,K102=5,K102=6,K102=9,K102=10,K102=11,K102=12,K102=13,K102=16,K102=17,K102=18,K102=19,K102=20,K102=21,K102=22,K102=23),L69,IF(K102=2,N69,IF(OR(K102=3,K102=8,K102=15),M72,IF(K102=7,N70,IF(K102=14,N71,""))))) -> 2.1393
G19: m | H19: kN/m2 | O19: kN/m2 | Q19: m
E20: ="Wysokość ze = "&TEXT('Obliczenia wiatr I'!C46,"####0,0##")&" m" -> Wysokość ze = 25,0 m | F20: =TEXT(K60+K61+K62,"####0,0##")&" m" -> 28,0 m | G20: =IF(F102=1,K60,IF(F102=2,"",IF(F102=3,K60+K61+K62,IF(AND(F102=4,K69=M69,K60>=K61),K60+K61,IF(AND(F102=4,K69<>M69,K60=K61),K60,IF(AND(F102=4,K60>K61,K69>M69),K60,IF(AND(F102=4,K60>K61,K69<M69),K61,IF(F102=5,K60,IF(F102=6,K60,IF(F102=7,"",IF(F102=8,"",IF(F102=9,K60,IF(F102=10,K60,IF(AND(F102=11,K62=0),K60,IF(AND(F102=11,K62>0,K62<K60,M70>=K69,M71<=K69),K62,IF(AND(F102=11,K62>0,K62<K60,M70<K69),K60,IF(AND(F102=11,K62>0,K62=K60),K60,IF(F102=12,K60,IF(F102=13,K60,IF(F102=14,"",IF(F102=15,"",IF(F102=16,K60,IF(F102=17,K60,IF(F102=18,K60,IF(F102=19,K60,IF(F102=20,K60,IF(F102=21,K60,IF(F102=22,K60,IF(F102=23,K60,""))))))))))))))))))))))))))))) -> 2.0 | H20: =IF(OR(F102=1,F102=4,F102=5,F102=6,F102=9,F102=10,F102=11,F102=12,F102=13,F102=16,F102=17,F102=18,F102=19,F102=20,F102=21,F102=22,F102=23),K69,IF(F102=2,M69,IF(OR(F102=3,F102=8,F102=15),L72,IF(F102=7,M70,IF(F102=14,M71,""))))) -> 2.1393 | L20: Ściana I | O20: =IF(OR(P102=1,P102=4,P102=5,P102=6,P102=9,P102=10,P102=11,P102=12,P102=13,P102=16,P102=17,P102=18,P102=19,P102=20,P102=21,P102=22,P102=23),K69,IF(P102=2,M69,IF(OR(P102=3,P102=8,P102=15),N72,IF(P102=7,M70,IF(P102=14,M71,""))))) -> 2.1393 | Q20: =IF(P102=1,K60,IF(P102=2,"",IF(P102=3,K60+K61+K62,IF(AND(P102=4,K69=M69,K60>=K61),K60+K61,IF(AND(P102=4,K69<>M69,K60=K61),K60,IF(AND(P102=4,K60>K61,K69>M69),K60,IF(AND(P102=4,K60>K61,K69<M69),K61,IF(P102=5,K60,IF(P102=6,K60,IF(P102=7,"",IF(P102=8,"",IF(P102=9,K60,IF(P102=10,K60,IF(AND(P102=11,K62=0),K60,IF(AND(P102=11,K62>0,K62<K60,M70>=K69,M71<=K69),K62,IF(AND(P102=11,K62>0,K62<K60,M70<K69),K60,IF(AND(P102=11,K62>0,K62=K60),K60,IF(P102=12,K60,IF(P102=13,K60,IF(P102=14,"",IF(P102=15,"",IF(P102=16,K60,IF(P102=17,K60,IF(P102=18,K60,IF(P102=19,K60,IF(P102=20,K60,IF(P102=21,K60,IF(P102=22,K60,IF(P102=23,K60,""))))))))))))))))))))))))))))) -> 2.0 | R20: ="Wysokość ze = "&TEXT('Obliczenia wiatr I'!C46,"####0,0##")&" m" -> Wysokość ze = 25,0 m
G24: =IF(F102=1,"",IF(F102=2,"",IF(F102=3,"",IF(F102=4,"",IF(F102=5,"",IF(F102=6,"",IF(F102=7,"",IF(F102=8,"",IF(F102=9,K61,IF(AND(F102=10,K62=0),K61-K60,IF(AND(F102=10,K62>0,K62<K60,K70>=M69,K71<=M69),K61,IF(AND(F102=10,K62>0,K62<K60,K70<M69),K61+K62-K60,IF(AND(F102=10,K62>0,K62=K60),K61,IF(F102=11,"",IF(F102=12,K61,IF(F102=13,K61+K62-K60,IF(F102=14,"",IF(F102=15,"",IF(F102=16,K61,IF(AND(F102=17,K70>M70),K61,IF(AND(F102=17,M70>K70),K62-K60,IF(AND(F102=17,M70=K70),"",IF(F102=18,"",IF(F102=19,K61,IF(F102=20,"",IF(F102=21,K61,IF(F102=22,K61,IF(F102=23,K61,"")))))))))))))))))))))))))))) -> 8.0 | H24: =IF(OR(F102=9,F102=10,F102=12,F102=16,F102=17,F102=19,F102=21,F102=22,F102=23),K70,IF(F102=2,M69,IF(OR(F102=3,F102=8,F102=13,F102=15,F102=20),L72,IF(OR(F102=1,F102=4,F102=5,F102=6),K69,IF(OR(F102=7,F102=11),M70,IF(OR(F102=14,F102=18),M71,"")))))) -> 1.6808 | O24: =IF(OR(P102=9,P102=10,P102=12,P102=16,P102=17,P102=19,P102=21,P102=22,P102=23),K70,IF(P102=2,M69,IF(OR(P102=3,P102=8,P102=13,P102=15,P102=20),N72,IF(OR(P102=1,P102=4,P102=5,P102=6),K69,IF(OR(P102=7,P102=11),M70,IF(OR(P102=14,P102=18),M71,"")))))) -> 1.6808 | Q24: =IF(P102=1,"",IF(P102=2,"",IF(P102=3,"",IF(P102=4,"",IF(P102=5,"",IF(P102=6,"",IF(P102=7,"",IF(P102=8,"",IF(P102=9,K61,IF(AND(P102=10,K62=0),K61-K60,IF(AND(P102=10,K62>0,K62<K60,K70>=M69,K71<=M69),K61,IF(AND(P102=10,K62>0,K62<K60,K70<M69),K61+K62-K60,IF(AND(P102=10,K62>0,K62=K60),K61,IF(P102=11,"",IF(P102=12,K61,IF(P102=13,K61+K62-K60,IF(P102=14,"",IF(P102=15,"",IF(P102=16,K61,IF(AND(P102=17,K70>M70),K61,IF(AND(P102=17,M70>K70),K62-K60,IF(AND(P102=17,M70=K70),"",IF(P102=18,"",IF(P102=19,K61,IF(P102=20,"",IF(P102=21,K61,IF(P102=22,K61,IF(P102=23,K61,"")))))))))))))))))))))))))))) -> 8.0
G28: =IF(F102=1,"",IF(F102=2,"",IF(F102=3,"",IF(F102=4,"",IF(F102=5,K61,IF(F102=6,K61+K62,IF(F102=7,K61,IF(F102=8,K61+K62,IF(F102=9,K62,IF(F102=10,"",IF(F102=11,"",IF(F102=12,K62,IF(F102=13,"",IF(F102=14,K62,IF(F102=15,K62,IF(F102=16,K62-K60,IF(F102=17,"",IF(F102=18,K62-K60,IF(F102=19,K62-K60,IF(F102=20,K62-K60,IF(F102=21,K62-(K60+K61),IF(F102=22,K62-(K60+K61),IF(F102=23,K62-(K60+K61),""))))))))))))))))))))))) -> 8.0 | H28: =IF(F102=1,K69,IF(AND(F102=4,K69>=M69),K69,IF(F102=2,M69,IF(AND(F102=4,M69>K69),M69,IF(OR(F102=3,F102=6,F102=8,F102=12,F102=13,F102=15,F102=19,F102=20,F102=23),L72,IF(OR(F102=5,F102=10),K70,IF(AND(F102=17,K70>M70),K70,IF(AND(F102=17,M70>=K70),M70,IF(OR(F102=7,F102=11),M70,IF(OR(F102=9,F102=16,F102=21),K71,IF(OR(F102=14,F102=18,F102=22),M71,""))))))))))) -> 0.8786 | O28: =IF(P102=1,K69,IF(AND(P102=4,K69>=M69),K69,IF(P102=2,M69,IF(AND(P102=4,M69>K69),M69,IF(OR(P102=3,P102=6,P102=8,P102=12,P102=13,P102=15,P102=19,P102=20,P102=23),N72,IF(OR(P102=5,P102=10),K70,IF(AND(P102=17,K70>M70),K70,IF(AND(P102=17,M70>=K70),M70,IF(OR(P102=7,P102=11),M70,IF(OR(P102=9,P102=16,P102=21),K71,IF(OR(P102=14,P102=18,P102=22),M71,""))))))))))) -> 0.8786 | Q28: =IF(P102=1,"",IF(P102=2,"",IF(P102=3,"",IF(P102=4,"",IF(P102=5,K61,IF(P102=6,K61+K62,IF(P102=7,K61,IF(P102=8,K61+K62,IF(P102=9,K62,IF(P102=10,"",IF(P102=11,"",IF(P102=12,K62,IF(P102=13,"",IF(P102=14,K62,IF(P102=15,K62,IF(P102=16,K62-K60,IF(P102=17,"",IF(P102=18,K62-K60,IF(P102=19,K62-K60,IF(P102=20,K62-K60,IF(P102=21,K62-(K60+K61),IF(P102=22,K62-(K60+K61),IF(P102=23,K62-(K60+K61),""))))))))))))))))))))))) -> 8.0
J29: Ściana IV | N29: Ściana II
G32: =IF(F102=1,"",IF(F102=2,"",IF(F102=3,"",IF(F102=4,"",IF(F102=5,"",IF(F102=6,"",IF(F102=7,"",IF(F102=8,"",IF(F102=9,"",IF(F102=10,"",IF(AND(F102=11,K62=0),K61-K60,IF(AND(F102=11,K62>0,K62<K60,M70>=K69,M71<=K69),K61,IF(AND(F102=11,K62>0,K62<K60,M70<K69),K61+K62-K60,IF(AND(F102=11,K62>0,K62=K60),K61,IF(F102=12,"",IF(F102=13,"",IF(F102=14,K61,IF(F102=15,K61,IF(F102=16,"",IF(AND(F102=17,K70>M70),K62-K60,IF(AND(F102=17,M70>K70),K61,IF(AND(F102=17,M70=K70),K61+K62-K60,IF(F102=18,K61,IF(F102=19,"",IF(F102=20,K61,IF(F102=21,K61,IF(F102=22,K61,IF(F102=23,K61,"")))))))))))))))))))))))))))) -> 8.0 | H32: =IF(OR(F102=11,F102=14,F102=15,F102=17,F102=18,F102=20,F102=21,F102=22,F102=23),M70,IF(F102=1,K69,IF(OR(F102=2,F102=4,F102=7,F102=8),M69,IF(OR(F102=3,F102=6,F102=12,F102=13,F102=19),L72,IF(OR(F102=5,F102=10),K70,IF(OR(F102=9,F102=16),K71,"")))))) -> 1.6808 | O32: =IF(OR(P102=11,P102=14,P102=15,P102=17,P102=18,P102=20,P102=21,P102=22,P102=23),M70,IF(P102=1,K69,IF(OR(P102=2,P102=4,P102=7,P102=8),M69,IF(OR(P102=3,P102=6,P102=12,P102=13,P102=19),N72,IF(OR(P102=5,P102=10),K70,IF(OR(P102=9,P102=16),K71,"")))))) -> 1.6808 | Q32: =IF(P102=1,"",IF(P102=2,"",IF(P102=3,"",IF(P102=4,"",IF(P102=5,"",IF(P102=6,"",IF(P102=7,"",IF(P102=8,"",IF(P102=9,"",IF(P102=10,"",IF(AND(P102=11,K62=0),K61-K60,IF(AND(P102=11,K62>0,K62<K60,M70>=K69,M71<=K69),K61,IF(AND(P102=11,K62>0,K62<K60,M70<K69),K61+K62-K60,IF(AND(P102=11,K62>0,K62=K60),K61,IF(P102=12,"",IF(P102=13,"",IF(P102=14,K61,IF(P102=15,K61,IF(P102=16,"",IF(AND(P102=17,K70>M70),K62-K60,IF(AND(P102=17,M70>K70),K61,IF(AND(P102=17,M70=K70),K61+K62-K60,IF(P102=18,K61,IF(P102=19,"",IF(P102=20,K61,IF(P102=21,K61,IF(P102=22,K61,IF(P102=23,K61,"")))))))))))))))))))))))))))) -> 8.0
G36: =IF(F102=1,"",IF(F102=2,K60,IF(F102=3,"",IF(AND(F102=4,K69=M69,K60>=K61),"",IF(AND(F102=4,K69<>M69,K60=K61),K61,IF(AND(F102=4,K60>K61,K69>M69),K61,IF(AND(F102=4,K60>K61,K69<M69),K60,IF(F102=5,"",IF(F102=6,"",IF(F102=7,K60,IF(F102=8,K60,IF(F102=9,"",IF(AND(F102=10,K62=0),K60,IF(AND(F102=10,K62>0,K62<K60,K70>=M69,K71<=M69),K62,IF(AND(F102=10,K62>0,K62<K60,K70<M69),K60,IF(AND(F102=10,K62>0,K62=K60),K60,IF(F102=11,K60,IF(F102=12,"",IF(F102=13,K60,IF(F102=14,K60,IF(F102=15,K60,IF(F102=16,K60,IF(F102=17,K60,IF(F102=18,K60,IF(F102=19,K60,IF(F102=20,K60,IF(F102=21,K60,IF(F102=22,K60,IF(F102=23,K60,""))))))))))))))))))))))))))))) -> 2.0 | H36: =IF(OR(F102=2,F102=4,F102=7,F102=8,F102=10,F102=11,F102=13,F102=14,F102=15,F102=16,F102=17,F102=18,F102=19,F102=20,F102=21,F102=22,F102=23),M69,IF(F102=1,K69,IF(OR(F102=3,F102=6,F102=12),L72,IF(F102=5,K70,IF(F102=9,K71,""))))) -> 2.1393 | O36: =IF(OR(P102=2,P102=4,P102=7,P102=8,P102=10,P102=11,P102=13,P102=14,P102=15,P102=16,P102=17,P102=18,P102=19,P102=20,P102=21,P102=22,P102=23),M69,IF(P102=1,K69,IF(OR(P102=3,P102=6,P102=12),N72,IF(P102=5,K70,IF(P102=9,K71,""))))) -> 2.1393 | Q36: =IF(P102=1,"",IF(P102=2,K60,IF(P102=3,"",IF(AND(P102=4,K69=M69,K60>=K61),"",IF(AND(P102=4,K69<>M69,K60=K61),K61,IF(AND(P102=4,K60>K61,K69>M69),K61,IF(AND(P102=4,K60>K61,K69<M69),K60,IF(P102=5,"",IF(P102=6,"",IF(P102=7,K60,IF(P102=8,K60,IF(P102=9,"",IF(AND(P102=10,K62=0),K60,IF(AND(P102=10,K62>0,K62<K60,K70>=M69,K71<=M69),K62,IF(AND(P102=10,K62>0,K62<K60,K70<M69),K60,IF(AND(P102=10,K62>0,K62=K60),K60,IF(P102=11,K60,IF(P102=12,"",IF(P102=13,K60,IF(P102=14,K60,IF(P102=15,K60,IF(P102=16,K60,IF(P102=17,K60,IF(P102=18,K60,IF(P102=19,K60,IF(P102=20,K60,IF(P102=21,K60,IF(P102=22,K60,IF(P102=23,K60,""))))))))))))))))))))))))))))) -> 2.0
L39: Ściana III
I40: kN/m2 | J40: =IF(OR(U102=2,U102=4,U102=7,U102=8,U102=10,U102=11,U102=13,U102=14,U102=15,U102=16,U102=17,U102=18,U102=19,U102=20,U102=21,U102=22,U102=23),N69,IF(U102=1,L69,IF(OR(U102=3,U102=6,U102=12),K72,IF(U102=5,L70,IF(U102=9,L71,""))))) -> 2.1393 | K40: =IF(OR(U102=11,U102=14,U102=15,U102=17,U102=18,U102=20,U102=21,U102=22,U102=23),N70,IF(U102=1,L69,IF(OR(U102=2,U102=4,U102=7,U102=8),N69,IF(OR(U102=3,U102=6,U102=12,U102=13,U102=19),K72,IF(OR(U102=5,U102=10),L70,IF(OR(U102=9,U102=16),L71,"")))))) -> 2.1393 | L40: =IF(U102=1,L69,IF(AND(U102=4,L69>=N69),L69,IF(U102=2,N69,IF(AND(U102=4,N69>L69),N69,IF(OR(U102=3,U102=6,U102=8,U102=12,U102=13,U102=15,U102=19,U102=20,U102=23),K72,IF(OR(U102=5,U102=10),L70,IF(AND(U102=17,L70>N70),L70,IF(AND(U102=17,N70>=L70),N70,IF(OR(U102=7,U102=11),N70,IF(OR(U102=9,U102=16,U102=21),L71,IF(OR(U102=14,U102=18,U102=22),N71,""))))))))))) -> 2.1393 | M40: =IF(OR(U102=9,U102=10,U102=12,U102=16,U102=17,U102=19,U102=21,U102=22,U102=23),L70,IF(U102=2,N69,IF(OR(U102=3,U102=8,U102=13,U102=15,U102=20),K72,IF(OR(U102=1,U102=4,U102=5,U102=6),L69,IF(OR(U102=7,U102=11),N70,IF(OR(U102=14,U102=18),N71,"")))))) -> 2.1393 | N40: =IF(OR(U102=1,U102=4,U102=5,U102=6,U102=9,U102=10,U102=11,U102=12,U102=13,U102=16,U102=17,U102=18,U102=19,U102=20,U102=21,U102=22,U102=23),L69,IF(U102=2,N69,IF(OR(U102=3,U102=8,U102=15),K72,IF(U102=7,N70,IF(U102=14,N71,""))))) -> 2.1393
I45: m | J45: =IF(U102=1,"",IF(U102=2,L60,IF(U102=3,"",IF(AND(U102=4,L69=N69,L60>=L61),"",IF(AND(U102=4,L69<>N69,L60=L61),L61,IF(AND(U102=4,L60>L61,L69>N69),L61,IF(AND(U102=4,L60>L61,L69<N69),L60,IF(U102=5,"",IF(U102=6,"",IF(U102=7,L60,IF(U102=8,L60,IF(U102=9,"",IF(AND(U102=10,L62=0),L60,IF(AND(U102=10,L62>0,L62<L60,L70>=N69,L71<=N69),L62,IF(AND(U102=10,L62>0,L62<L60,L70<N69),L60,IF(AND(U102=10,L62>0,L62=L60),L60,IF(U102=11,L60,IF(U102=12,"",IF(U102=13,L60,IF(U102=14,L60,IF(U102=15,L60,IF(U102=16,L60,IF(U102=17,L60,IF(U102=18,L60,IF(U102=19,L60,IF(U102=20,L60,IF(U102=21,L60,IF(U102=22,L60,IF(U102=23,L60,""))))))))))))))))))))))))))))) ->  | K45: =IF(U102=1,"",IF(U102=2,"",IF(U102=3,"",IF(U102=4,"",IF(U102=5,"",IF(U102=6,"",IF(U102=7,"",IF(U102=8,"",IF(U102=9,"",IF(U102=10,"",IF(AND(U102=11,L62=0),L61-L60,IF(AND(U102=11,L62>0,L62<L60,N70>=L69,N71<=L69),L61,IF(AND(U102=11,L62>0,L62<L60,N70<L69),L61+L62-L60,IF(AND(U102=11,L62>0,L62=L60),L61,IF(U102=12,"",IF(U102=13,"",IF(U102=14,L61,IF(U102=15,L61,IF(U102=16,"",IF(AND(U102=17,L70>N70),L62-L60,IF(AND(U102=17,N70>L70),L61,IF(AND(U102=17,N70=L70),L61+L62-L60,IF(U102=18,L61,IF(U102=19,"",IF(U102=20,L61,IF(U102=21,L61,IF(U102=22,L61,IF(U102=23,L61,"")))))))))))))))))))))))))))) ->  | L45: =IF(U102=1,"",IF(U102=2,"",IF(U102=3,"",IF(U102=4,"",IF(U102=5,L61,IF(U102=6,L61+L62,IF(U102=7,L61,IF(U102=8,L61+L62,IF(U102=9,L62,IF(U102=10,"",IF(U102=11,"",IF(U102=12,L62,IF(U102=13,"",IF(U102=14,L62,IF(U102=15,L62,IF(U102=16,L62-L60,IF(U102=17,"",IF(U102=18,L62-L60,IF(U102=19,L62-L60,IF(U102=20,L62-L60,IF(U102=21,L62-(L60+L61),IF(U102=22,L62-(L60+L61),IF(U102=23,L62-(L60+L61),""))))))))))))))))))))))) ->  | M45: =IF(U102=1,"",IF(U102=2,"",IF(U102=3,"",IF(U102=4,"",IF(U102=5,"",IF(U102=6,"",IF(U102=7,"",IF(U102=8,"",IF(U102=9,L61,IF(AND(U102=10,L62=0),L61-L60,IF(AND(U102=10,L62>0,L62<L60,L70>=N69,L71<=N69),L61,IF(AND(U102=10,L62>0,L62<L60,L70<N69),L61+L62-L60,IF(AND(U102=10,L62>0,L62=L60),L61,IF(U102=11,"",IF(U102=12,L61,IF(U102=13,L61+L62-L60,IF(U102=14,"",IF(U102=15,"",IF(U102=16,L61,IF(AND(U102=17,L70>N70),L61,IF(AND(U102=17,N70>L70),L62-L60,IF(AND(U102=17,N70=L70),"",IF(U102=18,"",IF(U102=19,L61,IF(U102=20,"",IF(U102=21,L61,IF(U102=22,L61,IF(U102=23,L61,"")))))))))))))))))))))))))))) ->  | N45: =IF(U102=1,L60,IF(U102=2,"",IF(U102=3,L60+L61+L62,IF(AND(U102=4,L69=N69,L60>=L61),L60+L61,IF(AND(U102=4,L69<>N69,L60=L61),L60,IF(AND(U102=4,L60>L61,L69>N69),L60,IF(AND(U102=4,L60>L61,L69<N69),L61,IF(U102=5,L60,IF(U102=6,L60,IF(U102=7,"",IF(U102=8,"",IF(U102=9,L60,IF(U102=10,L60,IF(AND(U102=11,L62=0),L60,IF(AND(U102=11,L62>0,L62<L60,N70>=L69,N71<=L69),L62,IF(AND(U102=11,L62>0,L62<L60,N70<L69),L60,IF(AND(U102=11,L62>0,L62=L60),L60,IF(U102=12,L60,IF(U102=13,L60,IF(U102=14,"",IF(U102=15,"",IF(U102=16,L60,IF(U102=17,L60,IF(U102=18,L60,IF(U102=19,L60,IF(U102=20,L60,IF(U102=21,L60,IF(U102=22,L60,IF(U102=23,L60,""))))))))))))))))))))))))))))) -> 10.0
J49: =TEXT(N60+N61+N62,"####0,0##")&" m" -> 10,0 m
J52: ="Wysokość ze = "&TEXT('Obliczenia wiatr I'!D46,"####0,0##")&" m" -> Wysokość ze = 25,0 m
J57: Tablica szerokości pól ściany
K59: Ściana IV | L59: Ściana I | M59: Ściana II | N59: Ściana III
J60: a | K60: ='Obliczenia wiatr I'!C31 -> 2.0 | L60: ='Obliczenia wiatr I'!D31 -> 5.6 | M60: ='Obliczenia wiatr I'!C31 -> 2.0 | N60: ='Obliczenia wiatr I'!D31 -> 5.6
J61: b | K61: ='Obliczenia wiatr I'!C32 -> 8.0 | L61: ='Obliczenia wiatr I'!D32 -> 4.4 | M61: ='Obliczenia wiatr I'!C32 -> 8.0 | N61: ='Obliczenia wiatr I'!D32 -> 4.4
J62: c | K62: ='Obliczenia wiatr I'!C33 -> 18.0 | L62: ='Obliczenia wiatr I'!D33 -> 0.0 | M62: ='Obliczenia wiatr I'!C33 -> 18.0 | N62: ='Obliczenia wiatr I'!D33 -> 0.0
J64: e (prost) | K64: ='Obliczenia wiatr I'!C25 -> 10.0 | L64: ='Obliczenia wiatr I'!D25 -> 28.0 | M64: ='Obliczenia wiatr I'!C25 -> 10.0 | N64: ='Obliczenia wiatr I'!D25 -> 28.0
J66: Tablica obciążenia wiatrem
K68: Wiatr 1 | L68: Wiatr 2 | M68: Wiatr 3 | N68: Wiatr 4
J69: A | K69: ='Obliczenia wiatr I'!C90 -> 2.1393 | L69: ='Obliczenia wiatr I'!D90 -> 2.1393 | M69: ='Obliczenia wiatr I'!C90 -> 2.1393 | N69: ='Obliczenia wiatr I'!D90 -> 2.1393
J70: B | K70: ='Obliczenia wiatr I'!C91 -> 1.6808 | L70: ='Obliczenia wiatr I'!D91 -> 1.6808 | M70: ='Obliczenia wiatr I'!C91 -> 1.6808 | N70: ='Obliczenia wiatr I'!D91 -> 1.6808
J71: C | K71: ='Obliczenia wiatr I'!C92 -> 0.7640 | L71: ='Obliczenia wiatr I'!D92 -> 0.0000 | M71: ='Obliczenia wiatr I'!C92 -> 0.7640 | N71: ='Obliczenia wiatr I'!D92 -> 0.0000
J72: E | K72: ='Obliczenia wiatr I'!C93 -> 0.7204 | L72: ='Obliczenia wiatr I'!D93 -> 0.8786 | M72: ='Obliczenia wiatr I'!C93 -> 0.7204 | N72: ='Obliczenia wiatr I'!D93 -> 0.8786
C74: Układy pól obciążenia na ścianach
C76: ŚCIANA IV | H76: ŚCIANA I | M76: ŚCIANA II | R76: ŚCIANA III
C78: 1 | D78: A1 | F78: =IF(AND(K60>0,K61=0,K62=0,K69>=M69,L72<=K69),1,0) -> 0 | H78: 1 | I78: A2 | K78: =IF(AND(L60>0,L61=0,L62=0,L69>=N69,M72<=L69),1,0) -> 0 | M78: 1 | N78: A1 | P78: =IF(AND(K60>0,K61=0,K62=0,K69>=M69,N72<=K69),1,0) -> 0 | R78: 1 | S78: A2 | U78: =IF(AND(L60>0,L61=0,L62=0,L69>=N69,K72<=L69),1,0) -> 0
C79: 2 | D79: A3 | F79: =IF(AND(K60>0,K61=0,K62=0,M69>K69,L72<=M69),2,0) -> 0 | H79: 2 | I79: A4 | K79: =IF(AND(L60>0,L61=0,L62=0,N69>L69,M72<=N69),2,0) -> 0 | M79: 2 | N79: A3 | P79: =IF(AND(K60>0,K61=0,K62=0,M69>K69,N72<=M69),2,0) -> 0 | R79: 2 | S79: A4 | U79: =IF(AND(L60>0,L61=0,L62=0,N69>L69,K72<=N69),2,0) -> 0
C80: 3 | D80: E2 | F80: =IF(AND(K60>0,K61>=0,K62>=0,L72>K69,L72>M69),3,0) -> 0 | H80: 3 | I80: E3 | K80: =IF(AND(L60>0,L61>=0,L62>=0,M72>L69,M72>N69),3,0) -> 0 | M80: 3 | N80: E4 | P80: =IF(AND(K60>0,K61>=0,K62>=0,L72>K69,N72>M69),3,0) -> 0 | R80: 3 | S80: E1 | U80: =IF(AND(L60>0,L61>=0,L62>=0,K72>L69,K72>N69),3,0) -> 0
C81: 4 | D81: A1-A3 | F81: =IF(AND(K60>0,K61>0,K62=0,K60>=K61,K69>=M70,M69>=K70,L72<=K69,L72<=M69),4,0) -> 0 | H81: 4 | I81: A2-A4 | K81: =IF(AND(L60>0,L61>0,L62=0,L60>=L61,L69>=N70,N69>=L70,M72<=L69,M72<=N69),4,0) -> 4 | M81: 4 | N81: A1-A3 | P81: =IF(AND(K60>0,K61>0,K62=0,K60>=K61,K69>=M70,M69>=K70,N72<=K69,N72<=M69),4,0) -> 0 | R81: 4 | S81: A2-A4 | U81: =IF(AND(L60>0,L61>0,L62=0,L60>=L61,L69>=N70,N69>=L70,K72<=L69,K72<=N69),4,0) -> 4
C82: 5 | D82: A1-B1 | F82: =IF(AND(K60>0,K61>0,K62=0,K70>=M69,L72<=K70),5,0) -> 0 | H82: 5 | I82: A2-B2 | K82: =IF(AND(L60>0,L61>0,L62=0,L70>=N69,M72<=L70),5,0) -> 0 | M82: 5 | N82: A1-B1 | P82: =IF(AND(K60>0,K61>0,K62=0,K70>=M69,N72<=K70),5,0) -> 0 | R82: 5 | S82: A2-B2 | U82: =IF(AND(L60>0,L61>0,L62=0,L70>=N69,K72<=L70),5,0) -> 0
C83: 6 | D83: A1-E2 | F83: =IF(AND(K60>0,K61>0,K62>=0,L72<K69,L72>K70,L72>M69),6,0) -> 0 | H83: 6 | I83: A2-E3 | K83: =IF(AND(L60>0,L61>0,L62=0,M72<L69,M72>L70,M72>N69),6,0) -> 0 | M83: 6 | N83: A1-E4 | P83: =IF(AND(K60>0,K61>0,K62>=0,N72<K69,N72>K70,N72>M69),6,0) -> 0 | R83: 6 | S83: A2-E1 | U83: =IF(AND(L60>0,L61>0,L62=0,K72<L69,K72>L70,K72>N69),6,0) -> 0
C84: 7 | D84: B3-A3 | F84: =IF(AND(K60>0,K61>0,K62=0,M70>=K69,L72<=M70),7,0) -> 0 | H84: 7 | I84: B4-A4 | K84: =IF(AND(L60>0,L61>0,L62=0,N70>=L69,M72<=N70),7,0) -> 0 | M84: 7 | N84: B3-A3 | P84: =IF(AND(K60>0,K61>0,K62=0,M70>=K69,N72<=M70),7,0) -> 0 | R84: 7 | S84: B4-A4 | U84: =IF(AND(L60>0,L61>0,L62=0,N70>=L69,K72<=N70),7,0) -> 0
C85: 8 | D85: E2-A3 | F85: =IF(AND(K60>0,K61>0,K62>=0,L72<M69,L72>M70,L72>K69),8,0) -> 0 | H85: 8 | I85: E3-A4 | K85: =IF(AND(L60>0,L61>0,L62>=0,M72<N69,M72>N70,M72>L69),8,0) -> 0 | M85: 8 | N85: E4-A3 | P85: =IF(AND(K60>0,K61>0,K62>=0,N72<M69,N72>M70,N72>K69),8,0) -> 0 | R85: 8 | S85: E1-A4 | U85: =IF(AND(L60>0,L61>0,L62>=0,K72<N69,K72>N70,K72>L69),8,0) -> 0
C86: 9 | D86: A1-B1-C1 | F86: =IF(AND(K60>0,K61>0,K62>0,K71>=M69,L72<=K71),9,0) -> 0 | H86: 9 | I86: A2-B2-C2 | K86: =IF(AND(L60>0,L61>0,L62>0,L71>=N69,M72<=L71),9,0) -> 0 | M86: 9 | N86: A1-B1-C1 | P86: =IF(AND(K60>0,K61>0,K62>0,K71>=M69,N72<=K71),9,0) -> 0 | R86: 9 | S86: A2-B2-C2 | U86: =IF(AND(L60>0,L61>0,L62>0,L71>=N69,K72<=L71),9,0) -> 0
C87: 10 | D87: A1-B1-A3 | F87: =IF(AND(K60>0,K61>0,K62>=0,K62<=K60,K60<K61,K70>=M70,IF(K62=0,M69>K70,M69>K71),L72<=K70,L72<=M69),10,0) -> 0 | H87: 10 | I87: A2-B2-A4 | K87: =IF(AND(L60>0,L61>0,L62>=0,L62<=L60,L60<L61,L70>=N70,IF(L62=0,N69>L70,N69>L71),M72<=L70,M72<=N69),10,0) -> 0 | M87: 10 | N87: A1-B1-A3 | P87: =IF(AND(K60>0,K61>0,K62>=0,K62<=K60,K60<K61,K70>=M70,IF(K62=0,M69>K70,M69>K71),N72<=K70,N72<=M69),10,0) -> 0 | R87: 10 | S87: A2-B2-A4 | U87: =IF(AND(L60>0,L61>0,L62>=0,L62<=L60,L60<L61,L70>=N70,IF(L62=0,N69>L70,N69>L71),K72<=L70,K72<=N69),10,0) -> 0
C88: 11 | D88: A1-B3-A3 | F88: =IF(AND(K60>0,K61>0,K62>=0,K62<=K60,K60<K61,M70>K70,IF(K62=0,K69>M70,K69>M71),L72<=M70,L72<=K69),11,0) -> 0 | H88: 11 | I88: A2-B4-A4 | K88: =IF(AND(L60>0,L61>0,L62>=0,L62<=L60,L60<L61,N70>L70,IF(L62=0,L69>N70,L69>N71),M72<=N70,M72<=L69),11,0) -> 0 | M88: 11 | N88: A1-B3-A3 | P88: =IF(AND(K60>0,K61>0,K62>=0,K62<=K60,K60<K61,M70>K70,IF(K62=0,K69>M70,K69>M71),N72<=M70,N72<=K69),11,0) -> 0 | R88: 11 | S88: A2-B4-A4 | U88: =IF(AND(L60>0,L61>0,L62>=0,L62<=L60,L60<L61,N70>L70,IF(L62=0,L69>N70,L69>N71),K72<=N70,K72<=L69),11,0) -> 0
C89: 12 | D89: A1-B1-E2 | F89: =IF(AND(K60>0,K61>0,K62>0,L72<K70,L72>M69,L72>K71),12,0) -> 0 | H89: 12 | I89: A2-B2-E3 | K89: =IF(AND(L60>0,L61>0,L62>0,M72<L70,M72>N69,M72>L71),12,0) -> 0 | M89: 12 | N89: A1-B1-E4 | P89: =IF(AND(K60>0,K61>0,K62>0,L72<K70,N72>M69,N72>K71),12,0) -> 0 | R89: 12 | S89: A2-B2-E1 | U89: =IF(AND(L60>0,L61>0,L62>0,K72<L70,K72>N69,K72>L71),12,0) -> 0
C90: 13 | D90: A1-E2-A3 | F90: =IF(AND(K60>0,K60<K61,K62>=0,L72<K69,L72<M69,L72>K70,L72>M70),13,0) -> 0 | H90: 13 | I90: A2-E3-A4 | K90: =IF(AND(L60>0,L60<L61,L62>=0,M72<L69,M72<N69,M72>L70,M72>N70),13,0) -> 0 | M90: 13 | N90: A1-E4-A3 | P90: =IF(AND(K60>0,K60<K61,K62>=0,N72<K69,N72<M69,N72>K70,N72>M70),13,0) -> 0 | R90: 13 | S90: A2-E1-A4 | U90: =IF(AND(L60>0,L60<L61,L62>=0,K72<L69,K72<N69,K72>L70,K72>N70),13,0) -> 0
C91: 14 | D91: C3-B3-A3 | F91: =IF(AND(K60>0,K61>0,K62>0,M71>=K69,L72<=M71),14,0) -> 0 | H91: 14 | I91: C4-B4-A4 | K91: =IF(AND(L60>0,L61>0,L62>0,N71>=L69,M72<=N71),14,0) -> 0 | M91: 14 | N91: C3-B3-A3 | P91: =IF(AND(K60>0,K61>0,K62>0,M71>=K69,N72<=M71),14,0) -> 0 | R91: 14 | S91: C4-B4-A4 | U91: =IF(AND(L60>0,L61>0,L62>0,N71>=L69,K72<=N71),14,0) -> 0
C92: 15 | D92: E2-B3-A3 | F92: =IF(AND(K60>0,K61>0,K62>0,L72<M70,L72>K69,L72>M71),15,0) -> 0 | H92: 15 | I92: E3-B4-A4 | K92: =IF(AND(L60>0,L61>0,L62>0,M72<N70,M72>L69,M72>N71),15,0) -> 0 | M92: 15 | N92: E4-B3-A3 | P92: =IF(AND(K60>0,K61>0,K62>0,N72<M70,N72>K69,N72>M71),15,0) -> 0 | R92: 15 | S92: E1-B4-A4 | U92: =IF(AND(L60>0,L61>0,L62>0,K72<N70,K72>L69,K72>N71),15,0) -> 0
C93: 16 | D93: A1-B1-C1-A3 | F93: =IF(AND(K60>0,K61>0,K62>0,K62>K60,K71>=M70,K71<M69,L72<=K71),16,0) -> 0 | H93: 16 | I93: A2-B2-C2-A4 | K93: =IF(AND(L60>0,L61>0,L62>0,L62>L60,L71>=N70,L71<N69,M72<=L71),16,0) -> 0 | M93: 16 | N93: A1-B1-C1-A3 | P93: =IF(AND(K60>0,K61>0,K62>0,K62>K60,K71>=M70,K71<M69,N72<=K71),16,0) -> 0 | R93: 16 | S93: A2-B2-C2-A4 | U93: =IF(AND(L60>0,L61>0,L62>0,L62>L60,L71>=N70,L71<N69,K72<=L71),16,0) -> 0
C94: 17 | D94: A1-B1-B3-A3 | F94: =IF(AND(K60>0,K61>0,K62>0,K62>K60,K62<=K60+K61,K71<M70,M71<K70,L72<=M70,L72<=K70),17,0) -> 0 | H94: 17 | I94: A2-B2-B4-A4 | K94: =IF(AND(L60>0,L61>0,L62>0,L62>L60,L62<=L60+L61,L71<N70,N71<L70,M72<=N70,M72<=L70),17,0) -> 0 | M94: 17 | N94: A1-B1-B3-A3 | P94: =IF(AND(K60>0,K61>0,K62>0,K62>K60,K62<=K60+K61,K71<M70,M71<K70,N72<=M70,N72<=K70),17,0) -> 0 | R94: 17 | S94: A2-B2-B4-A4 | U94: =IF(AND(L60>0,L61>0,L62>0,L62>L60,L62<=L60+L61,L71<N70,N71<L70,K72<=N70,K72<=L70),17,0) -> 0
C95: 18 | D95: A1-C3-B3-A3 | F95: =IF(AND(K60>0,K61>0,K62>0,K62>K60,M71>=K70,M71<K69,L72<=M71),18,0) -> 0 | H95: 18 | I95: A2-C4-B4-A4 | K95: =IF(AND(L60>0,L61>0,L62>0,L62>L60,N71>=L70,N71<L69,M72<=N71),18,0) -> 0 | M95: 18 | N95: A1-C3-B3-A3 | P95: =IF(AND(K60>0,K61>0,K62>0,K62>K60,M71>=K70,M71<K69,N72<=M71),18,0) -> 0 | R95: 18 | S95: A2-C4-B4-A4 | U95: =IF(AND(L60>0,L61>0,L62>0,L62>L60,N71>=L70,N71<L69,K72<=N71),18,0) -> 0
C96: 19 | D96: A1-B1-E2-A3 | F96: =IF(AND(K60>0,K61>0,K62>0,K62>K60,L72<M69,L72>K71,L72>M70,L72<K70),19,0) -> 0 | H96: 19 | I96: A2-B2-E3-A4 | K96: =IF(AND(L60>0,L61>0,L62>0,L62>L60,M72<N69,M72>L71,M72>N70,M72<L70),19,0) -> 0 | M96: 19 | N96: A1-B1-E4-A3 | P96: =IF(AND(K60>0,K61>0,K62>0,K62>K60,N72<M69,N72>K71,N72>M70,N72<K70),19,0) -> 0 | R96: 19 | S96: A2-B2-E1-A4 | U96: =IF(AND(L60>0,L61>0,L62>0,L62>L60,K72<N69,K72>L71,K72>N70,K72<L70),19,0) -> 0
C97: 20 | D97: A1-E2-B3-A3 | F97: =IF(AND(K60>0,K61>0,K62>0,K62>K60,L72<K69,L72>M71,L72>K70,L72<M70),20,0) -> 0 | H97: 20 | I97: A2-E3-B4-A4 | K97: =IF(AND(L60>0,L61>0,L62>0,L62>L60,M72<L69,M72>N71,M72>L70,M72<N70),20,0) -> 0 | M97: 20 | N97: A1-E4-B3-A3 | P97: =IF(AND(K60>0,K61>0,K62>0,K62>K60,N72<K69,N72>M71,N72>K70,N72<M70),20,0) -> 0 | R97: 20 | S97: A2-E1-B4-A4 | U97: =IF(AND(L60>0,L61>0,L62>0,L62>L60,K72<L69,K72>N71,K72>L70,K72<N70),20,0) -> 0
C98: 21 | D98: A1-B1-C1-B3-A3 | F98: =IF(AND(K60>0,K61>0,K62>0,K62>K60+K61,M71<K70,K71<M70,K71>=M71,L72<=K71),21,0) -> 0 | H98: 21 | I98: A2-B2-C2-B4-A4 | K98: =IF(AND(L60>0,L61>0,L62>0,L62>L60+L61,N71<L70,L71<N70,L71>=N71,M72<=L71),21,0) -> 0 | M98: 21 | N98: A1-B1-C1-B3-A3 | P98: =IF(AND(K60>0,K61>0,K62>0,K62>K60+K61,M71<K70,K71<M70,K71>=M71,N72<=K71),21,0) -> 0 | R98: 21 | S98: A2-B2-C2-B4-A4 | U98: =IF(AND(L60>0,L61>0,L62>0,L62>L60+L61,N71<L70,L71<N70,L71>=N71,K72<=L71),21,0) -> 0
C99: 22 | D99: A1-B1-C3-B3-A3 | F99: =IF(AND(K60>0,K61>0,K62>0,K62>K60+K61,M71<K70,K71<M70,K71<M71,L72<=M71),22,0) -> 0 | H99: 22 | I99: A2-B2-C4-B4-A4 | K99: =IF(AND(L60>0,L61>0,L62>0,L62>L60+L61,N71<L70,L71<N70,L71<N71,M72<=N71),22,0) -> 0 | M99: 22 | N99: A1-B1-C3-B3-A3 | P99: =IF(AND(K60>0,K61>0,K62>0,K62>K60+K61,M71<K70,K71<M70,K71<M71,N72<=M71),22,0) -> 0 | R99: 22 | S99: A2-B2-C4-B4-A4 | U99: =IF(AND(L60>0,L61>0,L62>0,L62>L60+L61,N71<L70,L71<N70,L71<N71,K72<=N71),22,0) -> 0
C100: 23 | D100: A1-B1-E2-B3-A3 | F100: =IF(AND(K60>0,K61>0,K62>0,K62>K60+K61,L72<K70,L72<M70,L72>K71,L72>M71),23,0) -> 23 | H100: 23 | I100: A2-B2-E3-B4-A4 | K100: =IF(AND(L60>0,L61>0,L62>0,L62>L60+L61,M72<L70,M72<N70,M72>L71,M72>N71),23,0) -> 0 | M100: 23 | N100: A1-B1-E4-B3-A3 | P100: =IF(AND(K60>0,K61>0,K62>0,K62>K60+K61,N72<K70,N72<M70,N72>K71,N72>M71),23,0) -> 23 | R100: 23 | S100: A2-B2-E1-B4-A4 | U100: =IF(AND(L60>0,L61>0,L62>0,L62>L60+L61,K72<L70,K72<N70,K72>L71,K72>N71),23,0) -> 0
C102: Występujący przypadek | F102: =MAX(F78:F100) -> 23 | H102: Występujący przypadek | K102: =MAX(K78:K100) -> 4 | M102: Występujący przypadek | P102: =MAX(P78:P100) -> 23 | R102: Występujący przypadek | U102: =MAX(U78:U100) -> 4
C104: UWAGA! Na każdej ścianie nie może jednocześnie wystąpić więcej niż jeden przypadek układu pól obciążenia. Zaleca się sprawdzenie, czy w poszczególnych kolumnach występuje tylko jedna wartość różna od zera. Występowanie kilku wartości różnych od zera, będzie świadczyć o błędzie w programie. W takiej sytuacji zaleca się nieznaczną zmianę wymiarów budynku.

Sheet Wyniki graficzne wiatr II
B2: Graficzne przedstawienie wyników obliczeń oddziaływania wiatru
B4: Wiatr II - różne warunki w zależności od kierunku
B6: UWAGA! Wymiary rzutu budynku i szerokości pól ściany nie są pokazywane w skali.
J8: ="Wysokość ze = "&TEXT('Obliczenia wiatr II'!E42,"####0,0##")&" m" -> Wysokość ze = 25,0 m
I11: m | J11: =IF(K102=1,"",IF(K102=2,L60,IF(K102=3,"",IF(AND(K102=4,L69=N69,L60>=L61),"",IF(AND(K102=4,L69<>N69,L60=L61),L61,IF(AND(K102=4,L60>L61,L69>N69),L61,IF(AND(K102=4,L60>L61,L69<N69),L60,IF(K102=5,"",IF(K102=6,"",IF(K102=7,L60,IF(K102=8,L60,IF(K102=9,"",IF(AND(K102=10,L62=0),L60,IF(AND(K102=10,L62>0,L62<L60,L70>=N69,L71<=N69),L62,IF(AND(K102=10,L62>0,L62<L60,L70<N69),L60,IF(AND(K102=10,L62>0,L62=L60),L60,IF(K102=11,L60,IF(K102=12,"",IF(K102=13,L60,IF(K102=14,L60,IF(K102=15,L60,IF(K102=16,L60,IF(K102=17,L60,IF(K102=18,L60,IF(K102=19,L60,IF(K102=20,L60,IF(K102=21,L60,IF(K102=22,L60,IF(K102=23,L60,""))))))))))))))))))))))))))))) -> 5.6 | K11: =IF(K102=1,"",IF(K102=2,"",IF(K102=3,"",IF(K102=4,"",IF(K102=5,"",IF(K102=6,"",IF(K102=7,"",IF(K102=8,"",IF(K102=9,"",IF(K102=10,"",IF(AND(K102=11,L62=0),L61-L60,IF(AND(K102=11,L62>0,L62<L60,N70>=L69,N71<=L69),L61,IF(AND(K102=11,L62>0,L62<L60,N70<L69),L61+L62-L60,IF(AND(K102=11,L62>0,L62=L60),L61,IF(K102=12,"",IF(K102=13,"",IF(K102=14,L61,IF(K102=15,L61,IF(K102=16,"",IF(AND(K102=17,L70>N70),L62-L60,IF(AND(K102=17,N70>=L70),L61,IF(K102=18,L61,IF(K102=19,"",IF(K102=20,L61,IF(K102=21,L61,IF(K102=22,L61,IF(K102=23,L61,""))))))))))))))))))))))))))) ->  | L11: =IF(K102=1,"",IF(K102=2,"",IF(K102=3,"",IF(K102=4,"",IF(K102=5,L61,IF(K102=6,L61+L62,IF(K102=7,L61,IF(K102=8,L61+L62,IF(K102=9,L62,IF(K102=10,"",IF(K102=11,"",IF(K102=12,L62,IF(K102=13,"",IF(K102=14,L62,IF(K102=15,L62,IF(K102=16,L62-L60,IF(K102=17,"",IF(K102=18,L62-L60,IF(K102=19,L62-L60,IF(K102=20,L62-L60,IF(K102=21,L62-(L60+L61),IF(K102=22,L62-(L60+L61),IF(K102=23,L62-(L60+L61),""))))))))))))))))))))))) -> 4.4 | M11: =IF(K102=1,"",IF(K102=2,"",IF(K102=3,"",IF(K102=4,"",IF(K102=5,"",IF(K102=6,"",IF(K102=7,"",IF(K102=8,"",IF(K102=9,L61,IF(AND(K102=10,L62=0),L61-L60,IF(AND(K102=10,L62>0,L62<L60,L70>=N69,L71<=N69),L61,IF(AND(K102=10,L62>0,L62<L60,L70<N69),L61+L62-L60,IF(AND(K102=10,L62>0,L62=L60),L61,IF(K102=11,"",IF(K102=12,L61,IF(K102=13,L61+L62-L60,IF(K102=14,"",IF(K102=15,"",IF(K102=16,L61,IF(AND(K102=17,L70>N70),L61,IF(AND(K102=17,N70>=L70),L62-L60,IF(K102=18,"",IF(K102=19,L61,IF(K102=20,"",IF(K102=21,L61,IF(K102=22,L61,IF(K102=23,L61,""))))))))))))))))))))))))))) ->  | N11: =IF(K102=1,L60,IF(K102=2,"",IF(K102=3,L60+L61+L62,IF(AND(K102=4,L69=N69,L60>=L61),L60+L61,IF(AND(K102=4,L69<>N69,L60=L61),L60,IF(AND(K102=4,L60>L61,L69>N69),L60,IF(AND(K102=4,L60>L61,L69<N69),L61,IF(K102=5,L60,IF(K102=6,L60,IF(K102=7,"",IF(K102=8,"",IF(K102=9,L60,IF(K102=10,L60,IF(AND(K102=11,L62=0),L60,IF(AND(K102=11,L62>0,L62<L60,N70>=L69,N71<=L69),L62,IF(AND(K102=11,L62>0,L62<L60,N70<L69),L60,IF(AND(K102=11,L62>0,L62=L60),L60,IF(K102=12,L60,IF(K102=13,L60,IF(K102=14,"",IF(K102=15,"",IF(K102=16,L60,IF(K102=17,L60,IF(K102=18,L60,IF(K102=19,L60,IF(K102=20,L60,IF(K102=21,L60,IF(K102=22,L60,IF(K102=23,L60,""))))))))))))))))))))))))))))) -> 
I15: kN/m2 | J15: =IF(OR(K102=2,K102=4,K102=7,K102=8,K102=10,K102=11,K102=13,K102=14,K102=15,K102=16,K102=17,K102=18,K102=19,K102=20,K102=21,K102=22,K102=23),N69,IF(K102=1,L69,IF(OR(K102=3,K102=6,K102=12),M72,IF(K102=5,L70,IF(K102=9,L71,""))))) -> 2.1393 | K15: =IF(OR(K102=11,K102=14,K102=15,K102=17,K102=18,K102=20,K102=21,K102=22,K102=23),N70,IF(K102=1,L69,IF(OR(K102=2,K102=4,K102=7,K102=8),N69,IF(OR(K102=3,K102=6,K102=12,K102=13,K102=19),M72,IF(OR(K102=5,K102=10),L70,IF(OR(K102=9,K102=16),L71,"")))))) -> 2.1393 | L15: =IF(K102=1,L69,IF(AND(K102=4,L69>=N69),L69,IF(K102=2,N69,IF(AND(K102=4,N69>L69),N69,IF(OR(K102=3,K102=6,K102=8,K102=12,K102=13,K102=15,K102=19,K102=20,K102=23),M72,IF(OR(K102=5,K102=10),L70,IF(AND(K102=17,L70>N70),L70,IF(AND(K102=17,N70>=L70),N70,IF(OR(K102=7,K102=11),N70,IF(OR(K102=9,K102=16,K102=21),L71,IF(OR(K102=14,K102=18,K102=22),N71,""))))))))))) -> 1.6808 | M15: =IF(OR(K102=9,K102=10,K102=12,K102=16,K102=17,K102=19,K102=21,K102=22,K102=23),L70,IF(K102=2,N69,IF(OR(K102=3,K102=8,K102=13,K102=15,K102=20),M72,IF(OR(K102=1,K102=4,K102=5,K102=6),L69,IF(OR(K102=7,K102=11),N70,IF(OR(K102=14,K102=18),N71,"")))))) -> 1.6808 | N15: =IF(OR(K102=1,K102=4,K102=5,K102=6,K102=9,K102=10,K102=11,K102=12,K102=13,K102=16,K102=17,K102=18,K102=19,K102=20,K102=21,K102=22,K102=23),L69,IF(K102=2,N69,IF(OR(K102=3,K102=8,K102=15),M72,IF(K102=7,N70,IF(K102=14,N71,""))))) -> 1.6808
G19: m | H19: kN/m2 | O19: kN/m2 | Q19: m
E20: ="Wysokość ze = "&TEXT('Obliczenia wiatr II'!D42,"####0,0##")&" m" -> Wysokość ze = 25,0 m | F20: =TEXT(K60+K61+K62,"####0,0##")&" m" -> 28,0 m | G20: =IF(F102=1,K60,IF(F102=2,"",IF(F102=3,K60+K61+K62,IF(AND(F102=4,K69=M69,K60>=K61),K60+K61,IF(AND(F102=4,K69<>M69,K60=K61),K60,IF(AND(F102=4,K60>K61,K69>M69),K60,IF(AND(F102=4,K60>K61,K69<M69),K61,IF(F102=5,K60,IF(F102=6,K60,IF(F102=7,"",IF(F102=8,"",IF(F102=9,K60,IF(F102=10,K60,IF(AND(F102=11,K62=0),K60,IF(AND(F102=11,K62>0,K62<K60,M70>=K69,M71<=K69),K62,IF(AND(F102=11,K62>0,K62<K60,M70<K69),K60,IF(AND(F102=11,K62>0,K62=K60),K60,IF(F102=12,K60,IF(F102=13,K60,IF(F102=14,"",IF(F102=15,"",IF(F102=16,K60,IF(F102=17,K60,IF(F102=18,K60,IF(F102=19,K60,IF(F102=20,K60,IF(F102=21,K60,IF(F102=22,K60,IF(F102=23,K60,""))))))))))))))))))))))))))))) -> 2.0 | H20: =IF(OR(F102=1,F102=4,F102=5,F102=6,F102=9,F102=10,F102=11,F102=12,F102=13,F102=16,F102=17,F102=18,F102=19,F102=20,F102=21,F102=22,F102=23),K69,IF(F102=2,M69,IF(OR(F102=3,F102=8,F102=15),L72,IF(F102=7,M70,IF(F102=14,M71,""))))) -> 2.1393 | K20: ="Przyjęta oś budynku, odchylona o kąt "&TEXT('Obliczenia wiatr II'!C11,"####0,0##")&"° od kierunku N" -> Przyjęta oś budynku, odchylona o kąt 10,0° od kierunku N | L20: Ściana I | O20: =IF(OR(P102=1,P102=4,P102=5,P102=6,P102=9,P102=10,P102=11,P102=12,P102=13,P102=16,P102=17,P102=18,P102=19,P102=20,P102=21,P102=22,P102=23),K69,IF(P102=2,M69,IF(OR(P102=3,P102=8,P102=15),N72,IF(P102=7,M70,IF(P102=14,M71,""))))) -> 2.1393 | Q20: =IF(P102=1,K60,IF(P102=2,"",IF(P102=3,K60+K61+K62,IF(AND(P102=4,K69=M69,K60>=K61),K60+K61,IF(AND(P102=4,K69<>M69,K60=K61),K60,IF(AND(P102=4,K60>K61,K69>M69),K60,IF(AND(P102=4,K60>K61,K69<M69),K61,IF(P102=5,K60,IF(P102=6,K60,IF(P102=7,"",IF(P102=8,"",IF(P102=9,K60,IF(P102=10,K60,IF(AND(P102=11,K62=0),K60,IF(AND(P102=11,K62>0,K62<K60,M70>=K69,M71<=K69),K62,IF(AND(P102=11,K62>0,K62<K60,M70<K69),K60,IF(AND(P102=11,K62>0,K62=K60),K60,IF(P102=12,K60,IF(P102=13,K60,IF(P102=14,"",IF(P102=15,"",IF(P102=16,K60,IF(P102=17,K60,IF(P102=18,K60,IF(P102=19,K60,IF(P102=20,K60,IF(P102=21,K60,IF(P102=22,K60,IF(P102=23,K60,""))))))))))))))))))))))))))))) -> 2.0 | R20: ="Wysokość ze = "&TEXT('Obliczenia wiatr II'!D42,"####0,0##")&" m" -> Wysokość ze = 25,0 m
G24: =IF(F102=1,"",IF(F102=2,"",IF(F102=3,"",IF(F102=4,"",IF(F102=5,"",IF(F102=6,"",IF(F102=7,"",IF(F102=8,"",IF(F102=9,K61,IF(AND(F102=10,K62=0),K61-K60,IF(AND(F102=10,K62>0,K62<K60,K70>=M69,K71<=M69),K61,IF(AND(F102=10,K62>0,K62<K60,K70<M69),K61+K62-K60,IF(AND(F102=10,K62>0,K62=K60),K61,IF(F102=11,"",IF(F102=12,K61,IF(F102=13,K61+K62-K60,IF(F102=14,"",IF(F102=15,"",IF(F102=16,K61,IF(AND(F102=17,K70>M70),K61,IF(AND(F102=17,M70>=K70),K62-K60,IF(F102=18,"",IF(F102=19,K61,IF(F102=20,"",IF(F102=21,K61,IF(F102=22,K61,IF(F102=23,K61,""))))))))))))))))))))))))))) -> 8.0 | H24: =IF(OR(F102=9,F102=10,F102=12,F102=16,F102=17,F102=19,F102=21,F102=22,F102=23),K70,IF(F102=2,M69,IF(OR(F102=3,F102=8,F102=13,F102=15,F102=20),L72,IF(OR(F102=1,F102=4,F102=5,F102=6),K69,IF(OR(F102=7,F102=11),M70,IF(OR(F102=14,F102=18),M71,"")))))) -> 1.6808 | O24: =IF(OR(P102=9,P102=10,P102=12,P102=16,P102=17,P102=19,P102=21,P102=22,P102=23),K70,IF(P102=2,M69,IF(OR(P102=3,P102=8,P102=13,P102=15,P102=20),N72,IF(OR(P102=1,P102=4,P102=5,P102=6),K69,IF(OR(P102=7,P102=11),M70,IF(OR(P102=14,P102=18),M71,"")))))) -> 1.6808 | Q24: =IF(P102=1,"",IF(P102=2,"",IF(P102=3,"",IF(P102=4,"",IF(P102=5,"",IF(P102=6,"",IF(P102=7,"",IF(P102=8,"",IF(P102=9,K61,IF(AND(P102=10,K62=0),K61-K60,IF(AND(P102=10,K62>0,K62<K60,K70>=M69,K71<=M69),K61,IF(AND(P102=10,K62>0,K62<K60,K70<M69),K61+K62-K60,IF(AND(P102=10,K62>0,K62=K60),K61,IF(P102=11,"",IF(P102=12,K61,IF(P102=13,K61+K62-K60,IF(P102=14,"",IF(P102=15,"",IF(P102=16,K61,IF(AND(P102=17,K70>M70),K61,IF(AND(P102=17,M70>=K70),K62-K60,IF(P102=18,"",IF(P102=19,K61,IF(P102=20,"",IF(P102=21,K61,IF(P102=22,K61,IF(P102=23,K61,""))))))))))))))))))))))))))) -> 8.0
G28: =IF(F102=1,"",IF(F102=2,"",IF(F102=3,"",IF(F102=4,"",IF(F102=5,K61,IF(F102=6,K61+K62,IF(F102=7,K61,IF(F102=8,K61+K62,IF(F102=9,K62,IF(F102=10,"",IF(F102=11,"",IF(F102=12,K62,IF(F102=13,"",IF(F102=14,K62,IF(F102=15,K62,IF(F102=16,K62-K60,IF(F102=17,"",IF(F102=18,K62-K60,IF(F102=19,K62-K60,IF(F102=20,K62-K60,IF(F102=21,K62-(K60+K61),IF(F102=22,K62-(K60+K61),IF(F102=23,K62-(K60+K61),""))))))))))))))))))))))) -> 8.0 | H28: =IF(F102=1,K69,IF(AND(F102=4,K69>=M69),K69,IF(F102=2,M69,IF(AND(F102=4,M69>K69),M69,IF(OR(F102=3,F102=6,F102=8,F102=12,F102=13,F102=15,F102=19,F102=20,F102=23),L72,IF(OR(F102=5,F102=10),K70,IF(AND(F102=17,K70>M70),K70,IF(AND(F102=17,M70>=K70),M70,IF(OR(F102=7,F102=11),M70,IF(OR(F102=9,F102=16,F102=21),K71,IF(OR(F102=14,F102=18,F102=22),M71,""))))))))))) -> 0.7640 | O28: =IF(P102=1,K69,IF(AND(P102=4,K69>=M69),K69,IF(P102=2,M69,IF(AND(P102=4,M69>K69),M69,IF(OR(P102=3,P102=6,P102=8,P102=12,P102=13,P102=15,P102=19,P102=20,P102=23),N72,IF(OR(P102=5,P102=10),K70,IF(AND(P102=17,K70>M70),K70,IF(AND(P102=17,M70>=K70),M70,IF(OR(P102=7,P102=11),M70,IF(OR(P102=9,P102=16,P102=21),K71,IF(OR(P102=14,P102=18,P102=22),M71,""))))))))))) -> 0.8786 | Q28: =IF(P102=1,"",IF(P102=2,"",IF(P102=3,"",IF(P102=4,"",IF(P102=5,K61,IF(P102=6,K61+K62,IF(P102=7,K61,IF(P102=8,K61+K62,IF(P102=9,K62,IF(P102=10,"",IF(P102=11,"",IF(P102=12,K62,IF(P102=13,"",IF(P102=14,K62,IF(P102=15,K62,IF(P102=16,K62-K60,IF(P102=17,"",IF(P102=18,K62-K60,IF(P102=19,K62-K60,IF(P102=20,K62-K60,IF(P102=21,K62-(K60+K61),IF(P102=22,K62-(K60+K61),IF(P102=23,K62-(K60+K61),""))))))))))))))))))))))) -> 16.0
J29: Ściana IV | L29: → | N29: Ściana II
G32: =IF(F102=1,"",IF(F102=2,"",IF(F102=3,"",IF(F102=4,"",IF(F102=5,"",IF(F102=6,"",IF(F102=7,"",IF(F102=8,"",IF(F102=9,"",IF(F102=10,"",IF(AND(F102=11,K62=0),K61-K60,IF(AND(F102=11,K62>0,K62<K60,M70>=K69,M71<=K69),K61,IF(AND(F102=11,K62>0,K62<K60,M70<K69),K61+K62-K60,IF(AND(F102=11,K62>0,K62=K60),K61,IF(F102=12,"",IF(F102=13,"",IF(F102=14,K61,IF(F102=15,K61,IF(F102=16,"",IF(AND(F102=17,K70>M70),K62-K60,IF(AND(F102=17,M70>=K70),K61,IF(F102=18,K61,IF(F102=19,"",IF(F102=20,K61,IF(F102=21,K61,IF(F102=22,K61,IF(F102=23,K61,""))))))))))))))))))))))))))) -> 8.0 | H32: =IF(OR(F102=11,F102=14,F102=15,F102=17,F102=18,F102=20,F102=21,F102=22,F102=23),M70,IF(F102=1,K69,IF(OR(F102=2,F102=4,F102=7,F102=8),M69,IF(OR(F102=3,F102=6,F102=12,F102=13,F102=19),L72,IF(OR(F102=5,F102=10),K70,IF(OR(F102=9,F102=16),K71,"")))))) -> 0.8236 | O32: =IF(OR(P102=11,P102=14,P102=15,P102=17,P102=18,P102=20,P102=21,P102=22,P102=23),M70,IF(P102=1,K69,IF(OR(P102=2,P102=4,P102=7,P102=8),M69,IF(OR(P102=3,P102=6,P102=12,P102=13,P102=19),N72,IF(OR(P102=5,P102=10),K70,IF(OR(P102=9,P102=16),K71,"")))))) -> 0.8786 | Q32: =IF(P102=1,"",IF(P102=2,"",IF(P102=3,"",IF(P102=4,"",IF(P102=5,"",IF(P102=6,"",IF(P102=7,"",IF(P102=8,"",IF(P102=9,"",IF(P102=10,"",IF(AND(P102=11,K62=0),K61-K60,IF(AND(P102=11,K62>0,K62<K60,M70>=K69,M71<=K69),K61,IF(AND(P102=11,K62>0,K62<K60,M70<K69),K61+K62-K60,IF(AND(P102=11,K62>0,K62=K60),K61,IF(P102=12,"",IF(P102=13,"",IF(P102=14,K61,IF(P102=15,K61,IF(P102=16,"",IF(AND(P102=17,K70>M70),K62-K60,IF(AND(P102=17,M70>=K70),K61,IF(P102=18,K61,IF(P102=19,"",IF(P102=20,K61,IF(P102=21,K61,IF(P102=22,K61,IF(P102=23,K61,""))))))))))))))))))))))))))) -> 
G36: =IF(F102=1,"",IF(F102=2,K60,IF(F102=3,"",IF(AND(F102=4,K69=M69,K60>=K61),"",IF(AND(F102=4,K69<>M69,K60=K61),K61,IF(AND(F102=4,K60>K61,K69>M69),K61,IF(AND(F102=4,K60>K61,K69<M69),K60,IF(F102=5,"",IF(F102=6,"",IF(F102=7,K60,IF(F102=8,K60,IF(F102=9,"",IF(AND(F102=10,K62=0),K60,IF(AND(F102=10,K62>0,K62<K60,K70>=M69,K71<=M69),K62,IF(AND(F102=10,K62>0,K62<K60,K70<M69),K60,IF(AND(F102=10,K62>0,K62=K60),K60,IF(F102=11,K60,IF(F102=12,"",IF(F102=13,K60,IF(F102=14,K60,IF(F102=15,K60,IF(F102=16,K60,IF(F102=17,K60,IF(F102=18,K60,IF(F102=19,K60,IF(F102=20,K60,IF(F102=21,K60,IF(F102=22,K60,IF(F102=23,K60,""))))))))))))))))))))))))))))) -> 2.0 | H36: =IF(OR(F102=2,F102=4,F102=7,F102=8,F102=10,F102=11,F102=13,F102=14,F102=15,F102=16,F102=17,F102=18,F102=19,F102=20,F102=21,F102=22,F102=23),M69,IF(F102=1,K69,IF(OR(F102=3,F102=6,F102=12),L72,IF(F102=5,K70,IF(F102=9,K71,""))))) -> 1.0482 | O36: =IF(OR(P102=2,P102=4,P102=7,P102=8,P102=10,P102=11,P102=13,P102=14,P102=15,P102=16,P102=17,P102=18,P102=19,P102=20,P102=21,P102=22,P102=23),M69,IF(P102=1,K69,IF(OR(P102=3,P102=6,P102=12),N72,IF(P102=5,K70,IF(P102=9,K71,""))))) -> 1.0482 | Q36: =IF(P102=1,"",IF(P102=2,K60,IF(P102=3,"",IF(AND(P102=4,K69=M69,K60>=K61),"",IF(AND(P102=4,K69<>M69,K60=K61),K61,IF(AND(P102=4,K60>K61,K69>M69),K61,IF(AND(P102=4,K60>K61,K69<M69),K60,IF(P102=5,"",IF(P102=6,"",IF(P102=7,K60,IF(P102=8,K60,IF(P102=9,"",IF(AND(P102=10,K62=0),K60,IF(AND(P102=10,K62>0,K62<K60,K70>=M69,K71<=M69),K62,IF(AND(P102=10,K62>0,K62<K60,K70<M69),K60,IF(AND(P102=10,K62>0,K62=K60),K60,IF(P102=11,K60,IF(P102=12,"",IF(P102=13,K60,IF(P102=14,K60,IF(P102=15,K60,IF(P102=16,K60,IF(P102=17,K60,IF(P102=18,K60,IF(P102=19,K60,IF(P102=20,K60,IF(P102=21,K60,IF(P102=22,K60,IF(P102=23,K60,""))))))))))))))))))))))))))))) -> 2.0
L39: Ściana III
I40: kN/m2 | J40: =IF(OR(U102=2,U102=4,U102=7,U102=8,U102=10,U102=11,U102=13,U102=14,U102=15,U102=16,U102=17,U102=18,U102=19,U102=20,U102=21,U102=22,U102=23),N69,IF(U102=1,L69,IF(OR(U102=3,U102=6,U102=12),K72,IF(U102=5,L70,IF(U102=9,L71,""))))) -> 2.1393 | K40: =IF(OR(U102=11,U102=14,U102=15,U102=17,U102=18,U102=20,U102=21,U102=22,U102=23),N70,IF(U102=1,L69,IF(OR(U102=2,U102=4,U102=7,U102=8),N69,IF(OR(U102=3,U102=6,U102=12,U102=13,U102=19),K72,IF(OR(U102=5,U102=10),L70,IF(OR(U102=9,U102=16),L71,"")))))) -> 2.1393 | L40: =IF(U102=1,L69,IF(AND(U102=4,L69>=N69),L69,IF(U102=2,N69,IF(AND(U102=4,N69>L69),N69,IF(OR(U102=3,U102=6,U102=8,U102=12,U102=13,U102=15,U102=19,U102=20,U102=23),K72,IF(OR(U102=5,U102=10),L70,IF(AND(U102=17,L70>N70),L70,IF(AND(U102=17,N70>=L70),N70,IF(OR(U102=7,U102=11),N70,IF(OR(U102=9,U102=16,U102=21),L71,IF(OR(U102=14,U102=18,U102=22),N71,""))))))))))) -> 1.6808 | M40: =IF(OR(U102=9,U102=10,U102=12,U102=16,U102=17,U102=19,U102=21,U102=22,U102=23),L70,IF(U102=2,N69,IF(OR(U102=3,U102=8,U102=13,U102=15,U102=20),K72,IF(OR(U102=1,U102=4,U102=5,U102=6),L69,IF(OR(U102=7,U102=11),N70,IF(OR(U102=14,U102=18),N71,"")))))) -> 1.6808 | N40: =IF(OR(U102=1,U102=4,U102=5,U102=6,U102=9,U102=10,U102=11,U102=12,U102=13,U102=16,U102=17,U102=18,U102=19,U102=20,U102=21,U102=22,U102=23),L69,IF(U102=2,N69,IF(OR(U102=3,U102=8,U102=15),K72,IF(U102=7,N70,IF(U102=14,N71,""))))) -> 1.6808
I45: m | J45: =IF(U102=1,"",IF(U102=2,L60,IF(U102=3,"",IF(AND(U102=4,L69=N69,L60>=L61),"",IF(AND(U102=4,L69<>N69,L60=L61),L61,IF(AND(U102=4,L60>L61,L69>N69),L61,IF(AND(U102=4,L60>L61,L69<N69),L60,IF(U102=5,"",IF(U102=6,"",IF(U102=7,L60,IF(U102=8,L60,IF(U102=9,"",IF(AND(U102=10,L62=0),L60,IF(AND(U102=10,L62>0,L62<L60,L70>=N69,L71<=N69),L62,IF(AND(U102=10,L62>0,L62<L60,L70<N69),L60,IF(AND(U102=10,L62>0,L62=L60),L60,IF(U102=11,L60,IF(U102=12,"",IF(U102=13,L60,IF(U102=14,L60,IF(U102=15,L60,IF(U102=16,L60,IF(U102=17,L60,IF(U102=18,L60,IF(U102=19,L60,IF(U102=20,L60,IF(U102=21,L60,IF(U102=22,L60,IF(U102=23,L60,""))))))))))))))))))))))))))))) -> 5.6 | K45: =IF(U102=1,"",IF(U102=2,"",IF(U102=3,"",IF(U102=4,"",IF(U102=5,"",IF(U102=6,"",IF(U102=7,"",IF(U102=8,"",IF(U102=9,"",IF(U102=10,"",IF(AND(U102=11,L62=0),L61-L60,IF(AND(U102=11,L62>0,L62<L60,N70>=L69,N71<=L69),L61,IF(AND(U102=11,L62>0,L62<L60,N70<L69),L61+L62-L60,IF(AND(U102=11,L62>0,L62=L60),L61,IF(U102=12,"",IF(U102=13,"",IF(U102=14,L61,IF(U102=15,L61,IF(U102=16,"",IF(AND(U102=17,L70>N70),L62-L60,IF(AND(U102=17,N70>=L70),L61,IF(U102=18,L61,IF(U102=19,"",IF(U102=20,L61,IF(U102=21,L61,IF(U102=22,L61,IF(U102=23,L61,""))))))))))))))))))))))))))) ->  | L45: =IF(U102=1,"",IF(U102=2,"",IF(U102=3,"",IF(U102=4,"",IF(U102=5,L61,IF(U102=6,L61+L62,IF(U102=7,L61,IF(U102=8,L61+L62,IF(U102=9,L62,IF(U102=10,"",IF(U102=11,"",IF(U102=12,L62,IF(U102=13,"",IF(U102=14,L62,IF(U102=15,L62,IF(U102=16,L62-L60,IF(U102=17,"",IF(U102=18,L62-L60,IF(U102=19,L62-L60,IF(U102=20,L62-L60,IF(U102=21,L62-(L60+L61),IF(U102=22,L62-(L60+L61),IF(U102=23,L62-(L60+L61),""))))))))))))))))))))))) -> 4.4 | M45: =IF(U102=1,"",IF(U102=2,"",IF(U102=3,"",IF(U102=4,"",IF(U102=5,"",IF(U102=6,"",IF(U102=7,"",IF(U102=8,"",IF(U102=9,L61,IF(AND(U102=10,L62=0),L61-L60,IF(AND(U102=10,L62>0,L62<L60,L70>=N69,L71<=N69),L61,IF(AND(U102=10,L62>0,L62<L60,L70<N69),L61+L62-L60,IF(AND(U102=10,L62>0,L62=L60),L61,IF(U102=11,"",IF(U102=12,L61,IF(U102=13,L61+L62-L60,IF(U102=14,"",IF(U102=15,"",IF(U102=16,L61,IF(AND(U102=17,L70>N70),L61,IF(AND(U102=17,N70>=L70),L62-L60,IF(U102=18,"",IF(U102=19,L61,IF(U102=20,"",IF(U102=21,L61,IF(U102=22,L61,IF(U102=23,L61,""))))))))))))))))))))))))))) ->  | N45: =IF(U102=1,L60,IF(U102=2,"",IF(U102=3,L60+L61+L62,IF(AND(U102=4,L69=N69,L60>=L61),L60+L61,IF(AND(U102=4,L69<>N69,L60=L61),L60,IF(AND(U102=4,L60>L61,L69>N69),L60,IF(AND(U102=4,L60>L61,L69<N69),L61,IF(U102=5,L60,IF(U102=6,L60,IF(U102=7,"",IF(U102=8,"",IF(U102=9,L60,IF(U102=10,L60,IF(AND(U102=11,L62=0),L60,IF(AND(U102=11,L62>0,L62<L60,N70>=L69,N71<=L69),L62,IF(AND(U102=11,L62>0,L62<L60,N70<L69),L60,IF(AND(U102=11,L62>0,L62=L60),L60,IF(U102=12,L60,IF(U102=13,L60,IF(U102=14,"",IF(U102=15,"",IF(U102=16,L60,IF(U102=17,L60,IF(U102=18,L60,IF(U102=19,L60,IF(U102=20,L60,IF(U102=21,L60,IF(U102=22,L60,IF(U102=23,L60,""))))))))))))))))))))))))))))) -> 
J49: =TEXT(N60+N61+N62,"####0,0##")&" m" -> 10,0 m
J52: ="Wysokość ze = "&TEXT('Obliczenia wiatr II'!E42,"####0,0##")&" m" -> Wysokość ze = 25,0 m
J57: Tablica szerokości pól ściany
K59: Ściana IV | L59: Ściana I | M59: Ściana II | N59: Ściana III
J60: a | K60: ='Obliczenia wiatr II'!D35 -> 2 | L60: ='Obliczenia wiatr II'!E35 -> 5.6 | M60: ='Obliczenia wiatr II'!F35 -> 2 | N60: ='Obliczenia wiatr II'!G35 -> 5.6
J61: b | K61: ='Obliczenia wiatr II'!D36 -> 8 | L61: ='Obliczenia wiatr II'!E36 -> 4.4 | M61: ='Obliczenia wiatr II'!F36 -> 8 | N61: ='Obliczenia wiatr II'!G36 -> 4.4
J62: c | K62: ='Obliczenia wiatr II'!D37 -> 18.0 | L62: ='Obliczenia wiatr II'!E37 -> 0.0 | M62: ='Obliczenia wiatr II'!F37 -> 18.0 | N62: ='Obliczenia wiatr II'!G37 -> 0.0
J64: e (prost) | K64: ='Obliczenia wiatr II'!D29 -> 10.0 | L64: ='Obliczenia wiatr II'!E29 -> 28.0 | M64: ='Obliczenia wiatr II'!F29 -> 10.0 | N64: ='Obliczenia wiatr II'!G29 -> 28.0
J66: Tablica obciążenia wiatrem
K68: Wiatr 1 | L68: Wiatr 2 | M68: Wiatr 3 | N68: Wiatr 4
J69: A | K69: ='Obliczenia wiatr II'!D93 -> 2.1393 | L69: ='Obliczenia wiatr II'!E93 -> 1.0482 | M69: ='Obliczenia wiatr II'!F93 -> 1.0482 | N69: ='Obliczenia wiatr II'!G93 -> 2.1393
J70: B | K70: ='Obliczenia wiatr II'!D94 -> 1.6808 | L70: ='Obliczenia wiatr II'!E94 -> 0.8236 | M70: ='Obliczenia wiatr II'!F94 -> 0.8236 | N70: ='Obliczenia wiatr II'!G94 -> 1.6808
J71: C | K71: ='Obliczenia wiatr II'!D95 -> 0.7640 | L71: ='Obliczenia wiatr II'!E95 -> 0.0000 | M71: ='Obliczenia wiatr II'!F95 -> 0.3744 | N71: ='Obliczenia wiatr II'!G95 -> 0.0000
J72: E | K72: ='Obliczenia wiatr II'!D96 -> 0.7204 | L72: ='Obliczenia wiatr II'!E96 -> 0.4305 | M72: ='Obliczenia wiatr II'!F96 -> 0.3530 | N72: ='Obliczenia wiatr II'!G96 -> 0.8786
C74: Układy pól obciążenia na ścianach
C76: ŚCIANA IV | H76: ŚCIANA I | M76: ŚCIANA II | R76: ŚCIANA III
C78: 1 | D78: A1 | F78: =IF(AND(K60>0,K61=0,K62=0,K69>=M69,L72<=K69),1,0) -> 0 | H78: 1 | I78: A2 | K78: =IF(AND(L60>0,L61=0,L62=0,L69>=N69,M72<=L69),1,0) -> 0 | M78: 1 | N78: A1 | P78: =IF(AND(K60>0,K61=0,K62=0,K69>=M69,N72<=K69),1,0) -> 0 | R78: 1 | S78: A2 | U78: =IF(AND(L60>0,L61=0,L62=0,L69>=N69,K72<=L69),1,0) -> 0
C79: 2 | D79: A3 | F79: =IF(AND(K60>0,K61=0,K62=0,M69>K69,L72<=M69),2,0) -> 0 | H79: 2 | I79: A4 | K79: =IF(AND(L60>0,L61=0,L62=0,N69>L69,M72<=N69),2,0) -> 0 | M79: 2 | N79: A3 | P79: =IF(AND(K60>0,K61=0,K62=0,M69>K69,N72<=M69),2,0) -> 0 | R79: 2 | S79: A4 | U79: =IF(AND(L60>0,L61=0,L62=0,N69>L69,K72<=N69),2,0) -> 0
C80: 3 | D80: E2 | F80: =IF(AND(K60>0,K61>=0,K62>=0,L72>K69,L72>M69),3,0) -> 0 | H80: 3 | I80: E3 | K80: =IF(AND(L60>0,L61>=0,L62>=0,M72>L69,M72>N69),3,0) -> 0 | M80: 3 | N80: E4 | P80: =IF(AND(K60>0,K61>=0,K62>=0,L72>K69,N72>M69),3,0) -> 0 | R80: 3 | S80: E1 | U80: =IF(AND(L60>0,L61>=0,L62>=0,K72>L69,K72>N69),3,0) -> 0
C81: 4 | D81: A1-A3 | F81: =IF(AND(K60>0,K61>0,K62=0,K60>=K61,K69>=M70,M69>=K70,L72<=K69,L72<=M69),4,0) -> 0 | H81: 4 | I81: A2-A4 | K81: =IF(AND(L60>0,L61>0,L62=0,L60>=L61,L69>=N70,N69>=L70,M72<=L69,M72<=N69),4,0) -> 0 | M81: 4 | N81: A1-A3 | P81: =IF(AND(K60>0,K61>0,K62=0,K60>=K61,K69>=M70,M69>=K70,N72<=K69,N72<=M69),4,0) -> 0 | R81: 4 | S81: A2-A4 | U81: =IF(AND(L60>0,L61>0,L62=0,L60>=L61,L69>=N70,N69>=L70,K72<=L69,K72<=N69),4,0) -> 0
C82: 5 | D82: A1-B1 | F82: =IF(AND(K60>0,K61>0,K62=0,K70>=M69,L72<=K70),5,0) -> 0 | H82: 5 | I82: A2-B2 | K82: =IF(AND(L60>0,L61>0,L62=0,L70>=N69,M72<=L70),5,0) -> 0 | M82: 5 | N82: A1-B1 | P82: =IF(AND(K60>0,K61>0,K62=0,K70>=M69,N72<=K70),5,0) -> 0 | R82: 5 | S82: A2-B2 | U82: =IF(AND(L60>0,L61>0,L62=0,L70>=N69,K72<=L70),5,0) -> 0
C83: 6 | D83: A1-E2 | F83: =IF(AND(K60>0,K61>0,K62>=0,L72<K69,L72>K70,L72>M69),6,0) -> 0 | H83: 6 | I83: A2-E3 | K83: =IF(AND(L60>0,L61>0,L62=0,M72<L69,M72>L70,M72>N69),6,0) -> 0 | M83: 6 | N83: A1-E4 | P83: =IF(AND(K60>0,K61>0,K62>=0,N72<K69,N72>K70,N72>M69),6,0) -> 0 | R83: 6 | S83: A2-E1 | U83: =IF(AND(L60>0,L61>0,L62=0,K72<L69,K72>L70,K72>N69),6,0) -> 0
C84: 7 | D84: B3-A3 | F84: =IF(AND(K60>0,K61>0,K62=0,M70>=K69,L72<=M70),7,0) -> 0 | H84: 7 | I84: B4-A4 | K84: =IF(AND(L60>0,L61>0,L62=0,N70>=L69,M72<=N70),7,0) -> 7 | M84: 7 | N84: B3-A3 | P84: =IF(AND(K60>0,K61>0,K62=0,M70>=K69,N72<=M70),7,0) -> 0 | R84: 7 | S84: B4-A4 | U84: =IF(AND(L60>0,L61>0,L62=0,N70>=L69,K72<=N70),7,0) -> 7
C85: 8 | D85: E2-A3 | F85: =IF(AND(K60>0,K61>0,K62>=0,L72<M69,L72>M70,L72>K69),8,0) -> 0 | H85: 8 | I85: E3-A4 | K85: =IF(AND(L60>0,L61>0,L62>=0,M72<N69,M72>N70,M72>L69),8,0) -> 0 | M85: 8 | N85: E4-A3 | P85: =IF(AND(K60>0,K61>0,K62>=0,N72<M69,N72>M70,N72>K69),8,0) -> 0 | R85: 8 | S85: E1-A4 | U85: =IF(AND(L60>0,L61>0,L62>=0,K72<N69,K72>N70,K72>L69),8,0) -> 0
C86: 9 | D86: A1-B1-C1 | F86: =IF(AND(K60>0,K61>0,K62>0,K71>=M69,L72<=K71),9,0) -> 0 | H86: 9 | I86: A2-B2-C2 | K86: =IF(AND(L60>0,L61>0,L62>0,L71>=N69,M72<=L71),9,0) -> 0 | M86: 9 | N86: A1-B1-C1 | P86: =IF(AND(K60>0,K61>0,K62>0,K71>=M69,N72<=K71),9,0) -> 0 | R86: 9 | S86: A2-B2-C2 | U86: =IF(AND(L60>0,L61>0,L62>0,L71>=N69,K72<=L71),9,0) -> 0
C87: 10 | D87: A1-B1-A3 | F87: =IF(AND(K60>0,K61>0,K62>=0,K62<=K60,K60<K61,K70>=M70,IF(K62=0,M69>K70,M69>K71),L72<=K70,L72<=M69),10,0) -> 0 | H87: 10 | I87: A2-B2-A4 | K87: =IF(AND(L60>0,L61>0,L62>=0,L62<=L60,L60<L61,L70>=N70,IF(L62=0,N69>L70,N69>L71),M72<=L70,M72<=N69),10,0) -> 0 | M87: 10 | N87: A1-B1-A3 | P87: =IF(AND(K60>0,K61>0,K62>=0,K62<=K60,K60<K61,K70>=M70,IF(K62=0,M69>K70,M69>K71),N72<=K70,N72<=M69),10,0) -> 0 | R87: 10 | S87: A2-B2-A4 | U87: =IF(AND(L60>0,L61>0,L62>=0,L62<=L60,L60<L61,L70>=N70,IF(L62=0,N69>L70,N69>L71),K72<=L70,K72<=N69),10,0) -> 0
C88: 11 | D88: A1-B3-A3 | F88: =IF(AND(K60>0,K61>0,K62>=0,K62<=K60,K60<K61,M70>K70,IF(K62=0,K69>M70,K69>M71),L72<=M70,L72<=K69),11,0) -> 0 | H88: 11 | I88: A2-B4-A4 | K88: =IF(AND(L60>0,L61>0,L62>=0,L62<=L60,L60<L61,N70>L70,IF(L62=0,L69>N70,L69>N71),M72<=N70,M72<=L69),11,0) -> 0 | M88: 11 | N88: A1-B3-A3 | P88: =IF(AND(K60>0,K61>0,K62>=0,K62<=K60,K60<K61,M70>K70,IF(K62=0,K69>M70,K69>M71),N72<=M70,N72<=K69),11,0) -> 0 | R88: 11 | S88: A2-B4-A4 | U88: =IF(AND(L60>0,L61>0,L62>=0,L62<=L60,L60<L61,N70>L70,IF(L62=0,L69>N70,L69>N71),K72<=N70,K72<=L69),11,0) -> 0
C89: 12 | D89: A1-B1-E2 | F89: =IF(AND(K60>0,K61>0,K62>0,L72<K70,L72>M69,L72>K71),12,0) -> 0 | H89: 12 | I89: A2-B2-E3 | K89: =IF(AND(L60>0,L61>0,L62>0,M72<L70,M72>N69,M72>L71),12,0) -> 0 | M89: 12 | N89: A1-B1-E4 | P89: =IF(AND(K60>0,K61>0,K62>0,L72<K70,N72>M69,N72>K71),12,0) -> 0 | R89: 12 | S89: A2-B2-E1 | U89: =IF(AND(L60>0,L61>0,L62>0,K72<L70,K72>N69,K72>L71),12,0) -> 0
C90: 13 | D90: A1-E2-A3 | F90: =IF(AND(K60>0,K60<K61,K62>=0,L72<K69,L72<M69,L72>K70,L72>M70),13,0) -> 0 | H90: 13 | I90: A2-E3-A4 | K90: =IF(AND(L60>0,L60<L61,L62>=0,M72<L69,M72<N69,M72>L70,M72>N70),13,0) -> 0 | M90: 13 | N90: A1-E4-A3 | P90: =IF(AND(K60>0,K60<K61,K62>=0,N72<K69,N72<M69,N72>K70,N72>M70),13,0) -> 0 | R90: 13 | S90: A2-E1-A4 | U90: =IF(AND(L60>0,L60<L61,L62>=0,K72<L69,K72<N69,K72>L70,K72>N70),13,0) -> 0
C91: 14 | D91: C3-B3-A3 | F91: =IF(AND(K60>0,K61>0,K62>0,M71>=K69,L72<=M71),14,0) -> 0 | H91: 14 | I91: C4-B4-A4 | K91: =IF(AND(L60>0,L61>0,L62>0,N71>=L69,M72<=N71),14,0) -> 0 | M91: 14 | N91: C3-B3-A3 | P91: =IF(AND(K60>0,K61>0,K62>0,M71>=K69,N72<=M71),14,0) -> 0 | R91: 14 | S91: C4-B4-A4 | U91: =IF(AND(L60>0,L61>0,L62>0,N71>=L69,K72<=N71),14,0) -> 0
C92: 15 | D92: E2-B3-A3 | F92: =IF(AND(K60>0,K61>0,K62>0,L72<M70,L72>K69,L72>M71),15,0) -> 0 | H92: 15 | I92: E3-B4-A4 | K92: =IF(AND(L60>0,L61>0,L62>0,M72<N70,M72>L69,M72>N71),15,0) -> 0 | M92: 15 | N92: E4-B3-A3 | P92: =IF(AND(K60>0,K61>0,K62>0,N72<M70,N72>K69,N72>M71),15,0) -> 0 | R92: 15 | S92: E1-B4-A4 | U92: =IF(AND(L60>0,L61>0,L62>0,K72<N70,K72>L69,K72>N71),15,0) -> 0
C93: 16 | D93: A1-B1-C1-A3 | F93: =IF(AND(K60>0,K61>0,K62>0,K62>K60,K71>=M70,K71<M69,L72<=K71),16,0) -> 0 | H93: 16 | I93: A2-B2-C2-A4 | K93: =IF(AND(L60>0,L61>0,L62>0,L62>L60,L71>=N70,L71<N69,M72<=L71),16,0) -> 0 | M93: 16 | N93: A1-B1-C1-A3 | P93: =IF(AND(K60>0,K61>0,K62>0,K62>K60,K71>=M70,K71<M69,N72<=K71),16,0) -> 0 | R93: 16 | S93: A2-B2-C2-A4 | U93: =IF(AND(L60>0,L61>0,L62>0,L62>L60,L71>=N70,L71<N69,K72<=L71),16,0) -> 0
C94: 17 | D94: A1-B1-B3-A3 | F94: =IF(AND(K60>0,K61>0,K62>0,K62>K60,K62<=K60+K61,K71<M70,M71<K70,L72<=M70,L72<=K70),17,0) -> 0 | H94: 17 | I94: A2-B2-B4-A4 | K94: =IF(AND(L60>0,L61>0,L62>0,L62>L60,L62<=L60+L61,L71<N70,N71<L70,M72<=N70,M72<=L70),17,0) -> 0 | M94: 17 | N94: A1-B1-B3-A3 | P94: =IF(AND(K60>0,K61>0,K62>0,K62>K60,K62<=K60+K61,K71<M70,M71<K70,N72<=M70,N72<=K70),17,0) -> 0 | R94: 17 | S94: A2-B2-B4-A4 | U94: =IF(AND(L60>0,L61>0,L62>0,L62>L60,L62<=L60+L61,L71<N70,N71<L70,K72<=N70,K72<=L70),17,0) -> 0
C95: 18 | D95: A1-C3-B3-A3 | F95: =IF(AND(K60>0,K61>0,K62>0,K62>K60,M71>=K70,M71<K69,L72<=M71),18,0) -> 0 | H95: 18 | I95: A2-C4-B4-A4 | K95: =IF(AND(L60>0,L61>0,L62>0,L62>L60,N71>=L70,N71<L69,M72<=N71),18,0) -> 0 | M95: 18 | N95: A1-C3-B3-A3 | P95: =IF(AND(K60>0,K61>0,K62>0,K62>K60,M71>=K70,M71<K69,N72<=M71),18,0) -> 0 | R95: 18 | S95: A2-C4-B4-A4 | U95: =IF(AND(L60>0,L61>0,L62>0,L62>L60,N71>=L70,N71<L69,K72<=N71),18,0) -> 0
C96: 19 | D96: A1-B1-E2-A3 | F96: =IF(AND(K60>0,K61>0,K62>0,K62>K60,L72<M69,L72>K71,L72>M70,L72<K70),19,0) -> 0 | H96: 19 | I96: A2-B2-E3-A4 | K96: =IF(AND(L60>0,L61>0,L62>0,L62>L60,M72<N69,M72>L71,M72>N70,M72<L70),19,0) -> 0 | M96: 19 | N96: A1-B1-E4-A3 | P96: =IF(AND(K60>0,K61>0,K62>0,K62>K60,N72<M69,N72>K71,N72>M70,N72<K70),19,0) -> 19 | R96: 19 | S96: A2-B2-E1-A4 | U96: =IF(AND(L60>0,L61>0,L62>0,L62>L60,K72<N69,K72>L71,K72>N70,K72<L70),19,0) -> 0
C97: 20 | D97: A1-E2-B3-A3 | F97: =IF(AND(K60>0,K61>0,K62>0,K62>K60,L72<K69,L72>M71,L72>K70,L72<M70),20,0) -> 0 | H97: 20 | I97: A2-E3-B4-A4 | K97: =IF(AND(L60>0,L61>0,L62>0,L62>L60,M72<L69,M72>N71,M72>L70,M72<N70),20,0) -> 0 | M97: 20 | N97: A1-E4-B3-A3 | P97: =IF(AND(K60>0,K61>0,K62>0,K62>K60,N72<K69,N72>M71,N72>K70,N72<M70),20,0) -> 0 | R97: 20 | S97: A2-E1-B4-A4 | U97: =IF(AND(L60>0,L61>0,L62>0,L62>L60,K72<L69,K72>N71,K72>L70,K72<N70),20,0) -> 0
C98: 21 | D98: A1-B1-C1-B3-A3 | F98: =IF(AND(K60>0,K61>0,K62>0,K62>K60+K61,M71<K70,K71<M70,K71>=M71,L72<=K71),21,0) -> 21 | H98: 21 | I98: A2-B2-C2-B4-A4 | K98: =IF(AND(L60>0,L61>0,L62>0,L62>L60+L61,N71<L70,L71<N70,L71>=N71,M72<=L71),21,0) -> 0 | M98: 21 | N98: A1-B1-C1-B3-A3 | P98: =IF(AND(K60>0,K61>0,K62>0,K62>K60+K61,M71<K70,K71<M70,K71>=M71,N72<=K71),21,0) -> 0 | R98: 21 | S98: A2-B2-C2-B4-A4 | U98: =IF(AND(L60>0,L61>0,L62>0,L62>L60+L61,N71<L70,L71<N70,L71>=N71,K72<=L71),21,0) -> 0
C99: 22 | D99: A1-B1-C3-B3-A3 | F99: =IF(AND(K60>0,K61>0,K62>0,K62>K60+K61,M71<K70,K71<M70,K71<M71,L72<=M71),22,0) -> 0 | H99: 22 | I99: A2-B2-C4-B4-A4 | K99: =IF(AND(L60>0,L61>0,L62>0,L62>L60+L61,N71<L70,L71<N70,L71<N71,M72<=N71),22,0) -> 0 | M99: 22 | N99: A1-B1-C3-B3-A3 | P99: =IF(AND(K60>0,K61>0,K62>0,K62>K60+K61,M71<K70,K71<M70,K71<M71,N72<=M71),22,0) -> 0 | R99: 22 | S99: A2-B2-C4-B4-A4 | U99: =IF(AND(L60>0,L61>0,L62>0,L62>L60+L61,N71<L70,L71<N70,L71<N71,K72<=N71),22,0) -> 0
C100: 23 | D100: A1-B1-E2-B3-A3 | F100: =IF(AND(K60>0,K61>0,K62>0,K62>K60+K61,L72<K70,L72<M70,L72>K71,L72>M71),23,0) -> 0 | H100: 23 | I100: A2-B2-E3-B4-A4 | K100: =IF(AND(L60>0,L61>0,L62>0,L62>L60+L61,M72<L70,M72<N70,M72>L71,M72>N71),23,0) -> 0 | M100: 23 | N100: A1-B1-E4-B3-A3 | P100: =IF(AND(K60>0,K61>0,K62>0,K62>K60+K61,N72<K70,N72<M70,N72>K71,N72>M71),23,0) -> 0 | R100: 23 | S100: A2-B2-E1-B4-A4 | U100: =IF(AND(L60>0,L61>0,L62>0,L62>L60+L61,K72<L70,K72<N70,K72>L71,K72>N71),23,0) -> 0
C102: Występujący przypadek | F102: =MAX(F78:F100) -> 21 | H102: Występujący przypadek | K102: =MAX(K78:K100) -> 7 | M102: Występujący przypadek | P102: =MAX(P78:P100) -> 19 | R102: Występujący przypadek | U102: =MAX(U78:U100) -> 7
C104: UWAGA! Na każdej ścianie nie może jednocześnie wystąpić więcej niż jeden przypadek układu pól obciążenia. Zaleca się sprawdzenie, czy w poszczególnych kolumnach występuje tylko jedna wartość różna od zera. Występowanie kilku wartości różnych od zera, będzie świadczyć o błędzie w programie. W takiej sytuacji zaleca się nieznaczną zmianę wymiarów budynku.

Sheet Łączniki wiatr I
B2: Określenie liczby łączników mechanicznych ze względu na nośność, przy oddziaływaniu wiatru I
B4: Wiatr I -takie same warunki ze wszystkich kierunków
B6: UWAGA! Wymiary rzutu budynku i szerokości pól ściany nie są pokazywane w skali.
I8: Układ łączników | O8: T
I9: Minimalna liczba łączników, szt./m² | O9: 5.0
I10: Dopuszczalne niedoszacowanie nośności, % | O10: 3.0
J12: ="Wysokość ze = "&TEXT('Obliczenia wiatr I'!D46,"####0,0##")&" m" -> Wysokość ze = 25,0 m
I15: m | J15: ='Wyniki graficzne wiatr I'!J11 ->  | K15: ='Wyniki graficzne wiatr I'!K11 ->  | L15: ='Wyniki graficzne wiatr I'!L11 ->  | M15: ='Wyniki graficzne wiatr I'!M11 ->  | N15: ='Wyniki graficzne wiatr I'!N11 -> 10.0
I19: Schemat | J19: =IF(O8="T",INDEX(F84:F100,MATCH(TRUE,E84:E100>=J63,0)),IF(O8="W",INDEX(M84:M100,MATCH(TRUE,L84:L100>=J63,0)),IF(O8="H",INDEX(T84:T103,MATCH(TRUE,S84:S103>=J63,0)),0))) -> 5 | K19: =IF(O8="T",INDEX(F84:F100,MATCH(TRUE,E84:E100>=K63,0)),IF(O8="W",INDEX(M84:M100,MATCH(TRUE,L84:L100>=K63,0)),IF(O8="H",INDEX(T84:T103,MATCH(TRUE,S84:S103>=K63,0)),0))) -> 5 | L19: =IF(O8="T",INDEX(F84:F100,MATCH(TRUE,E84:E100>=L63,0)),IF(O8="W",INDEX(M84:M100,MATCH(TRUE,L84:L100>=L63,0)),IF(O8="H",INDEX(T84:T103,MATCH(TRUE,S84:S103>=L63,0)),0))) -> 5 | M19: =IF(O8="T",INDEX(F84:F100,MATCH(TRUE,E84:E100>=M63,0)),IF(O8="W",INDEX(M84:M100,MATCH(TRUE,L84:L100>=M63,0)),IF(O8="H",INDEX(T84:T103,MATCH(TRUE,S84:S103>=M63,0)),0))) -> 5 | N19: =IF(O8="T",INDEX(F84:F100,MATCH(TRUE,E84:E100>=N63,0)),IF(O8="W",INDEX(M84:M100,MATCH(TRUE,L84:L100>=N63,0)),IF(O8="H",INDEX(T84:T103,MATCH(TRUE,S84:S103>=N63,0)),0))) -> 5 | O19: Schemat
I21: Łączniki szt./m² | J21: =IF(O8="T",INDEX(G84:G100,MATCH(TRUE,E84:E100>=J63,0)),IF(O8="W",INDEX(N84:N100,MATCH(TRUE,L84:L100>=J63,0)),IF(O8="H",INDEX(U84:U103,MATCH(TRUE,S84:S103>=J63,0)),0))) -> 8.0 | K21: =IF(O8="T",INDEX(G84:G100,MATCH(TRUE,E84:E100>=K63,0)),IF(O8="W",INDEX(N84:N100,MATCH(TRUE,L84:L100>=K63,0)),IF(O8="H",INDEX(U84:U103,MATCH(TRUE,S84:S103>=K63,0)),0))) -> 8.0 | L21: =IF(O8="T",INDEX(G84:G100,MATCH(TRUE,E84:E100>=L63,0)),IF(O8="W",INDEX(N84:N100,MATCH(TRUE,L84:L100>=L63,0)),IF(O8="H",INDEX(U84:U103,MATCH(TRUE,S84:S103>=L63,0)),0))) -> 8.0 | M21: =IF(O8="T",INDEX(G84:G100,MATCH(TRUE,E84:E100>=M63,0)),IF(O8="W",INDEX(N84:N100,MATCH(TRUE,L84:L100>=M63,0)),IF(O8="H",INDEX(U84:U103,MATCH(TRUE,S84:S103>=M63,0)),0))) -> 8.0 | N21: =IF(O8="T",INDEX(G84:G100,MATCH(TRUE,E84:E100>=N63,0)),IF(O8="W",INDEX(N84:N100,MATCH(TRUE,L84:L100>=N63,0)),IF(O8="H",INDEX(U84:U103,MATCH(TRUE,S84:S103>=N63,0)),0))) -> 8.0 | O21: Łączniki szt./m²
G23: m | H23: Schemat | P23: Schemat | Q23: m
E24: ="Wysokość ze = "&TEXT('Obliczenia wiatr I'!C46,"####0,0##")&" m" -> Wysokość ze = 25,0 m | F24: =TEXT(K75+K76+K77,"####0,0##")&" m" -> 28,0 m | G24: ='Wyniki graficzne wiatr I'!G20 -> 2.0 | H24: =IF(O8="T",INDEX(F84:F100,MATCH(TRUE,E84:E100>=I64,0)),IF(O8="W",INDEX(M84:M100,MATCH(TRUE,L84:L100>=I64,0)),IF(O8="H",INDEX(T84:T103,MATCH(TRUE,S84:S103>=I64,0)),0))) -> 5 | I24: =IF(O8="T",INDEX(G84:G100,MATCH(TRUE,E84:E100>=I64,0)),IF(O8="W",INDEX(N84:N100,MATCH(TRUE,L84:L100>=I64,0)),IF(O8="H",INDEX(U84:U103,MATCH(TRUE,S84:S103>=I64,0)),0))) -> 8.0 | L24: Ściana I | O24: =IF(O8="T",INDEX(G84:G100,MATCH(TRUE,E84:E100>=O64,0)),IF(O8="W",INDEX(N84:N100,MATCH(TRUE,L84:L100>=O64,0)),IF(O8="H",INDEX(U84:U103,MATCH(TRUE,S84:S103>=O64,0)),0))) -> 8.0 | P24: =IF(O8="T",INDEX(F84:F100,MATCH(TRUE,E84:E100>=O64,0)),IF(O8="W",INDEX(M84:M100,MATCH(TRUE,L84:L100>=O64,0)),IF(O8="H",INDEX(T84:T103,MATCH(TRUE,S84:S103>=O64,0)),0))) -> 5 | Q24: ='Wyniki graficzne wiatr I'!Q20 -> 2.0 | R24: ="Wysokość ze = "&TEXT('Obliczenia wiatr I'!C46,"####0,0##")&" m" -> Wysokość ze = 25,0 m
G28: ='Wyniki graficzne wiatr I'!G24 -> 8.0 | H28: =IF(O8="T",INDEX(F84:F100,MATCH(TRUE,E84:E100>=I65,0)),IF(O8="W",INDEX(M84:M100,MATCH(TRUE,L84:L100>=I65,0)),IF(O8="H",INDEX(T84:T103,MATCH(TRUE,S84:S103>=I65,0)),0))) -> 3 | I28: =IF(O8="T",INDEX(G84:G100,MATCH(TRUE,E84:E100>=I65,0)),IF(O8="W",INDEX(N84:N100,MATCH(TRUE,L84:L100>=I65,0)),IF(O8="H",INDEX(U84:U103,MATCH(TRUE,S84:S103>=I65,0)),0))) -> 6.0 | O28: =IF(O8="T",INDEX(G84:G100,MATCH(TRUE,E84:E100>=O65,0)),IF(O8="W",INDEX(N84:N100,MATCH(TRUE,L84:L100>=O65,0)),IF(O8="H",INDEX(U84:U103,MATCH(TRUE,S84:S103>=O65,0)),0))) -> 6.0 | P28: =IF(O8="T",INDEX(F84:F100,MATCH(TRUE,E84:E100>=O65,0)),IF(O8="W",INDEX(M84:M100,MATCH(TRUE,L84:L100>=O65,0)),IF(O8="H",INDEX(T84:T103,MATCH(TRUE,S84:S103>=O65,0)),0))) -> 3 | Q28: ='Wyniki graficzne wiatr I'!Q24 -> 8.0
G32: ='Wyniki graficzne wiatr I'!G28 -> 8.0 | H32: =IF(O8="T",INDEX(F84:F100,MATCH(TRUE,E84:E100>=I66,0)),IF(O8="W",INDEX(M84:M100,MATCH(TRUE,L84:L100>=I66,0)),IF(O8="H",INDEX(T84:T103,MATCH(TRUE,S84:S103>=I66,0)),0))) -> 2 | I32: =IF(O8="T",INDEX(G84:G100,MATCH(TRUE,E84:E100>=I66,0)),IF(O8="W",INDEX(N84:N100,MATCH(TRUE,L84:L100>=I66,0)),IF(O8="H",INDEX(U84:U103,MATCH(TRUE,S84:S103>=I66,0)),0))) -> 5.0 | O32: =IF(O8="T",INDEX(G84:G100,MATCH(TRUE,E84:E100>=O66,0)),IF(O8="W",INDEX(N84:N100,MATCH(TRUE,L84:L100>=O66,0)),IF(O8="H",INDEX(U84:U103,MATCH(TRUE,S84:S103>=O66,0)),0))) -> 5.0 | P32: =IF(O8="T",INDEX(F84:F100,MATCH(TRUE,E84:E100>=O66,0)),IF(O8="W",INDEX(M84:M100,MATCH(TRUE,L84:L100>=O66,0)),IF(O8="H",INDEX(T84:T103,MATCH(TRUE,S84:S103>=O66,0)),0))) -> 2 | Q32: ='Wyniki graficzne wiatr I'!Q28 -> 8.0
J33: Ściana IV | N33: Ściana II
G36: ='Wyniki graficzne wiatr I'!G32 -> 8.0 | H36: =IF(O8="T",INDEX(F84:F100,MATCH(TRUE,E84:E100>=I67,0)),IF(O8="W",INDEX(M84:M100,MATCH(TRUE,L84:L100>=I67,0)),IF(O8="H",INDEX(T84:T103,MATCH(TRUE,S84:S103>=I67,0)),0))) -> 3 | I36: =IF(O8="T",INDEX(G84:G100,MATCH(TRUE,E84:E100>=I67,0)),IF(O8="W",INDEX(N84:N100,MATCH(TRUE,L84:L100>=I67,0)),IF(O8="H",INDEX(U84:U103,MATCH(TRUE,S84:S103>=I67,0)),0))) -> 6.0 | O36: =IF(O8="T",INDEX(G84:G100,MATCH(TRUE,E84:E100>=O67,0)),IF(O8="W",INDEX(N84:N100,MATCH(TRUE,L84:L100>=O67,0)),IF(O8="H",INDEX(U84:U103,MATCH(TRUE,S84:S103>=O67,0)),0))) -> 6.0 | P36: =IF(O8="T",INDEX(F84:F100,MATCH(TRUE,E84:E100>=O67,0)),IF(O8="W",INDEX(M84:M100,MATCH(TRUE,L84:L100>=O67,0)),IF(O8="H",INDEX(T84:T103,MATCH(TRUE,S84:S103>=O67,0)),0))) -> 3 | Q36: ='Wyniki graficzne wiatr I'!Q32 -> 8.0
G40: ='Wyniki graficzne wiatr I'!G36 -> 2.0 | H40: =IF(O8="T",INDEX(F84:F100,MATCH(TRUE,E84:E100>=I68,0)),IF(O8="W",INDEX(M84:M100,MATCH(TRUE,L84:L100>=I68,0)),IF(O8="H",INDEX(T84:T103,MATCH(TRUE,S84:S103>=I68,0)),0))) -> 5 | I40: =IF(O8="T",INDEX(G84:G100,MATCH(TRUE,E84:E100>=I68,0)),IF(O8="W",INDEX(N84:N100,MATCH(TRUE,L84:L100>=I68,0)),IF(O8="H",INDEX(U84:U103,MATCH(TRUE,S84:S103>=I68,0)),0))) -> 8.0 | O40: =IF(O8="T",INDEX(G84:G100,MATCH(TRUE,E84:E100>=O68,0)),IF(O8="W",INDEX(N84:N100,MATCH(TRUE,L84:L100>=O68,0)),IF(O8="H",INDEX(U84:U103,MATCH(TRUE,S84:S103>=O68,0)),0))) -> 8.0 | P40: =IF(O8="T",INDEX(F84:F100,MATCH(TRUE,E84:E100>=O68,0)),IF(O8="W",INDEX(M84:M100,MATCH(TRUE,L84:L100>=O68,0)),IF(O8="H",INDEX(T84:T103,MATCH(TRUE,S84:S103>=O68,0)),0))) -> 5 | Q40: ='Wyniki graficzne wiatr I'!Q36 -> 2.0
L43: Ściana III
I44: Łączniki szt./m² | J44: =IF(O8="T",INDEX(G84:G100,MATCH(TRUE,E84:E100>=J69,0)),IF(O8="W",INDEX(N84:N100,MATCH(TRUE,L84:L100>=J69,0)),IF(O8="H",INDEX(U84:U103,MATCH(TRUE,S84:S103>=J69,0)),0))) -> 8.0 | K44: =IF(O8="T",INDEX(G84:G100,MATCH(TRUE,E84:E100>=K69,0)),IF(O8="W",INDEX(N84:N100,MATCH(TRUE,L84:L100>=K69,0)),IF(O8="H",INDEX(U84:U103,MATCH(TRUE,S84:S103>=K69,0)),0))) -> 8.0 | L44: =IF(O8="T",INDEX(G84:G100,MATCH(TRUE,E84:E100>=L69,0)),IF(O8="W",INDEX(N84:N100,MATCH(TRUE,L84:L100>=L69,0)),IF(O8="H",INDEX(U84:U103,MATCH(TRUE,S84:S103>=L69,0)),0))) -> 8.0 | M44: =IF(O8="T",INDEX(G84:G100,MATCH(TRUE,E84:E100>=M69,0)),IF(O8="W",INDEX(N84:N100,MATCH(TRUE,L84:L100>=M69,0)),IF(O8="H",INDEX(U84:U103,MATCH(TRUE,S84:S103>=M69,0)),0))) -> 8.0 | N44: =IF(O8="T",INDEX(G84:G100,MATCH(TRUE,E84:E100>=N69,0)),IF(O8="W",INDEX(N84:N100,MATCH(TRUE,L84:L100>=N69,0)),IF(O8="H",INDEX(U84:U103,MATCH(TRUE,S84:S103>=N69,0)),0))) -> 8.0
I47: Schemat | J47: =IF(O8="T",INDEX(F84:F100,MATCH(TRUE,E84:E100>=J69,0)),IF(O8="W",INDEX(M84:M100,MATCH(TRUE,L84:L100>=J69,0)),IF(O8="H",INDEX(T84:T103,MATCH(TRUE,S84:S103>=J69,0)),0))) -> 5 | K47: =IF(O8="T",INDEX(F84:F100,MATCH(TRUE,E84:E100>=K69,0)),IF(O8="W",INDEX(M84:M100,MATCH(TRUE,L84:L100>=K69,0)),IF(O8="H",INDEX(T84:T103,MATCH(TRUE,S84:S103>=K69,0)),0))) -> 5 | L47: =IF(O8="T",INDEX(F84:F100,MATCH(TRUE,E84:E100>=L69,0)),IF(O8="W",INDEX(M84:M100,MATCH(TRUE,L84:L100>=L69,0)),IF(O8="H",INDEX(T84:T103,MATCH(TRUE,S84:S103>=L69,0)),0))) -> 5 | M47: =IF(O8="T",INDEX(F84:F100,MATCH(TRUE,E84:E100>=M69,0)),IF(O8="W",INDEX(M84:M100,MATCH(TRUE,L84:L100>=M69,0)),IF(O8="H",INDEX(T84:T103,MATCH(TRUE,S84:S103>=M69,0)),0))) -> 5 | N47: =IF(O8="T",INDEX(F84:F100,MATCH(TRUE,E84:E100>=N69,0)),IF(O8="W",INDEX(M84:M100,MATCH(TRUE,L84:L100>=N69,0)),IF(O8="H",INDEX(T84:T103,MATCH(TRUE,S84:S103>=N69,0)),0))) -> 5
I49: m | J49: ='Wyniki graficzne wiatr I'!J45 ->  | K49: ='Wyniki graficzne wiatr I'!K45 ->  | L49: ='Wyniki graficzne wiatr I'!L45 ->  | M49: ='Wyniki graficzne wiatr I'!M45 ->  | N49: ='Wyniki graficzne wiatr I'!N45 -> 10.0
J53: =TEXT(N75+N76+N77,"####0,0##")&" m" -> 10,0 m
J56: ="Wysokość ze = "&TEXT('Obliczenia wiatr I'!D46,"####0,0##")&" m" -> Wysokość ze = 25,0 m
J61: Wymagana nośność
J63: =(1-O10/100)*'Wyniki graficzne wiatr I'!J15 -> 2.0751 | K63: =(1-O10/100)*'Wyniki graficzne wiatr I'!K15 -> 2.0751 | L63: =(1-O10/100)*'Wyniki graficzne wiatr I'!L15 -> 2.0751 | M63: =(1-O10/100)*'Wyniki graficzne wiatr I'!M15 -> 2.0751 | N63: =(1-O10/100)*'Wyniki graficzne wiatr I'!N15 -> 2.0751
I64: =(1-O10/100)*'Wyniki graficzne wiatr I'!H20 -> 2.0751 | O64: =(1-O10/100)*'Wyniki graficzne wiatr I'!O20 -> 2.0751
I65: =(1-O10/100)*'Wyniki graficzne wiatr I'!H24 -> 1.6304 | O65: =(1-O10/100)*'Wyniki graficzne wiatr I'!O24 -> 1.6304
I66: =(1-O10/100)*'Wyniki graficzne wiatr I'!H28 -> 0.8523 | O66: =(1-O10/100)*'Wyniki graficzne wiatr I'!O28 -> 0.8523
I67: =(1-O10/100)*'Wyniki graficzne wiatr I'!H32 -> 1.6304 | O67: =(1-O10/100)*'Wyniki graficzne wiatr I'!O32 -> 1.6304
I68: =(1-O10/100)*'Wyniki graficzne wiatr I'!H36 -> 2.0751 | O68: =(1-O10/100)*'Wyniki graficzne wiatr I'!O36 -> 2.0751
J69: =(1-O10/100)*'Wyniki graficzne wiatr I'!J40 -> 2.0751 | K69: =(1-O10/100)*'Wyniki graficzne wiatr I'!K40 -> 2.0751 | L69: =(1-O10/100)*'Wyniki graficzne wiatr I'!L40 -> 2.0751 | M69: =(1-O10/100)*'Wyniki graficzne wiatr I'!M40 -> 2.0751 | N69: =(1-O10/100)*'Wyniki graficzne wiatr I'!N40 -> 2.0751
J72: Tablica szerokości pól ściany
K74: Ściana IV | L74: Ściana I | M74: Ściana II | N74: Ściana III
J75: a | K75: ='Obliczenia wiatr I'!C31 -> 2 | L75: ='Obliczenia wiatr I'!D31 -> 5.6 | M75: ='Obliczenia wiatr I'!C31 -> 2 | N75: ='Obliczenia wiatr I'!D31 -> 5.6
J76: b | K76: ='Obliczenia wiatr I'!C32 -> 8 | L76: ='Obliczenia wiatr I'!D32 -> 4.4 | M76: ='Obliczenia wiatr I'!C32 -> 8 | N76: ='Obliczenia wiatr I'!D32 -> 4.4
J77: c | K77: ='Obliczenia wiatr I'!C33 -> 18.0 | L77: ='Obliczenia wiatr I'!D33 -> 0.0 | M77: ='Obliczenia wiatr I'!C33 -> 18.0 | N77: ='Obliczenia wiatr I'!D33 -> 0.0
J79: e (prost) | K79: ='Obliczenia wiatr I'!C25 -> 10.0 | L79: ='Obliczenia wiatr I'!D25 -> 28.0 | M79: ='Obliczenia wiatr I'!C25 -> 10.0 | N79: ='Obliczenia wiatr I'!D25 -> 28.0
B81: T | I81: W | P81: H
B83: Schemat | C83: Łączniki | D83: Nośność | E83: Nośność | F83: Schemat | G83: Łączniki | I83: Schemat | J83: Łączniki | K83: Nośność | L83: Nośność | M83: Schemat | N83: Łączniki | P83: Schemat | Q83: Łączniki | R83: Nośność | S83: Nośność | T83: Schemat | U83: Łączniki
B84: 1 | C84: ='Obliczenia nośności T'!$D$13 -> 4.00 | D84: =IF($C$84<$O$9,0,'Obliczenia nośności T'!$D$29) -> 0.00 | E84: =SMALL(D84:D100,1) -> 0.00 | F84: =INDEX(B84:B100,MATCH(E84,D84:D100,)) -> 1 | G84: =INDEX(C84:C100,MATCH(E84,D84:D100,)) -> 4.0 | I84: 1 | J84: ='Obliczenia nośności W'!$D$13 -> 3.33 | K84: =IF($J$84<$O$9,0,'Obliczenia nośności W'!$D$29) -> 0.00 | L84: =SMALL(K84:K100,1) -> 0.00 | M84: =INDEX(I84:I100,MATCH(L84,K84:K100,)) -> 1 | N84: =INDEX(J84:J100,MATCH(L84,K84:K100,)) -> 3.3 | P84: 1 | Q84: ='Obliczenia nośności H'!$D$27 -> 4.17 | R84: =IF($Q$84<$O$9,0,'Obliczenia nośności H'!$D$43) -> 0.00 | S84: =SMALL(R84:R103,1) -> 0.00 | T84: =INDEX(P84:P103,MATCH(S84,R84:R103,)) -> 1 | U84: =INDEX(Q84:Q103,MATCH(S84,R84:R103,)) -> 4.2
B85: 2 | C85: ='Obliczenia nośności T'!$E$13 -> 5.00 | D85: =IF($C$85<$O$9,0,'Obliczenia nośności T'!$E$29) -> 1.36 | E85: =SMALL(D84:D100,2) -> 1.36 | F85: =INDEX(B84:B100,MATCH(E85,D84:D100,)) -> 2 | G85: =INDEX(C84:C100,MATCH(E85,D84:D100,)) -> 5.0 | I85: 2 | J85: ='Obliczenia nośności W'!$E$13 -> 4.17 | K85: =IF($J$85<$O$9,0,'Obliczenia nośności W'!$E$29) -> 0.00 | L85: =SMALL(K84:K100,2) -> 0.00 | M85: =INDEX(I84:I100,MATCH(L85,K84:K100,)) -> 1 | N85: =INDEX(J84:J100,MATCH(L85,K84:K100,)) -> 3.3 | P85: 2 | Q85: ='Obliczenia nośności H'!$E$27 -> 5.21 | R85: =IF($Q$85<$O$9,0,'Obliczenia nośności H'!$E$43) -> 1.48 | S85: =SMALL(R84:R103,2) -> 0.00 | T85: =INDEX(P84:P103,MATCH(S85,R84:R103,)) -> 1 | U85: =INDEX(Q84:Q103,MATCH(S85,R84:R103,)) -> 4.2
B86: 3 | C86: ='Obliczenia nośności T'!$F$13 -> 6.00 | D86: =IF($C$86<$O$9,0,'Obliczenia nośności T'!$F$29) -> 1.68 | E86: =SMALL(D84:D100,3) -> 1.68 | F86: =INDEX(B84:B100,MATCH(E86,D84:D100,)) -> 3 | G86: =INDEX(C84:C100,MATCH(E86,D84:D100,)) -> 6.0 | I86: 3 | J86: ='Obliczenia nośności W'!$F$13 -> 5.00 | K86: =IF($J$86<$O$9,0,'Obliczenia nośności W'!$F$29) -> 0.93 | L86: =SMALL(K84:K100,3) -> 0.00 | M86: =INDEX(I84:I100,MATCH(L86,K84:K100,)) -> 1 | N86: =INDEX(J84:J100,MATCH(L86,K84:K100,)) -> 3.3 | P86: 3 | Q86: ='Obliczenia nośności H'!$F$27 -> 6.25 | R86: =IF($Q$86<$O$9,0,'Obliczenia nośności H'!$F$43) -> 1.78 | S86: =SMALL(R84:R103,3) -> 1.48 | T86: =INDEX(P84:P103,MATCH(S86,R84:R103,)) -> 2 | U86: =INDEX(Q84:Q103,MATCH(S86,R84:R103,)) -> 5.2
B87: 4 | C87: ='Obliczenia nośności T'!$G$13 -> 7.00 | D87: =IF($C$87<$O$9,0,'Obliczenia nośności T'!$G$29) -> 2.00 | E87: =SMALL(D84:D100,4) -> 2.00 | F87: =INDEX(B84:B100,MATCH(E87,D84:D100,)) -> 4 | G87: =INDEX(C84:C100,MATCH(E87,D84:D100,)) -> 7.0 | I87: 4 | J87: ='Obliczenia nośności W'!$G$13 -> 5.83 | K87: =IF($J$87<$O$9,0,'Obliczenia nośności W'!$G$29) -> 1.08 | L87: =SMALL(K84:K100,4) -> 0.93 | M87: =INDEX(I84:I100,MATCH(L87,K84:K100,)) -> 3 | N87: =INDEX(J84:J100,MATCH(L87,K84:K100,)) -> 5.0 | P87: 4 | Q87: ='Obliczenia nośności H'!$G$27 -> 7.29 | R87: =IF($Q$87<$O$9,0,'Obliczenia nośności H'!$G$43) -> 2.08 | S87: =SMALL(R84:R103,4) -> 1.78 | T87: =INDEX(P84:P103,MATCH(S87,R84:R103,)) -> 14 | U87: =INDEX(Q84:Q103,MATCH(S87,R84:R103,)) -> 6.3
B88: 5 | C88: ='Obliczenia nośności T'!$H$13 -> 8.00 | D88: =IF($C$88<$O$9,0,'Obliczenia nośności T'!$H$29) -> 2.32 | E88: =SMALL(D84:D100,5) -> 2.32 | F88: =INDEX(B84:B100,MATCH(E88,D84:D100,)) -> 5 | G88: =INDEX(C84:C100,MATCH(E88,D84:D100,)) -> 8.0 | I88: 5 | J88: ='Obliczenia nośności W'!$H$13 -> 6.67 | K88: =IF($J$88<$O$9,0,'Obliczenia nośności W'!$H$29) -> 1.23 | L88: =SMALL(K84:K100,5) -> 1.08 | M88: =INDEX(I84:I100,MATCH(L88,K84:K100,)) -> 4 | N88: =INDEX(J84:J100,MATCH(L88,K84:K100,)) -> 5.8 | P88: 5 | Q88: ='Obliczenia nośności H'!$H$27 -> 8.33 | R88: =IF($Q$88<$O$9,0,'Obliczenia nośności H'!$H$43) -> 2.38 | S88: =SMALL(R84:R103,5) -> 1.78 | T88: =INDEX(P84:P103,MATCH(S88,R84:R103,)) -> 3 | U88: =INDEX(Q84:Q103,MATCH(S88,R84:R103,)) -> 6.3
B89: 6 | C89: ='Obliczenia nośności T'!$I$13 -> 9.00 | D89: =IF($C$89<$O$9,0,'Obliczenia nośności T'!$I$29) -> 2.64 | E89: =SMALL(D84:D100,6) -> 2.64 | F89: =INDEX(B84:B100,MATCH(E89,D84:D100,)) -> 6 | G89: =INDEX(C84:C100,MATCH(E89,D84:D100,)) -> 9.0 | I89: 6 | J89: ='Obliczenia nośności W'!$I$13 -> 7.50 | K89: =IF($J$89<$O$9,0,'Obliczenia nośności W'!$I$29) -> 1.39 | L89: =SMALL(K84:K100,6) -> 1.23 | M89: =INDEX(I84:I100,MATCH(L89,K84:K100,)) -> 5 | N89: =INDEX(J84:J100,MATCH(L89,K84:K100,)) -> 6.7 | P89: 6 | Q89: ='Obliczenia nośności H'!$I$27 -> 9.38 | R89: =IF($Q$89<$O$9,0,'Obliczenia nośności H'!$I$43) -> 2.67 | S89: =SMALL(R84:R103,6) -> 2.08 | T89: =INDEX(P84:P103,MATCH(S89,R84:R103,)) -> 4 | U89: =INDEX(Q84:Q103,MATCH(S89,R84:R103,)) -> 7.3
B90: 7 | C90: ='Obliczenia nośności T'!$J$13 -> 10.00 | D90: =IF($C$90<$O$9,0,'Obliczenia nośności T'!$J$29) -> 2.96 | E90: =SMALL(D84:D100,7) -> 2.84 | F90: =INDEX(B84:B100,MATCH(E90,D84:D100,)) -> 17 | G90: =INDEX(C84:C100,MATCH(E90,D84:D100,)) -> 10.0 | I90: 7 | J90: ='Obliczenia nośności W'!$J$13 -> 8.33 | K90: =IF($J$90<$O$9,0,'Obliczenia nośności W'!$J$29) -> 1.54 | L90: =SMALL(K84:K100,7) -> 1.39 | M90: =INDEX(I84:I100,MATCH(L90,K84:K100,)) -> 6 | N90: =INDEX(J84:J100,MATCH(L90,K84:K100,)) -> 7.5 | P90: 7 | Q90: ='Obliczenia nośności H'!$J$27 -> 10.42 | R90: =IF($Q$90<$O$9,0,'Obliczenia nośności H'!$J$43) -> 2.97 | S90: =SMALL(R84:R103,7) -> 2.38 | T90: =INDEX(P84:P103,MATCH(S90,R84:R103,)) -> 5 | U90: =INDEX(Q84:Q103,MATCH(S90,R84:R103,)) -> 8.3
B91: 8 | C91: ='Obliczenia nośności T'!$K$13 -> 11.00 | D91: =IF($C$91<$O$9,0,'Obliczenia nośności T'!$K$29) -> 3.28 | E91: =SMALL(D84:D100,8) -> 2.96 | F91: =INDEX(B84:B100,MATCH(E91,D84:D100,)) -> 7 | G91: =INDEX(C84:C100,MATCH(E91,D84:D100,)) -> 10.0 | I91: 8 | J91: ='Obliczenia nośności W'!$K$13 -> 9.17 | K91: =IF($J$91<$O$9,0,'Obliczenia nośności W'!$K$29) -> 1.70 | L91: =SMALL(K84:K100,8) -> 1.54 | M91: =INDEX(I84:I100,MATCH(L91,K84:K100,)) -> 7 | N91: =INDEX(J84:J100,MATCH(L91,K84:K100,)) -> 8.3 | P91: 8 | Q91: ='Obliczenia nośności H'!$K$27 -> 11.46 | R91: =IF($Q$91<$O$9,0,'Obliczenia nośności H'!$K$43) -> 3.27 | S91: =SMALL(R84:R103,8) -> 2.38 | T91: =INDEX(P84:P103,MATCH(S91,R84:R103,)) -> 5 | U91: =INDEX(Q84:Q103,MATCH(S91,R84:R103,)) -> 8.3
B92: 9 | C92: ='Obliczenia nośności T'!$L$13 -> 12.00 | D92: =IF($C$92<$O$9,0,'Obliczenia nośności T'!$L$29) -> 3.60 | E92: =SMALL(D84:D100,9) -> 3.28 | F92: =INDEX(B84:B100,MATCH(E92,D84:D100,)) -> 8 | G92: =INDEX(C84:C100,MATCH(E92,D84:D100,)) -> 11.0 | I92: 9 | J92: ='Obliczenia nośności W'!$L$13 -> 10.00 | K92: =IF($J$92<$O$9,0,'Obliczenia nośności W'!$L$29) -> 1.85 | L92: =SMALL(K84:K100,9) -> 1.70 | M92: =INDEX(I84:I100,MATCH(L92,K84:K100,)) -> 8 | N92: =INDEX(J84:J100,MATCH(L92,K84:K100,)) -> 9.2 | P92: 9 | Q92: ='Obliczenia nośności H'!$L$27 -> 12.50 | R92: =IF($Q$92<$O$9,0,'Obliczenia nośności H'!$L$43) -> 3.56 | S92: =SMALL(R84:R103,9) -> 2.67 | T92: =INDEX(P84:P103,MATCH(S92,R84:R103,)) -> 6 | U92: =INDEX(Q84:Q103,MATCH(S92,R84:R103,)) -> 9.4
B93: 10 | C93: ='Obliczenia nośności T'!$M$13 -> 12.00 | D93: =IF($C$93<$O$9,0,'Obliczenia nośności T'!$M$29) -> 3.48 | E93: =SMALL(D84:D100,10) -> 3.48 | F93: =INDEX(B84:B100,MATCH(E93,D84:D100,)) -> 10 | G93: =INDEX(C84:C100,MATCH(E93,D84:D100,)) -> 12.0 | I93: 10 | J93: ='Obliczenia nośności W'!$M$13 -> 10.83 | K93: =IF($J$93<$O$9,0,'Obliczenia nośności W'!$M$29) -> 2.02 | L93: =SMALL(K84:K100,10) -> 1.85 | M93: =INDEX(I84:I100,MATCH(L93,K84:K100,)) -> 9 | N93: =INDEX(J84:J100,MATCH(L93,K84:K100,)) -> 10.0 | P93: 10 | Q93: ='Obliczenia nośności H'!$M$27 -> 13.54 | R93: =IF($Q$93<$O$9,0,'Obliczenia nośności H'!$M$43) -> 3.86 | S93: =SMALL(R84:R103,10) -> 2.97 | T93: =INDEX(P84:P103,MATCH(S93,R84:R103,)) -> 7 | U93: =INDEX(Q84:Q103,MATCH(S93,R84:R103,)) -> 10.4
B94: 11 | C94: ='Obliczenia nośności T'!$N$13 -> 13.00 | D94: =IF($C$94<$O$9,0,'Obliczenia nośności T'!$N$29) -> 3.92 | E94: =SMALL(D84:D100,11) -> 3.60 | F94: =INDEX(B84:B100,MATCH(E94,D84:D100,)) -> 9 | G94: =INDEX(C84:C100,MATCH(E94,D84:D100,)) -> 12.0 | I94: 11 | J94: ='Obliczenia nośności W'!$N$13 -> 11.67 | K94: =IF($J$94<$O$9,0,'Obliczenia nośności W'!$N$29) -> 2.19 | L94: =SMALL(K84:K100,11) -> 2.02 | M94: =INDEX(I84:I100,MATCH(L94,K84:K100,)) -> 10 | N94: =INDEX(J84:J100,MATCH(L94,K84:K100,)) -> 10.8 | P94: 11 | Q94: ='Obliczenia nośności H'!$N$27 -> 14.58 | R94: =IF($Q$94<$O$9,0,'Obliczenia nośności H'!$N$43) -> 4.16 | S94: =SMALL(R84:R103,11) -> 2.97 | T94: =INDEX(P84:P103,MATCH(S94,R84:R103,)) -> 7 | U94: =INDEX(Q84:Q103,MATCH(S94,R84:R103,)) -> 10.4
B95: 12 | C95: ='Obliczenia nośności T'!$O$13 -> 13.00 | D95: =IF($C$95<$O$9,0,'Obliczenia nośności T'!$O$29) -> 3.80 | E95: =SMALL(D84:D100,12) -> 3.80 | F95: =INDEX(B84:B100,MATCH(E95,D84:D100,)) -> 12 | G95: =INDEX(C84:C100,MATCH(E95,D84:D100,)) -> 13.0 | I95: 12 | J95: ='Obliczenia nośności W'!$O$13 -> 12.50 | K95: =IF($J$95<$O$9,0,'Obliczenia nośności W'!$O$29) -> 2.36 | L95: =SMALL(K84:K100,12) -> 2.19 | M95: =INDEX(I84:I100,MATCH(L95,K84:K100,)) -> 11 | N95: =INDEX(J84:J100,MATCH(L95,K84:K100,)) -> 11.7 | P95: 12 | Q95: ='Obliczenia nośności H'!$O$27 -> 15.63 | R95: =IF($Q$95<$O$9,0,'Obliczenia nośności H'!$O$43) -> 4.45 | S95: =SMALL(R84:R103,12) -> 3.27 | T95: =INDEX(P84:P103,MATCH(S95,R84:R103,)) -> 8 | U95: =INDEX(Q84:Q103,MATCH(S95,R84:R103,)) -> 11.5
B96: 13 | C96: ='Obliczenia nośności T'!$P$13 -> 14.00 | D96: =IF($C$96<$O$9,0,'Obliczenia nośności T'!$P$29) -> 4.24 | E96: =SMALL(D84:D100,13) -> 3.92 | F96: =INDEX(B84:B100,MATCH(E96,D84:D100,)) -> 11 | G96: =INDEX(C84:C100,MATCH(E96,D84:D100,)) -> 13.0 | I96: 13 | J96: ='Obliczenia nośności W'!$P$13 -> 13.33 | K96: =IF($J$96<$O$9,0,'Obliczenia nośności W'!$P$29) -> 2.53 | L96: =SMALL(K84:K100,13) -> 2.36 | M96: =INDEX(I84:I100,MATCH(L96,K84:K100,)) -> 12 | N96: =INDEX(J84:J100,MATCH(L96,K84:K100,)) -> 12.5 | P96: 13 | Q96: ='Obliczenia nośności H'!$P$27 -> 4.17 | R96: =IF($Q$96<$O$9,0,'Obliczenia nośności H'!$P$43) -> 0.00 | S96: =SMALL(R84:R103,13) -> 3.56 | T96: =INDEX(P84:P103,MATCH(S96,R84:R103,)) -> 17 | U96: =INDEX(Q84:Q103,MATCH(S96,R84:R103,)) -> 12.5
B97: 14 | C97: ='Obliczenia nośności T'!$Q$13 -> 14.00 | D97: =IF($C$97<$O$9,0,'Obliczenia nośności T'!$Q$29) -> 4.12 | E97: =SMALL(D84:D100,14) -> 4.12 | F97: =INDEX(B84:B100,MATCH(E97,D84:D100,)) -> 14 | G97: =INDEX(C84:C100,MATCH(E97,D84:D100,)) -> 14.0 | I97: 14 | J97: ='Obliczenia nośności W'!$Q$13 -> 3.33 | K97: =IF($J$97<$O$9,0,'Obliczenia nośności W'!$Q$29) -> 0.00 | L97: =SMALL(K84:K100,14) -> 2.53 | M97: =INDEX(I84:I100,MATCH(L97,K84:K100,)) -> 13 | N97: =INDEX(J84:J100,MATCH(L97,K84:K100,)) -> 13.3 | P97: 14 | Q97: ='Obliczenia nośności H'!$Q$27 -> 6.25 | R97: =IF($Q$97<$O$9,0,'Obliczenia nośności H'!$Q$43) -> 1.78 | S97: =SMALL(R84:R103,14) -> 3.56 | T97: =INDEX(P84:P103,MATCH(S97,R84:R103,)) -> 9 | U97: =INDEX(Q84:Q103,MATCH(S97,R84:R103,)) -> 12.5
B98: 15 | C98: ='Obliczenia nośności T'!$R$13 -> 15.00 | D98: =IF($C$98<$O$9,0,'Obliczenia nośności T'!$R$29) -> 4.44 | E98: =SMALL(D84:D100,15) -> 4.24 | F98: =INDEX(B84:B100,MATCH(E98,D84:D100,)) -> 13 | G98: =INDEX(C84:C100,MATCH(E98,D84:D100,)) -> 14.0 | P98: 15 | Q98: ='Obliczenia nośności H'!$R$27 -> 8.33 | R98: =IF($Q$98<$O$9,0,'Obliczenia nośności H'!$R$43) -> 2.38 | S98: =SMALL(R84:R103,15) -> 3.86 | T98: =INDEX(P84:P103,MATCH(S98,R84:R103,)) -> 10 | U98: =INDEX(Q84:Q103,MATCH(S98,R84:R103,)) -> 13.5
B99: 16 | C99: ='Obliczenia nośności T'!$S$13 -> 16.00 | D99: =IF($C$99<$O$9,0,'Obliczenia nośności T'!$S$29) -> 4.76 | E99: =SMALL(D84:D100,16) -> 4.44 | F99: =INDEX(B84:B100,MATCH(E99,D84:D100,)) -> 15 | G99: =INDEX(C84:C100,MATCH(E99,D84:D100,)) -> 15.0 | P99: 16 | Q99: ='Obliczenia nośności H'!$S$27 -> 10.42 | R99: =IF($Q$99<$O$9,0,'Obliczenia nośności H'!$S$43) -> 2.97 | S99: =SMALL(R84:R103,16) -> 4.16 | T99: =INDEX(P84:P103,MATCH(S99,R84:R103,)) -> 11 | U99: =INDEX(Q84:Q103,MATCH(S99,R84:R103,)) -> 14.6
B100: 17 | C100: ='Obliczenia nośności T'!$T$13 -> 10.00 | D100: =IF($C$100<$O$9,0,'Obliczenia nośności T'!$T$29) -> 2.84 | E100: =SMALL(D84:D100,17) -> 4.76 | F100: =INDEX(B84:B100,MATCH(E100,D84:D100,)) -> 16 | G100: =INDEX(C84:C100,MATCH(E100,D84:D100,)) -> 16.0 | P100: 17 | Q100: ='Obliczenia nośności H'!$T$27 -> 12.50 | R100: =IF($Q$100<$O$9,0,'Obliczenia nośności H'!$T$43) -> 3.56 | S100: =SMALL(R84:R103,17) -> 4.16 | T100: =INDEX(P84:P103,MATCH(S100,R84:R103,)) -> 11 | U100: =INDEX(Q84:Q103,MATCH(S100,R84:R103,)) -> 14.6
P101: 18 | Q101: ='Obliczenia nośności H'!$U$27 -> 14.58 | R101: =IF($Q$101<$O$9,0,'Obliczenia nośności H'!$U$43) -> 4.16 | S101: =SMALL(R84:R103,18) -> 4.45 | T101: =INDEX(P84:P103,MATCH(S101,R84:R103,)) -> 12 | U101: =INDEX(Q84:Q103,MATCH(S101,R84:R103,)) -> 15.6
P102: 19 | Q102: ='Obliczenia nośności H'!$V$27 -> 16.67 | R102: =IF($Q$102<$O$9,0,'Obliczenia nośności H'!$V$43) -> 4.75 | S102: =SMALL(R84:R103,19) -> 4.75 | T102: =INDEX(P84:P103,MATCH(S102,R84:R103,)) -> 19 | U102: =INDEX(Q84:Q103,MATCH(S102,R84:R103,)) -> 16.7
P103: 20 | Q103: ='Obliczenia nośności H'!$W$27 -> 20.83 | R103: =IF($Q$103<$O$9,0,'Obliczenia nośności H'!$W$43) -> 5.94 | S103: =SMALL(R84:R103,20) -> 5.94 | T103: =INDEX(P84:P103,MATCH(S103,R84:R103,)) -> 20 | U103: =INDEX(Q84:Q103,MATCH(S103,R84:R103,)) -> 20.8
L104: Schematy
L105: T
L106: W
L107: H

Sheet Łączniki wiatr II
B2: Określenie liczby łączników mechanicznych ze względu na nośność, przy oddziaływaniu wiatru II
B4: Wiatr II - różne warunki w zależności od kierunku
B6: UWAGA! Wymiary rzutu budynku i szerokości pól ściany nie są pokazywane w skali.
I8: Układ łączników | O8: T
I9: Minimalna liczba łączników, szt./m² | O9: 5.0
I10: Dopuszczalne niedoszacowanie nośności, % | O10: 3.0
J12: ="Wysokość ze = "&TEXT('Obliczenia wiatr II'!E42,"####0,0##")&" m" -> Wysokość ze = 25,0 m
I15: m | J15: ='Wyniki graficzne wiatr II'!J11 -> 5.6 | K15: ='Wyniki graficzne wiatr II'!K11 ->  | L15: ='Wyniki graficzne wiatr II'!L11 -> 4.4 | M15: ='Wyniki graficzne wiatr II'!M11 ->  | N15: ='Wyniki graficzne wiatr II'!N11 -> 
I19: Schemat | J19: =IF(O8="T",INDEX(F84:F100,MATCH(TRUE,E84:E100>=J63,0)),IF(O8="W",INDEX(M84:M100,MATCH(TRUE,L84:L100>=J63,0)),IF(O8="H",INDEX(T84:T103,MATCH(TRUE,S84:S103>=J63,0)),0))) -> 5 | K19: =IF(O8="T",INDEX(F84:F100,MATCH(TRUE,E84:E100>=K63,0)),IF(O8="W",INDEX(M84:M100,MATCH(TRUE,L84:L100>=K63,0)),IF(O8="H",INDEX(T84:T103,MATCH(TRUE,S84:S103>=K63,0)),0))) -> 5 | L19: =IF(O8="T",INDEX(F84:F100,MATCH(TRUE,E84:E100>=L63,0)),IF(O8="W",INDEX(M84:M100,MATCH(TRUE,L84:L100>=L63,0)),IF(O8="H",INDEX(T84:T103,MATCH(TRUE,S84:S103>=L63,0)),0))) -> 3 | M19: =IF(O8="T",INDEX(F84:F100,MATCH(TRUE,E84:E100>=M63,0)),IF(O8="W",INDEX(M84:M100,MATCH(TRUE,L84:L100>=M63,0)),IF(O8="H",INDEX(T84:T103,MATCH(TRUE,S84:S103>=M63,0)),0))) -> 3 | N19: =IF(O8="T",INDEX(F84:F100,MATCH(TRUE,E84:E100>=N63,0)),IF(O8="W",INDEX(M84:M100,MATCH(TRUE,L84:L100>=N63,0)),IF(O8="H",INDEX(T84:T103,MATCH(TRUE,S84:S103>=N63,0)),0))) -> 3 | O19: Schemat
I21: Łączniki szt./m² | J21: =IF(O8="T",INDEX(G84:G100,MATCH(TRUE,E84:E100>=J63,0)),IF(O8="W",INDEX(N84:N100,MATCH(TRUE,L84:L100>=J63,0)),IF(O8="H",INDEX(U84:U103,MATCH(TRUE,S84:S103>=J63,0)),0))) -> 8.0 | K21: =IF(O8="T",INDEX(G84:G100,MATCH(TRUE,E84:E100>=K63,0)),IF(O8="W",INDEX(N84:N100,MATCH(TRUE,L84:L100>=K63,0)),IF(O8="H",INDEX(U84:U103,MATCH(TRUE,S84:S103>=K63,0)),0))) -> 8.0 | L21: =IF(O8="T",INDEX(G84:G100,MATCH(TRUE,E84:E100>=L63,0)),IF(O8="W",INDEX(N84:N100,MATCH(TRUE,L84:L100>=L63,0)),IF(O8="H",INDEX(U84:U103,MATCH(TRUE,S84:S103>=L63,0)),0))) -> 6.0 | M21: =IF(O8="T",INDEX(G84:G100,MATCH(TRUE,E84:E100>=M63,0)),IF(O8="W",INDEX(N84:N100,MATCH(TRUE,L84:L100>=M63,0)),IF(O8="H",INDEX(U84:U103,MATCH(TRUE,S84:S103>=M63,0)),0))) -> 6.0 | N21: =IF(O8="T",INDEX(G84:G100,MATCH(TRUE,E84:E100>=N63,0)),IF(O8="W",INDEX(N84:N100,MATCH(TRUE,L84:L100>=N63,0)),IF(O8="H",INDEX(U84:U103,MATCH(TRUE,S84:S103>=N63,0)),0))) -> 6.0 | O21: Łączniki szt./m²
G23: m | H23: Schemat | P23: Schemat | Q23: m
E24: ="Wysokość ze = "&TEXT('Obliczenia wiatr II'!D42,"####0,0##")&" m" -> Wysokość ze = 25,0 m | F24: =TEXT(K75+K76+K77,"####0,0##")&" m" -> 28,0 m | G24: ='Wyniki graficzne wiatr II'!G20 -> 2.0 | H24: =IF(O8="T",INDEX(F84:F100,MATCH(TRUE,E84:E100>=I64,0)),IF(O8="W",INDEX(M84:M100,MATCH(TRUE,L84:L100>=I64,0)),IF(O8="H",INDEX(T84:T103,MATCH(TRUE,S84:S103>=I64,0)),0))) -> 5 | I24: =IF(O8="T",INDEX(G84:G100,MATCH(TRUE,E84:E100>=I64,0)),IF(O8="W",INDEX(N84:N100,MATCH(TRUE,L84:L100>=I64,0)),IF(O8="H",INDEX(U84:U103,MATCH(TRUE,S84:S103>=I64,0)),0))) -> 8.0 | K24: ="Przyjęta oś budynku, odchylona o kąt "&TEXT('Obliczenia wiatr II'!C11,"####0,0##")&"° od kierunku N" -> Przyjęta oś budynku, odchylona o kąt 10,0° od kierunku N | L24: Ściana I | O24: =IF(O8="T",INDEX(G84:G100,MATCH(TRUE,E84:E100>=O64,0)),IF(O8="W",INDEX(N84:N100,MATCH(TRUE,L84:L100>=O64,0)),IF(O8="H",INDEX(U84:U103,MATCH(TRUE,S84:S103>=O64,0)),0))) -> 8.0 | P24: =IF(O8="T",INDEX(F84:F100,MATCH(TRUE,E84:E100>=O64,0)),IF(O8="W",INDEX(M84:M100,MATCH(TRUE,L84:L100>=O64,0)),IF(O8="H",INDEX(T84:T103,MATCH(TRUE,S84:S103>=O64,0)),0))) -> 5 | Q24: ='Wyniki graficzne wiatr II'!Q20 -> 2.0 | R24: ="Wysokość ze = "&TEXT('Obliczenia wiatr II'!D42,"####0,0##")&" m" -> Wysokość ze = 25,0 m
G28: ='Wyniki graficzne wiatr II'!G24 -> 8.0 | H28: =IF(O8="T",INDEX(F84:F100,MATCH(TRUE,E84:E100>=I65,0)),IF(O8="W",INDEX(M84:M100,MATCH(TRUE,L84:L100>=I65,0)),IF(O8="H",INDEX(T84:T103,MATCH(TRUE,S84:S103>=I65,0)),0))) -> 3 | I28: =IF(O8="T",INDEX(G84:G100,MATCH(TRUE,E84:E100>=I65,0)),IF(O8="W",INDEX(N84:N100,MATCH(TRUE,L84:L100>=I65,0)),IF(O8="H",INDEX(U84:U103,MATCH(TRUE,S84:S103>=I65,0)),0))) -> 6.0 | O28: =IF(O8="T",INDEX(G84:G100,MATCH(TRUE,E84:E100>=O65,0)),IF(O8="W",INDEX(N84:N100,MATCH(TRUE,L84:L100>=O65,0)),IF(O8="H",INDEX(U84:U103,MATCH(TRUE,S84:S103>=O65,0)),0))) -> 6.0 | P28: =IF(O8="T",INDEX(F84:F100,MATCH(TRUE,E84:E100>=O65,0)),IF(O8="W",INDEX(M84:M100,MATCH(TRUE,L84:L100>=O65,0)),IF(O8="H",INDEX(T84:T103,MATCH(TRUE,S84:S103>=O65,0)),0))) -> 3 | Q28: ='Wyniki graficzne wiatr II'!Q24 -> 8.0
G32: ='Wyniki graficzne wiatr II'!G28 -> 8.0 | H32: =IF(O8="T",INDEX(F84:F100,MATCH(TRUE,E84:E100>=I66,0)),IF(O8="W",INDEX(M84:M100,MATCH(TRUE,L84:L100>=I66,0)),IF(O8="H",INDEX(T84:T103,MATCH(TRUE,S84:S103>=I66,0)),0))) -> 2 | I32: =IF(O8="T",INDEX(G84:G100,MATCH(TRUE,E84:E100>=I66,0)),IF(O8="W",INDEX(N84:N100,MATCH(TRUE,L84:L100>=I66,0)),IF(O8="H",INDEX(U84:U103,MATCH(TRUE,S84:S103>=I66,0)),0))) -> 5.0 | O32: =IF(O8="T",INDEX(G84:G100,MATCH(TRUE,E84:E100>=O66,0)),IF(O8="W",INDEX(N84:N100,MATCH(TRUE,L84:L100>=O66,0)),IF(O8="H",INDEX(U84:U103,MATCH(TRUE,S84:S103>=O66,0)),0))) -> 5.0 | P32: =IF(O8="T",INDEX(F84:F100,MATCH(TRUE,E84:E100>=O66,0)),IF(O8="W",INDEX(M84:M100,MATCH(TRUE,L84:L100>=O66,0)),IF(O8="H",INDEX(T84:T103,MATCH(TRUE,S84:S103>=O66,0)),0))) -> 2 | Q32: ='Wyniki graficzne wiatr II'!Q28 -> 16.0
J33: Ściana IV | L33: → | N33: Ściana II
G36: ='Wyniki graficzne wiatr II'!G32 -> 8.0 | H36: =IF(O8="T",INDEX(F84:F100,MATCH(TRUE,E84:E100>=I67,0)),IF(O8="W",INDEX(M84:M100,MATCH(TRUE,L84:L100>=I67,0)),IF(O8="H",INDEX(T84:T103,MATCH(TRUE,S84:S103>=I67,0)),0))) -> 2 | I36: =IF(O8="T",INDEX(G84:G100,MATCH(TRUE,E84:E100>=I67,0)),IF(O8="W",INDEX(N84:N100,MATCH(TRUE,L84:L100>=I67,0)),IF(O8="H",INDEX(U84:U103,MATCH(TRUE,S84:S103>=I67,0)),0))) -> 5.0 | O36: =IF(O8="T",INDEX(G84:G100,MATCH(TRUE,E84:E100>=O67,0)),IF(O8="W",INDEX(N84:N100,MATCH(TRUE,L84:L100>=O67,0)),IF(O8="H",INDEX(U84:U103,MATCH(TRUE,S84:S103>=O67,0)),0))) -> 5.0 | P36: =IF(O8="T",INDEX(F84:F100,MATCH(TRUE,E84:E100>=O67,0)),IF(O8="W",INDEX(M84:M100,MATCH(TRUE,L84:L100>=O67,0)),IF(O8="H",INDEX(T84:T103,MATCH(TRUE,S84:S103>=O67,0)),0))) -> 2 | Q36: ='Wyniki graficzne wiatr II'!Q32 -> 
G40: ='Wyniki graficzne wiatr II'!G36 -> 2.0 | H40: =IF(O8="T",INDEX(F84:F100,MATCH(TRUE,E84:E100>=I68,0)),IF(O8="W",INDEX(M84:M100,MATCH(TRUE,L84:L100>=I68,0)),IF(O8="H",INDEX(T84:T103,MATCH(TRUE,S84:S103>=I68,0)),0))) -> 2 | I40: =IF(O8="T",INDEX(G84:G100,MATCH(TRUE,E84:E100>=I68,0)),IF(O8="W",INDEX(N84:N100,MATCH(TRUE,L84:L100>=I68,0)),IF(O8="H",INDEX(U84:U103,MATCH(TRUE,S84:S103>=I68,0)),0))) -> 5.0 | O40: =IF(O8="T",INDEX(G84:G100,MATCH(TRUE,E84:E100>=O68,0)),IF(O8="W",INDEX(N84:N100,MATCH(TRUE,L84:L100>=O68,0)),IF(O8="H",INDEX(U84:U103,MATCH(TRUE,S84:S103>=O68,0)),0))) -> 5.0 | P40: =IF(O8="T",INDEX(F84:F100,MATCH(TRUE,E84:E100>=O68,0)),IF(O8="W",INDEX(M84:M100,MATCH(TRUE,L84:L100>=O68,0)),IF(O8="H",INDEX(T84:T103,MATCH(TRUE,S84:S103>=O68,0)),0))) -> 2 | Q40: ='Wyniki graficzne wiatr II'!Q36 -> 2.0
L43: Ściana III
I44: Łączniki szt./m² | J44: =IF(O8="T",INDEX(G84:G100,MATCH(TRUE,E84:E100>=J69,0)),IF(O8="W",INDEX(N84:N100,MATCH(TRUE,L84:L100>=J69,0)),IF(O8="H",INDEX(U84:U103,MATCH(TRUE,S84:S103>=J69,0)),0))) -> 8.0 | K44: =IF(O8="T",INDEX(G84:G100,MATCH(TRUE,E84:E100>=K69,0)),IF(O8="W",INDEX(N84:N100,MATCH(TRUE,L84:L100>=K69,0)),IF(O8="H",INDEX(U84:U103,MATCH(TRUE,S84:S103>=K69,0)),0))) -> 8.0 | L44: =IF(O8="T",INDEX(G84:G100,MATCH(TRUE,E84:E100>=L69,0)),IF(O8="W",INDEX(N84:N100,MATCH(TRUE,L84:L100>=L69,0)),IF(O8="H",INDEX(U84:U103,MATCH(TRUE,S84:S103>=L69,0)),0))) -> 6.0 | M44: =IF(O8="T",INDEX(G84:G100,MATCH(TRUE,E84:E100>=M69,0)),IF(O8="W",INDEX(N84:N100,MATCH(TRUE,L84:L100>=M69,0)),IF(O8="H",INDEX(U84:U103,MATCH(TRUE,S84:S103>=M69,0)),0))) -> 6.0 | N44: =IF(O8="T",INDEX(G84:G100,MATCH(TRUE,E84:E100>=N69,0)),IF(O8="W",INDEX(N84:N100,MATCH(TRUE,L84:L100>=N69,0)),IF(O8="H",INDEX(U84:U103,MATCH(TRUE,S84:S103>=N69,0)),0))) -> 6.0
I47: Schemat | J47: =IF(O8="T",INDEX(F84:F100,MATCH(TRUE,E84:E100>=J69,0)),IF(O8="W",INDEX(M84:M100,MATCH(TRUE,L84:L100>=J69,0)),IF(O8="H",INDEX(T84:T103,MATCH(TRUE,S84:S103>=J69,0)),0))) -> 5 | K47: =IF(O8="T",INDEX(F84:F100,MATCH(TRUE,E84:E100>=K69,0)),IF(O8="W",INDEX(M84:M100,MATCH(TRUE,L84:L100>=K69,0)),IF(O8="H",INDEX(T84:T103,MATCH(TRUE,S84:S103>=K69,0)),0))) -> 5 | L47: =IF(O8="T",INDEX(F84:F100,MATCH(TRUE,E84:E100>=L69,0)),IF(O8="W",INDEX(M84:M100,MATCH(TRUE,L84:L100>=L69,0)),IF(O8="H",INDEX(T84:T103,MATCH(TRUE,S84:S103>=L69,0)),0))) -> 3 | M47: =IF(O8="T",INDEX(F84:F100,MATCH(TRUE,E84:E100>=M69,0)),IF(O8="W",INDEX(M84:M100,MATCH(TRUE,L84:L100>=M69,0)),IF(O8="H",INDEX(T84:T103,MATCH(TRUE,S84:S103>=M69,0)),0))) -> 3 | N47: =IF(O8="T",INDEX(F84:F100,MATCH(TRUE,E84:E100>=N69,0)),IF(O8="W",INDEX(M84:M100,MATCH(TRUE,L84:L100>=N69,0)),IF(O8="H",INDEX(T84:T103,MATCH(TRUE,S84:S103>=N69,0)),0))) -> 3
I49: m | J49: ='Wyniki graficzne wiatr II'!J45 -> 5.6 | K49: ='Wyniki graficzne wiatr II'!K45 ->  | L49: ='Wyniki graficzne wiatr II'!L45 -> 4.4 | M49: ='Wyniki graficzne wiatr II'!M45 ->  | N49: ='Wyniki graficzne wiatr II'!N45 -> 
J53: =TEXT(N75+N76+N77,"####0,0##")&" m" -> 10,0 m
J56: ="Wysokość ze = "&TEXT('Obliczenia wiatr II'!E42,"####0,0##")&" m" -> Wysokość ze = 25,0 m
J61: Wymagana nośność
J63: =(1-O10/100)*'Wyniki graficzne wiatr II'!J15 -> 2.0751 | K63: =(1-O10/100)*'Wyniki graficzne wiatr II'!K15 -> 2.0751 | L63: =(1-O10/100)*'Wyniki graficzne wiatr II'!L15 -> 1.6304 | M63: =(1-O10/100)*'Wyniki graficzne wiatr II'!M15 -> 1.6304 | N63: =(1-O10/100)*'Wyniki graficzne wiatr II'!N15 -> 1.6304
I64: =(1-O10/100)*'Wyniki graficzne wiatr II'!H20 -> 2.0751 | O64: =(1-O10/100)*'Wyniki graficzne wiatr II'!O20 -> 2.0751
I65: =(1-O10/100)*'Wyniki graficzne wiatr II'!H24 -> 1.6304 | O65: =(1-O10/100)*'Wyniki graficzne wiatr II'!O24 -> 1.6304
I66: =(1-O10/100)*'Wyniki graficzne wiatr II'!H28 -> 0.7411 | O66: =(1-O10/100)*'Wyniki graficzne wiatr II'!O28 -> 0.8523
I67: =(1-O10/100)*'Wyniki graficzne wiatr II'!H32 -> 0.7989 | O67: =(1-O10/100)*'Wyniki graficzne wiatr II'!O32 -> 0.8523
I68: =(1-O10/100)*'Wyniki graficzne wiatr II'!H36 -> 1.0168 | O68: =(1-O10/100)*'Wyniki graficzne wiatr II'!O36 -> 1.0168
J69: =(1-O10/100)*'Wyniki graficzne wiatr II'!J40 -> 2.0751 | K69: =(1-O10/100)*'Wyniki graficzne wiatr II'!K40 -> 2.0751 | L69: =(1-O10/100)*'Wyniki graficzne wiatr II'!L40 -> 1.6304 | M69: =(1-O10/100)*'Wyniki graficzne wiatr II'!M40 -> 1.6304 | N69: =(1-O10/100)*'Wyniki graficzne wiatr II'!N40 -> 1.6304
J72: Tablica szerokości pól ściany
K74: Ściana IV | L74: Ściana I | M74: Ściana II | N74: Ściana III
J75: a | K75: ='Obliczenia wiatr II'!D35 -> 2 | L75: ='Obliczenia wiatr II'!E35 -> 5.6 | M75: ='Obliczenia wiatr II'!F35 -> 2 | N75: ='Obliczenia wiatr II'!G35 -> 5.6
J76: b | K76: ='Obliczenia wiatr II'!D36 -> 8 | L76: ='Obliczenia wiatr II'!E36 -> 4.4 | M76: ='Obliczenia wiatr II'!F36 -> 8 | N76: ='Obliczenia wiatr II'!G36 -> 4.4
J77: c | K77: ='Obliczenia wiatr II'!D37 -> 18.0 | L77: ='Obliczenia wiatr II'!E37 -> 0.0 | M77: ='Obliczenia wiatr II'!F37 -> 18.0 | N77: ='Obliczenia wiatr II'!G37 -> 0.0
J79: e (prost) | K79: ='Obliczenia wiatr II'!D29 -> 10.0 | L79: ='Obliczenia wiatr II'!E29 -> 28.0 | M79: ='Obliczenia wiatr II'!F29 -> 10.0 | N79: ='Obliczenia wiatr II'!G29 -> 28.0
B81: T | I81: W | P81: H
B83: Schemat | C83: Łączniki | D83: Nośność | E83: Nośność | F83: Schemat | G83: Łączniki | I83: Schemat | J83: Łączniki | K83: Nośność | L83: Nośność | M83: Schemat | N83: Łączniki | P83: Schemat | Q83: Łączniki | R83: Nośność | S83: Nośność | T83: Schemat | U83: Łączniki
B84: 1 | C84: ='Obliczenia nośności T'!$D$13 -> 4.00 | D84: =IF($C$84<$O$9,0,'Obliczenia nośności T'!$D$29) -> 0.00 | E84: =SMALL(D84:D100,1) -> 0.00 | F84: =INDEX(B84:B100,MATCH(E84,D84:D100,)) -> 1 | G84: =INDEX(C84:C100,MATCH(E84,D84:D100,)) -> 4.0 | I84: 1 | J84: ='Obliczenia nośności W'!$D$13 -> 3.33 | K84: =IF($J$84<$O$9,0,'Obliczenia nośności W'!$D$29) -> 0.00 | L84: =SMALL(K84:K100,1) -> 0.00 | M84: =INDEX(I84:I100,MATCH(L84,K84:K100,)) -> 1 | N84: =INDEX(J84:J100,MATCH(L84,K84:K100,)) -> 3.3 | P84: 1 | Q84: ='Obliczenia nośności H'!$D$27 -> 4.17 | R84: =IF($Q$84<$O$9,0,'Obliczenia nośności H'!$D$43) -> 0.00 | S84: =SMALL(R84:R103,1) -> 0.00 | T84: =INDEX(P84:P103,MATCH(S84,R84:R103,)) -> 1 | U84: =INDEX(Q84:Q103,MATCH(S84,R84:R103,)) -> 4.2
B85: 2 | C85: ='Obliczenia nośności T'!$E$13 -> 5.00 | D85: =IF($C$85<$O$9,0,'Obliczenia nośności T'!$E$29) -> 1.36 | E85: =SMALL(D84:D100,2) -> 1.36 | F85: =INDEX(B84:B100,MATCH(E85,D84:D100,)) -> 2 | G85: =INDEX(C84:C100,MATCH(E85,D84:D100,)) -> 5.0 | I85: 2 | J85: ='Obliczenia nośności W'!$E$13 -> 4.17 | K85: =IF($J$85<$O$9,0,'Obliczenia nośności W'!$E$29) -> 0.00 | L85: =SMALL(K84:K100,2) -> 0.00 | M85: =INDEX(I84:I100,MATCH(L85,K84:K100,)) -> 1 | N85: =INDEX(J84:J100,MATCH(L85,K84:K100,)) -> 3.3 | P85: 2 | Q85: ='Obliczenia nośności H'!$E$27 -> 5.21 | R85: =IF($Q$85<$O$9,0,'Obliczenia nośności H'!$E$43) -> 1.48 | S85: =SMALL(R84:R103,2) -> 0.00 | T85: =INDEX(P84:P103,MATCH(S85,R84:R103,)) -> 1 | U85: =INDEX(Q84:Q103,MATCH(S85,R84:R103,)) -> 4.2
B86: 3 | C86: ='Obliczenia nośności T'!$F$13 -> 6.00 | D86: =IF($C$86<$O$9,0,'Obliczenia nośności T'!$F$29) -> 1.68 | E86: =SMALL(D84:D100,3) -> 1.68 | F86: =INDEX(B84:B100,MATCH(E86,D84:D100,)) -> 3 | G86: =INDEX(C84:C100,MATCH(E86,D84:D100,)) -> 6.0 | I86: 3 | J86: ='Obliczenia nośności W'!$F$13 -> 5.00 | K86: =IF($J$86<$O$9,0,'Obliczenia nośności W'!$F$29) -> 0.93 | L86: =SMALL(K84:K100,3) -> 0.00 | M86: =INDEX(I84:I100,MATCH(L86,K84:K100,)) -> 1 | N86: =INDEX(J84:J100,MATCH(L86,K84:K100,)) -> 3.3 | P86: 3 | Q86: ='Obliczenia nośności H'!$F$27 -> 6.25 | R86: =IF($Q$86<$O$9,0,'Obliczenia nośności H'!$F$43) -> 1.78 | S86: =SMALL(R84:R103,3) -> 1.48 | T86: =INDEX(P84:P103,MATCH(S86,R84:R103,)) -> 2 | U86: =INDEX(Q84:Q103,MATCH(S86,R84:R103,)) -> 5.2
B87: 4 | C87: ='Obliczenia nośności T'!$G$13 -> 7.00 | D87: =IF($C$87<$O$9,0,'Obliczenia nośności T'!$G$29) -> 2.00 | E87: =SMALL(D84:D100,4) -> 2.00 | F87: =INDEX(B84:B100,MATCH(E87,D84:D100,)) -> 4 | G87: =INDEX(C84:C100,MATCH(E87,D84:D100,)) -> 7.0 | I87: 4 | J87: ='Obliczenia nośności W'!$G$13 -> 5.83 | K87: =IF($J$87<$O$9,0,'Obliczenia nośności W'!$G$29) -> 1.08 | L87: =SMALL(K84:K100,4) -> 0.93 | M87: =INDEX(I84:I100,MATCH(L87,K84:K100,)) -> 3 | N87: =INDEX(J84:J100,MATCH(L87,K84:K100,)) -> 5.0 | P87: 4 | Q87: ='Obliczenia nośności H'!$G$27 -> 7.29 | R87: =IF($Q$87<$O$9,0,'Obliczenia nośności H'!$G$43) -> 2.08 | S87: =SMALL(R84:R103,4) -> 1.78 | T87: =INDEX(P84:P103,MATCH(S87,R84:R103,)) -> 14 | U87: =INDEX(Q84:Q103,MATCH(S87,R84:R103,)) -> 6.3
B88: 5 | C88: ='Obliczenia nośności T'!$H$13 -> 8.00 | D88: =IF($C$88<$O$9,0,'Obliczenia nośności T'!$H$29) -> 2.32 | E88: =SMALL(D84:D100,5) -> 2.32 | F88: =INDEX(B84:B100,MATCH(E88,D84:D100,)) -> 5 | G88: =INDEX(C84:C100,MATCH(E88,D84:D100,)) -> 8.0 | I88: 5 | J88: ='Obliczenia nośności W'!$H$13 -> 6.67 | K88: =IF($J$88<$O$9,0,'Obliczenia nośności W'!$H$29) -> 1.23 | L88: =SMALL(K84:K100,5) -> 1.08 | M88: =INDEX(I84:I100,MATCH(L88,K84:K100,)) -> 4 | N88: =INDEX(J84:J100,MATCH(L88,K84:K100,)) -> 5.8 | P88: 5 | Q88: ='Obliczenia nośności H'!$H$27 -> 8.33 | R88: =IF($Q$88<$O$9,0,'Obliczenia nośności H'!$H$43) -> 2.38 | S88: =SMALL(R84:R103,5) -> 1.78 | T88: =INDEX(P84:P103,MATCH(S88,R84:R103,)) -> 3 | U88: =INDEX(Q84:Q103,MATCH(S88,R84:R103,)) -> 6.3
B89: 6 | C89: ='Obliczenia nośności T'!$I$13 -> 9.00 | D89: =IF($C$89<$O$9,0,'Obliczenia nośności T'!$I$29) -> 2.64 | E89: =SMALL(D84:D100,6) -> 2.64 | F89: =INDEX(B84:B100,MATCH(E89,D84:D100,)) -> 6 | G89: =INDEX(C84:C100,MATCH(E89,D84:D100,)) -> 9.0 | I89: 6 | J89: ='Obliczenia nośności W'!$I$13 -> 7.50 | K89: =IF($J$89<$O$9,0,'Obliczenia nośności W'!$I$29) -> 1.39 | L89: =SMALL(K84:K100,6) -> 1.23 | M89: =INDEX(I84:I100,MATCH(L89,K84:K100,)) -> 5 | N89: =INDEX(J84:J100,MATCH(L89,K84:K100,)) -> 6.7 | P89: 6 | Q89: ='Obliczenia nośności H'!$I$27 -> 9.38 | R89: =IF($Q$89<$O$9,0,'Obliczenia nośności H'!$I$43) -> 2.67 | S89: =SMALL(R84:R103,6) -> 2.08 | T89: =INDEX(P84:P103,MATCH(S89,R84:R103,)) -> 4 | U89: =INDEX(Q84:Q103,MATCH(S89,R84:R103,)) -> 7.3
B90: 7 | C90: ='Obliczenia nośności T'!$J$13 -> 10.00 | D90: =IF($C$90<$O$9,0,'Obliczenia nośności T'!$J$29) -> 2.96 | E90: =SMALL(D84:D100,7) -> 2.84 | F90: =INDEX(B84:B100,MATCH(E90,D84:D100,)) -> 17 | G90: =INDEX(C84:C100,MATCH(E90,D84:D100,)) -> 10.0 | I90: 7 | J90: ='Obliczenia nośności W'!$J$13 -> 8.33 | K90: =IF($J$90<$O$9,0,'Obliczenia nośności W'!$J$29) -> 1.54 | L90: =SMALL(K84:K100,7) -> 1.39 | M90: =INDEX(I84:I100,MATCH(L90,K84:K100,)) -> 6 | N90: =INDEX(J84:J100,MATCH(L90,K84:K100,)) -> 7.5 | P90: 7 | Q90: ='Obliczenia nośności H'!$J$27 -> 10.42 | R90: =IF($Q$90<$O$9,0,'Obliczenia nośności H'!$J$43) -> 2.97 | S90: =SMALL(R84:R103,7) -> 2.38 | T90: =INDEX(P84:P103,MATCH(S90,R84:R103,)) -> 5 | U90: =INDEX(Q84:Q103,MATCH(S90,R84:R103,)) -> 8.3
B91: 8 | C91: ='Obliczenia nośności T'!$K$13 -> 11.00 | D91: =IF($C$91<$O$9,0,'Obliczenia nośności T'!$K$29) -> 3.28 | E91: =SMALL(D84:D100,8) -> 2.96 | F91: =INDEX(B84:B100,MATCH(E91,D84:D100,)) -> 7 | G91: =INDEX(C84:C100,MATCH(E91,D84:D100,)) -> 10.0 | I91: 8 | J91: ='Obliczenia nośności W'!$K$13 -> 9.17 | K91: =IF($J$91<$O$9,0,'Obliczenia nośności W'!$K$29) -> 1.70 | L91: =SMALL(K84:K100,8) -> 1.54 | M91: =INDEX(I84:I100,MATCH(L91,K84:K100,)) -> 7 | N91: =INDEX(J84:J100,MATCH(L91,K84:K100,)) -> 8.3 | P91: 8 | Q91: ='Obliczenia nośności H'!$K$27 -> 11.46 | R91: =IF($Q$91<$O$9,0,'Obliczenia nośności H'!$K$43) -> 3.27 | S91: =SMALL(R84:R103,8) -> 2.38 | T91: =INDEX(P84:P103,MATCH(S91,R84:R103,)) -> 5 | U91: =INDEX(Q84:Q103,MATCH(S91,R84:R103,)) -> 8.3
B92: 9 | C92: ='Obliczenia nośności T'!$L$13 -> 12.00 | D92: =IF($C$92<$O$9,0,'Obliczenia nośności T'!$L$29) -> 3.60 | E92: =SMALL(D84:D100,9) -> 3.28 | F92: =INDEX(B84:B100,MATCH(E92,D84:D100,)) -> 8 | G92: =INDEX(C84:C100,MATCH(E92,D84:D100,)) -> 11.0 | I92: 9 | J92: ='Obliczenia nośności W'!$L$13 -> 10.00 | K92: =IF($J$92<$O$9,0,'Obliczenia nośności W'!$L$29) -> 1.85 | L92: =SMALL(K84:K100,9) -> 1.70 | M92: =INDEX(I84:I100,MATCH(L92,K84:K100,)) -> 8 | N92: =INDEX(J84:J100,MATCH(L92,K84:K100,)) -> 9.2 | P92: 9 | Q92: ='Obliczenia nośności H'!$L$27 -> 12.50 | R92: =IF($Q$92<$O$9,0,'Obliczenia nośności H'!$L$43) -> 3.56 | S92: =SMALL(R84:R103,9) -> 2.67 | T92: =INDEX(P84:P103,MATCH(S92,R84:R103,)) -> 6 | U92: =INDEX(Q84:Q103,MATCH(S92,R84:R103,)) -> 9.4
B93: 10 | C93: ='Obliczenia nośności T'!$M$13 -> 12.00 | D93: =IF($C$93<$O$9,0,'Obliczenia nośności T'!$M$29) -> 3.48 | E93: =SMALL(D84:D100,10) -> 3.48 | F93: =INDEX(B84:B100,MATCH(E93,D84:D100,)) -> 10 | G93: =INDEX(C84:C100,MATCH(E93,D84:D100,)) -> 12.0 | I93: 10 | J93: ='Obliczenia nośności W'!$M$13 -> 10.83 | K93: =IF($J$93<$O$9,0,'Obliczenia nośności W'!$M$29) -> 2.02 | L93: =SMALL(K84:K100,10) -> 1.85 | M93: =INDEX(I84:I100,MATCH(L93,K84:K100,)) -> 9 | N93: =INDEX(J84:J100,MATCH(L93,K84:K100,)) -> 10.0 | P93: 10 | Q93: ='Obliczenia nośności H'!$M$27 -> 13.54 | R93: =IF($Q$93<$O$9,0,'Obliczenia nośności H'!$M$43) -> 3.86 | S93: =SMALL(R84:R103,10) -> 2.97 | T93: =INDEX(P84:P103,MATCH(S93,R84:R103,)) -> 7 | U93: =INDEX(Q84:Q103,MATCH(S93,R84:R103,)) -> 10.4
B94: 11 | C94: ='Obliczenia nośności T'!$N$13 -> 13.00 | D94: =IF($C$94<$O$9,0,'Obliczenia nośności T'!$N$29) -> 3.92 | E94: =SMALL(D84:D100,11) -> 3.60 | F94: =INDEX(B84:B100,MATCH(E94,D84:D100,)) -> 9 | G94: =INDEX(C84:C100,MATCH(E94,D84:D100,)) -> 12.0 | I94: 11 | J94: ='Obliczenia nośności W'!$N$13 -> 11.67 | K94: =IF($J$94<$O$9,0,'Obliczenia nośności W'!$N$29) -> 2.19 | L94: =SMALL(K84:K100,11) -> 2.02 | M94: =INDEX(I84:I100,MATCH(L94,K84:K100,)) -> 10 | N94: =INDEX(J84:J100,MATCH(L94,K84:K100,)) -> 10.8 | P94: 11 | Q94: ='Obliczenia nośności H'!$N$27 -> 14.58 | R94: =IF($Q$94<$O$9,0,'Obliczenia nośności H'!$N$43) -> 4.16 | S94: =SMALL(R84:R103,11) -> 2.97 | T94: =INDEX(P84:P103,MATCH(S94,R84:R103,)) -> 7 | U94: =INDEX(Q84:Q103,MATCH(S94,R84:R103,)) -> 10.4
B95: 12 | C95: ='Obliczenia nośności T'!$O$13 -> 13.00 | D95: =IF($C$95<$O$9,0,'Obliczenia nośności T'!$O$29) -> 3.80 | E95: =SMALL(D84:D100,12) -> 3.80 | F95: =INDEX(B84:B100,MATCH(E95,D84:D100,)) -> 12 | G95: =INDEX(C84:C100,MATCH(E95,D84:D100,)) -> 13.0 | I95: 12 | J95: ='Obliczenia nośności W'!$O$13 -> 12.50 | K95: =IF($J$95<$O$9,0,'Obliczenia nośności W'!$O$29) -> 2.36 | L95: =SMALL(K84:K100,12) -> 2.19 | M95: =INDEX(I84:I100,MATCH(L95,K84:K100,)) -> 11 | N95: =INDEX(J84:J100,MATCH(L95,K84:K100,)) -> 11.7 | P95: 12 | Q95: ='Obliczenia nośności H'!$O$27 -> 15.63 | R95: =IF($Q$95<$O$9,0,'Obliczenia nośności H'!$O$43) -> 4.45 | S95: =SMALL(R84:R103,12) -> 3.27 | T95: =INDEX(P84:P103,MATCH(S95,R84:R103,)) -> 8 | U95: =INDEX(Q84:Q103,MATCH(S95,R84:R103,)) -> 11.5
B96: 13 | C96: ='Obliczenia nośności T'!$P$13 -> 14.00 | D96: =IF($C$96<$O$9,0,'Obliczenia nośności T'!$P$29) -> 4.24 | E96: =SMALL(D84:D100,13) -> 3.92 | F96: =INDEX(B84:B100,MATCH(E96,D84:D100,)) -> 11 | G96: =INDEX(C84:C100,MATCH(E96,D84:D100,)) -> 13.0 | I96: 13 | J96: ='Obliczenia nośności W'!$P$13 -> 13.33 | K96: =IF($J$96<$O$9,0,'Obliczenia nośności W'!$P$29) -> 2.53 | L96: =SMALL(K84:K100,13) -> 2.36 | M96: =INDEX(I84:I100,MATCH(L96,K84:K100,)) -> 12 | N96: =INDEX(J84:J100,MATCH(L96,K84:K100,)) -> 12.5 | P96: 13 | Q96: ='Obliczenia nośności H'!$P$27 -> 4.17 | R96: =IF($Q$96<$O$9,0,'Obliczenia nośności H'!$P$43) -> 0.00 | S96: =SMALL(R84:R103,13) -> 3.56 | T96: =INDEX(P84:P103,MATCH(S96,R84:R103,)) -> 17 | U96: =INDEX(Q84:Q103,MATCH(S96,R84:R103,)) -> 12.5
B97: 14 | C97: ='Obliczenia nośności T'!$Q$13 -> 14.00 | D97: =IF($C$97<$O$9,0,'Obliczenia nośności T'!$Q$29) -> 4.12 | E97: =SMALL(D84:D100,14) -> 4.12 | F97: =INDEX(B84:B100,MATCH(E97,D84:D100,)) -> 14 | G97: =INDEX(C84:C100,MATCH(E97,D84:D100,)) -> 14.0 | I97: 14 | J97: ='Obliczenia nośności W'!$Q$13 -> 3.33 | K97: =IF($J$97<$O$9,0,'Obliczenia nośności W'!$Q$29) -> 0.00 | L97: =SMALL(K84:K100,14) -> 2.53 | M97: =INDEX(I84:I100,MATCH(L97,K84:K100,)) -> 13 | N97: =INDEX(J84:J100,MATCH(L97,K84:K100,)) -> 13.3 | P97: 14 | Q97: ='Obliczenia nośności H'!$Q$27 -> 6.25 | R97: =IF($Q$97<$O$9,0,'Obliczenia nośności H'!$Q$43) -> 1.78 | S97: =SMALL(R84:R103,14) -> 3.56 | T97: =INDEX(P84:P103,MATCH(S97,R84:R103,)) -> 9 | U97: =INDEX(Q84:Q103,MATCH(S97,R84:R103,)) -> 12.5
B98: 15 | C98: ='Obliczenia nośności T'!$R$13 -> 15.00 | D98: =IF($C$98<$O$9,0,'Obliczenia nośności T'!$R$29) -> 4.44 | E98: =SMALL(D84:D100,15) -> 4.24 | F98: =INDEX(B84:B100,MATCH(E98,D84:D100,)) -> 13 | G98: =INDEX(C84:C100,MATCH(E98,D84:D100,)) -> 14.0 | P98: 15 | Q98: ='Obliczenia nośności H'!$R$27 -> 8.33 | R98: =IF($Q$98<$O$9,0,'Obliczenia nośności H'!$R$43) -> 2.38 | S98: =SMALL(R84:R103,15) -> 3.86 | T98: =INDEX(P84:P103,MATCH(S98,R84:R103,)) -> 10 | U98: =INDEX(Q84:Q103,MATCH(S98,R84:R103,)) -> 13.5
B99: 16 | C99: ='Obliczenia nośności T'!$S$13 -> 16.00 | D99: =IF($C$99<$O$9,0,'Obliczenia nośności T'!$S$29) -> 4.76 | E99: =SMALL(D84:D100,16) -> 4.44 | F99: =INDEX(B84:B100,MATCH(E99,D84:D100,)) -> 15 | G99: =INDEX(C84:C100,MATCH(E99,D84:D100,)) -> 15.0 | P99: 16 | Q99: ='Obliczenia nośności H'!$S$27 -> 10.42 | R99: =IF($Q$99<$O$9,0,'Obliczenia nośności H'!$S$43) -> 2.97 | S99: =SMALL(R84:R103,16) -> 4.16 | T99: =INDEX(P84:P103,MATCH(S99,R84:R103,)) -> 11 | U99: =INDEX(Q84:Q103,MATCH(S99,R84:R103,)) -> 14.6
B100: 17 | C100: ='Obliczenia nośności T'!$T$13 -> 10.00 | D100: =IF($C$100<$O$9,0,'Obliczenia nośności T'!$T$29) -> 2.84 | E100: =SMALL(D84:D100,17) -> 4.76 | F100: =INDEX(B84:B100,MATCH(E100,D84:D100,)) -> 16 | G100: =INDEX(C84:C100,MATCH(E100,D84:D100,)) -> 16.0 | P100: 17 | Q100: ='Obliczenia nośności H'!$T$27 -> 12.50 | R100: =IF($Q$100<$O$9,0,'Obliczenia nośności H'!$T$43) -> 3.56 | S100: =SMALL(R84:R103,17) -> 4.16 | T100: =INDEX(P84:P103,MATCH(S100,R84:R103,)) -> 11 | U100: =INDEX(Q84:Q103,MATCH(S100,R84:R103,)) -> 14.6
P101: 18 | Q101: ='Obliczenia nośności H'!$U$27 -> 14.58 | R101: =IF($Q$101<$O$9,0,'Obliczenia nośności H'!$U$43) -> 4.16 | S101: =SMALL(R84:R103,18) -> 4.45 | T101: =INDEX(P84:P103,MATCH(S101,R84:R103,)) -> 12 | U101: =INDEX(Q84:Q103,MATCH(S101,R84:R103,)) -> 15.6
P102: 19 | Q102: ='Obliczenia nośności H'!$V$27 -> 16.67 | R102: =IF($Q$102<$O$9,0,'Obliczenia nośności H'!$V$43) -> 4.75 | S102: =SMALL(R84:R103,19) -> 4.75 | T102: =INDEX(P84:P103,MATCH(S102,R84:R103,)) -> 19 | U102: =INDEX(Q84:Q103,MATCH(S102,R84:R103,)) -> 16.7
P103: 20 | Q103: ='Obliczenia nośności H'!$W$27 -> 20.83 | R103: =IF($Q$103<$O$9,0,'Obliczenia nośności H'!$W$43) -> 5.94 | S103: =SMALL(R84:R103,20) -> 5.94 | T103: =INDEX(P84:P103,MATCH(S103,R84:R103,)) -> 20 | U103: =INDEX(Q84:Q103,MATCH(S103,R84:R103,)) -> 20.8
L104: Schematy
L105: T
L106: W
L107: H

Sheet Przemieszczenia wiatr I
B2: Określenie przemieszczenia δN w miejscu występowania łącznika, przy działaniu wiatru I
B4: Wiatr I - takie same warunki ze wszystkich kierunków
B6: UWAGA! Wymiary rzutu budynku i szerokości pól ściany nie są pokazywane w skali.
H8: Przemieszczenie wg ETA, δm, mm | P8: 0.80
H9: Siła wyrywająca wg ETA, N, kN | P9: 0.40
H10: Przemieszczenie graniczne δ (w miejscu występowania łącznika), mm | P10: 0.333
J12: ="Wysokość ze = "&TEXT('Obliczenia wiatr I'!D46,"####0,0##")&" m" -> Wysokość ze = 25,0 m
I15: m | J15: ='Wyniki graficzne wiatr I'!J11 ->  | K15: ='Wyniki graficzne wiatr I'!K11 ->  | L15: ='Wyniki graficzne wiatr I'!L11 ->  | M15: ='Wyniki graficzne wiatr I'!M11 ->  | N15: ='Wyniki graficzne wiatr I'!N11 -> 10.0
I19: δN mm | J19: =$P$8*J63/'Łączniki wiatr I'!J21/$P$9 -> 0.357 | K19: =$P$8*K63/'Łączniki wiatr I'!K21/$P$9 -> 0.357 | L19: =$P$8*L63/'Łączniki wiatr I'!L21/$P$9 -> 0.357 | M19: =$P$8*M63/'Łączniki wiatr I'!M21/$P$9 -> 0.357 | N19: =$P$8*N63/'Łączniki wiatr I'!N21/$P$9 -> 0.357 | O19: δN mm
I21: Łączniki min. szt./m² | J21: =$P$8*J63/($P$9*$P$10) -> 8.6 | K21: =$P$8*K63/($P$9*$P$10) -> 8.6 | L21: 8.6 | M21: 8.6 | N21: 8.6 | O21: Łączniki min. szt./m²
G23: m | H23: δN, mm | P23: δN, mm | Q23: m
E24: ="Wysokość ze = "&TEXT('Obliczenia wiatr I'!C46,"####0,0##")&" m" -> Wysokość ze = 25,0 m | F24: =TEXT(K75+K76+K77,"####0,0##")&" m" -> 28,0 m | G24: ='Wyniki graficzne wiatr I'!G20 -> 2.0 | H24: =$P$8*I64/'Łączniki wiatr I'!I24/$P$9 -> 0.357 | I24: =$P$8*I64/($P$9*$P$10) -> 8.6 | L24: Ściana I | O24: =$P$8*O64/($P$9*$P$10) -> 8.6 | P24: =$P$8*O64/'Łączniki wiatr I'!O24/$P$9 -> 0.357 | Q24: ='Wyniki graficzne wiatr I'!Q20 -> 2.0 | R24: ="Wysokość ze = "&TEXT('Obliczenia wiatr I'!C46,"####0,0##")&" m" -> Wysokość ze = 25,0 m
G28: ='Wyniki graficzne wiatr I'!G24 -> 8.0 | H28: =$P$8*I65/'Łączniki wiatr I'!I28/$P$9 -> 0.374 | I28: =$P$8*I65/($P$9*$P$10) -> 6.7 | O28: =$P$8*O65/($P$9*$P$10) -> 6.7 | P28: =$P$8*O65/'Łączniki wiatr I'!O28/$P$9 -> 0.374 | Q28: ='Wyniki graficzne wiatr I'!Q24 -> 8.0
G32: ='Wyniki graficzne wiatr I'!G28 -> 8.0 | H32: =$P$8*I66/'Łączniki wiatr I'!I32/$P$9 -> 0.234 | I32: =$P$8*I66/($P$9*$P$10) -> 3.5 | O32: =$P$8*O66/($P$9*$P$10) -> 3.5 | P32: =$P$8*O66/'Łączniki wiatr I'!O32/$P$9 -> 0.234 | Q32: ='Wyniki graficzne wiatr I'!Q28 -> 8.0
J33: Ściana IV | N33: Ściana II
G36: ='Wyniki graficzne wiatr I'!G32 -> 8.0 | H36: =$P$8*I67/'Łączniki wiatr I'!I36/$P$9 -> 0.374 | I36: =$P$8*I67/($P$9*$P$10) -> 6.7 | O36: =$P$8*O67/($P$9*$P$10) -> 6.7 | P36: =$P$8*O67/'Łączniki wiatr I'!O36/$P$9 -> 0.374 | Q36: ='Wyniki graficzne wiatr I'!Q32 -> 8.0
G40: ='Wyniki graficzne wiatr I'!G36 -> 2.0 | H40: =$P$8*I68/'Łączniki wiatr I'!I40/$P$9 -> 0.357 | I40: =$P$8*I68/($P$9*$P$10) -> 8.6 | O40: =$P$8*O68/($P$9*$P$10) -> 8.6 | P40: =$P$8*O68/'Łączniki wiatr I'!O40/$P$9 -> 0.357 | Q40: ='Wyniki graficzne wiatr I'!Q36 -> 2.0
L43: Ściana III
I44: Łączniki min. szt./m² | J44: =$P$8*J69/($P$9*$P$10) -> 8.6 | K44: =$P$8*K69/($P$9*$P$10) -> 8.6 | L44: 8.6 | M44: 8.6 | N44: 8.6
I47: δN mm | J47: =$P$8*J69/'Łączniki wiatr I'!J44/$P$9 -> 0.357 | K47: =$P$8*K69/'Łączniki wiatr I'!K44/$P$9 -> 0.357 | L47: =$P$8*L69/'Łączniki wiatr I'!L44/$P$9 -> 0.357 | M47: =$P$8*M69/'Łączniki wiatr I'!M44/$P$9 -> 0.357 | N47: =$P$8*N69/'Łączniki wiatr I'!N44/$P$9 -> 0.357
I49: m | J49: ='Wyniki graficzne wiatr I'!J45 ->  | K49: ='Wyniki graficzne wiatr I'!K45 ->  | L49: ='Wyniki graficzne wiatr I'!L45 ->  | M49: ='Wyniki graficzne wiatr I'!M45 ->  | N49: ='Wyniki graficzne wiatr I'!N45 -> 10.0
J53: =TEXT(N75+N76+N77,"####0,0##")&" m" -> 10,0 m
J56: ="Wysokość ze = "&TEXT('Obliczenia wiatr I'!D46,"####0,0##")&" m" -> Wysokość ze = 25,0 m
J61: Charakterystyczne obciążenie wiatrem
J63: ='Wyniki graficzne wiatr I'!J15/'Obliczenia wiatr I'!C87 -> 1.4262 | K63: ='Wyniki graficzne wiatr I'!K15/'Obliczenia wiatr I'!C87 -> 1.4262 | L63: ='Wyniki graficzne wiatr I'!L15/'Obliczenia wiatr I'!C87 -> 1.4262 | M63: ='Wyniki graficzne wiatr I'!M15/'Obliczenia wiatr I'!C87 -> 1.4262 | N63: ='Wyniki graficzne wiatr I'!N15/'Obliczenia wiatr I'!C87 -> 1.4262
I64: ='Wyniki graficzne wiatr I'!H20/'Obliczenia wiatr I'!C87 -> 1.4262 | O64: ='Wyniki graficzne wiatr I'!O20/'Obliczenia wiatr I'!C87 -> 1.4262
I65: ='Wyniki graficzne wiatr I'!H24/'Obliczenia wiatr I'!C87 -> 1.1206 | O65: ='Wyniki graficzne wiatr I'!O24/'Obliczenia wiatr I'!C87 -> 1.1206
I66: ='Wyniki graficzne wiatr I'!H28/'Obliczenia wiatr I'!C87 -> 0.5858 | O66: ='Wyniki graficzne wiatr I'!O28/'Obliczenia wiatr I'!C87 -> 0.5858
I67: ='Wyniki graficzne wiatr I'!H32/'Obliczenia wiatr I'!C87 -> 1.1206 | O67: ='Wyniki graficzne wiatr I'!O32/'Obliczenia wiatr I'!C87 -> 1.1206
I68: ='Wyniki graficzne wiatr I'!H36/'Obliczenia wiatr I'!C87 -> 1.4262 | O68: ='Wyniki graficzne wiatr I'!O36/'Obliczenia wiatr I'!C87 -> 1.4262
J69: ='Wyniki graficzne wiatr I'!J40/'Obliczenia wiatr I'!C87 -> 1.4262 | K69: ='Wyniki graficzne wiatr I'!K40/'Obliczenia wiatr I'!C87 -> 1.4262 | L69: ='Wyniki graficzne wiatr I'!L40/'Obliczenia wiatr I'!C87 -> 1.4262 | M69: ='Wyniki graficzne wiatr I'!M40/'Obliczenia wiatr I'!C87 -> 1.4262 | N69: ='Wyniki graficzne wiatr I'!N40/'Obliczenia wiatr I'!C87 -> 1.4262
J72: Tablica szerokości pól ściany
K74: Ściana IV | L74: Ściana I | M74: Ściana II | N74: Ściana III
J75: a | K75: ='Obliczenia wiatr I'!C31 -> 2 | L75: ='Obliczenia wiatr I'!D31 -> 5.6 | M75: ='Obliczenia wiatr I'!C31 -> 2 | N75: ='Obliczenia wiatr I'!D31 -> 5.6
J76: b | K76: ='Obliczenia wiatr I'!C32 -> 8 | L76: ='Obliczenia wiatr I'!D32 -> 4.4 | M76: ='Obliczenia wiatr I'!C32 -> 8 | N76: ='Obliczenia wiatr I'!D32 -> 4.4
J77: c | K77: ='Obliczenia wiatr I'!C33 -> 18.0 | L77: ='Obliczenia wiatr I'!D33 -> 0.0 | M77: ='Obliczenia wiatr I'!C33 -> 18.0 | N77: ='Obliczenia wiatr I'!D33 -> 0.0
J79: e (prost) | K79: ='Obliczenia wiatr I'!C25 -> 10.0 | L79: ='Obliczenia wiatr I'!D25 -> 28.0 | M79: ='Obliczenia wiatr I'!C25 -> 10.0 | N79: ='Obliczenia wiatr I'!D25 -> 28.0

Sheet Przemieszczenia wiatr II
B2: Określenie przemieszczenia δN w miejscu występowania łącznika, przy działaniu wiatru II
B4: Wiatr II - różne warunki w zależności od kierunku
B6: UWAGA! Wymiary rzutu budynku i szerokości pól ściany nie są pokazywane w skali.
H8: Przemieszczenie wg ETA, δm, mm | P8: 0.80
H9: Siła wyrywająca wg ETA, N, kN | P9: 0.40
H10: Przemieszczenie graniczne δ (w miejscu występowania łącznika), mm | P10: 0.333
J12: ="Wysokość ze = "&TEXT('Obliczenia wiatr II'!E42,"####0,0##")&" m" -> Wysokość ze = 25,0 m
I15: m | J15: ='Wyniki graficzne wiatr II'!J11 -> 5.6 | K15: ='Wyniki graficzne wiatr II'!K11 ->  | L15: ='Wyniki graficzne wiatr II'!L11 -> 4.4 | M15: ='Wyniki graficzne wiatr II'!M11 ->  | N15: ='Wyniki graficzne wiatr II'!N11 -> 
I19: δN mm | J19: =$P$8*J63/'Łączniki wiatr II'!J21/$P$9 -> 0.357 | K19: =$P$8*K63/'Łączniki wiatr II'!K21/$P$9 -> 0.357 | L19: =$P$8*L63/'Łączniki wiatr II'!L21/$P$9 -> 0.374 | M19: =$P$8*M63/'Łączniki wiatr II'!M21/$P$9 -> 0.374 | N19: =$P$8*N63/'Łączniki wiatr II'!N21/$P$9 -> 0.374 | O19: δN mm
I21: Łączniki min. szt./m² | J21: =$P$8*J63/($P$9*$P$10) -> 8.6 | K21: =$P$8*K63/($P$9*$P$10) -> 8.6 | L21: 6.7 | M21: 6.7 | N21: 6.7 | O21: Łączniki min. szt./m²
G23: m | H23: δN, mm | P23: δN, mm | Q23: m
E24: ="Wysokość ze = "&TEXT('Obliczenia wiatr II'!D42,"####0,0##")&" m" -> Wysokość ze = 25,0 m | F24: =TEXT(K75+K76+K77,"####0,0##")&" m" -> 28,0 m | G24: ='Wyniki graficzne wiatr II'!G20 -> 2.0 | H24: =$P$8*I64/'Łączniki wiatr II'!I24/$P$9 -> 0.357 | I24: =$P$8*I64/($P$9*$P$10) -> 8.6 | K24: ="Przyjęta oś budynku, odchylona o kąt "&TEXT('Obliczenia wiatr II'!C11,"####0,0##")&"° od kierunku N" -> Przyjęta oś budynku, odchylona o kąt 10,0° od kierunku N | L24: Ściana I | O24: =$P$8*O64/($P$9*$P$10) -> 8.6 | P24: =$P$8*O64/'Łączniki wiatr II'!O24/$P$9 -> 0.357 | Q24: ='Wyniki graficzne wiatr II'!Q20 -> 2.0 | R24: ="Wysokość ze = "&TEXT('Obliczenia wiatr II'!D42,"####0,0##")&" m" -> Wysokość ze = 25,0 m
G28: ='Wyniki graficzne wiatr II'!G24 -> 8.0 | H28: =$P$8*I65/'Łączniki wiatr II'!I28/$P$9 -> 0.374 | I28: =$P$8*I65/($P$9*$P$10) -> 6.7 | O28: =$P$8*O65/($P$9*$P$10) -> 6.7 | P28: =$P$8*O65/'Łączniki wiatr II'!O28/$P$9 -> 0.374 | Q28: ='Wyniki graficzne wiatr II'!Q24 -> 8.0
G32: ='Wyniki graficzne wiatr II'!G28 -> 8.0 | H32: =$P$8*I66/'Łączniki wiatr II'!I32/$P$9 -> 0.204 | I32: =$P$8*I66/($P$9*$P$10) -> 3.1 | O32: =$P$8*O66/($P$9*$P$10) -> 3.5 | P32: =$P$8*O66/'Łączniki wiatr II'!O32/$P$9 -> 0.234 | Q32: ='Wyniki graficzne wiatr II'!Q28 -> 16.0
J33: Ściana IV | L33: → | N33: Ściana II
G36: ='Wyniki graficzne wiatr II'!G32 -> 8.0 | H36: =$P$8*I67/'Łączniki wiatr II'!I36/$P$9 -> 0.220 | I36: =$P$8*I67/($P$9*$P$10) -> 3.3 | O36: =$P$8*O67/($P$9*$P$10) -> 3.5 | P36: =$P$8*O67/'Łączniki wiatr II'!O36/$P$9 -> 0.234 | Q36: ='Wyniki graficzne wiatr II'!Q32 -> 
G40: ='Wyniki graficzne wiatr II'!G36 -> 2.0 | H40: =$P$8*I68/'Łączniki wiatr II'!I40/$P$9 -> 0.280 | I40: =$P$8*I68/($P$9*$P$10) -> 4.2 | O40: =$P$8*O68/($P$9*$P$10) -> 4.2 | P40: =$P$8*O68/'Łączniki wiatr II'!O40/$P$9 -> 0.280 | Q40: ='Wyniki graficzne wiatr II'!Q36 -> 2.0
L43: Ściana III
I44: Łączniki min. szt./m² | J44: =$P$8*J69/($P$9*$P$10) -> 8.6 | K44: =$P$8*K69/($P$9*$P$10) -> 8.6 | L44: 6.7 | M44: 6.7 | N44: 6.7
I47: δN mm | J47: =$P$8*J69/'Łączniki wiatr II'!J44/$P$9 -> 0.357 | K47: =$P$8*K69/'Łączniki wiatr II'!K44/$P$9 -> 0.357 | L47: =$P$8*L69/'Łączniki wiatr II'!L44/$P$9 -> 0.374 | M47: =$P$8*M69/'Łączniki wiatr II'!M44/$P$9 -> 0.374 | N47: =$P$8*N69/'Łączniki wiatr II'!N44/$P$9 -> 0.374
I49: m | J49: ='Wyniki graficzne wiatr II'!J45 -> 5.6 | K49: ='Wyniki graficzne wiatr II'!K45 ->  | L49: ='Wyniki graficzne wiatr II'!L45 -> 4.4 | M49: ='Wyniki graficzne wiatr II'!M45 ->  | N49: ='Wyniki graficzne wiatr II'!N45 -> 
J53: =TEXT(N75+N76+N77,"####0,0##")&" m" -> 10,0 m
J56: ="Wysokość ze = "&TEXT('Obliczenia wiatr II'!E42,"####0,0##")&" m" -> Wysokość ze = 25,0 m
J61: Charakterystyczne obciążenie wiatrem
J63: ='Wyniki graficzne wiatr II'!J15/'Obliczenia wiatr II'!C90 -> 1.4262 | K63: ='Wyniki graficzne wiatr II'!K15/'Obliczenia wiatr II'!C90 -> 1.4262 | L63: ='Wyniki graficzne wiatr II'!L15/'Obliczenia wiatr II'!C90 -> 1.1206 | M63: ='Wyniki graficzne wiatr II'!M15/'Obliczenia wiatr II'!C90 -> 1.1206 | N63: ='Wyniki graficzne wiatr II'!N15/'Obliczenia wiatr II'!C90 -> 1.1206
I64: ='Wyniki graficzne wiatr II'!H20/'Obliczenia wiatr II'!C90 -> 1.4262 | O64: ='Wyniki graficzne wiatr II'!O20/'Obliczenia wiatr II'!C90 -> 1.4262
I65: ='Wyniki graficzne wiatr II'!H24/'Obliczenia wiatr II'!C90 -> 1.1206 | O65: ='Wyniki graficzne wiatr II'!O24/'Obliczenia wiatr II'!C90 -> 1.1206
I66: ='Wyniki graficzne wiatr II'!H28/'Obliczenia wiatr II'!C90 -> 0.5093 | O66: ='Wyniki graficzne wiatr II'!O28/'Obliczenia wiatr II'!C90 -> 0.5858
I67: ='Wyniki graficzne wiatr II'!H32/'Obliczenia wiatr II'!C90 -> 0.5491 | O67: ='Wyniki graficzne wiatr II'!O32/'Obliczenia wiatr II'!C90 -> 0.5858
I68: ='Wyniki graficzne wiatr II'!H36/'Obliczenia wiatr II'!C90 -> 0.6988 | O68: ='Wyniki graficzne wiatr II'!O36/'Obliczenia wiatr II'!C90 -> 0.6988
J69: ='Wyniki graficzne wiatr II'!J40/'Obliczenia wiatr II'!C90 -> 1.4262 | K69: ='Wyniki graficzne wiatr II'!K40/'Obliczenia wiatr II'!C90 -> 1.4262 | L69: ='Wyniki graficzne wiatr II'!L40/'Obliczenia wiatr II'!C90 -> 1.1206 | M69: ='Wyniki graficzne wiatr II'!M40/'Obliczenia wiatr II'!C90 -> 1.1206 | N69: ='Wyniki graficzne wiatr II'!N40/'Obliczenia wiatr II'!C90 -> 1.1206
J72: Tablica szerokości pól ściany
K74: Ściana IV | L74: Ściana I | M74: Ściana II | N74: Ściana III
J75: a | K75: ='Obliczenia wiatr II'!D35 -> 2 | L75: ='Obliczenia wiatr II'!E35 -> 5.6 | M75: ='Obliczenia wiatr II'!F35 -> 2 | N75: ='Obliczenia wiatr II'!G35 -> 5.6
J76: b | K76: ='Obliczenia wiatr II'!D36 -> 8 | L76: ='Obliczenia wiatr II'!E36 -> 4.4 | M76: ='Obliczenia wiatr II'!F36 -> 8 | N76: ='Obliczenia wiatr II'!G36 -> 4.4
J77: c | K77: ='Obliczenia wiatr II'!D37 -> 18.0 | L77: ='Obliczenia wiatr II'!E37 -> 0.0 | M77: ='Obliczenia wiatr II'!F37 -> 18.0 | N77: ='Obliczenia wiatr II'!G37 -> 0.0
J79: e (prost) | K79: ='Obliczenia wiatr II'!D29 -> 10.0 | L79: ='Obliczenia wiatr II'!E29 -> 28.0 | M79: ='Obliczenia wiatr II'!F29 -> 10.0 | N79: ='Obliczenia wiatr II'!G29 -> 28.0

Sheet Wyniki końcowe wiatr I
B2: Wymagana liczba łączników mechanicznych, przypadających na 1 m² powierzchni systemu ETICS, przy oddziaływaniu wiatru I
B4: Wiatr I -takie same warunki ze wszystkich kierunków
B6: UWAGA! Wymiary rzutu budynku i szerokości pól ściany nie są pokazywane w skali.
I8: Przyjęto układ łączników na: | O8: ='Łączniki wiatr I'!O8 -> T
I9: Przyjęto minimalną liczbę łączników [szt./m²]: | O9: ='Łączniki wiatr I'!O9 -> 5.0
I10: Przyjęto przemieszczenie graniczne w miejscu łącznika [mm]: | O10: ='Przemieszczenia wiatr I'!P10 -> 0.333
J12: ="Wysokość ze = "&TEXT('Obliczenia wiatr I'!D46,"####0,0##")&" m" -> Wysokość ze = 25,0 m
I15: m | J15: ='Wyniki graficzne wiatr I'!J11 ->  | K15: ='Wyniki graficzne wiatr I'!K11 ->  | L15: ='Wyniki graficzne wiatr I'!L11 ->  | M15: ='Wyniki graficzne wiatr I'!M11 ->  | N15: ='Wyniki graficzne wiatr I'!N11 -> 10.0
I19: Schemat | J19: =IF(O8="T",INDEX(F84:F100,MATCH(TRUE,G84:G100>=J21,0)),IF(O8="W",INDEX(M84:M100,MATCH(TRUE,N84:N100>=J21,0)),IF(O8="H",INDEX(T84:T103,MATCH(TRUE,U84:U103>=J21,0)),0))) -> 6 | K19: =IF(O8="T",INDEX(F84:F100,MATCH(TRUE,G84:G100>=K21,0)),IF(O8="W",INDEX(M84:M100,MATCH(TRUE,N84:N100>=K21,0)),IF(O8="H",INDEX(T84:T103,MATCH(TRUE,U84:U103>=K21,0)),0))) -> 6 | L19: =IF(O8="T",INDEX(F84:F100,MATCH(TRUE,G84:G100>=L21,0)),IF(O8="W",INDEX(M84:M100,MATCH(TRUE,N84:N100>=L21,0)),IF(O8="H",INDEX(T84:T103,MATCH(TRUE,U84:U103>=L21,0)),0))) -> 6 | M19: =IF(O8="T",INDEX(F84:F100,MATCH(TRUE,G84:G100>=M21,0)),IF(O8="W",INDEX(M84:M100,MATCH(TRUE,N84:N100>=M21,0)),IF(O8="H",INDEX(T84:T103,MATCH(TRUE,U84:U103>=M21,0)),0))) -> 6 | N19: =IF(O8="T",INDEX(F84:F100,MATCH(TRUE,G84:G100>=N21,0)),IF(O8="W",INDEX(M84:M100,MATCH(TRUE,N84:N100>=N21,0)),IF(O8="H",INDEX(T84:T103,MATCH(TRUE,U84:U103>=N21,0)),0))) -> 6 | O19: Schemat
I21: Łączniki min. szt./m² | J21: =MAX('Łączniki wiatr I'!J21,'Przemieszczenia wiatr I'!J21) -> 8.6 | K21: =MAX('Łączniki wiatr I'!K21,'Przemieszczenia wiatr I'!K21) -> 8.6 | L21: =MAX('Łączniki wiatr I'!L21,'Przemieszczenia wiatr I'!L21) -> 8.6 | M21: =MAX('Łączniki wiatr I'!M21,'Przemieszczenia wiatr I'!M21) -> 8.6 | N21: =MAX('Łączniki wiatr I'!N21,'Przemieszczenia wiatr I'!N21) -> 8.6 | O21: Łączniki min. szt./m²
G23: m | H23: Schemat | P23: Schemat | Q23: m
E24: ="Wysokość ze = "&TEXT('Obliczenia wiatr I'!C46,"####0,0##")&" m" -> Wysokość ze = 25,0 m | F24: =TEXT(K75+K76+K77,"####0,0##")&" m" -> 28,0 m | G24: ='Wyniki graficzne wiatr I'!G20 -> 2.0 | H24: =IF(O8="T",INDEX(F84:F100,MATCH(TRUE,G84:G100>=I24,0)),IF(O8="W",INDEX(M84:M100,MATCH(TRUE,N84:N100>=I24,0)),IF(O8="H",INDEX(T84:T103,MATCH(TRUE,U84:U103>=I24,0)),0))) -> 6 | I24: =MAX('Łączniki wiatr I'!I24,'Przemieszczenia wiatr I'!I24) -> 8.6 | L24: Ściana I | O24: =MAX('Łączniki wiatr I'!O24,'Przemieszczenia wiatr I'!O24) -> 8.6 | P24: =IF(O8="T",INDEX(F84:F100,MATCH(TRUE,G84:G100>=O24,0)),IF(O8="W",INDEX(M84:M100,MATCH(TRUE,N84:N100>=O24,0)),IF(O8="H",INDEX(T84:T103,MATCH(TRUE,U84:U103>=O24,0)),0))) -> 6 | Q24: ='Wyniki graficzne wiatr I'!Q20 -> 2.0 | R24: ="Wysokość ze = "&TEXT('Obliczenia wiatr I'!C46,"####0,0##")&" m" -> Wysokość ze = 25,0 m
G28: ='Wyniki graficzne wiatr I'!G24 -> 8.0 | H28: =IF(O8="T",INDEX(F84:F100,MATCH(TRUE,G84:G100>=I28,0)),IF(O8="W",INDEX(M84:M100,MATCH(TRUE,N84:N100>=I28,0)),IF(O8="H",INDEX(T84:T103,MATCH(TRUE,U84:U103>=I28,0)),0))) -> 4 | I28: =MAX('Łączniki wiatr I'!I28,'Przemieszczenia wiatr I'!I28) -> 6.7 | O28: =MAX('Łączniki wiatr I'!O28,'Przemieszczenia wiatr I'!O28) -> 6.7 | P28: =IF(O8="T",INDEX(F84:F100,MATCH(TRUE,G84:G100>=O28,0)),IF(O8="W",INDEX(M84:M100,MATCH(TRUE,N84:N100>=O28,0)),IF(O8="H",INDEX(T84:T103,MATCH(TRUE,U84:U103>=O28,0)),0))) -> 4 | Q28: ='Wyniki graficzne wiatr I'!Q24 -> 8.0
G32: ='Wyniki graficzne wiatr I'!G28 -> 8.0 | H32: =IF(O8="T",INDEX(F84:F100,MATCH(TRUE,G84:G100>=I32,0)),IF(O8="W",INDEX(M84:M100,MATCH(TRUE,N84:N100>=I32,0)),IF(O8="H",INDEX(T84:T103,MATCH(TRUE,U84:U103>=I32,0)),0))) -> 2 | I32: =MAX('Łączniki wiatr I'!I32,'Przemieszczenia wiatr I'!I32) -> 5.0 | O32: =MAX('Łączniki wiatr I'!O32,'Przemieszczenia wiatr I'!O32) -> 5.0 | P32: =IF(O8="T",INDEX(F84:F100,MATCH(TRUE,G84:G100>=O32,0)),IF(O8="W",INDEX(M84:M100,MATCH(TRUE,N84:N100>=O32,0)),IF(O8="H",INDEX(T84:T103,MATCH(TRUE,U84:U103>=O32,0)),0))) -> 2 | Q32: ='Wyniki graficzne wiatr I'!Q28 -> 8.0
J33: Ściana IV | N33: Ściana II
G36: ='Wyniki graficzne wiatr I'!G32 -> 8.0 | H36: =IF(O8="T",INDEX(F84:F100,MATCH(TRUE,G84:G100>=I36,0)),IF(O8="W",INDEX(M84:M100,MATCH(TRUE,N84:N100>=I36,0)),IF(O8="H",INDEX(T84:T103,MATCH(TRUE,U84:U103>=I36,0)),0))) -> 4 | I36: =MAX('Łączniki wiatr I'!I36,'Przemieszczenia wiatr I'!I36) -> 6.7 | O36: =MAX('Łączniki wiatr I'!O36,'Przemieszczenia wiatr I'!O36) -> 6.7 | P36: =IF(O8="T",INDEX(F84:F100,MATCH(TRUE,G84:G100>=O36,0)),IF(O8="W",INDEX(M84:M100,MATCH(TRUE,N84:N100>=O36,0)),IF(O8="H",INDEX(T84:T103,MATCH(TRUE,U84:U103>=O36,0)),0))) -> 4 | Q36: ='Wyniki graficzne wiatr I'!Q32 -> 8.0
G40: ='Wyniki graficzne wiatr I'!G36 -> 2.0 | H40: =IF(O8="T",INDEX(F84:F100,MATCH(TRUE,G84:G100>=I40,0)),IF(O8="W",INDEX(M84:M100,MATCH(TRUE,N84:N100>=I40,0)),IF(O8="H",INDEX(T84:T103,MATCH(TRUE,U84:U103>=I40,0)),0))) -> 6 | I40: =MAX('Łączniki wiatr I'!I40,'Przemieszczenia wiatr I'!I40) -> 8.6 | O40: =MAX('Łączniki wiatr I'!O40,'Przemieszczenia wiatr I'!O40) -> 8.6 | P40: =IF(O8="T",INDEX(F84:F100,MATCH(TRUE,G84:G100>=O40,0)),IF(O8="W",INDEX(M84:M100,MATCH(TRUE,N84:N100>=O40,0)),IF(O8="H",INDEX(T84:T103,MATCH(TRUE,U84:U103>=O40,0)),0))) -> 6 | Q40: ='Wyniki graficzne wiatr I'!Q36 -> 2.0
L43: Ściana III
I44: Łączniki min. szt./m² | J44: =MAX('Łączniki wiatr I'!J44,'Przemieszczenia wiatr I'!J44) -> 8.6 | K44: =MAX('Łączniki wiatr I'!K44,'Przemieszczenia wiatr I'!K44) -> 8.6 | L44: =MAX('Łączniki wiatr I'!L44,'Przemieszczenia wiatr I'!L44) -> 8.6 | M44: =MAX('Łączniki wiatr I'!M44,'Przemieszczenia wiatr I'!M44) -> 8.6 | N44: =MAX('Łączniki wiatr I'!N44,'Przemieszczenia wiatr I'!N44) -> 8.6
I47: Schemat | J47: =IF(O8="T",INDEX(F84:F100,MATCH(TRUE,G84:G100>=J44,0)),IF(O8="W",INDEX(M84:M100,MATCH(TRUE,N84:N100>=J44,0)),IF(O8="H",INDEX(T84:T103,MATCH(TRUE,U84:U103>=J44,0)),0))) -> 6 | K47: =IF(O8="T",INDEX(F84:F100,MATCH(TRUE,G84:G100>=K44,0)),IF(O8="W",INDEX(M84:M100,MATCH(TRUE,N84:N100>=K44,0)),IF(O8="H",INDEX(T84:T103,MATCH(TRUE,U84:U103>=K44,0)),0))) -> 6 | L47: =IF(O8="T",INDEX(F84:F100,MATCH(TRUE,G84:G100>=L44,0)),IF(O8="W",INDEX(M84:M100,MATCH(TRUE,N84:N100>=L44,0)),IF(O8="H",INDEX(T84:T103,MATCH(TRUE,U84:U103>=L44,0)),0))) -> 6 | M47: =IF(O8="T",INDEX(F84:F100,MATCH(TRUE,G84:G100>=M44,0)),IF(O8="W",INDEX(M84:M100,MATCH(TRUE,N84:N100>=M44,0)),IF(O8="H",INDEX(T84:T103,MATCH(TRUE,U84:U103>=M44,0)),0))) -> 6 | N47: =IF(O8="T",INDEX(F84:F100,MATCH(TRUE,G84:G100>=N44,0)),IF(O8="W",INDEX(M84:M100,MATCH(TRUE,N84:N100>=N44,0)),IF(O8="H",INDEX(T84:T103,MATCH(TRUE,U84:U103>=N44,0)),0))) -> 6
I49: m | J49: ='Wyniki graficzne wiatr I'!J45 ->  | K49: ='Wyniki graficzne wiatr I'!K45 ->  | L49: ='Wyniki graficzne wiatr I'!L45 ->  | M49: ='Wyniki graficzne wiatr I'!M45 ->  | N49: ='Wyniki graficzne wiatr I'!N45 -> 10.0
J53: =TEXT(N75+N76+N77,"####0,0##")&" m" -> 10,0 m
J56: ="Wysokość ze = "&TEXT('Obliczenia wiatr I'!D46,"####0,0##")&" m" -> Wysokość ze = 25,0 m
J61: Wymagana nośność
J63: =(1-O10/100)*'Wyniki graficzne wiatr I'!J15 -> 2.1321 | K63: =(1-O10/100)*'Wyniki graficzne wiatr I'!K15 -> 2.1321 | L63: =(1-O10/100)*'Wyniki graficzne wiatr I'!L15 -> 2.1321 | M63: =(1-O10/100)*'Wyniki graficzne wiatr I'!M15 -> 2.1321 | N63: =(1-O10/100)*'Wyniki graficzne wiatr I'!N15 -> 2.1321
I64: =(1-O10/100)*'Wyniki graficzne wiatr I'!H20 -> 2.1321 | O64: =(1-O10/100)*'Wyniki graficzne wiatr I'!O20 -> 2.1321
I65: =(1-O10/100)*'Wyniki graficzne wiatr I'!H24 -> 1.6753 | O65: =(1-O10/100)*'Wyniki graficzne wiatr I'!O24 -> 1.6753
I66: =(1-O10/100)*'Wyniki graficzne wiatr I'!H28 -> 0.8757 | O66: =(1-O10/100)*'Wyniki graficzne wiatr I'!O28 -> 0.8757
I67: =(1-O10/100)*'Wyniki graficzne wiatr I'!H32 -> 1.6753 | O67: =(1-O10/100)*'Wyniki graficzne wiatr I'!O32 -> 1.6753
I68: =(1-O10/100)*'Wyniki graficzne wiatr I'!H36 -> 2.1321 | O68: =(1-O10/100)*'Wyniki graficzne wiatr I'!O36 -> 2.1321
J69: =(1-O10/100)*'Wyniki graficzne wiatr I'!J40 -> 2.1321 | K69: =(1-O10/100)*'Wyniki graficzne wiatr I'!K40 -> 2.1321 | L69: =(1-O10/100)*'Wyniki graficzne wiatr I'!L40 -> 2.1321 | M69: =(1-O10/100)*'Wyniki graficzne wiatr I'!M40 -> 2.1321 | N69: =(1-O10/100)*'Wyniki graficzne wiatr I'!N40 -> 2.1321
J72: Tablica szerokości pól ściany
K74: Ściana IV | L74: Ściana I | M74: Ściana II | N74: Ściana III
J75: a | K75: ='Obliczenia wiatr I'!C31 -> 2 | L75: ='Obliczenia wiatr I'!D31 -> 5.6 | M75: ='Obliczenia wiatr I'!C31 -> 2 | N75: ='Obliczenia wiatr I'!D31 -> 5.6
J76: b | K76: ='Obliczenia wiatr I'!C32 -> 8 | L76: ='Obliczenia wiatr I'!D32 -> 4.4 | M76: ='Obliczenia wiatr I'!C32 -> 8 | N76: ='Obliczenia wiatr I'!D32 -> 4.4
J77: c | K77: ='Obliczenia wiatr I'!C33 -> 18.0 | L77: ='Obliczenia wiatr I'!D33 -> 0.0 | M77: ='Obliczenia wiatr I'!C33 -> 18.0 | N77: ='Obliczenia wiatr I'!D33 -> 0.0
J79: e (prost) | K79: ='Obliczenia wiatr I'!C25 -> 10.0 | L79: ='Obliczenia wiatr I'!D25 -> 28.0 | M79: ='Obliczenia wiatr I'!C25 -> 10.0 | N79: ='Obliczenia wiatr I'!D25 -> 28.0
B81: T | I81: W | P81: H
B83: Schemat | C83: Łączniki | D83: Nośność | E83: Nośność | F83: Schemat | G83: Łączniki | I83: Schemat | J83: Łączniki | K83: Nośność | L83: Nośność | M83: Schemat | N83: Łączniki | P83: Schemat | Q83: Łączniki | R83: Nośność | S83: Nośność | T83: Schemat | U83: Łączniki
B84: 1 | C84: ='Obliczenia nośności T'!$D$13 -> 4.00 | D84: =IF($C$84<$O$9,0,'Obliczenia nośności T'!$D$29) -> 0.00 | E84: =SMALL(D84:D100,1) -> 0.00 | F84: =INDEX(B84:B100,MATCH(E84,D84:D100,)) -> 1 | G84: =INDEX(C84:C100,MATCH(E84,D84:D100,)) -> 4.0 | I84: 1 | J84: ='Obliczenia nośności W'!$D$13 -> 3.33 | K84: =IF($J$84<$O$9,0,'Obliczenia nośności W'!$D$29) -> 0.00 | L84: =SMALL(K84:K100,1) -> 0.00 | M84: =INDEX(I84:I100,MATCH(L84,K84:K100,)) -> 1 | N84: =INDEX(J84:J100,MATCH(L84,K84:K100,)) -> 3.3 | P84: 1 | Q84: ='Obliczenia nośności H'!$D$27 -> 4.17 | R84: =IF($Q$84<$O$9,0,'Obliczenia nośności H'!$D$43) -> 0.00 | S84: =SMALL(R84:R103,1) -> 0.00 | T84: =INDEX(P84:P103,MATCH(S84,R84:R103,)) -> 1 | U84: =INDEX(Q84:Q103,MATCH(S84,R84:R103,)) -> 4.2
B85: 2 | C85: ='Obliczenia nośności T'!$E$13 -> 5.00 | D85: =IF($C$85<$O$9,0,'Obliczenia nośności T'!$E$29) -> 1.36 | E85: =SMALL(D84:D100,2) -> 1.36 | F85: =INDEX(B84:B100,MATCH(E85,D84:D100,)) -> 2 | G85: =INDEX(C84:C100,MATCH(E85,D84:D100,)) -> 5.0 | I85: 2 | J85: ='Obliczenia nośności W'!$E$13 -> 4.17 | K85: =IF($J$85<$O$9,0,'Obliczenia nośności W'!$E$29) -> 0.00 | L85: =SMALL(K84:K100,2) -> 0.00 | M85: =INDEX(I84:I100,MATCH(L85,K84:K100,)) -> 1 | N85: =INDEX(J84:J100,MATCH(L85,K84:K100,)) -> 3.3 | P85: 2 | Q85: ='Obliczenia nośności H'!$E$27 -> 5.21 | R85: =IF($Q$85<$O$9,0,'Obliczenia nośności H'!$E$43) -> 1.48 | S85: =SMALL(R84:R103,2) -> 0.00 | T85: =INDEX(P84:P103,MATCH(S85,R84:R103,)) -> 1 | U85: =INDEX(Q84:Q103,MATCH(S85,R84:R103,)) -> 4.2
B86: 3 | C86: ='Obliczenia nośności T'!$F$13 -> 6.00 | D86: =IF($C$86<$O$9,0,'Obliczenia nośności T'!$F$29) -> 1.68 | E86: =SMALL(D84:D100,3) -> 1.68 | F86: =INDEX(B84:B100,MATCH(E86,D84:D100,)) -> 3 | G86: =INDEX(C84:C100,MATCH(E86,D84:D100,)) -> 6.0 | I86: 3 | J86: ='Obliczenia nośności W'!$F$13 -> 5.00 | K86: =IF($J$86<$O$9,0,'Obliczenia nośności W'!$F$29) -> 0.93 | L86: =SMALL(K84:K100,3) -> 0.00 | M86: =INDEX(I84:I100,MATCH(L86,K84:K100,)) -> 1 | N86: =INDEX(J84:J100,MATCH(L86,K84:K100,)) -> 3.3 | P86: 3 | Q86: ='Obliczenia nośności H'!$F$27 -> 6.25 | R86: =IF($Q$86<$O$9,0,'Obliczenia nośności H'!$F$43) -> 1.78 | S86: =SMALL(R84:R103,3) -> 1.48 | T86: =INDEX(P84:P103,MATCH(S86,R84:R103,)) -> 2 | U86: =INDEX(Q84:Q103,MATCH(S86,R84:R103,)) -> 5.2
B87: 4 | C87: ='Obliczenia nośności T'!$G$13 -> 7.00 | D87: =IF($C$87<$O$9,0,'Obliczenia nośności T'!$G$29) -> 2.00 | E87: =SMALL(D84:D100,4) -> 2.00 | F87: =INDEX(B84:B100,MATCH(E87,D84:D100,)) -> 4 | G87: =INDEX(C84:C100,MATCH(E87,D84:D100,)) -> 7.0 | I87: 4 | J87: ='Obliczenia nośności W'!$G$13 -> 5.83 | K87: =IF($J$87<$O$9,0,'Obliczenia nośności W'!$G$29) -> 1.08 | L87: =SMALL(K84:K100,4) -> 0.93 | M87: =INDEX(I84:I100,MATCH(L87,K84:K100,)) -> 3 | N87: =INDEX(J84:J100,MATCH(L87,K84:K100,)) -> 5.0 | P87: 4 | Q87: ='Obliczenia nośności H'!$G$27 -> 7.29 | R87: =IF($Q$87<$O$9,0,'Obliczenia nośności H'!$G$43) -> 2.08 | S87: =SMALL(R84:R103,4) -> 1.78 | T87: =INDEX(P84:P103,MATCH(S87,R84:R103,)) -> 14 | U87: =INDEX(Q84:Q103,MATCH(S87,R84:R103,)) -> 6.3
B88: 5 | C88: ='Obliczenia nośności T'!$H$13 -> 8.00 | D88: =IF($C$88<$O$9,0,'Obliczenia nośności T'!$H$29) -> 2.32 | E88: =SMALL(D84:D100,5) -> 2.32 | F88: =INDEX(B84:B100,MATCH(E88,D84:D100,)) -> 5 | G88: =INDEX(C84:C100,MATCH(E88,D84:D100,)) -> 8.0 | I88: 5 | J88: ='Obliczenia nośności W'!$H$13 -> 6.67 | K88: =IF($J$88<$O$9,0,'Obliczenia nośności W'!$H$29) -> 1.23 | L88: =SMALL(K84:K100,5) -> 1.08 | M88: =INDEX(I84:I100,MATCH(L88,K84:K100,)) -> 4 | N88: =INDEX(J84:J100,MATCH(L88,K84:K100,)) -> 5.8 | P88: 5 | Q88: ='Obliczenia nośności H'!$H$27 -> 8.33 | R88: =IF($Q$88<$O$9,0,'Obliczenia nośności H'!$H$43) -> 2.38 | S88: =SMALL(R84:R103,5) -> 1.78 | T88: =INDEX(P84:P103,MATCH(S88,R84:R103,)) -> 3 | U88: =INDEX(Q84:Q103,MATCH(S88,R84:R103,)) -> 6.3
B89: 6 | C89: ='Obliczenia nośności T'!$I$13 -> 9.00 | D89: =IF($C$89<$O$9,0,'Obliczenia nośności T'!$I$29) -> 2.64 | E89: =SMALL(D84:D100,6) -> 2.64 | F89: =INDEX(B84:B100,MATCH(E89,D84:D100,)) -> 6 | G89: =INDEX(C84:C100,MATCH(E89,D84:D100,)) -> 9.0 | I89: 6 | J89: ='Obliczenia nośności W'!$I$13 -> 7.50 | K89: =IF($J$89<$O$9,0,'Obliczenia nośności W'!$I$29) -> 1.39 | L89: =SMALL(K84:K100,6) -> 1.23 | M89: =INDEX(I84:I100,MATCH(L89,K84:K100,)) -> 5 | N89: =INDEX(J84:J100,MATCH(L89,K84:K100,)) -> 6.7 | P89: 6 | Q89: ='Obliczenia nośności H'!$I$27 -> 9.38 | R89: =IF($Q$89<$O$9,0,'Obliczenia nośności H'!$I$43) -> 2.67 | S89: =SMALL(R84:R103,6) -> 2.08 | T89: =INDEX(P84:P103,MATCH(S89,R84:R103,)) -> 4 | U89: =INDEX(Q84:Q103,MATCH(S89,R84:R103,)) -> 7.3
B90: 7 | C90: ='Obliczenia nośności T'!$J$13 -> 10.00 | D90: =IF($C$90<$O$9,0,'Obliczenia nośności T'!$J$29) -> 2.96 | E90: =SMALL(D84:D100,7) -> 2.84 | F90: =INDEX(B84:B100,MATCH(E90,D84:D100,)) -> 17 | G90: =INDEX(C84:C100,MATCH(E90,D84:D100,)) -> 10.0 | I90: 7 | J90: ='Obliczenia nośności W'!$J$13 -> 8.33 | K90: =IF($J$90<$O$9,0,'Obliczenia nośności W'!$J$29) -> 1.54 | L90: =SMALL(K84:K100,7) -> 1.39 | M90: =INDEX(I84:I100,MATCH(L90,K84:K100,)) -> 6 | N90: =INDEX(J84:J100,MATCH(L90,K84:K100,)) -> 7.5 | P90: 7 | Q90: ='Obliczenia nośności H'!$J$27 -> 10.42 | R90: =IF($Q$90<$O$9,0,'Obliczenia nośności H'!$J$43) -> 2.97 | S90: =SMALL(R84:R103,7) -> 2.38 | T90: =INDEX(P84:P103,MATCH(S90,R84:R103,)) -> 5 | U90: =INDEX(Q84:Q103,MATCH(S90,R84:R103,)) -> 8.3
B91: 8 | C91: ='Obliczenia nośności T'!$K$13 -> 11.00 | D91: =IF($C$91<$O$9,0,'Obliczenia nośności T'!$K$29) -> 3.28 | E91: =SMALL(D84:D100,8) -> 2.96 | F91: =INDEX(B84:B100,MATCH(E91,D84:D100,)) -> 7 | G91: =INDEX(C84:C100,MATCH(E91,D84:D100,)) -> 10.0 | I91: 8 | J91: ='Obliczenia nośności W'!$K$13 -> 9.17 | K91: =IF($J$91<$O$9,0,'Obliczenia nośności W'!$K$29) -> 1.70 | L91: =SMALL(K84:K100,8) -> 1.54 | M91: =INDEX(I84:I100,MATCH(L91,K84:K100,)) -> 7 | N91: =INDEX(J84:J100,MATCH(L91,K84:K100,)) -> 8.3 | P91: 8 | Q91: ='Obliczenia nośności H'!$K$27 -> 11.46 | R91: =IF($Q$91<$O$9,0,'Obliczenia nośności H'!$K$43) -> 3.27 | S91: =SMALL(R84:R103,8) -> 2.38 | T91: =INDEX(P84:P103,MATCH(S91,R84:R103,)) -> 5 | U91: =INDEX(Q84:Q103,MATCH(S91,R84:R103,)) -> 8.3
B92: 9 | C92: ='Obliczenia nośności T'!$L$13 -> 12.00 | D92: =IF($C$92<$O$9,0,'Obliczenia nośności T'!$L$29) -> 3.60 | E92: =SMALL(D84:D100,9) -> 3.28 | F92: =INDEX(B84:B100,MATCH(E92,D84:D100,)) -> 8 | G92: =INDEX(C84:C100,MATCH(E92,D84:D100,)) -> 11.0 | I92: 9 | J92: ='Obliczenia nośności W'!$L$13 -> 10.00 | K92: =IF($J$92<$O$9,0,'Obliczenia nośności W'!$L$29) -> 1.85 | L92: =SMALL(K84:K100,9) -> 1.70 | M92: =INDEX(I84:I100,MATCH(L92,K84:K100,)) -> 8 | N92: =INDEX(J84:J100,MATCH(L92,K84:K100,)) -> 9.2 | P92: 9 | Q92: ='Obliczenia nośności H'!$L$27 -> 12.50 | R92: =IF($Q$92<$O$9,0,'Obliczenia nośności H'!$L$43) -> 3.56 | S92: =SMALL(R84:R103,9) -> 2.67 | T92: =INDEX(P84:P103,MATCH(S92,R84:R103,)) -> 6 | U92: =INDEX(Q84:Q103,MATCH(S92,R84:R103,)) -> 9.4
B93: 10 | C93: ='Obliczenia nośności T'!$M$13 -> 12.00 | D93: =IF($C$93<$O$9,0,'Obliczenia nośności T'!$M$29) -> 3.48 | E93: =SMALL(D84:D100,10) -> 3.48 | F93: =INDEX(B84:B100,MATCH(E93,D84:D100,)) -> 10 | G93: =INDEX(C84:C100,MATCH(E93,D84:D100,)) -> 12.0 | I93: 10 | J93: ='Obliczenia nośności W'!$M$13 -> 10.83 | K93: =IF($J$93<$O$9,0,'Obliczenia nośności W'!$M$29) -> 2.02 | L93: =SMALL(K84:K100,10) -> 1.85 | M93: =INDEX(I84:I100,MATCH(L93,K84:K100,)) -> 9 | N93: =INDEX(J84:J100,MATCH(L93,K84:K100,)) -> 10.0 | P93: 10 | Q93: ='Obliczenia nośności H'!$M$27 -> 13.54 | R93: =IF($Q$93<$O$9,0,'Obliczenia nośności H'!$M$43) -> 3.86 | S93: =SMALL(R84:R103,10) -> 2.97 | T93: =INDEX(P84:P103,MATCH(S93,R84:R103,)) -> 7 | U93: =INDEX(Q84:Q103,MATCH(S93,R84:R103,)) -> 10.4
B94: 11 | C94: ='Obliczenia nośności T'!$N$13 -> 13.00 | D94: =IF($C$94<$O$9,0,'Obliczenia nośności T'!$N$29) -> 3.92 | E94: =SMALL(D84:D100,11) -> 3.60 | F94: =INDEX(B84:B100,MATCH(E94,D84:D100,)) -> 9 | G94: =INDEX(C84:C100,MATCH(E94,D84:D100,)) -> 12.0 | I94: 11 | J94: ='Obliczenia nośności W'!$N$13 -> 11.67 | K94: =IF($J$94<$O$9,0,'Obliczenia nośności W'!$N$29) -> 2.19 | L94: =SMALL(K84:K100,11) -> 2.02 | M94: =INDEX(I84:I100,MATCH(L94,K84:K100,)) -> 10 | N94: =INDEX(J84:J100,MATCH(L94,K84:K100,)) -> 10.8 | P94: 11 | Q94: ='Obliczenia nośności H'!$N$27 -> 14.58 | R94: =IF($Q$94<$O$9,0,'Obliczenia nośności H'!$N$43) -> 4.16 | S94: =SMALL(R84:R103,11) -> 2.97 | T94: =INDEX(P84:P103,MATCH(S94,R84:R103,)) -> 7 | U94: =INDEX(Q84:Q103,MATCH(S94,R84:R103,)) -> 10.4
B95: 12 | C95: ='Obliczenia nośności T'!$O$13 -> 13.00 | D95: =IF($C$95<$O$9,0,'Obliczenia nośności T'!$O$29) -> 3.80 | E95: =SMALL(D84:D100,12) -> 3.80 | F95: =INDEX(B84:B100,MATCH(E95,D84:D100,)) -> 12 | G95: =INDEX(C84:C100,MATCH(E95,D84:D100,)) -> 13.0 | I95: 12 | J95: ='Obliczenia nośności W'!$O$13 -> 12.50 | K95: =IF($J$95<$O$9,0,'Obliczenia nośności W'!$O$29) -> 2.36 | L95: =SMALL(K84:K100,12) -> 2.19 | M95: =INDEX(I84:I100,MATCH(L95,K84:K100,)) -> 11 | N95: =INDEX(J84:J100,MATCH(L95,K84:K100,)) -> 11.7 | P95: 12 | Q95: ='Obliczenia nośności H'!$O$27 -> 15.63 | R95: =IF($Q$95<$O$9,0,'Obliczenia nośności H'!$O$43) -> 4.45 | S95: =SMALL(R84:R103,12) -> 3.27 | T95: =INDEX(P84:P103,MATCH(S95,R84:R103,)) -> 8 | U95: =INDEX(Q84:Q103,MATCH(S95,R84:R103,)) -> 11.5
B96: 13 | C96: ='Obliczenia nośności T'!$P$13 -> 14.00 | D96: =IF($C$96<$O$9,0,'Obliczenia nośności T'!$P$29) -> 4.24 | E96: =SMALL(D84:D100,13) -> 3.92 | F96: =INDEX(B84:B100,MATCH(E96,D84:D100,)) -> 11 | G96: =INDEX(C84:C100,MATCH(E96,D84:D100,)) -> 13.0 | I96: 13 | J96: ='Obliczenia nośności W'!$P$13 -> 13.33 | K96: =IF($J$96<$O$9,0,'Obliczenia nośności W'!$P$29) -> 2.53 | L96: =SMALL(K84:K100,13) -> 2.36 | M96: =INDEX(I84:I100,MATCH(L96,K84:K100,)) -> 12 | N96: =INDEX(J84:J100,MATCH(L96,K84:K100,)) -> 12.5 | P96: 13 | Q96: ='Obliczenia nośności H'!$P$27 -> 4.17 | R96: =IF($Q$96<$O$9,0,'Obliczenia nośności H'!$P$43) -> 0.00 | S96: =SMALL(R84:R103,13) -> 3.56 | T96: =INDEX(P84:P103,MATCH(S96,R84:R103,)) -> 17 | U96: =INDEX(Q84:Q103,MATCH(S96,R84:R103,)) -> 12.5
B97: 14 | C97: ='Obliczenia nośności T'!$Q$13 -> 14.00 | D97: =IF($C$97<$O$9,0,'Obliczenia nośności T'!$Q$29) -> 4.12 | E97: =SMALL(D84:D100,14) -> 4.12 | F97: =INDEX(B84:B100,MATCH(E97,D84:D100,)) -> 14 | G97: =INDEX(C84:C100,MATCH(E97,D84:D100,)) -> 14.0 | I97: 14 | J97: ='Obliczenia nośności W'!$Q$13 -> 3.33 | K97: =IF($J$97<$O$9,0,'Obliczenia nośności W'!$Q$29) -> 0.00 | L97: =SMALL(K84:K100,14) -> 2.53 | M97: =INDEX(I84:I100,MATCH(L97,K84:K100,)) -> 13 | N97: =INDEX(J84:J100,MATCH(L97,K84:K100,)) -> 13.3 | P97: 14 | Q97: ='Obliczenia nośności H'!$Q$27 -> 6.25 | R97: =IF($Q$97<$O$9,0,'Obliczenia nośności H'!$Q$43) -> 1.78 | S97: =SMALL(R84:R103,14) -> 3.56 | T97: =INDEX(P84:P103,MATCH(S97,R84:R103,)) -> 9 | U97: =INDEX(Q84:Q103,MATCH(S97,R84:R103,)) -> 12.5
B98: 15 | C98: ='Obliczenia nośności T'!$R$13 -> 15.00 | D98: =IF($C$98<$O$9,0,'Obliczenia nośności T'!$R$29) -> 4.44 | E98: =SMALL(D84:D100,15) -> 4.24 | F98: =INDEX(B84:B100,MATCH(E98,D84:D100,)) -> 13 | G98: =INDEX(C84:C100,MATCH(E98,D84:D100,)) -> 14.0 | P98: 15 | Q98: ='Obliczenia nośności H'!$R$27 -> 8.33 | R98: =IF($Q$98<$O$9,0,'Obliczenia nośności H'!$R$43) -> 2.38 | S98: =SMALL(R84:R103,15) -> 3.86 | T98: =INDEX(P84:P103,MATCH(S98,R84:R103,)) -> 10 | U98: =INDEX(Q84:Q103,MATCH(S98,R84:R103,)) -> 13.5
B99: 16 | C99: ='Obliczenia nośności T'!$S$13 -> 16.00 | D99: =IF($C$99<$O$9,0,'Obliczenia nośności T'!$S$29) -> 4.76 | E99: =SMALL(D84:D100,16) -> 4.44 | F99: =INDEX(B84:B100,MATCH(E99,D84:D100,)) -> 15 | G99: =INDEX(C84:C100,MATCH(E99,D84:D100,)) -> 15.0 | P99: 16 | Q99: ='Obliczenia nośności H'!$S$27 -> 10.42 | R99: =IF($Q$99<$O$9,0,'Obliczenia nośności H'!$S$43) -> 2.97 | S99: =SMALL(R84:R103,16) -> 4.16 | T99: =INDEX(P84:P103,MATCH(S99,R84:R103,)) -> 11 | U99: =INDEX(Q84:Q103,MATCH(S99,R84:R103,)) -> 14.6
B100: 17 | C100: ='Obliczenia nośności T'!$T$13 -> 10.00 | D100: =IF($C$100<$O$9,0,'Obliczenia nośności T'!$T$29) -> 2.84 | E100: =SMALL(D84:D100,17) -> 4.76 | F100: =INDEX(B84:B100,MATCH(E100,D84:D100,)) -> 16 | G100: =INDEX(C84:C100,MATCH(E100,D84:D100,)) -> 16.0 | P100: 17 | Q100: ='Obliczenia nośności H'!$T$27 -> 12.50 | R100: =IF($Q$100<$O$9,0,'Obliczenia nośności H'!$T$43) -> 3.56 | S100: =SMALL(R84:R103,17) -> 4.16 | T100: =INDEX(P84:P103,MATCH(S100,R84:R103,)) -> 11 | U100: =INDEX(Q84:Q103,MATCH(S100,R84:R103,)) -> 14.6
P101: 18 | Q101: ='Obliczenia nośności H'!$U$27 -> 14.58 | R101: =IF($Q$101<$O$9,0,'Obliczenia nośności H'!$U$43) -> 4.16 | S101: =SMALL(R84:R103,18) -> 4.45 | T101: =INDEX(P84:P103,MATCH(S101,R84:R103,)) -> 12 | U101: =INDEX(Q84:Q103,MATCH(S101,R84:R103,)) -> 15.6
P102: 19 | Q102: ='Obliczenia nośności H'!$V$27 -> 16.67 | R102: =IF($Q$102<$O$9,0,'Obliczenia nośności H'!$V$43) -> 4.75 | S102: =SMALL(R84:R103,19) -> 4.75 | T102: =INDEX(P84:P103,MATCH(S102,R84:R103,)) -> 19 | U102: =INDEX(Q84:Q103,MATCH(S102,R84:R103,)) -> 16.7
P103: 20 | Q103: ='Obliczenia nośności H'!$W$27 -> 20.83 | R103: =IF($Q$103<$O$9,0,'Obliczenia nośności H'!$W$43) -> 5.94 | S103: =SMALL(R84:R103,20) -> 5.94 | T103: =INDEX(P84:P103,MATCH(S103,R84:R103,)) -> 20 | U103: =INDEX(Q84:Q103,MATCH(S103,R84:R103,)) -> 20.8

Sheet Wyniki końcowe wiatr II
B2: Wymagana liczba łączników mechanicznych, przypadających na 1 m² powierzchni systemu ETICS, przy oddziaływaniu wiatru II
B4: Wiatr II - różne warunki w zależności od kierunku
B6: UWAGA! Wymiary rzutu budynku i szerokości pól ściany nie są pokazywane w skali.
I8: Przyjęto układ łączników na: | O8: ='Łączniki wiatr II'!O8 -> T
I9: Przyjęto minimalną liczbę łączników [szt./m²]: | O9: ='Łączniki wiatr II'!O9 -> 5.0
I10: Przyjęto przemieszczenie graniczne w miejscu łącznika [mm]: | O10: ='Przemieszczenia wiatr II'!P10 -> 0.333
J12: ="Wysokość ze = "&TEXT('Obliczenia wiatr II'!E42,"####0,0##")&" m" -> Wysokość ze = 25,0 m
I15: m | J15: ='Wyniki graficzne wiatr II'!J11 -> 5.6 | K15: ='Wyniki graficzne wiatr II'!K11 ->  | L15: ='Wyniki graficzne wiatr II'!L11 -> 4.4 | M15: ='Wyniki graficzne wiatr II'!M11 ->  | N15: ='Wyniki graficzne wiatr II'!N11 -> 
I19: Schemat | J19: =IF(O8="T",INDEX(F84:F100,MATCH(TRUE,G84:G100>=J21,0)),IF(O8="W",INDEX(M84:M100,MATCH(TRUE,N84:N100>=J21,0)),IF(O8="H",INDEX(T84:T103,MATCH(TRUE,U84:U103>=J21,0)),0))) -> 6 | K19: =IF(O8="T",INDEX(F84:F100,MATCH(TRUE,G84:G100>=K21,0)),IF(O8="W",INDEX(M84:M100,MATCH(TRUE,N84:N100>=K21,0)),IF(O8="H",INDEX(T84:T103,MATCH(TRUE,U84:U103>=K21,0)),0))) -> 6 | L19: =IF(O8="T",INDEX(F84:F100,MATCH(TRUE,G84:G100>=L21,0)),IF(O8="W",INDEX(M84:M100,MATCH(TRUE,N84:N100>=L21,0)),IF(O8="H",INDEX(T84:T103,MATCH(TRUE,U84:U103>=L21,0)),0))) -> 4 | M19: =IF(O8="T",INDEX(F84:F100,MATCH(TRUE,G84:G100>=M21,0)),IF(O8="W",INDEX(M84:M100,MATCH(TRUE,N84:N100>=M21,0)),IF(O8="H",INDEX(T84:T103,MATCH(TRUE,U84:U103>=M21,0)),0))) -> 4 | N19: =IF(O8="T",INDEX(F84:F100,MATCH(TRUE,G84:G100>=N21,0)),IF(O8="W",INDEX(M84:M100,MATCH(TRUE,N84:N100>=N21,0)),IF(O8="H",INDEX(T84:T103,MATCH(TRUE,U84:U103>=N21,0)),0))) -> 4 | O19: Schemat
I21: Łączniki min. szt./m² | J21: =MAX('Łączniki wiatr II'!J21,'Przemieszczenia wiatr II'!J21) -> 8.6 | K21: =MAX('Łączniki wiatr II'!K21,'Przemieszczenia wiatr II'!K21) -> 8.6 | L21: =MAX('Łączniki wiatr II'!L21,'Przemieszczenia wiatr II'!L21) -> 6.7 | M21: =MAX('Łączniki wiatr II'!M21,'Przemieszczenia wiatr II'!M21) -> 6.7 | N21: =MAX('Łączniki wiatr II'!N21,'Przemieszczenia wiatr II'!N21) -> 6.7 | O21: Łączniki min. szt./m²
G23: m | H23: Schemat | P23: Schemat | Q23: m
E24: ="Wysokość ze = "&TEXT('Obliczenia wiatr II'!D42,"####0,0##")&" m" -> Wysokość ze = 25,0 m | F24: =TEXT(K75+K76+K77,"####0,0##")&" m" -> 28,0 m | G24: ='Wyniki graficzne wiatr II'!G20 -> 2.0 | H24: =IF(O8="T",INDEX(F84:F100,MATCH(TRUE,G84:G100>=I24,0)),IF(O8="W",INDEX(M84:M100,MATCH(TRUE,N84:N100>=I24,0)),IF(O8="H",INDEX(T84:T103,MATCH(TRUE,U84:U103>=I24,0)),0))) -> 6 | I24: =MAX('Łączniki wiatr II'!I24,'Przemieszczenia wiatr II'!I24) -> 8.6 | K24: ="Przyjęta oś budynku, odchylona o kąt "&TEXT('Obliczenia wiatr II'!C11,"####0,0##")&"° od kierunku N" -> Przyjęta oś budynku, odchylona o kąt 10,0° od kierunku N | L24: Ściana I | O24: =MAX('Łączniki wiatr II'!O24,'Przemieszczenia wiatr II'!O24) -> 8.6 | P24: =IF(O8="T",INDEX(F84:F100,MATCH(TRUE,G84:G100>=O24,0)),IF(O8="W",INDEX(M84:M100,MATCH(TRUE,N84:N100>=O24,0)),IF(O8="H",INDEX(T84:T103,MATCH(TRUE,U84:U103>=O24,0)),0))) -> 6 | Q24: ='Wyniki graficzne wiatr II'!Q20 -> 2.0 | R24: ="Wysokość ze = "&TEXT('Obliczenia wiatr II'!D42,"####0,0##")&" m" -> Wysokość ze = 25,0 m
G28: ='Wyniki graficzne wiatr II'!G24 -> 8.0 | H28: =IF(O8="T",INDEX(F84:F100,MATCH(TRUE,G84:G100>=I28,0)),IF(O8="W",INDEX(M84:M100,MATCH(TRUE,N84:N100>=I28,0)),IF(O8="H",INDEX(T84:T103,MATCH(TRUE,U84:U103>=I28,0)),0))) -> 4 | I28: =MAX('Łączniki wiatr II'!I28,'Przemieszczenia wiatr II'!I28) -> 6.7 | O28: =MAX('Łączniki wiatr II'!O28,'Przemieszczenia wiatr II'!O28) -> 6.7 | P28: =IF(O8="T",INDEX(F84:F100,MATCH(TRUE,G84:G100>=O28,0)),IF(O8="W",INDEX(M84:M100,MATCH(TRUE,N84:N100>=O28,0)),IF(O8="H",INDEX(T84:T103,MATCH(TRUE,U84:U103>=O28,0)),0))) -> 4 | Q28: ='Wyniki graficzne wiatr II'!Q24 -> 8.0
G32: ='Wyniki graficzne wiatr II'!G28 -> 8.0 | H32: =IF(O8="T",INDEX(F84:F100,MATCH(TRUE,G84:G100>=I32,0)),IF(O8="W",INDEX(M84:M100,MATCH(TRUE,N84:N100>=I32,0)),IF(O8="H",INDEX(T84:T103,MATCH(TRUE,U84:U103>=I32,0)),0))) -> 2 | I32: =MAX('Łączniki wiatr II'!I32,'Przemieszczenia wiatr II'!I32) -> 5.0 | O32: =MAX('Łączniki wiatr II'!O32,'Przemieszczenia wiatr II'!O32) -> 5.0 | P32: =IF(O8="T",INDEX(F84:F100,MATCH(TRUE,G84:G100>=O32,0)),IF(O8="W",INDEX(M84:M100,MATCH(TRUE,N84:N100>=O32,0)),IF(O8="H",INDEX(T84:T103,MATCH(TRUE,U84:U103>=O32,0)),0))) -> 2 | Q32: ='Wyniki graficzne wiatr II'!Q28 -> 16.0
J33: Ściana IV | L33: → | N33: Ściana II
G36: ='Wyniki graficzne wiatr II'!G32 -> 8.0 | H36: =IF(O8="T",INDEX(F84:F100,MATCH(TRUE,G84:G100>=I36,0)),IF(O8="W",INDEX(M84:M100,MATCH(TRUE,N84:N100>=I36,0)),IF(O8="H",INDEX(T84:T103,MATCH(TRUE,U84:U103>=I36,0)),0))) -> 2 | I36: =MAX('Łączniki wiatr II'!I36,'Przemieszczenia wiatr II'!I36) -> 5.0 | O36: =MAX('Łączniki wiatr II'!O36,'Przemieszczenia wiatr II'!O36) -> 5.0 | P36: =IF(O8="T",INDEX(F84:F100,MATCH(TRUE,G84:G100>=O36,0)),IF(O8="W",INDEX(M84:M100,MATCH(TRUE,N84:N100>=O36,0)),IF(O8="H",INDEX(T84:T103,MATCH(TRUE,U84:U103>=O36,0)),0))) -> 2 | Q36: ='Wyniki graficzne wiatr II'!Q32 -> 
G40: ='Wyniki graficzne wiatr II'!G36 -> 2.0 | H40: =IF(O8="T",INDEX(F84:F100,MATCH(TRUE,G84:G100>=I40,0)),IF(O8="W",INDEX(M84:M100,MATCH(TRUE,N84:N100>=I40,0)),IF(O8="H",INDEX(T84:T103,MATCH(TRUE,U84:U103>=I40,0)),0))) -> 2 | I40: =MAX('Łączniki wiatr II'!I40,'Przemieszczenia wiatr II'!I40) -> 5.0 | O40: =MAX('Łączniki wiatr II'!O40,'Przemieszczenia wiatr II'!O40) -> 5.0 | P40: =IF(O8="T",INDEX(F84:F100,MATCH(TRUE,G84:G100>=O40,0)),IF(O8="W",INDEX(M84:M100,MATCH(TRUE,N84:N100>=O40,0)),IF(O8="H",INDEX(T84:T103,MATCH(TRUE,U84:U103>=O40,0)),0))) -> 2 | Q40: ='Wyniki graficzne wiatr II'!Q36 -> 2.0
L43: Ściana III
I44: Łączniki min. szt./m² | J44: =MAX('Łączniki wiatr II'!J44,'Przemieszczenia wiatr II'!J44) -> 8.6 | K44: =MAX('Łączniki wiatr II'!K44,'Przemieszczenia wiatr II'!K44) -> 8.6 | L44: =MAX('Łączniki wiatr II'!L44,'Przemieszczenia wiatr II'!L44) -> 6.7 | M44: =MAX('Łączniki wiatr II'!M44,'Przemieszczenia wiatr II'!M44) -> 6.7 | N44: =MAX('Łączniki wiatr II'!N44,'Przemieszczenia wiatr II'!N44) -> 6.7
I47: Schemat | J47: =IF(O8="T",INDEX(F84:F100,MATCH(TRUE,G84:G100>=J44,0)),IF(O8="W",INDEX(M84:M100,MATCH(TRUE,N84:N100>=J44,0)),IF(O8="H",INDEX(T84:T103,MATCH(TRUE,U84:U103>=J44,0)),0))) -> 6 | K47: =IF(O8="T",INDEX(F84:F100,MATCH(TRUE,G84:G100>=K44,0)),IF(O8="W",INDEX(M84:M100,MATCH(TRUE,N84:N100>=K44,0)),IF(O8="H",INDEX(T84:T103,MATCH(TRUE,U84:U103>=K44,0)),0))) -> 6 | L47: =IF(O8="T",INDEX(F84:F100,MATCH(TRUE,G84:G100>=L44,0)),IF(O8="W",INDEX(M84:M100,MATCH(TRUE,N84:N100>=L44,0)),IF(O8="H",INDEX(T84:T103,MATCH(TRUE,U84:U103>=L44,0)),0))) -> 4 | M47: =IF(O8="T",INDEX(F84:F100,MATCH(TRUE,G84:G100>=M44,0)),IF(O8="W",INDEX(M84:M100,MATCH(TRUE,N84:N100>=M44,0)),IF(O8="H",INDEX(T84:T103,MATCH(TRUE,U84:U103>=M44,0)),0))) -> 4 | N47: =IF(O8="T",INDEX(F84:F100,MATCH(TRUE,G84:G100>=N44,0)),IF(O8="W",INDEX(M84:M100,MATCH(TRUE,N84:N100>=N44,0)),IF(O8="H",INDEX(T84:T103,MATCH(TRUE,U84:U103>=N44,0)),0))) -> 4
I49: m | J49: ='Wyniki graficzne wiatr II'!J45 -> 5.6 | K49: ='Wyniki graficzne wiatr II'!K45 ->  | L49: ='Wyniki graficzne wiatr II'!L45 -> 4.4 | M49: ='Wyniki graficzne wiatr II'!M45 ->  | N49: ='Wyniki graficzne wiatr II'!N45 -> 
J53: =TEXT(N75+N76+N77,"####0,0##")&" m" -> 10,0 m
J56: ="Wysokość ze = "&TEXT('Obliczenia wiatr II'!E42,"####0,0##")&" m" -> Wysokość ze = 25,0 m
J61: Wymagana nośność
J63: =(1-O10/100)*'Wyniki graficzne wiatr II'!J15 -> 2.1321 | K63: =(1-O10/100)*'Wyniki graficzne wiatr II'!K15 -> 2.1321 | L63: =(1-O10/100)*'Wyniki graficzne wiatr II'!L15 -> 1.6753 | M63: =(1-O10/100)*'Wyniki graficzne wiatr II'!M15 -> 1.6753 | N63: =(1-O10/100)*'Wyniki graficzne wiatr II'!N15 -> 1.6753
I64: =(1-O10/100)*'Wyniki graficzne wiatr II'!H20 -> 2.1321 | O64: =(1-O10/100)*'Wyniki graficzne wiatr II'!O20 -> 2.1321
I65: =(1-O10/100)*'Wyniki graficzne wiatr II'!H24 -> 1.6753 | O65: =(1-O10/100)*'Wyniki graficzne wiatr II'!O24 -> 1.6753
I66: =(1-O10/100)*'Wyniki graficzne wiatr II'!H28 -> 0.7615 | O66: =(1-O10/100)*'Wyniki graficzne wiatr II'!O28 -> 0.8757
I67: =(1-O10/100)*'Wyniki graficzne wiatr II'!H32 -> 0.8209 | O67: =(1-O10/100)*'Wyniki graficzne wiatr II'!O32 -> 0.8757
I68: =(1-O10/100)*'Wyniki graficzne wiatr II'!H36 -> 1.0447 | O68: =(1-O10/100)*'Wyniki graficzne wiatr II'!O36 -> 1.0447
J69: =(1-O10/100)*'Wyniki graficzne wiatr II'!J40 -> 2.1321 | K69: =(1-O10/100)*'Wyniki graficzne wiatr II'!K40 -> 2.1321 | L69: =(1-O10/100)*'Wyniki graficzne wiatr II'!L40 -> 1.6753 | M69: =(1-O10/100)*'Wyniki graficzne wiatr II'!M40 -> 1.6753 | N69: =(1-O10/100)*'Wyniki graficzne wiatr II'!N40 -> 1.6753
J72: Tablica szerokości pól ściany
K74: Ściana IV | L74: Ściana I | M74: Ściana II | N74: Ściana III
J75: a | K75: ='Obliczenia wiatr II'!D35 -> 2 | L75: ='Obliczenia wiatr II'!E35 -> 5.6 | M75: ='Obliczenia wiatr II'!F35 -> 2 | N75: ='Obliczenia wiatr II'!G35 -> 5.6
J76: b | K76: ='Obliczenia wiatr II'!D36 -> 8 | L76: ='Obliczenia wiatr II'!E36 -> 4.4 | M76: ='Obliczenia wiatr II'!F36 -> 8 | N76: ='Obliczenia wiatr II'!G36 -> 4.4
J77: c | K77: ='Obliczenia wiatr II'!D37 -> 18.0 | L77: ='Obliczenia wiatr II'!E37 -> 0.0 | M77: ='Obliczenia wiatr II'!F37 -> 18.0 | N77: ='Obliczenia wiatr II'!G37 -> 0.0
J79: e (prost) | K79: ='Obliczenia wiatr II'!D29 -> 10.0 | L79: ='Obliczenia wiatr II'!E29 -> 28.0 | M79: ='Obliczenia wiatr II'!F29 -> 10.0 | N79: ='Obliczenia wiatr II'!G29 -> 28.0
B81: T | I81: W | P81: H
B83: Schemat | C83: Łączniki | D83: Nośność | E83: Nośność | F83: Schemat | G83: Łączniki | I83: Schemat | J83: Łączniki | K83: Nośność | L83: Nośność | M83: Schemat | N83: Łączniki | P83: Schemat | Q83: Łączniki | R83: Nośność | S83: Nośność | T83: Schemat | U83: Łączniki
B84: 1 | C84: ='Obliczenia nośności T'!$D$13 -> 4.00 | D84: =IF($C$84<$O$9,0,'Obliczenia nośności T'!$D$29) -> 0.00 | E84: =SMALL(D84:D100,1) -> 0.00 | F84: =INDEX(B84:B100,MATCH(E84,D84:D100,)) -> 1 | G84: =INDEX(C84:C100,MATCH(E84,D84:D100,)) -> 4.0 | I84: 1 | J84: ='Obliczenia nośności W'!$D$13 -> 3.33 | K84: =IF($J$84<$O$9,0,'Obliczenia nośności W'!$D$29) -> 0.00 | L84: =SMALL(K84:K100,1) -> 0.00 | M84: =INDEX(I84:I100,MATCH(L84,K84:K100,)) -> 1 | N84: =INDEX(J84:J100,MATCH(L84,K84:K100,)) -> 3.3 | P84: 1 | Q84: ='Obliczenia nośności H'!$D$27 -> 4.17 | R84: =IF($Q$84<$O$9,0,'Obliczenia nośności H'!$D$43) -> 0.00 | S84: =SMALL(R84:R103,1) -> 0.00 | T84: =INDEX(P84:P103,MATCH(S84,R84:R103,)) -> 1 | U84: =INDEX(Q84:Q103,MATCH(S84,R84:R103,)) -> 4.2
B85: 2 | C85: ='Obliczenia nośności T'!$E$13 -> 5.00 | D85: =IF($C$85<$O$9,0,'Obliczenia nośności T'!$E$29) -> 1.36 | E85: =SMALL(D84:D100,2) -> 1.36 | F85: =INDEX(B84:B100,MATCH(E85,D84:D100,)) -> 2 | G85: =INDEX(C84:C100,MATCH(E85,D84:D100,)) -> 5.0 | I85: 2 | J85: ='Obliczenia nośności W'!$E$13 -> 4.17 | K85: =IF($J$85<$O$9,0,'Obliczenia nośności W'!$E$29) -> 0.00 | L85: =SMALL(K84:K100,2) -> 0.00 | M85: =INDEX(I84:I100,MATCH(L85,K84:K100,)) -> 1 | N85: =INDEX(J84:J100,MATCH(L85,K84:K100,)) -> 3.3 | P85: 2 | Q85: ='Obliczenia nośności H'!$E$27 -> 5.21 | R85: =IF($Q$85<$O$9,0,'Obliczenia nośności H'!$E$43) -> 1.48 | S85: =SMALL(R84:R103,2) -> 0.00 | T85: =INDEX(P84:P103,MATCH(S85,R84:R103,)) -> 1 | U85: =INDEX(Q84:Q103,MATCH(S85,R84:R103,)) -> 4.2
B86: 3 | C86: ='Obliczenia nośności T'!$F$13 -> 6.00 | D86: =IF($C$86<$O$9,0,'Obliczenia nośności T'!$F$29) -> 1.68 | E86: =SMALL(D84:D100,3) -> 1.68 | F86: =INDEX(B84:B100,MATCH(E86,D84:D100,)) -> 3 | G86: =INDEX(C84:C100,MATCH(E86,D84:D100,)) -> 6.0 | I86: 3 | J86: ='Obliczenia nośności W'!$F$13 -> 5.00 | K86: =IF($J$86<$O$9,0,'Obliczenia nośności W'!$F$29) -> 0.93 | L86: =SMALL(K84:K100,3) -> 0.00 | M86: =INDEX(I84:I100,MATCH(L86,K84:K100,)) -> 1 | N86: =INDEX(J84:J100,MATCH(L86,K84:K100,)) -> 3.3 | P86: 3 | Q86: ='Obliczenia nośności H'!$F$27 -> 6.25 | R86: =IF($Q$86<$O$9,0,'Obliczenia nośności H'!$F$43) -> 1.78 | S86: =SMALL(R84:R103,3) -> 1.48 | T86: =INDEX(P84:P103,MATCH(S86,R84:R103,)) -> 2 | U86: =INDEX(Q84:Q103,MATCH(S86,R84:R103,)) -> 5.2
B87: 4 | C87: ='Obliczenia nośności T'!$G$13 -> 7.00 | D87: =IF($C$87<$O$9,0,'Obliczenia nośności T'!$G$29) -> 2.00 | E87: =SMALL(D84:D100,4) -> 2.00 | F87: =INDEX(B84:B100,MATCH(E87,D84:D100,)) -> 4 | G87: =INDEX(C84:C100,MATCH(E87,D84:D100,)) -> 7.0 | I87: 4 | J87: ='Obliczenia nośności W'!$G$13 -> 5.83 | K87: =IF($J$87<$O$9,0,'Obliczenia nośności W'!$G$29) -> 1.08 | L87: =SMALL(K84:K100,4) -> 0.93 | M87: =INDEX(I84:I100,MATCH(L87,K84:K100,)) -> 3 | N87: =INDEX(J84:J100,MATCH(L87,K84:K100,)) -> 5.0 | P87: 4 | Q87: ='Obliczenia nośności H'!$G$27 -> 7.29 | R87: =IF($Q$87<$O$9,0,'Obliczenia nośności H'!$G$43) -> 2.08 | S87: =SMALL(R84:R103,4) -> 1.78 | T87: =INDEX(P84:P103,MATCH(S87,R84:R103,)) -> 14 | U87: =INDEX(Q84:Q103,MATCH(S87,R84:R103,)) -> 6.3
B88: 5 | C88: ='Obliczenia nośności T'!$H$13 -> 8.00 | D88: =IF($C$88<$O$9,0,'Obliczenia nośności T'!$H$29) -> 2.32 | E88: =SMALL(D84:D100,5) -> 2.32 | F88: =INDEX(B84:B100,MATCH(E88,D84:D100,)) -> 5 | G88: =INDEX(C84:C100,MATCH(E88,D84:D100,)) -> 8.0 | I88: 5 | J88: ='Obliczenia nośności W'!$H$13 -> 6.67 | K88: =IF($J$88<$O$9,0,'Obliczenia nośności W'!$H$29) -> 1.23 | L88: =SMALL(K84:K100,5) -> 1.08 | M88: =INDEX(I84:I100,MATCH(L88,K84:K100,)) -> 4 | N88: =INDEX(J84:J100,MATCH(L88,K84:K100,)) -> 5.8 | P88: 5 | Q88: ='Obliczenia nośności H'!$H$27 -> 8.33 | R88: =IF($Q$88<$O$9,0,'Obliczenia nośności H'!$H$43) -> 2.38 | S88: =SMALL(R84:R103,5) -> 1.78 | T88: =INDEX(P84:P103,MATCH(S88,R84:R103,)) -> 3 | U88: =INDEX(Q84:Q103,MATCH(S88,R84:R103,)) -> 6.3
B89: 6 | C89: ='Obliczenia nośności T'!$I$13 -> 9.00 | D89: =IF($C$89<$O$9,0,'Obliczenia nośności T'!$I$29) -> 2.64 | E89: =SMALL(D84:D100,6) -> 2.64 | F89: =INDEX(B84:B100,MATCH(E89,D84:D100,)) -> 6 | G89: =INDEX(C84:C100,MATCH(E89,D84:D100,)) -> 9.0 | I89: 6 | J89: ='Obliczenia nośności W'!$I$13 -> 7.50 | K89: =IF($J$89<$O$9,0,'Obliczenia nośności W'!$I$29) -> 1.39 | L89: =SMALL(K84:K100,6) -> 1.23 | M89: =INDEX(I84:I100,MATCH(L89,K84:K100,)) -> 5 | N89: =INDEX(J84:J100,MATCH(L89,K84:K100,)) -> 6.7 | P89: 6 | Q89: ='Obliczenia nośności H'!$I$27 -> 9.38 | R89: =IF($Q$89<$O$9,0,'Obliczenia nośności H'!$I$43) -> 2.67 | S89: =SMALL(R84:R103,6) -> 2.08 | T89: =INDEX(P84:P103,MATCH(S89,R84:R103,)) -> 4 | U89: =INDEX(Q84:Q103,MATCH(S89,R84:R103,)) -> 7.3
B90: 7 | C90: ='Obliczenia nośności T'!$J$13 -> 10.00 | D90: =IF($C$90<$O$9,0,'Obliczenia nośności T'!$J$29) -> 2.96 | E90: =SMALL(D84:D100,7) -> 2.84 | F90: =INDEX(B84:B100,MATCH(E90,D84:D100,)) -> 17 | G90: =INDEX(C84:C100,MATCH(E90,D84:D100,)) -> 10.0 | I90: 7 | J90: ='Obliczenia nośności W'!$J$13 -> 8.33 | K90: =IF($J$90<$O$9,0,'Obliczenia nośności W'!$J$29) -> 1.54 | L90: =SMALL(K84:K100,7) -> 1.39 | M90: =INDEX(I84:I100,MATCH(L90,K84:K100,)) -> 6 | N90: =INDEX(J84:J100,MATCH(L90,K84:K100,)) -> 7.5 | P90: 7 | Q90: ='Obliczenia nośności H'!$J$27 -> 10.42 | R90: =IF($Q$90<$O$9,0,'Obliczenia nośności H'!$J$43) -> 2.97 | S90: =SMALL(R84:R103,7) -> 2.38 | T90: =INDEX(P84:P103,MATCH(S90,R84:R103,)) -> 5 | U90: =INDEX(Q84:Q103,MATCH(S90,R84:R103,)) -> 8.3
B91: 8 | C91: ='Obliczenia nośności T'!$K$13 -> 11.00 | D91: =IF($C$91<$O$9,0,'Obliczenia nośności T'!$K$29) -> 3.28 | E91: =SMALL(D84:D100,8) -> 2.96 | F91: =INDEX(B84:B100,MATCH(E91,D84:D100,)) -> 7 | G91: =INDEX(C84:C100,MATCH(E91,D84:D100,)) -> 10.0 | I91: 8 | J91: ='Obliczenia nośności W'!$K$13 -> 9.17 | K91: =IF($J$91<$O$9,0,'Obliczenia nośności W'!$K$29) -> 1.70 | L91: =SMALL(K84:K100,8) -> 1.54 | M91: =INDEX(I84:I100,MATCH(L91,K84:K100,)) -> 7 | N91: =INDEX(J84:J100,MATCH(L91,K84:K100,)) -> 8.3 | P91: 8 | Q91: ='Obliczenia nośności H'!$K$27 -> 11.46 | R91: =IF($Q$91<$O$9,0,'Obliczenia nośności H'!$K$43) -> 3.27 | S91: =SMALL(R84:R103,8) -> 2.38 | T91: =INDEX(P84:P103,MATCH(S91,R84:R103,)) -> 5 | U91: =INDEX(Q84:Q103,MATCH(S91,R84:R103,)) -> 8.3
B92: 9 | C92: ='Obliczenia nośności T'!$L$13 -> 12.00 | D92: =IF($C$92<$O$9,0,'Obliczenia nośności T'!$L$29) -> 3.60 | E92: =SMALL(D84:D100,9) -> 3.28 | F92: =INDEX(B84:B100,MATCH(E92,D84:D100,)) -> 8 | G92: =INDEX(C84:C100,MATCH(E92,D84:D100,)) -> 11.0 | I92: 9 | J92: ='Obliczenia nośności W'!$L$13 -> 10.00 | K92: =IF($J$92<$O$9,0,'Obliczenia nośności W'!$L$29) -> 1.85 | L92: =SMALL(K84:K100,9) -> 1.70 | M92: =INDEX(I84:I100,MATCH(L92,K84:K100,)) -> 8 | N92: =INDEX(J84:J100,MATCH(L92,K84:K100,)) -> 9.2 | P92: 9 | Q92: ='Obliczenia nośności H'!$L$27 -> 12.50 | R92: =IF($Q$92<$O$9,0,'Obliczenia nośności H'!$L$43) -> 3.56 | S92: =SMALL(R84:R103,9) -> 2.67 | T92: =INDEX(P84:P103,MATCH(S92,R84:R103,)) -> 6 | U92: =INDEX(Q84:Q103,MATCH(S92,R84:R103,)) -> 9.4
B93: 10 | C93: ='Obliczenia nośności T'!$M$13 -> 12.00 | D93: =IF($C$93<$O$9,0,'Obliczenia nośności T'!$M$29) -> 3.48 | E93: =SMALL(D84:D100,10) -> 3.48 | F93: =INDEX(B84:B100,MATCH(E93,D84:D100,)) -> 10 | G93: =INDEX(C84:C100,MATCH(E93,D84:D100,)) -> 12.0 | I93: 10 | J93: ='Obliczenia nośności W'!$M$13 -> 10.83 | K93: =IF($J$93<$O$9,0,'Obliczenia nośności W'!$M$29) -> 2.02 | L93: =SMALL(K84:K100,10) -> 1.85 | M93: =INDEX(I84:I100,MATCH(L93,K84:K100,)) -> 9 | N93: =INDEX(J84:J100,MATCH(L93,K84:K100,)) -> 10.0 | P93: 10 | Q93: ='Obliczenia nośności H'!$M$27 -> 13.54 | R93: =IF($Q$93<$O$9,0,'Obliczenia nośności H'!$M$43) -> 3.86 | S93: =SMALL(R84:R103,10) -> 2.97 | T93: =INDEX(P84:P103,MATCH(S93,R84:R103,)) -> 7 | U93: =INDEX(Q84:Q103,MATCH(S93,R84:R103,)) -> 10.4
B94: 11 | C94: ='Obliczenia nośności T'!$N$13 -> 13.00 | D94: =IF($C$94<$O$9,0,'Obliczenia nośności T'!$N$29) -> 3.92 | E94: =SMALL(D84:D100,11) -> 3.60 | F94: =INDEX(B84:B100,MATCH(E94,D84:D100,)) -> 9 | G94: =INDEX(C84:C100,MATCH(E94,D84:D100,)) -> 12.0 | I94: 11 | J94: ='Obliczenia nośności W'!$N$13 -> 11.67 | K94: =IF($J$94<$O$9,0,'Obliczenia nośności W'!$N$29) -> 2.19 | L94: =SMALL(K84:K100,11) -> 2.02 | M94: =INDEX(I84:I100,MATCH(L94,K84:K100,)) -> 10 | N94: =INDEX(J84:J100,MATCH(L94,K84:K100,)) -> 10.8 | P94: 11 | Q94: ='Obliczenia nośności H'!$N$27 -> 14.58 | R94: =IF($Q$94<$O$9,0,'Obliczenia nośności H'!$N$43) -> 4.16 | S94: =SMALL(R84:R103,11) -> 2.97 | T94: =INDEX(P84:P103,MATCH(S94,R84:R103,)) -> 7 | U94: =INDEX(Q84:Q103,MATCH(S94,R84:R103,)) -> 10.4
B95: 12 | C95: ='Obliczenia nośności T'!$O$13 -> 13.00 | D95: =IF($C$95<$O$9,0,'Obliczenia nośności T'!$O$29) -> 3.80 | E95: =SMALL(D84:D100,12) -> 3.80 | F95: =INDEX(B84:B100,MATCH(E95,D84:D100,)) -> 12 | G95: =INDEX(C84:C100,MATCH(E95,D84:D100,)) -> 13.0 | I95: 12 | J95: ='Obliczenia nośności W'!$O$13 -> 12.50 | K95: =IF($J$95<$O$9,0,'Obliczenia nośności W'!$O$29) -> 2.36 | L95: =SMALL(K84:K100,12) -> 2.19 | M95: =INDEX(I84:I100,MATCH(L95,K84:K100,)) -> 11 | N95: =INDEX(J84:J100,MATCH(L95,K84:K100,)) -> 11.7 | P95: 12 | Q95: ='Obliczenia nośności H'!$O$27 -> 15.63 | R95: =IF($Q$95<$O$9,0,'Obliczenia nośności H'!$O$43) -> 4.45 | S95: =SMALL(R84:R103,12) -> 3.27 | T95: =INDEX(P84:P103,MATCH(S95,R84:R103,)) -> 8 | U95: =INDEX(Q84:Q103,MATCH(S95,R84:R103,)) -> 11.5
B96: 13 | C96: ='Obliczenia nośności T'!$P$13 -> 14.00 | D96: =IF($C$96<$O$9,0,'Obliczenia nośności T'!$P$29) -> 4.24 | E96: =SMALL(D84:D100,13) -> 3.92 | F96: =INDEX(B84:B100,MATCH(E96,D84:D100,)) -> 11 | G96: =INDEX(C84:C100,MATCH(E96,D84:D100,)) -> 13.0 | I96: 13 | J96: ='Obliczenia nośności W'!$P$13 -> 13.33 | K96: =IF($J$96<$O$9,0,'Obliczenia nośności W'!$P$29) -> 2.53 | L96: =SMALL(K84:K100,13) -> 2.36 | M96: =INDEX(I84:I100,MATCH(L96,K84:K100,)) -> 12 | N96: =INDEX(J84:J100,MATCH(L96,K84:K100,)) -> 12.5 | P96: 13 | Q96: ='Obliczenia nośności H'!$P$27 -> 4.17 | R96: =IF($Q$96<$O$9,0,'Obliczenia nośności H'!$P$43) -> 0.00 | S96: =SMALL(R84:R103,13) -> 3.56 | T96: =INDEX(P84:P103,MATCH(S96,R84:R103,)) -> 17 | U96: =INDEX(Q84:Q103,MATCH(S96,R84:R103,)) -> 12.5
B97: 14 | C97: ='Obliczenia nośności T'!$Q$13 -> 14.00 | D97: =IF($C$97<$O$9,0,'Obliczenia nośności T'!$Q$29) -> 4.12 | E97: =SMALL(D84:D100,14) -> 4.12 | F97: =INDEX(B84:B100,MATCH(E97,D84:D100,)) -> 14 | G97: =INDEX(C84:C100,MATCH(E97,D84:D100,)) -> 14.0 | I97: 14 | J97: ='Obliczenia nośności W'!$Q$13 -> 3.33 | K97: =IF($J$97<$O$9,0,'Obliczenia nośności W'!$Q$29) -> 0.00 | L97: =SMALL(K84:K100,14) -> 2.53 | M97: =INDEX(I84:I100,MATCH(L97,K84:K100,)) -> 13 | N97: =INDEX(J84:J100,MATCH(L97,K84:K100,)) -> 13.3 | P97: 14 | Q97: ='Obliczenia nośności H'!$Q$27 -> 6.25 | R97: =IF($Q$97<$O$9,0,'Obliczenia nośności H'!$Q$43) -> 1.78 | S97: =SMALL(R84:R103,14) -> 3.56 | T97: =INDEX(P84:P103,MATCH(S97,R84:R103,)) -> 9 | U97: =INDEX(Q84:Q103,MATCH(S97,R84:R103,)) -> 12.5
B98: 15 | C98: ='Obliczenia nośności T'!$R$13 -> 15.00 | D98: =IF($C$98<$O$9,0,'Obliczenia nośności T'!$R$29) -> 4.44 | E98: =SMALL(D84:D100,15) -> 4.24 | F98: =INDEX(B84:B100,MATCH(E98,D84:D100,)) -> 13 | G98: =INDEX(C84:C100,MATCH(E98,D84:D100,)) -> 14.0 | P98: 15 | Q98: ='Obliczenia nośności H'!$R$27 -> 8.33 | R98: =IF($Q$98<$O$9,0,'Obliczenia nośności H'!$R$43) -> 2.38 | S98: =SMALL(R84:R103,15) -> 3.86 | T98: =INDEX(P84:P103,MATCH(S98,R84:R103,)) -> 10 | U98: =INDEX(Q84:Q103,MATCH(S98,R84:R103,)) -> 13.5
B99: 16 | C99: ='Obliczenia nośności T'!$S$13 -> 16.00 | D99: =IF($C$99<$O$9,0,'Obliczenia nośności T'!$S$29) -> 4.76 | E99: =SMALL(D84:D100,16) -> 4.44 | F99: =INDEX(B84:B100,MATCH(E99,D84:D100,)) -> 15 | G99: =INDEX(C84:C100,MATCH(E99,D84:D100,)) -> 15.0 | P99: 16 | Q99: ='Obliczenia nośności H'!$S$27 -> 10.42 | R99: =IF($Q$99<$O$9,0,'Obliczenia nośności H'!$S$43) -> 2.97 | S99: =SMALL(R84:R103,16) -> 4.16 | T99: =INDEX(P84:P103,MATCH(S99,R84:R103,)) -> 11 | U99: =INDEX(Q84:Q103,MATCH(S99,R84:R103,)) -> 14.6
B100: 17 | C100: ='Obliczenia nośności T'!$T$13 -> 10.00 | D100: =IF($C$100<$O$9,0,'Obliczenia nośności T'!$T$29) -> 2.84 | E100: =SMALL(D84:D100,17) -> 4.76 | F100: =INDEX(B84:B100,MATCH(E100,D84:D100,)) -> 16 | G100: =INDEX(C84:C100,MATCH(E100,D84:D100,)) -> 16.0 | P100: 17 | Q100: ='Obliczenia nośności H'!$T$27 -> 12.50 | R100: =IF($Q$100<$O$9,0,'Obliczenia nośności H'!$T$43) -> 3.56 | S100: =SMALL(R84:R103,17) -> 4.16 | T100: =INDEX(P84:P103,MATCH(S100,R84:R103,)) -> 11 | U100: =INDEX(Q84:Q103,MATCH(S100,R84:R103,)) -> 14.6
P101: 18 | Q101: ='Obliczenia nośności H'!$U$27 -> 14.58 | R101: =IF($Q$101<$O$9,0,'Obliczenia nośności H'!$U$43) -> 4.16 | S101: =SMALL(R84:R103,18) -> 4.45 | T101: =INDEX(P84:P103,MATCH(S101,R84:R103,)) -> 12 | U101: =INDEX(Q84:Q103,MATCH(S101,R84:R103,)) -> 15.6
P102: 19 | Q102: ='Obliczenia nośności H'!$V$27 -> 16.67 | R102: =IF($Q$102<$O$9,0,'Obliczenia nośności H'!$V$43) -> 4.75 | S102: =SMALL(R84:R103,19) -> 4.75 | T102: =INDEX(P84:P103,MATCH(S102,R84:R103,)) -> 19 | U102: =INDEX(Q84:Q103,MATCH(S102,R84:R103,)) -> 16.7
P103: 20 | Q103: ='Obliczenia nośności H'!$W$27 -> 20.83 | R103: =IF($Q$103<$O$9,0,'Obliczenia nośności H'!$W$43) -> 5.94 | S103: =SMALL(R84:R103,20) -> 5.94 | T103: =INDEX(P84:P103,MATCH(S103,R84:R103,)) -> 20 | U103: =INDEX(Q84:Q103,MATCH(S103,R84:R103,)) -> 20.8

Sheet Rozmieszczenie łączników
B2: Możliwe położenia łączników wg prEN 17237:2018

Sheet Strefy i teren
B2: Podział Polski na strefy obciążenia wiatrem wg PN-EN 1991-1-4:2008
F27: Mapa podziału Polski na strefy wartości podstawowej bazowej predkości wiatru vb,0
F29: Na granicy stref 1 i 2, w pasach o szerokości 10 km po obu stronach granicy, można stosować wartość średnią z obu stref.
B32: Kategorie terenu wg PN-EN 1991-1-4:2008
K35: Kategoria 0
K37: Morze, obszar brzegowy otwarty na morze
K46: Kategoria I
K48: Jeziora albo obszary z pomijalną niewielką roślinnością i bez przeszkód
K57: Kategoria II
K59: Obszary z niską roślinnością, taką jak trawa, oraz pojedynczymi przeszkodami (drzewa, budynki) oddalonymi od siebie na odległość nie mniejszą niż 20 ich wysokości
K68: Kategoria III
K70: Obszary regularnie pokryte roślinnością albo budynkami lub z pojedynczymi przeszkodami oddalonymi od siebie na odległość nie większą niż 20 ich wysokości (jak wsie, tereny podmiejskie, stałe lasy)
K79: Kategoria IV
K81: Obszary, na których przynajmniej 15 % powierzchni pokrywają budynki o średniej wysokości przekraczającej 15 m

Sheet Wsp kierunkowy
B2: Współczynnik kierunkowy wg PN-EN 1991-1-4:2008
B18: Określenie kąta odchylenia wybranej osi budynku od kierunku północnego i przypadki (kierunki) oddziaływania wiatru

Sheet Pola ścian
B2: Oznaczenia pól na ścianach pionowych budynków na rzucie prostokąta, wg PN-EN 1991-1-4:2008

Sheet Wysokość przemieszczenia
B2: Wysokość przemieszczenia hdis wg PN-EN 1991-1-4:2008
C5: Wysokość przemieszczenia W terenie kategorii IV budynki i inne przeszkody usytuowane blisko siebie powodują, że wiatr zachowuje się tak, jak gdyby poziom terenu został podniesiony na wysokość hdis, nazywaną wysokością przemieszczenia.
J9: Kategoria terenu IV Obszary, na których przynajmniej 15 % powierzchni pokrywają budynki o średniej wysokości przekraczającej 15 m
C20: Wysokość hdis można wyznaczyć z poniższych zależności (patrz rysunek):
D21: x ≤ 2 ∙ have | G21: hdis jest wartością mniejszą z dwóch: 0,8 ∙ have albo 0,6 ∙ h
D22: 2 ∙ have < x < 6 ∙ have | G22: hdis jest wartością mniejszą z dwóch: (1,2 ∙ have - 0,2 ∙ x) albo 0,6 ∙ h
D23: x ≥ 6 ∙ have | G23: hdis = 0
C25: Warunki te zależą od kierunku wiatru; wartości have oraz x należy zatem ustalać w sektorach o rozwartości 30°.
C28: Przy braku dokładniejszych informacji średnią wysokość przeszkód w terenie kategorii IV można przyjąć jako równą have = 15 m.
F48: Obliczenia wysokości przemieszczenia
G51: Wysokość budynku h, m | N51: 25
G52: Wysokość przeszkód have, m | N52: 15
G53: Odległość x, m | N53: 50
G54: Wysokość przemieszczenia poziomu zerowego hdis, m | N54: =IF(N53<=2*N52,MIN(0.8*N52,0.6*N51),IF(AND(N53>2*N52,N53<6*N52),MIN((1.2*N52-0.2*N53),0.6*N51),IF(N53>=6*N52,0,"?"))) -> 8

Sheet Notatki
